Workbook

Sheet Information
A1: Forecast Repex Model - 2020 Model
A3: Purpose
A4: Utilise 2020 age profile for various asset classes, with calibrated standard lives and unit costs to determine a replacement expenditure forecast (forecast repex model).
A5: Please refer to the Network Non-Load Driven Expenditure Forecasting Methodology Appendix 5.04 of Powerlink's Revenue Proposal.
A7: Context
A8: This workbook has as inputs:
A9: * Adjusted age profiles as at the end of FY 2020 that is reflective of future replacement need (from the Age profile calculation workbooks, used in the "Asset data" worksheet).
A10: * Calibrated standard lives, (from the calibration [2015] repex model), used in the "Input Data" worksheet for some asset categories.
A11: * Life of Towers due for refit has been extended from previous approved life. This is a result from the change in project starts at Health Index 7 to project ends at Health Index 8.
A12: * Population data [towers, switchgear and secondary systems], (from the age profile calculation workbooks, used in the "Input Data" worksheet).
A13: * Unit costs are input in the "Asset data" worksheet (column F).
A15: The outputs of the workbook are on "Results_Output", which are used in the Capex Model. This worksheet calculates capitalisation schedules (based off incurred replacement schedules).
A16: Output from the tower capitalisation program (reflecting the capitalisation in built sections) is also used in the Results_Output worksheet.

Sheet Input Data
B2: Input Data
B4: Switchgear | G4: Towers
B5: Calibrated Standard Life
B6: Quantity | C6: Value | D6: Source | G6: Quantity | H6: Value | I6: Source
B7: CB | C7: 40.54518893 | D7: Calibration (2015) repex model
B8: Isol / ES | C8: 48.84757771 | D8: Calibration (2015) repex model | G8: Output Calculations
B9: VT | C9: 39.02313645 | D9: Calibration (2015) repex model | G9: Tower Foundation Rectification Life | H9: 60 | I9: Grillage Foundation Life
B10: CT | C10: 39.93573553 | D10: Calibration (2015) repex model
G11: Tower Refit Calibrated Offset Standard Life - Zone B | H11: 76.25 | I11: Last Reset AER Final Decision + 3 years due to AM practices
G12: Tower Refit Calibrated Offset Standard Life - Zone C | H12: 60.12 | I12: Last Reset AER Final Decision + 4 years due to AM practices
G13: Tower Refit Calibrated Offset Standard Life - Zone DEF | H13: 45.09789487 | I13: Calibration (2015) repex model + 1.5 years due to AM practices
B14: Secondary Systems
B15: Calibrated Standard Life
B16: Quantity | C16: Value | D16: Source
B17: Secondary Systems (Bay and Non Bay), excludes SVC, selected nonbay, metering | C17: 21.6901574 | D17: =D7 -> Calibration (2015) repex model
B19: Calculation of Metering Replacement Rate
B20: Sec Sys - (Bay and Non-Bay) | C20: =1243+111 -> 1354 | D20: 2015 Population Data
B21: Sec Sys - Metering | C21: 293 | D21: 2015 Population Data
B23: Ratio of (metering):(Bay+Nonbay) | C23: =C21/C20 -> 0.2163958641 | D23: Calculation

Sheet Asset data
A1: Meth all | D1: 2 | E1: =IF(D1=2,"all normal",IF(D1=1,"all deterministic","individual")) -> all normal | L1: Profile type: | M1: 3 | N1: =VLOOKUP(APtype,IDtable,4) -> Installation date
F3: Unit | J3: Quantities | CX3: Replacement Cost (NOT depreciated)
F4: Cost | G4: Replacement life | I4: Rep | J4: =VLOOKUP(APtype,IDtable,4) -> Installation date | CX4: =VLOOKUP(APtype,IDtable,4) -> Installation date
A5: ID | B5: ID | C5: ID | D5: Asset category | E5: Asset ID | F5: $ ('000) | G5: mean | H5: SD | I5: Meth | J5: =IF(OR(APtype=1,APtype=2),0,IF(APtype=3,Now,9999)) -> 2020 | K5: =IF(OR(APtype=1,APtype=2),J5+1,IF(APtype=3,J5-1,9999)) -> 2019 | L5: 2018 | M5: 2017 | N5: 2016 | O5: 2015 | P5: 2014 | Q5: 2013 | R5: 2012 | S5: 2011 | T5: 2010 | U5: 2009 | V5: 2008 | W5: 2007 | X5: 2006 | Y5: 2005 | Z5: 2004 | AA5: 2003 | AB5: 2002 | AC5: 2001 | AD5: 2000 | AE5: 1999 | AF5: 1998 | AG5: 1997 | AH5: 1996 | AI5: 1995 | AJ5: 1994 | AK5: 1993 | AL5: 1992 | AM5: 1991 | AN5: 1990 | AO5: 1989 | AP5: 1988 | AQ5: =IF(OR(APtype=1,APtype=2),AP5+1,IF(APtype=3,AP5-1,9999)) -> 1987 | AR5: 1986 | AS5: 1985 | AT5: 1984 | AU5: 1983 | AV5: 1982 | AW5: 1981 | AX5: 1980 | AY5: 1979 | AZ5: 1978 | BA5: 1977 | BB5: 1976 | BC5: 1975 | BD5: 1974 | BE5: 1973 | BF5: 1972 | BG5: 1971 | BH5: 1970 | BI5: 1969 | BJ5: 1968 | BK5: 1967 | BL5: 1966 | BM5: 1965 | BN5: 1964 | BO5: 1963 | BP5: 1962 | BQ5: 1961 | BR5: 1960 | BS5: 1959 | BT5: 1958 | BU5: 1957 | BV5: 1956 | BW5: =IF(OR(APtype=1,APtype=2),BV5+1,IF(APtype=3,BV5-1,9999)) -> 1955 | BX5: 1954 | BY5: 1953 | BZ5: 1952 | CA5: 1951 | CB5: 1950 | CC5: 1949 | CD5: 1948 | CE5: 1947 | CF5: 1946 | CG5: 1945 | CH5: 1944 | CI5: 1943 | CJ5: 1942 | CK5: 1941 | CL5: 1940 | CM5: 1939 | CN5: 1938 | CO5: 1937 | CP5: 1936 | CQ5: 1935 | CR5: 1934 | CS5: 1933 | CT5: 1932 | CU5: 1931 | CV5: 1930 | CX5: =J5 -> 2020 | CY5: =K5 -> 2019 | CZ5: 2018 | DA5: 2017 | DB5: 2016 | DC5: 2015 | DD5: 2014 | DE5: 2013 | DF5: 2012 | DG5: 2011 | DH5: 2010 | DI5: 2009 | DJ5: 2008 | DK5: 2007 | DL5: 2006 | DM5: 2005 | DN5: 2004 | DO5: 2003 | DP5: 2002 | DQ5: 2001 | DR5: 2000 | DS5: 1999 | DT5: 1998 | DU5: 1997 | DV5: 1996 | DW5: 1995 | DX5: 1994 | DY5: 1993 | DZ5: 1992 | EA5: 1991 | EB5: 1990 | EC5: 1989 | ED5: 1988 | EE5: 1987 | EF5: 1986 | EG5: 1985 | EH5: 1984 | EI5: 1983 | EJ5: 1982 | EK5: 1981 | EL5: 1980 | EM5: 1979 | EN5: 1978 | EO5: 1977 | EP5: 1976 | EQ5: 1975 | ER5: 1974 | ES5: 1973 | ET5: 1972 | EU5: 1971 | EV5: 1970 | EW5: 1969 | EX5: 1968 | EY5: 1967 | EZ5: 1966 | FA5: 1965 | FB5: 1964 | FC5: 1963 | FD5: 1962 | FE5: 1961 | FF5: 1960 | FG5: 1959 | FH5: 1958 | FI5: 1957 | FJ5: 1956 | FK5: =BW5 -> 1955 | FL5: 1954 | FM5: 1953 | FN5: 1952 | FO5: 1951 | FP5: 1950 | FQ5: 1949 | FR5: 1948 | FS5: 1947 | FT5: 1946 | FU5: 1945 | FV5: 1944 | FW5: 1943 | FX5: 1942 | FY5: 1941 | FZ5: 1940 | GA5: 1939 | GB5: 1938 | GC5: 1937 | GD5: 1936 | GE5: 1935 | GF5: 1934 | GG5: 1933 | GH5: 1932 | GI5: 1931 | GJ5: 1930
A21: 1 | D21: =IF(A21>0,VLOOKUP(A21,IDtable,2),"") -> Towers (Grillage - Rebuild), by Corrosion Zone; Highest Operating Voltage; Circuit Configuration | E21: TowerRebuild_132_Grillage | F21: 0.001 | G21: =TowerRebuildStdLife_B -> 60 | H21: =SQRT(G21) -> 7.745966692 | I21: 2 | J21: 0 | K21: 0 | L21: 0 | M21: 0 | N21: 0 | O21: 0 | P21: 0 | Q21: 0 | R21: 0 | S21: 0 | T21: 0 | U21: 0 | V21: 0 | W21: 0 | X21: 0 | Y21: 0 | Z21: 0 | AA21: 0 | AB21: 0 | AC21: 0 | AD21: 0 | AE21: 0 | AF21: 0 | AG21: 0 | AH21: 0 | AI21: 0 | AJ21: 0 | AK21: 0 | AL21: 0 | AM21: 0 | AN21: 0 | AO21: 0 | AP21: 0 | AQ21: 0 | AR21: 0 | AS21: 0 | AT21: 0 | AU21: 0 | AV21: 0 | AW21: 0 | AX21: 0 | AY21: 0 | AZ21: 1 | BA21: 0 | BB21: 0 | BC21: 0 | BD21: 0 | BE21: 0 | BF21: 0 | BG21: 0 | BH21: 0 | BI21: 0 | BJ21: 0 | BK21: 0 | BL21: 0 | BM21: 127 | BN21: 18 | BO21: 46 | BP21: 0 | BQ21: 0 | BR21: 0 | BS21: 0 | BT21: 0 | BU21: 0 | BV21: 0 | BW21: 0 | BX21: 0 | BY21: 0 | BZ21: 0 | CA21: 0 | CB21: 0 | CC21: 0 | CD21: 0 | CE21: 0 | CF21: 0 | CG21: 0 | CH21: 0 | CI21: 0 | CJ21: 0 | CK21: 0 | CL21: 0 | CM21: 0 | CN21: 0 | CO21: 0 | CP21: 0 | CQ21: 0 | CR21: 0 | CS21: 0 | CT21: 0 | CU21: 0 | CV21: 0 | CW21: 0 | CX21: =$F21*J21 -> 0 | CY21: =$F21*K21 -> 0 | CZ21: 0 | DA21: 0 | DB21: 0 | DC21: 0 | DD21: 0 | DE21: 0 | DF21: 0 | DG21: 0 | DH21: 0 | DI21: 0 | DJ21: 0 | DK21: =$F21*W21 -> 0 | DL21: =$F21*X21 -> 0 | DM21: =$F21*Y21 -> 0 | DN21: =$F21*Z21 -> 0 | DO21: =$F21*AA21 -> 0 | DP21: =$F21*AB21 -> 0 | DQ21: =$F21*AC21 -> 0 | DR21: =$F21*AD21 -> 0 | DS21: =$F21*AE21 -> 0 | DT21: =$F21*AF21 -> 0 | DU21: =$F21*AG21 -> 0 | DV21: =$F21*AH21 -> 0 | DW21: =$F21*AI21 -> 0 | DX21: =$F21*AJ21 -> 0 | DY21: =$F21*AK21 -> 0 | DZ21: =$F21*AL21 -> 0 | EA21: =$F21*AM21 -> 0 | EB21: =$F21*AN21 -> 0 | EC21: =$F21*AO21 -> 0 | ED21: =$F21*AP21 -> 0 | EE21: =$F21*AQ21 -> 0 | EF21: =$F21*AR21 -> 0 | EG21: =$F21*AS21 -> 0 | EH21: =$F21*AT21 -> 0 | EI21: =$F21*AU21 -> 0 | EJ21: =$F21*AV21 -> 0 | EK21: =$F21*AW21 -> 0 | EL21: =$F21*AX21 -> 0 | EM21: =$F21*AY21 -> 0 | EN21: =$F21*AZ21 -> 0.001 | EO21: =$F21*BA21 -> 0 | EP21: =$F21*BB21 -> 0 | EQ21: =$F21*BC21 -> 0 | ER21: =$F21*BD21 -> 0 | ES21: =$F21*BE21 -> 0 | ET21: =$F21*BF21 -> 0 | EU21: =$F21*BG21 -> 0 | EV21: =$F21*BH21 -> 0 | EW21: =$F21*BI21 -> 0 | EX21: =$F21*BJ21 -> 0 | EY21: =$F21*BK21 -> 0 | EZ21: =$F21*BL21 -> 0 | FA21: =$F21*BM21 -> 0.127 | FB21: =$F21*BN21 -> 0.018 | FC21: =$F21*BO21 -> 0.046 | FD21: =$F21*BP21 -> 0 | FE21: =$F21*BQ21 -> 0 | FF21: =$F21*BR21 -> 0 | FG21: =$F21*BS21 -> 0 | FH21: =$F21*BT21 -> 0 | FI21: =$F21*BU21 -> 0 | FJ21: =$F21*BV21 -> 0 | FK21: =$F21*BW21 -> 0 | FL21: =$F21*BX21 -> 0 | FM21: =$F21*BY21 -> 0 | FN21: =$F21*BZ21 -> 0 | FO21: =$F21*CA21 -> 0 | FP21: =$F21*CB21 -> 0 | FQ21: =$F21*CC21 -> 0 | FR21: =$F21*CD21 -> 0 | FS21: =$F21*CE21 -> 0 | FT21: =$F21*CF21 -> 0 | FU21: =$F21*CG21 -> 0 | FV21: =$F21*CH21 -> 0 | FW21: =$F21*CI21 -> 0 | FX21: =$F21*CJ21 -> 0 | FY21: =$F21*CK21 -> 0 | FZ21: =$F21*CL21 -> 0 | GA21: =$F21*CM21 -> 0 | GB21: =$F21*CN21 -> 0 | GC21: =$F21*CO21 -> 0 | GD21: =$F21*CP21 -> 0 | GE21: =$F21*CQ21 -> 0 | GF21: =$F21*CR21 -> 0 | GG21: =$F21*CS21 -> 0 | GH21: =$F21*CT21 -> 0 | GI21: =$F21*CU21 -> 0 | GJ21: =$F21*CV21 -> 0
A22: 2 | D22: Towers (Non-Grillage - Refit), by Corrosion Zone; Highest Operating Voltage; Circuit Configuration | E22: TowerRefit_ZoneB_275_SC_NonGrillage | F22: 0.001 | G22: =TowerRefitStdLife_B -> 76.25 | H22: =SQRT(G22) -> 8.732124598 | I22: 2 | J22: 0 | K22: 0 | L22: 0 | M22: 0 | N22: 0 | O22: 0 | P22: 0 | Q22: 0 | R22: 2 | S22: 0 | T22: 0 | U22: 0 | V22: 0 | W22: 0 | X22: 0 | Y22: 0 | Z22: 0 | AA22: 0 | AB22: 0 | AC22: 0 | AD22: 0 | AE22: 0 | AF22: 0 | AG22: 0 | AH22: 0 | AI22: 0 | AJ22: 0 | AK22: 0 | AL22: 0 | AM22: 0 | AN22: 0 | AO22: 0 | AP22: 0 | AQ22: 0 | AR22: 0 | AS22: 0 | AT22: 0 | AU22: 0 | AV22: 0 | AW22: 51 | AX22: 0 | AY22: 0 | AZ22: 0 | BA22: 10 | BB22: 0 | BC22: 0 | BD22: 0 | BE22: 224 | BF22: 0 | BG22: 0 | BH22: 0 | BI22: 0 | BJ22: 0 | BK22: 0 | BL22: 0 | BM22: 0 | BN22: 0 | BO22: 0 | BP22: 0 | BQ22: 0 | BR22: 0 | BS22: 0 | BT22: 0 | BU22: 0 | BV22: 0 | BW22: 0 | BX22: 0 | BY22: 0 | BZ22: 0 | CA22: 0 | CB22: 0 | CC22: 0 | CD22: 0 | CE22: 0 | CF22: 0 | CG22: 0 | CH22: 0 | CI22: 0 | CJ22: 0 | CK22: 0 | CL22: 0 | CM22: 0 | CN22: 0 | CO22: 0 | CP22: 0 | CQ22: 0 | CR22: 0 | CS22: 0 | CT22: 0 | CU22: 0 | CV22: 0 | CW22: 0 | CX22: 0 | CY22: 0 | CZ22: 0 | DA22: 0 | DB22: 0 | DC22: 0 | DD22: 0 | DE22: 0 | DF22: 0.002 | DG22: 0 | DH22: 0 | DI22: 0 | DJ22: 0 | DK22: =$F22*W22 -> 0 | DL22: =$F22*X22 -> 0 | DM22: =$F22*Y22 -> 0 | DN22: =$F22*Z22 -> 0 | DO22: =$F22*AA22 -> 0 | DP22: =$F22*AB22 -> 0 | DQ22: =$F22*AC22 -> 0 | DR22: =$F22*AD22 -> 0 | DS22: =$F22*AE22 -> 0 | DT22: =$F22*AF22 -> 0 | DU22: =$F22*AG22 -> 0 | DV22: =$F22*AH22 -> 0 | DW22: =$F22*AI22 -> 0 | DX22: =$F22*AJ22 -> 0 | DY22: =$F22*AK22 -> 0 | DZ22: =$F22*AL22 -> 0 | EA22: =$F22*AM22 -> 0 | EB22: =$F22*AN22 -> 0 | EC22: =$F22*AO22 -> 0 | ED22: =$F22*AP22 -> 0 | EE22: =$F22*AQ22 -> 0 | EF22: =$F22*AR22 -> 0 | EG22: =$F22*AS22 -> 0 | EH22: =$F22*AT22 -> 0 | EI22: =$F22*AU22 -> 0 | EJ22: =$F22*AV22 -> 0 | EK22: =$F22*AW22 -> 0.051 | EL22: =$F22*AX22 -> 0 | EM22: =$F22*AY22 -> 0 | EN22: =$F22*AZ22 -> 0 | EO22: =$F22*BA22 -> 0.01 | EP22: =$F22*BB22 -> 0 | EQ22: =$F22*BC22 -> 0 | ER22: =$F22*BD22 -> 0 | ES22: =$F22*BE22 -> 0.224 | ET22: =$F22*BF22 -> 0 | EU22: =$F22*BG22 -> 0 | EV22: =$F22*BH22 -> 0 | EW22: =$F22*BI22 -> 0 | EX22: =$F22*BJ22 -> 0 | EY22: =$F22*BK22 -> 0 | EZ22: =$F22*BL22 -> 0 | FA22: =$F22*BM22 -> 0 | FB22: =$F22*BN22 -> 0 | FC22: =$F22*BO22 -> 0 | FD22: =$F22*BP22 -> 0 | FE22: =$F22*BQ22 -> 0 | FF22: =$F22*BR22 -> 0 | FG22: =$F22*BS22 -> 0 | FH22: =$F22*BT22 -> 0 | FI22: =$F22*BU22 -> 0 | FJ22: =$F22*BV22 -> 0 | FK22: =$F22*BW22 -> 0 | FL22: =$F22*BX22 -> 0 | FM22: =$F22*BY22 -> 0 | FN22: =$F22*BZ22 -> 0 | FO22: =$F22*CA22 -> 0 | FP22: =$F22*CB22 -> 0 | FQ22: =$F22*CC22 -> 0 | FR22: =$F22*CD22 -> 0 | FS22: =$F22*CE22 -> 0 | FT22: =$F22*CF22 -> 0 | FU22: =$F22*CG22 -> 0 | FV22: =$F22*CH22 -> 0 | FW22: =$F22*CI22 -> 0 | FX22: =$F22*CJ22 -> 0 | FY22: =$F22*CK22 -> 0 | FZ22: =$F22*CL22 -> 0 | GA22: =$F22*CM22 -> 0 | GB22: =$F22*CN22 -> 0 | GC22: =$F22*CO22 -> 0 | GD22: =$F22*CP22 -> 0 | GE22: =$F22*CQ22 -> 0 | GF22: =$F22*CR22 -> 0 | GG22: =$F22*CS22 -> 0 | GH22: =$F22*CT22 -> 0 | GI22: =$F22*CU22 -> 0 | GJ22: =$F22*CV22 -> 0
A23: 2 | D23: Towers (Non-Grillage - Refit), by Corrosion Zone; Highest Operating Voltage; Circuit Configuration | E23: TowerRefit_ZoneC_275_SC_NonGrillage | F23: 0.001 | G23: =TowerRefitStdLife_C -> 60.12 | H23: 7.75370879 | I23: 2 | J23: 0 | K23: 0 | L23: 0 | M23: 0 | N23: 0 | O23: 0 | P23: 0 | Q23: 0 | R23: 0 | S23: 0 | T23: 0 | U23: 0 | V23: 0 | W23: 0 | X23: 0 | Y23: 0 | Z23: 0 | AA23: 0 | AB23: 0 | AC23: 0 | AD23: 0 | AE23: 0 | AF23: 0 | AG23: 0 | AH23: 0 | AI23: 0 | AJ23: 0 | AK23: 0 | AL23: 0 | AM23: 0 | AN23: 0 | AO23: 0 | AP23: 0 | AQ23: 0 | AR23: 0 | AS23: 0 | AT23: 0 | AU23: 0 | AV23: 0 | AW23: 910 | AX23: 0 | AY23: 0 | AZ23: 0 | BA23: 287 | BB23: 0 | BC23: 0 | BD23: 0 | BE23: 43 | BF23: 0 | BG23: 0 | BH23: 0 | BI23: 0 | BJ23: 0 | BK23: 0 | BL23: 0 | BM23: 0 | BN23: 0 | BO23: 0 | BP23: 0 | BQ23: 0 | BR23: 0 | BS23: 0 | BT23: 0 | BU23: 0 | BV23: 0 | BW23: 0 | BX23: 0 | BY23: 0 | BZ23: 0 | CA23: 0 | CB23: 0 | CC23: 0 | CD23: 0 | CE23: 0 | CF23: 0 | CG23: 0 | CH23: 0 | CI23: 0 | CJ23: 0 | CK23: 0 | CL23: 0 | CM23: 0 | CN23: 0 | CO23: 0 | CP23: 0 | CQ23: 0 | CR23: 0 | CS23: 0 | CT23: 0 | CU23: 0 | CV23: 0 | CW23: 0 | CX23: 0 | CY23: 0 | CZ23: 0 | DA23: 0 | DB23: 0 | DC23: 0 | DD23: 0 | DE23: 0 | DF23: 0 | DG23: 0 | DH23: 0 | DI23: 0 | DJ23: 0 | DK23: 0 | DL23: 0 | DM23: 0 | DN23: 0 | DO23: 0 | DP23: 0 | DQ23: 0 | DR23: 0 | DS23: 0 | DT23: 0 | DU23: 0 | DV23: 0 | DW23: 0 | DX23: 0 | DY23: 0 | DZ23: 0 | EA23: 0 | EB23: 0 | EC23: 0 | ED23: 0 | EE23: 0 | EF23: 0 | EG23: 0 | EH23: 0 | EI23: 0 | EJ23: 0 | EK23: 0.91 | EL23: 0 | EM23: 0 | EN23: 0 | EO23: 0.287 | EP23: 0 | EQ23: 0 | ER23: 0 | ES23: 0.043 | ET23: 0 | EU23: 0 | EV23: 0 | EW23: 0 | EX23: 0 | EY23: 0 | EZ23: 0 | FA23: 0 | FB23: 0 | FC23: 0 | FD23: 0 | FE23: 0 | FF23: 0 | FG23: 0 | FH23: 0 | FI23: 0 | FJ23: 0 | FK23: 0 | FL23: 0 | FM23: 0 | FN23: 0 | FO23: 0 | FP23: 0 | FQ23: 0 | FR23: 0 | FS23: 0 | FT23: 0 | FU23: 0 | FV23: 0 | FW23: 0 | FX23: 0 | FY23: 0 | FZ23: 0 | GA23: 0 | GB23: 0 | GC23: 0 | GD23: 0 | GE23: 0 | GF23: 0 | GG23: 0 | GH23: 0 | GI23: 0 | GJ23: 0
A24: 2 | D24: =IF(A24>0,VLOOKUP(A24,IDtable,2),"") -> Towers (Non-Grillage - Refit), by Corrosion Zone; Highest Operating Voltage; Circuit Configuration | E24: TowerRefit_ZoneD_275_SC_NonGrillage | F24: 0.001 | G24: =TowerRefitStdLife_D -> 45.09789487 | H24: =SQRT(G24) -> 6.715496621 | I24: 2 | J24: 0 | K24: 0 | L24: 0 | M24: 0 | N24: 0 | O24: 0 | P24: 0 | Q24: 0 | R24: 0 | S24: 0 | T24: 0 | U24: 0 | V24: 0 | W24: 0 | X24: 0 | Y24: 0 | Z24: 0 | AA24: 0 | AB24: 0 | AC24: 0 | AD24: 0 | AE24: 0 | AF24: 0 | AG24: 0 | AH24: 0 | AI24: 0 | AJ24: 0 | AK24: 0 | AL24: 0 | AM24: 0 | AN24: 0 | AO24: 0 | AP24: 0 | AQ24: 0 | AR24: 0 | AS24: 0 | AT24: 0 | AU24: 0 | AV24: 0 | AW24: 0 | AX24: 0 | AY24: 0 | AZ24: 0 | BA24: 20 | BB24: 0 | BC24: 0 | BD24: 0 | BE24: 0 | BF24: 0 | BG24: 0 | BH24: 0 | BI24: 0 | BJ24: 0 | BK24: 0 | BL24: 0 | BM24: 0 | BN24: 0 | BO24: 0 | BP24: 0 | BQ24: 0 | BR24: 0 | BS24: 0 | BT24: 0 | BU24: 0 | BV24: 0 | BW24: 0 | BX24: 0 | BY24: 0 | BZ24: 0 | CA24: 0 | CB24: 0 | CC24: 0 | CD24: 0 | CE24: 0 | CF24: 0 | CG24: 0 | CH24: 0 | CI24: 0 | CJ24: 0 | CK24: 0 | CL24: 0 | CM24: 0 | CN24: 0 | CO24: 0 | CP24: 0 | CQ24: 0 | CR24: 0 | CS24: 0 | CT24: 0 | CU24: 0 | CV24: 0 | CW24: 0 | CX24: =$F24*J24 -> 0 | CY24: =$F24*K24 -> 0 | CZ24: =$F24*L24 -> 0 | DA24: =$F24*M24 -> 0 | DB24: =$F24*N24 -> 0 | DC24: =$F24*O24 -> 0 | DD24: =$F24*P24 -> 0 | DE24: =$F24*Q24 -> 0 | DF24: =$F24*R24 -> 0 | DG24: =$F24*S24 -> 0 | DH24: =$F24*T24 -> 0 | DI24: =$F24*U24 -> 0 | DJ24: =$F24*V24 -> 0 | DK24: =$F24*W24 -> 0 | DL24: =$F24*X24 -> 0 | DM24: =$F24*Y24 -> 0 | DN24: =$F24*Z24 -> 0 | DO24: =$F24*AA24 -> 0 | DP24: =$F24*AB24 -> 0 | DQ24: =$F24*AC24 -> 0 | DR24: =$F24*AD24 -> 0 | DS24: =$F24*AE24 -> 0 | DT24: =$F24*AF24 -> 0 | DU24: =$F24*AG24 -> 0 | DV24: =$F24*AH24 -> 0 | DW24: =$F24*AI24 -> 0 | DX24: =$F24*AJ24 -> 0 | DY24: =$F24*AK24 -> 0 | DZ24: =$F24*AL24 -> 0 | EA24: =$F24*AM24 -> 0 | EB24: =$F24*AN24 -> 0 | EC24: =$F24*AO24 -> 0 | ED24: =$F24*AP24 -> 0 | EE24: =$F24*AQ24 -> 0 | EF24: =$F24*AR24 -> 0 | EG24: =$F24*AS24 -> 0 | EH24: =$F24*AT24 -> 0 | EI24: =$F24*AU24 -> 0 | EJ24: =$F24*AV24 -> 0 | EK24: =$F24*AW24 -> 0 | EL24: =$F24*AX24 -> 0 | EM24: =$F24*AY24 -> 0 | EN24: =$F24*AZ24 -> 0 | EO24: =$F24*BA24 -> 0.02 | EP24: =$F24*BB24 -> 0 | EQ24: =$F24*BC24 -> 0 | ER24: =$F24*BD24 -> 0 | ES24: =$F24*BE24 -> 0 | ET24: =$F24*BF24 -> 0 | EU24: =$F24*BG24 -> 0 | EV24: =$F24*BH24 -> 0 | EW24: =$F24*BI24 -> 0 | EX24: =$F24*BJ24 -> 0 | EY24: =$F24*BK24 -> 0 | EZ24: =$F24*BL24 -> 0 | FA24: =$F24*BM24 -> 0 | FB24: =$F24*BN24 -> 0 | FC24: =$F24*BO24 -> 0 | FD24: =$F24*BP24 -> 0 | FE24: =$F24*BQ24 -> 0 | FF24: =$F24*BR24 -> 0 | FG24: =$F24*BS24 -> 0 | FH24: =$F24*BT24 -> 0 | FI24: =$F24*BU24 -> 0 | FJ24: =$F24*BV24 -> 0 | FK24: =$F24*BW24 -> 0 | FL24: =$F24*BX24 -> 0 | FM24: =$F24*BY24 -> 0 | FN24: =$F24*BZ24 -> 0 | FO24: =$F24*CA24 -> 0 | FP24: =$F24*CB24 -> 0 | FQ24: =$F24*CC24 -> 0 | FR24: =$F24*CD24 -> 0 | FS24: =$F24*CE24 -> 0 | FT24: =$F24*CF24 -> 0 | FU24: =$F24*CG24 -> 0 | FV24: =$F24*CH24 -> 0 | FW24: =$F24*CI24 -> 0 | FX24: =$F24*CJ24 -> 0 | FY24: =$F24*CK24 -> 0 | FZ24: =$F24*CL24 -> 0 | GA24: =$F24*CM24 -> 0 | GB24: =$F24*CN24 -> 0 | GC24: =$F24*CO24 -> 0 | GD24: =$F24*CP24 -> 0 | GE24: =$F24*CQ24 -> 0 | GF24: =$F24*CR24 -> 0 | GG24: =$F24*CS24 -> 0 | GH24: =$F24*CT24 -> 0 | GI24: =$F24*CU24 -> 0 | GJ24: =$F24*CV24 -> 0
A26: 4 | D26: Substation Switchgear Equipment By Highest Operating Voltage; Equipment Type | E26: > 66 kV & < = 132 kV ; Air Insulated circuit Breaker | F26: 0.001 | G26: =StdLife_CB -> 40.54518893 | H26: 6.367510419 | I26: 2 | J26: 5 | K26: 3 | L26: 5 | M26: 11 | N26: 0 | O26: 9 | P26: 38 | Q26: 29 | R26: 28 | S26: 24 | T26: 47 | U26: 54 | V26: 26 | W26: 17 | X26: 16 | Y26: 15 | Z26: 2 | AA26: 4 | AB26: 4 | AC26: 7 | AD26: 2 | AE26: 5 | AF26: 11 | AG26: 3 | AH26: 1 | AI26: 4 | AJ26: 1 | AK26: 0 | AL26: 3 | AM26: 3 | AN26: 0 | AO26: 4 | AP26: 4 | AQ26: 3 | AR26: 8 | AS26: 2 | AT26: 1 | AU26: 2 | AV26: 1 | AW26: 0 | AX26: 0 | AY26: 0 | AZ26: 0 | BA26: 0 | BB26: 0 | BC26: 0 | BD26: 0 | BE26: 0 | BF26: 0 | BG26: 0 | BH26: 0 | BI26: 0 | BJ26: 0 | BK26: 0 | BL26: 0 | BM26: 0 | BN26: 0 | BO26: 0 | BP26: 0 | BQ26: 0 | BR26: 0 | BS26: 0 | BT26: 0 | BU26: 0 | BV26: 0 | BW26: 0 | BX26: 0 | BY26: 0 | BZ26: 0 | CA26: 0 | CB26: 0 | CC26: 0 | CD26: 0 | CE26: 0 | CF26: 0 | CG26: 0 | CH26: 0 | CI26: 0 | CJ26: 0 | CK26: 0 | CL26: 0 | CM26: 0 | CN26: 0 | CO26: 0 | CP26: 0 | CQ26: 0 | CR26: 0 | CS26: 0 | CT26: 0 | CU26: 0 | CV26: 0 | CW26: 0 | CX26: =$F26*J26 -> 0.005 | CY26: 0.003 | CZ26: 0.005 | DA26: 0.011 | DB26: 0 | DC26: =$F26*O26 -> 0.009 | DD26: =$F26*P26 -> 0.038 | DE26: =$F26*Q26 -> 0.029 | DF26: =$F26*R26 -> 0.028 | DG26: =$F26*S26 -> 0.024 | DH26: =$F26*T26 -> 0.047 | DI26: =$F26*U26 -> 0.054 | DJ26: =$F26*V26 -> 0.026 | DK26: 0.017 | DL26: 0.016 | DM26: 0.015 | DN26: 0.002 | DO26: 0.004 | DP26: 0.004 | DQ26: 0.007 | DR26: 0.002 | DS26: 0.005 | DT26: 0.011 | DU26: 0.003 | DV26: 0.001 | DW26: 0.004 | DX26: 0.001 | DY26: 0 | DZ26: 0.003 | EA26: 0.003 | EB26: 0 | EC26: 0.004 | ED26: 0.004 | EE26: 0.003 | EF26: 0.008 | EG26: 0.002 | EH26: 0.001 | EI26: 0.002 | EJ26: 0.001 | EK26: 0 | EL26: 0 | EM26: 0 | EN26: 0 | EO26: 0 | EP26: 0 | EQ26: 0 | ER26: 0 | ES26: 0 | ET26: 0 | EU26: 0 | EV26: 0 | EW26: 0 | EX26: 0 | EY26: 0 | EZ26: 0 | FA26: 0 | FB26: 0 | FC26: 0 | FD26: 0 | FE26: 0 | FF26: 0 | FG26: 0 | FH26: 0 | FI26: 0 | FJ26: 0 | FK26: 0 | FL26: 0 | FM26: 0 | FN26: 0 | FO26: 0 | FP26: 0 | FQ26: 0 | FR26: 0 | FS26: 0 | FT26: 0 | FU26: 0 | FV26: 0 | FW26: 0 | FX26: 0 | FY26: 0 | FZ26: 0 | GA26: 0 | GB26: 0 | GC26: 0 | GD26: 0 | GE26: 0 | GF26: 0 | GG26: 0 | GH26: 0 | GI26: 0 | GJ26: 0
A27: 4 | D27: Substation Switchgear Equipment By Highest Operating Voltage; Equipment Type | E27: > 132 kV & < = 275 kV ; Air Insulated circuit Breaker | F27: 0.001 | G27: 40.54518893 | H27: 6.367510419 | I27: 2 | J27: 1 | K27: 0 | L27: 1 | M27: 0 | N27: 3 | O27: 14 | P27: 17 | Q27: 27 | R27: 30 | S27: 6 | T27: 15 | U27: 35 | V27: 43 | W27: 31 | X27: 27 | Y27: 14 | Z27: 5 | AA27: 10 | AB27: 12 | AC27: 2 | AD27: 3 | AE27: 4 | AF27: 12 | AG27: 0 | AH27: 3 | AI27: 2 | AJ27: 4 | AK27: 12 | AL27: 2 | AM27: 0 | AN27: 0 | AO27: 6 | AP27: 1 | AQ27: 0 | AR27: 1 | AS27: 3 | AT27: 0 | AU27: 0 | AV27: 0 | AW27: 0 | AX27: 0 | AY27: 0 | AZ27: 0 | BA27: 0 | BB27: 0 | BC27: 0 | BD27: 0 | BE27: 0 | BF27: 0 | BG27: 0 | BH27: 0 | BI27: 0 | BJ27: 0 | BK27: 0 | BL27: 0 | BM27: 0 | BN27: 0 | BO27: 0 | BP27: 0 | BQ27: 0 | BR27: 0 | BS27: 0 | BT27: 0 | BU27: 0 | BV27: 0 | BW27: 0 | BX27: 0 | BY27: 0 | BZ27: 0 | CA27: 0 | CB27: 0 | CC27: 0 | CD27: 0 | CE27: 0 | CF27: 0 | CG27: 0 | CH27: 0 | CI27: 0 | CJ27: 0 | CK27: 0 | CL27: 0 | CM27: 0 | CN27: 0 | CO27: 0 | CP27: 0 | CQ27: 0 | CR27: 0 | CS27: 0 | CT27: 0 | CU27: 0 | CV27: 0 | CW27: 0 | CX27: 0.001 | CY27: 0 | CZ27: 0.001 | DA27: 0 | DB27: 0.003 | DC27: 0.014 | DD27: 0.017 | DE27: 0.027 | DF27: 0.03 | DG27: 0.006 | DH27: 0.015 | DI27: 0.035 | DJ27: 0.043 | DK27: 0.031 | DL27: 0.027 | DM27: 0.014 | DN27: 0.005 | DO27: 0.01 | DP27: 0.012 | DQ27: 0.002 | DR27: 0.003 | DS27: 0.004 | DT27: 0.012 | DU27: 0 | DV27: 0.003 | DW27: 0.002 | DX27: 0.004 | DY27: 0.012 | DZ27: 0.002 | EA27: 0 | EB27: 0 | EC27: 0.006 | ED27: 0.001 | EE27: 0 | EF27: 0.001 | EG27: 0.003 | EH27: 0 | EI27: 0 | EJ27: 0 | EK27: 0 | EL27: 0 | EM27: 0 | EN27: 0 | EO27: 0 | EP27: 0 | EQ27: 0 | ER27: 0 | ES27: 0 | ET27: 0 | EU27: 0 | EV27: 0 | EW27: 0 | EX27: 0 | EY27: 0 | EZ27: 0 | FA27: 0 | FB27: 0 | FC27: 0 | FD27: 0 | FE27: 0 | FF27: 0 | FG27: 0 | FH27: 0 | FI27: 0 | FJ27: 0 | FK27: 0 | FL27: 0 | FM27: 0 | FN27: 0 | FO27: 0 | FP27: 0 | FQ27: 0 | FR27: 0 | FS27: 0 | FT27: 0 | FU27: 0 | FV27: 0 | FW27: 0 | FX27: 0 | FY27: 0 | FZ27: 0 | GA27: 0 | GB27: 0 | GC27: 0 | GD27: 0 | GE27: 0 | GF27: 0 | GG27: 0 | GH27: 0 | GI27: 0 | GJ27: 0
A28: 4 | D28: Substation Switchgear Equipment By Highest Operating Voltage; Equipment Type | E28: > 66 kV & < = 132 kV ; Air Insulated Isolators / Earth Switch | F28: 0.001 | G28: =StdLife_IsolES -> 48.84757771 | H28: 6.989104213 | I28: 2 | J28: 21 | K28: 12 | L28: 15 | M28: 29 | N28: 0 | O28: 20 | P28: 90 | Q28: 75 | R28: 124 | S28: 68 | T28: 140 | U28: 164 | V28: 72 | W28: 46 | X28: 40 | Y28: 58 | Z28: 18 | AA28: 13 | AB28: 12 | AC28: 29 | AD28: 11 | AE28: 11 | AF28: 31 | AG28: 10 | AH28: 8 | AI28: 20 | AJ28: 4 | AK28: 7 | AL28: 8 | AM28: 1 | AN28: 4 | AO28: 11 | AP28: 1 | AQ28: 21 | AR28: 24 | AS28: 0 | AT28: 3 | AU28: 24 | AV28: 2 | AW28: 10 | AX28: 1 | AY28: 22 | AZ28: 9 | BA28: 0 | BB28: 0 | BC28: 0 | BD28: 0 | BE28: 7 | BF28: 10 | BG28: 0 | BH28: 1 | BI28: 2 | BJ28: 0 | BK28: 0 | BL28: 3 | BM28: 0 | BN28: 0 | BO28: 0 | BP28: 0 | BQ28: 0 | BR28: 0 | BS28: 0 | BT28: 0 | BU28: 0 | BV28: 0 | BW28: 0 | BX28: 0 | BY28: 0 | BZ28: 0 | CA28: 0 | CB28: 0 | CC28: 0 | CD28: 0 | CE28: 0 | CF28: 0 | CG28: 0 | CH28: 0 | CI28: 0 | CJ28: 0 | CK28: 0 | CL28: 0 | CM28: 0 | CN28: 0 | CO28: 0 | CP28: 0 | CQ28: 0 | CR28: 0 | CS28: 0 | CT28: 0 | CU28: 0 | CV28: 0 | CW28: 0 | CX28: 0.021 | CY28: 0.012 | CZ28: 0.015 | DA28: 0.029 | DB28: 0 | DC28: 0.02 | DD28: 0.09 | DE28: 0.075 | DF28: 0.124 | DG28: 0.068 | DH28: 0.14 | DI28: 0.164 | DJ28: 0.072 | DK28: 0.046 | DL28: 0.04 | DM28: 0.058 | DN28: 0.018 | DO28: 0.013 | DP28: 0.012 | DQ28: 0.029 | DR28: 0.011 | DS28: 0.011 | DT28: 0.031 | DU28: 0.01 | DV28: 0.008 | DW28: 0.02 | DX28: 0.004 | DY28: 0.007 | DZ28: 0.008 | EA28: 0.001 | EB28: 0.004 | EC28: 0.011 | ED28: 0.001 | EE28: 0.021 | EF28: 0.024 | EG28: 0 | EH28: 0.003 | EI28: 0.024 | EJ28: 0.002 | EK28: 0.01 | EL28: 0.001 | EM28: 0.022 | EN28: 0.009 | EO28: 0 | EP28: 0 | EQ28: 0 | ER28: 0 | ES28: 0.007 | ET28: 0.01 | EU28: 0 | EV28: 0.001 | EW28: 0.002 | EX28: 0 | EY28: 0 | EZ28: 0.003 | FA28: 0 | FB28: 0 | FC28: 0 | FD28: 0 | FE28: 0 | FF28: 0 | FG28: 0 | FH28: 0 | FI28: 0 | FJ28: 0 | FK28: 0 | FL28: 0 | FM28: 0 | FN28: 0 | FO28: 0 | FP28: 0 | FQ28: 0 | FR28: 0 | FS28: 0 | FT28: 0 | FU28: 0 | FV28: 0 | FW28: 0 | FX28: 0 | FY28: 0 | FZ28: 0 | GA28: 0 | GB28: 0 | GC28: 0 | GD28: 0 | GE28: 0 | GF28: 0 | GG28: 0 | GH28: 0 | GI28: 0 | GJ28: 0
A29: 4 | D29: Substation Switchgear Equipment By Highest Operating Voltage; Equipment Type | E29: > 132 kV & < = 275 kV ; Air Insulated Isolators / Earth Switch | F29: 0.001 | G29: 48.84757771 | H29: 6.989104213 | I29: 2 | J29: 5 | K29: 0 | L29: 0 | M29: 3 | N29: 3 | O29: 80 | P29: 79 | Q29: 176 | R29: 155 | S29: 44 | T29: 70 | U29: 144 | V29: 232 | W29: 115 | X29: 110 | Y29: 80 | Z29: 42 | AA29: 25 | AB29: 40 | AC29: 23 | AD29: 69 | AE29: 30 | AF29: 56 | AG29: 0 | AH29: 12 | AI29: 15 | AJ29: 46 | AK29: 64 | AL29: 20 | AM29: 28 | AN29: 0 | AO29: 32 | AP29: 3 | AQ29: 6 | AR29: 13 | AS29: 0 | AT29: 55 | AU29: 3 | AV29: 16 | AW29: 8 | AX29: 0 | AY29: 0 | AZ29: 48 | BA29: 2 | BB29: 24 | BC29: 1 | BD29: 3 | BE29: 5 | BF29: 10 | BG29: 24 | BH29: 16 | BI29: 0 | BJ29: 0 | BK29: 0 | BL29: 0 | BM29: 0 | BN29: 0 | BO29: 0 | BP29: 0 | BQ29: 0 | BR29: 0 | BS29: 0 | BT29: 0 | BU29: 0 | BV29: 0 | BW29: 0 | BX29: 0 | BY29: 0 | BZ29: 0 | CA29: 0 | CB29: 0 | CC29: 0 | CD29: 0 | CE29: 0 | CF29: 0 | CG29: 0 | CH29: 0 | CI29: 0 | CJ29: 0 | CK29: 0 | CL29: 0 | CM29: 0 | CN29: 0 | CO29: 0 | CP29: 0 | CQ29: 0 | CR29: 0 | CS29: 0 | CT29: 0 | CU29: 0 | CV29: 0 | CW29: 0 | CX29: 0.005 | CY29: 0 | CZ29: 0 | DA29: 0.003 | DB29: 0.003 | DC29: 0.08 | DD29: 0.079 | DE29: 0.176 | DF29: 0.155 | DG29: 0.044 | DH29: 0.07 | DI29: 0.144 | DJ29: 0.232 | DK29: 0.115 | DL29: 0.11 | DM29: 0.08 | DN29: 0.042 | DO29: 0.025 | DP29: 0.04 | DQ29: 0.023 | DR29: 0.069 | DS29: 0.03 | DT29: 0.056 | DU29: 0 | DV29: 0.012 | DW29: 0.015 | DX29: 0.046 | DY29: 0.064 | DZ29: 0.02 | EA29: 0.028 | EB29: 0 | EC29: 0.032 | ED29: 0.003 | EE29: 0.006 | EF29: 0.013 | EG29: 0 | EH29: 0.055 | EI29: 0.003 | EJ29: 0.016 | EK29: 0.008 | EL29: 0 | EM29: 0 | EN29: 0.048 | EO29: 0.002 | EP29: 0.024 | EQ29: 0.001 | ER29: 0.003 | ES29: 0.005 | ET29: 0.01 | EU29: 0.024 | EV29: 0.016 | EW29: 0 | EX29: 0 | EY29: 0 | EZ29: 0 | FA29: 0 | FB29: 0 | FC29: 0 | FD29: 0 | FE29: 0 | FF29: 0 | FG29: 0 | FH29: 0 | FI29: 0 | FJ29: 0 | FK29: 0 | FL29: 0 | FM29: 0 | FN29: 0 | FO29: 0 | FP29: 0 | FQ29: 0 | FR29: 0 | FS29: 0 | FT29: 0 | FU29: 0 | FV29: 0 | FW29: 0 | FX29: 0 | FY29: 0 | FZ29: 0 | GA29: 0 | GB29: 0 | GC29: 0 | GD29: 0 | GE29: 0 | GF29: 0 | GG29: 0 | GH29: 0 | GI29: 0 | GJ29: 0
A30: 4 | D30: =IF(A30>0,VLOOKUP(A30,IDtable,2),"") -> Substation Switchgear Equipment By Highest Operating Voltage; Equipment Type | E30: > 66 kV & < = 132 kV ; VT | F30: 0.001 | G30: =StdLife_VT -> 39.02313645 | H30: 6.246850123 | I30: 2 | J30: 9 | K30: 12 | L30: 5 | M30: 24 | N30: 11 | O30: 24 | P30: 56 | Q30: 44 | R30: 53 | S30: 52 | T30: 111 | U30: 88 | V30: 53 | W30: 74 | X30: 27 | Y30: 42 | Z30: 13 | AA30: 79 | AB30: 49 | AC30: 30 | AD30: 12 | AE30: 6 | AF30: 18 | AG30: 12 | AH30: 0 | AI30: 3 | AJ30: 1 | AK30: 2 | AL30: 4 | AM30: 0 | AN30: 0 | AO30: 2 | AP30: 0 | AQ30: 19 | AR30: 2 | AS30: 0 | AT30: 4 | AU30: 5 | AV30: 0 | AW30: 0 | AX30: 0 | AY30: 2 | AZ30: 0 | BA30: 0 | BB30: 0 | BC30: 0 | BD30: 0 | BE30: 0 | BF30: 0 | BG30: 0 | BH30: 0 | BI30: 0 | BJ30: 0 | BK30: 0 | BL30: 0 | BM30: 0 | BN30: 0 | BO30: 0 | BP30: 0 | BQ30: 0 | BR30: 0 | BS30: 0 | BT30: 0 | BU30: 0 | BV30: 0 | BW30: 0 | BX30: 0 | BY30: 0 | BZ30: 0 | CA30: 0 | CB30: 0 | CC30: 0 | CD30: 0 | CE30: 0 | CF30: 0 | CG30: 0 | CH30: 0 | CI30: 0 | CJ30: 0 | CK30: 0 | CL30: 0 | CM30: 0 | CN30: 0 | CO30: 0 | CP30: 0 | CQ30: 0 | CR30: 0 | CS30: 0 | CT30: 0 | CU30: 0 | CV30: 0 | CW30: 0 | CX30: 0.009 | CY30: 0.012 | CZ30: 0.005 | DA30: 0.024 | DB30: 0.011 | DC30: 0.024 | DD30: 0.056 | DE30: 0.044 | DF30: 0.053 | DG30: 0.052 | DH30: 0.111 | DI30: 0.088 | DJ30: 0.053 | DK30: 0.074 | DL30: 0.027 | DM30: 0.042 | DN30: 0.013 | DO30: 0.079 | DP30: 0.049 | DQ30: 0.03 | DR30: 0.012 | DS30: 0.006 | DT30: 0.018 | DU30: 0.012 | DV30: 0 | DW30: 0.003 | DX30: 0.001 | DY30: 0.002 | DZ30: 0.004 | EA30: 0 | EB30: 0 | EC30: 0.002 | ED30: 0 | EE30: 0.019 | EF30: 0.002 | EG30: 0 | EH30: 0.004 | EI30: 0.005 | EJ30: 0 | EK30: 0 | EL30: 0 | EM30: 0.002 | EN30: 0 | EO30: 0 | EP30: 0 | EQ30: 0 | ER30: 0 | ES30: 0 | ET30: 0 | EU30: 0 | EV30: 0 | EW30: 0 | EX30: 0 | EY30: 0 | EZ30: 0 | FA30: 0 | FB30: 0 | FC30: 0 | FD30: 0 | FE30: 0 | FF30: 0 | FG30: 0 | FH30: 0 | FI30: 0 | FJ30: 0 | FK30: 0 | FL30: 0 | FM30: 0 | FN30: 0 | FO30: 0 | FP30: 0 | FQ30: 0 | FR30: 0 | FS30: 0 | FT30: 0 | FU30: 0 | FV30: 0 | FW30: 0 | FX30: 0 | FY30: 0 | FZ30: 0 | GA30: 0 | GB30: 0 | GC30: 0 | GD30: 0 | GE30: 0 | GF30: 0 | GG30: 0 | GH30: 0 | GI30: 0 | GJ30: 0
A31: 4 | D31: Substation Switchgear Equipment By Highest Operating Voltage; Equipment Type | E31: > 132 kV & < = 275 kV ; VT | F31: 0.001 | G31: =StdLife_VT -> 39.02313645 | H31: 6.246850123 | I31: 2 | J31: 3 | K31: 21 | L31: 1 | M31: 7 | N31: 3 | O31: 26 | P31: 33 | Q31: 67 | R31: 60 | S31: 20 | T31: 21 | U31: 45 | V31: 59 | W31: 30 | X31: 32 | Y31: 16 | Z31: 3 | AA31: 10 | AB31: 22 | AC31: 3 | AD31: 20 | AE31: 14 | AF31: 11 | AG31: 15 | AH31: 0 | AI31: 0 | AJ31: 0 | AK31: 0 | AL31: 0 | AM31: 0 | AN31: 0 | AO31: 2 | AP31: 5 | AQ31: 0 | AR31: 0 | AS31: 0 | AT31: 13 | AU31: 1 | AV31: 0 | AW31: 0 | AX31: 0 | AY31: 0 | AZ31: 0 | BA31: 0 | BB31: 0 | BC31: 0 | BD31: 0 | BE31: 0 | BF31: 0 | BG31: 0 | BH31: 3 | BI31: 0 | BJ31: 0 | BK31: 0 | BL31: 0 | BM31: 0 | BN31: 0 | BO31: 0 | BP31: 0 | BQ31: 0 | BR31: 0 | BS31: 0 | BT31: 0 | BU31: 0 | BV31: 0 | BW31: 0 | BX31: 0 | BY31: 0 | BZ31: 0 | CA31: 0 | CB31: 0 | CC31: 0 | CD31: 0 | CE31: 0 | CF31: 0 | CG31: 0 | CH31: 0 | CI31: 0 | CJ31: 0 | CK31: 0 | CL31: 0 | CM31: 0 | CN31: 0 | CO31: 0 | CP31: 0 | CQ31: 0 | CR31: 0 | CS31: 0 | CT31: 0 | CU31: 0 | CV31: 0 | CW31: 0 | CX31: 0.003 | CY31: 0.021 | CZ31: 0.001 | DA31: 0.007 | DB31: 0.003 | DC31: 0.026 | DD31: 0.033 | DE31: 0.067 | DF31: 0.06 | DG31: 0.02 | DH31: 0.021 | DI31: 0.045 | DJ31: 0.059 | DK31: 0.03 | DL31: 0.032 | DM31: 0.016 | DN31: 0.003 | DO31: 0.01 | DP31: 0.022 | DQ31: 0.003 | DR31: 0.02 | DS31: 0.014 | DT31: 0.011 | DU31: 0.015 | DV31: 0 | DW31: 0 | DX31: 0 | DY31: 0 | DZ31: 0 | EA31: 0 | EB31: 0 | EC31: 0.002 | ED31: 0.005 | EE31: 0 | EF31: 0 | EG31: 0 | EH31: 0.013 | EI31: 0.001 | EJ31: 0 | EK31: 0 | EL31: 0 | EM31: 0 | EN31: 0 | EO31: 0 | EP31: 0 | EQ31: 0 | ER31: 0 | ES31: 0 | ET31: 0 | EU31: 0 | EV31: 0.003 | EW31: 0 | EX31: 0 | EY31: 0 | EZ31: 0 | FA31: 0 | FB31: 0 | FC31: 0 | FD31: 0 | FE31: 0 | FF31: 0 | FG31: 0 | FH31: 0 | FI31: 0 | FJ31: 0 | FK31: 0 | FL31: 0 | FM31: 0 | FN31: 0 | FO31: 0 | FP31: 0 | FQ31: 0 | FR31: 0 | FS31: 0 | FT31: 0 | FU31: 0 | FV31: 0 | FW31: 0 | FX31: 0 | FY31: 0 | FZ31: 0 | GA31: 0 | GB31: 0 | GC31: 0 | GD31: 0 | GE31: 0 | GF31: 0 | GG31: 0 | GH31: 0 | GI31: 0 | GJ31: 0
A32: 4 | D32: Substation Switchgear Equipment By Highest Operating Voltage; Equipment Type | E32: > 66 kV & < = 132 kV ; CT | F32: 0.001 | G32: =StdLife_CT -> 39.93573553 | H32: 6.319472726 | I32: 2 | J32: 0 | K32: 6 | L32: 4 | M32: 12 | N32: 0 | O32: 0 | P32: 12 | Q32: 4 | R32: 58 | S32: 42 | T32: 105 | U32: 102 | V32: 38 | W32: 20 | X32: 58 | Y32: 60 | Z32: 9 | AA32: 12 | AB32: 7 | AC32: 58 | AD32: 12 | AE32: 26 | AF32: 42 | AG32: 14 | AH32: 8 | AI32: 16 | AJ32: 0 | AK32: 11 | AL32: 12 | AM32: 8 | AN32: 0 | AO32: 11 | AP32: 2 | AQ32: 18 | AR32: 8 | AS32: 7 | AT32: 0 | AU32: 15 | AV32: 0 | AW32: 0 | AX32: 0 | AY32: 0 | AZ32: 0 | BA32: 0 | BB32: 0 | BC32: 0 | BD32: 0 | BE32: 0 | BF32: 0 | BG32: 0 | BH32: 0 | BI32: 0 | BJ32: 0 | BK32: 0 | BL32: 0 | BM32: 0 | BN32: 0 | BO32: 0 | BP32: 0 | BQ32: 0 | BR32: 0 | BS32: 0 | BT32: 0 | BU32: 0 | BV32: 0 | BW32: 0 | BX32: 0 | BY32: 0 | BZ32: 0 | CA32: 0 | CB32: 0 | CC32: 0 | CD32: 0 | CE32: 0 | CF32: 0 | CG32: 0 | CH32: 0 | CI32: 0 | CJ32: 0 | CK32: 0 | CL32: 0 | CM32: 0 | CN32: 0 | CO32: 0 | CP32: 0 | CQ32: 0 | CR32: 0 | CS32: 0 | CT32: 0 | CU32: 0 | CV32: 0 | CW32: 0 | CX32: 0 | CY32: 0.006 | CZ32: 0.004 | DA32: 0.012 | DB32: 0 | DC32: 0 | DD32: 0.012 | DE32: 0.004 | DF32: 0.058 | DG32: 0.042 | DH32: 0.105 | DI32: 0.102 | DJ32: 0.038 | DK32: 0.02 | DL32: 0.058 | DM32: 0.06 | DN32: 0.009 | DO32: 0.012 | DP32: 0.007 | DQ32: 0.058 | DR32: 0.012 | DS32: 0.026 | DT32: 0.042 | DU32: 0.014 | DV32: 0.008 | DW32: 0.016 | DX32: 0 | DY32: 0.011 | DZ32: 0.012 | EA32: 0.008 | EB32: 0 | EC32: 0.011 | ED32: 0.002 | EE32: 0.018 | EF32: 0.008 | EG32: 0.007 | EH32: 0 | EI32: 0.015 | EJ32: 0 | EK32: 0 | EL32: 0 | EM32: 0 | EN32: 0 | EO32: 0 | EP32: 0 | EQ32: 0 | ER32: 0 | ES32: 0 | ET32: 0 | EU32: 0 | EV32: 0 | EW32: 0 | EX32: 0 | EY32: 0 | EZ32: 0 | FA32: 0 | FB32: 0 | FC32: 0 | FD32: 0 | FE32: 0 | FF32: 0 | FG32: 0 | FH32: 0 | FI32: 0 | FJ32: 0 | FK32: 0 | FL32: 0 | FM32: 0 | FN32: 0 | FO32: 0 | FP32: 0 | FQ32: 0 | FR32: 0 | FS32: 0 | FT32: 0 | FU32: 0 | FV32: 0 | FW32: 0 | FX32: 0 | FY32: 0 | FZ32: 0 | GA32: 0 | GB32: 0 | GC32: 0 | GD32: 0 | GE32: 0 | GF32: 0 | GG32: 0 | GH32: 0 | GI32: 0 | GJ32: 0
A33: 4 | D33: Substation Switchgear Equipment By Highest Operating Voltage; Equipment Type | E33: > 132 kV & < = 275 kV ; CT | F33: 0.001 | G33: =StdLife_CT -> 39.93573553 | H33: 6.319472726 | I33: 2 | J33: 0 | K33: 6 | L33: 1 | M33: 3 | N33: 45 | O33: 100 | P33: 13 | Q33: 85 | R33: 90 | S33: 20 | T33: 62 | U33: 92 | V33: 126 | W33: 74 | X33: 78 | Y33: 43 | Z33: 10 | AA33: 23 | AB33: 30 | AC33: 1 | AD33: 0 | AE33: 3 | AF33: 35 | AG33: 0 | AH33: 0 | AI33: 0 | AJ33: 0 | AK33: 18 | AL33: 2 | AM33: 0 | AN33: 0 | AO33: 6 | AP33: 0 | AQ33: 0 | AR33: 0 | AS33: 1 | AT33: 0 | AU33: 11 | AV33: 0 | AW33: 0 | AX33: 0 | AY33: 0 | AZ33: 0 | BA33: 0 | BB33: 0 | BC33: 0 | BD33: 0 | BE33: 0 | BF33: 0 | BG33: 0 | BH33: 0 | BI33: 0 | BJ33: 0 | BK33: 0 | BL33: 0 | BM33: 0 | BN33: 0 | BO33: 0 | BP33: 0 | BQ33: 0 | BR33: 0 | BS33: 0 | BT33: 0 | BU33: 0 | BV33: 0 | BW33: 0 | BX33: 0 | BY33: 0 | BZ33: 0 | CA33: 0 | CB33: 0 | CC33: 0 | CD33: 0 | CE33: 0 | CF33: 0 | CG33: 0 | CH33: 0 | CI33: 0 | CJ33: 0 | CK33: 0 | CL33: 0 | CM33: 0 | CN33: 0 | CO33: 0 | CP33: 0 | CQ33: 0 | CR33: 0 | CS33: 0 | CT33: 0 | CU33: 0 | CV33: 0 | CW33: 0 | CX33: 0 | CY33: 0.006 | CZ33: 0.001 | DA33: 0.003 | DB33: 0.045 | DC33: 0.1 | DD33: 0.013 | DE33: 0.085 | DF33: 0.09 | DG33: 0.02 | DH33: 0.062 | DI33: 0.092 | DJ33: 0.126 | DK33: 0.074 | DL33: 0.078 | DM33: 0.043 | DN33: 0.01 | DO33: 0.023 | DP33: 0.03 | DQ33: 0.001 | DR33: 0 | DS33: 0.003 | DT33: 0.035 | DU33: 0 | DV33: 0 | DW33: 0 | DX33: 0 | DY33: 0.018 | DZ33: 0.002 | EA33: 0 | EB33: 0 | EC33: 0.006 | ED33: 0 | EE33: 0 | EF33: 0 | EG33: 0.001 | EH33: 0 | EI33: 0.011 | EJ33: 0 | EK33: 0 | EL33: 0 | EM33: 0 | EN33: 0 | EO33: 0 | EP33: 0 | EQ33: 0 | ER33: 0 | ES33: 0 | ET33: 0 | EU33: 0 | EV33: 0 | EW33: 0 | EX33: 0 | EY33: 0 | EZ33: 0 | FA33: 0 | FB33: 0 | FC33: 0 | FD33: 0 | FE33: 0 | FF33: 0 | FG33: 0 | FH33: 0 | FI33: 0 | FJ33: 0 | FK33: 0 | FL33: 0 | FM33: 0 | FN33: 0 | FO33: 0 | FP33: 0 | FQ33: 0 | FR33: 0 | FS33: 0 | FT33: 0 | FU33: 0 | FV33: 0 | FW33: 0 | FX33: 0 | FY33: 0 | FZ33: 0 | GA33: 0 | GB33: 0 | GC33: 0 | GD33: 0 | GE33: 0 | GF33: 0 | GG33: 0 | GH33: 0 | GI33: 0 | GJ33: 0
A35: 5 | D35: Secondary Systems by Function | E35: Secondary Systems (Bay or Non-bay) | F35: 0.001 | G35: =StdLife_SecSysBayNBay -> 21.6901574 | H35: 4.657269308 | I35: 2 | J35: 21 | K35: 75 | L35: 27 | M35: 60 | N35: 10 | O35: 34 | P35: 127 | Q35: 55 | R35: 161 | S35: 38 | T35: 85 | U35: 75 | V35: 16 | W35: 40 | X35: 16 | Y35: 27 | Z35: 2 | AA35: 14 | AB35: 1 | AC35: 0 | AD35: 2 | AE35: 0 | AF35: 0 | AG35: 0 | AH35: 0 | AI35: 0 | AJ35: 0 | AK35: 0 | AL35: 0 | AM35: 0 | AN35: 0 | AO35: 0 | AP35: 0 | AQ35: 1 | AR35: 0 | AS35: 0 | AT35: 0 | AU35: 0 | AV35: 0 | AW35: 0 | AX35: 0 | AY35: 0 | AZ35: 0 | BA35: 0 | BB35: 0 | BC35: 0 | BD35: 0 | BE35: 0 | BF35: 0 | BG35: 0 | BH35: 0 | BI35: 0 | BJ35: 0 | BK35: 0 | BL35: 0 | BM35: 0 | BN35: 0 | BO35: 0 | BP35: 0 | BQ35: 0 | BR35: 0 | BS35: 0 | BT35: 0 | BU35: 0 | BV35: 0 | BW35: 0 | BX35: 0 | BY35: 0 | BZ35: 0 | CA35: 0 | CB35: 0 | CC35: 0 | CD35: 0 | CE35: 0 | CF35: 0 | CG35: 0 | CH35: 0 | CI35: 0 | CJ35: 0 | CK35: 0 | CL35: 0 | CM35: 0 | CN35: 0 | CO35: 0 | CP35: 0 | CQ35: 0 | CR35: 0 | CS35: 0 | CT35: 0 | CU35: 0 | CV35: 0 | CW35: 0 | CX35: 0 | CY35: 0 | CZ35: 0 | DA35: 0 | DB35: 0 | DC35: 0.034 | DD35: 0.127 | DE35: 0.055 | DF35: 0.161 | DG35: 0.038 | DH35: 0.085 | DI35: 0.075 | DJ35: 0.016 | DK35: 0.04 | DL35: 0.016 | DM35: 0.027 | DN35: 0.002 | DO35: 0.014 | DP35: 0.001 | DQ35: 0 | DR35: 0.002 | DS35: 0 | DT35: 0 | DU35: 0 | DV35: 0 | DW35: 0 | DX35: 0 | DY35: 0 | DZ35: 0 | EA35: 0 | EB35: 0 | EC35: 0 | ED35: 0 | EE35: 0.001 | EF35: 0 | EG35: 0 | EH35: 0 | EI35: 0 | EJ35: 0 | EK35: 0 | EL35: 0 | EM35: 0 | EN35: 0 | EO35: 0 | EP35: 0 | EQ35: 0 | ER35: 0 | ES35: 0 | ET35: 0 | EU35: 0 | EV35: 0 | EW35: 0 | EX35: 0 | EY35: 0 | EZ35: 0 | FA35: 0 | FB35: 0 | FC35: 0 | FD35: 0 | FE35: 0 | FF35: 0 | FG35: 0 | FH35: 0 | FI35: 0 | FJ35: 0 | FK35: 0 | FL35: 0 | FM35: 0 | FN35: 0 | FO35: 0 | FP35: 0 | FQ35: 0 | FR35: 0 | FS35: 0 | FT35: 0 | FU35: 0 | FV35: 0 | FW35: 0 | FX35: 0 | FY35: 0 | FZ35: 0 | GA35: 0 | GB35: 0 | GC35: 0 | GD35: 0 | GE35: 0 | GF35: 0 | GG35: 0 | GH35: 0 | GI35: 0 | GJ35: 0
A36: 5 | D36: Secondary Systems by Function | E36: Metering Secondary Systems | F36: 0.001 | I36: 2 | CX36: =$F36*J36 -> 0 | CY36: =$F36*K36 -> 0 | CZ36: =$F36*L36 -> 0 | DA36: =$F36*M36 -> 0 | DB36: =$F36*N36 -> 0 | DC36: =$F36*O36 -> 0 | DD36: =$F36*P36 -> 0 | DE36: =$F36*Q36 -> 0 | DF36: =$F36*R36 -> 0 | DG36: =$F36*S36 -> 0 | DH36: =$F36*T36 -> 0 | DI36: 0 | DJ36: 0 | DK36: 0 | DL36: 0 | DM36: 0 | DN36: 0 | DO36: 0 | DP36: 0 | DQ36: 0 | DR36: 0 | DS36: 0 | DT36: 0 | DU36: 0 | DV36: 0 | DW36: 0 | DX36: 0 | DY36: 0 | DZ36: 0 | EA36: 0 | EB36: 0 | EC36: 0 | ED36: 0 | EE36: 0 | EF36: 0 | EG36: 0 | EH36: 0 | EI36: 0 | EJ36: 0 | EK36: 0 | EL36: 0 | EM36: 0 | EN36: 0 | EO36: 0 | EP36: 0 | EQ36: 0 | ER36: 0 | ES36: 0 | ET36: 0 | EU36: 0 | EV36: 0 | EW36: 0 | EX36: 0 | EY36: 0 | EZ36: 0 | FA36: 0 | FB36: 0 | FC36: 0 | FD36: 0 | FE36: 0 | FF36: 0 | FG36: 0 | FH36: 0 | FI36: 0 | FJ36: 0 | FK36: 0 | FL36: 0 | FM36: 0 | FN36: 0 | FO36: 0 | FP36: 0 | FQ36: 0 | FR36: 0 | FS36: 0 | FT36: 0 | FU36: 0 | FV36: 0 | FW36: 0 | FX36: 0 | FY36: 0 | FZ36: 0 | GA36: 0 | GB36: 0 | GC36: 0 | GD36: 0 | GE36: 0 | GF36: 0 | GG36: 0 | GH36: 0 | GI36: 0 | GJ36: 0

Sheet RRR hist-forc
A1: Asset calcs | AY1: =CONCATENATE("Replacement expenditure forecast (real ", TEXT(Tables!B20-1,"####"),"-",RIGHT(TEXT(Tables!B20,"##"),2)," $'000)") -> Replacement expenditure forecast (real 2020-21 $'000) | BS1: Weighted average age forecast (WAA) | CN1: Weighted average remaining life forecast (WARL) | DI1: Replacement quantity forecast
AY2: 1 | AZ2: 2 | BA2: 3 | BB2: 4 | BC2: 5 | BD2: 6 | BE2: 7 | BF2: 8 | BG2: 9 | BH2: 10 | BI2: 11 | BJ2: 12 | BK2: 13 | BL2: 14 | BM2: 15 | BN2: 16 | BO2: 17 | BP2: 18 | BQ2: 19 | BR2: 20 | BS2: 0 | BT2: 1 | BU2: 2 | BV2: 3 | BW2: 4 | BX2: 5 | BY2: 6 | BZ2: 7 | CA2: 8 | CB2: 9 | CC2: 10 | CD2: 11 | CE2: 12 | CF2: 13 | CG2: 14 | CH2: 15 | CI2: 16 | CJ2: 17 | CK2: 18 | CL2: 19 | CM2: 20 | CN2: 0 | CO2: 1 | CP2: 2 | CQ2: 3 | CR2: 4 | CS2: 5 | CT2: 6 | CU2: 7 | CV2: 8 | CW2: 9 | CX2: 10 | CY2: 11 | CZ2: 12 | DA2: 13 | DB2: 14 | DC2: 15 | DD2: 16 | DE2: 17 | DF2: 18 | DG2: 19 | DH2: 20 | DI2: 1 | DJ2: 2 | DK2: 3 | DL2: 4 | DM2: 5 | DN2: 6 | DO2: 7 | DP2: 8 | DQ2: 9 | DR2: 10 | DS2: 11 | DT2: 12 | DU2: 13 | DV2: 14 | DW2: 15 | DX2: 16 | DY2: 17 | DZ2: 18 | EA2: 19 | EB2: 20
Q3: DNSP
G4: Historical | Q4: Forcast | AO4: Model forecast
E5: year | G5: =H5-1 -> 2011 | H5: 2012 | I5: 2013 | J5: 2014 | K5: 2015 | L5: 2016 | M5: 2017 | N5: 2018 | O5: =P5-1 -> 2019 | P5: =IF(Tables!B19=1,Now,Now-1) -> 2020 | Q5: =P5+1 -> 2021 | R5: =Q5+1 -> 2022 | S5: 2023 | T5: 2024 | U5: 2025 | V5: 2026 | W5: 2027 | X5: 2028 | Y5: 2029 | Z5: 2030 | AA5: =Z5+1 -> 2031 | AB5: 2032 | AC5: 2033 | AD5: 2034 | AE5: 2035 | AF5: 2036 | AG5: 2037 | AH5: 2038 | AI5: 2039 | AJ5: 2040 | AO5: =G5 -> 2011 | AP5: 2012 | AQ5: 2013 | AR5: 2014 | AS5: 2015 | AT5: 2016 | AU5: 2017 | AV5: 2018 | AW5: 2019 | AX5: 2020 | AY5: =Q5 -> 2021 | AZ5: 2022 | BA5: 2023 | BB5: 2024 | BC5: 2025 | BD5: 2026 | BE5: 2027 | BF5: 2028 | BG5: 2029 | BH5: 2030 | BI5: 2031 | BJ5: 2032 | BK5: 2033 | BL5: 2034 | BM5: 2035 | BN5: 2036 | BO5: 2037 | BP5: 2038 | BQ5: 2039 | BR5: 2040 | BS5: =AX5 -> 2020 | BT5: =AY5 -> 2021 | BU5: 2022 | BV5: 2023 | BW5: 2024 | BX5: 2025 | BY5: 2026 | BZ5: 2027 | CA5: 2028 | CB5: 2029 | CC5: 2030 | CD5: 2031 | CE5: 2032 | CF5: 2033 | CG5: 2034 | CH5: 2035 | CI5: 2036 | CJ5: 2037 | CK5: 2038 | CL5: 2039 | CM5: 2040 | CN5: =BS5 -> 2020 | CO5: =BT5 -> 2021 | CP5: 2022 | CQ5: 2023 | CR5: 2024 | CS5: 2025 | CT5: 2026 | CU5: 2027 | CV5: 2028 | CW5: 2029 | CX5: 2030 | CY5: 2031 | CZ5: 2032 | DA5: 2033 | DB5: 2034 | DC5: 2035 | DD5: 2036 | DE5: 2037 | DF5: 2038 | DG5: 2039 | DH5: 2040 | DI5: =AY5 -> 2021 | DJ5: =AZ5 -> 2022 | DK5: 2023 | DL5: 2024 | DM5: 2025 | DN5: 2026 | DO5: 2027 | DP5: 2028 | DQ5: 2029 | DR5: 2030 | DS5: 2031 | DT5: 2032 | DU5: 2033 | DV5: 2034 | DW5: 2035 | DX5: 2036 | DY5: 2037 | DZ5: 2038 | EA5: 2039 | EB5: 2040
A6: 1 | D6: =VLOOKUP(A6,IDtable,2) -> Towers (Grillage - Rebuild), by Corrosion Zone; Highest Operating Voltage; Circuit Configuration | E6: =D6 -> Towers (Grillage - Rebuild), by Corrosion Zone; Highest Operating Voltage; Circuit Configuration | AN6: =D6 & " (mod)" -> Towers (Grillage - Rebuild), by Corrosion Zone; Highest Operating Voltage; Circuit Configuration (mod) | AY6: =SUMIF($A$21:$A$959,$A6,AY$21:AY$959) -> 0.0128879137 | AZ6: 0.01351302874 | BA6: 0.01393794837 | BB6: 0.01414238427 | BC6: 0.01411647398 | BD6: 0.01386157629 | BE6: 0.01339015976 | BF6: 0.01272479679 | BG6: 0.01189637569 | BH6: 0.0109417279 | BI6: =SUMIF($A$21:$A$959,$A6,BI$21:BI$959) -> 0.009900923531 | BJ6: 0.008814510758 | BK6: 0.007720960647 | BL6: 0.006654534169 | BM6: 0.005643720768 | BN6: 0.004710319727 | BO6: 0.003869158407 | BP6: 0.003128375599 | BQ6: 0.002490150855 | BR6: 0.001951735178 | DI6: =SUMIF($A$21:$A$959,$A6,DI$21:DI$959) -> 12.8879137 | DJ6: 13.51302874 | DK6: 13.93794837 | DL6: 14.14238427 | DM6: 14.11647398 | DN6: 13.86157629 | DO6: 13.39015976 | DP6: 12.72479679 | DQ6: 11.89637569 | DR6: 10.9417279 | DS6: =SUMIF($A$21:$A$959,$A6,DS$21:DS$959) -> 9.900923531 | DT6: 8.814510758 | DU6: 7.720960647 | DV6: 6.654534169 | DW6: 5.643720768 | DX6: 4.710319727 | DY6: 3.869158407 | DZ6: 3.128375599 | EA6: 2.490150855 | EB6: 1.951735178
A7: 2 | D7: Towers (Non-Grillage - Refit), by Corrosion Zone; Highest Operating Voltage; Circuit Configuration | E7: Towers (Non-Grillage - Refit), by Corrosion Zone; Highest Operating Voltage; Circuit Configuration | AN7: =D7 & " (mod)" -> Towers (Non-Grillage - Refit), by Corrosion Zone; Highest Operating Voltage; Circuit Configuration (mod) | AY7: 0.006076998442 | AZ7: 0.007415008927 | BA7: 0.009027203264 | BB7: 0.01095720531 | BC7: 0.01324609129 | BD7: 0.01592801418 | BE7: 0.01902526002 | BF7: 0.02254316534 | BG7: 0.02646542884 | BH7: 0.0307504027 | BI7: 0.0353289341 | BJ7: 0.04010423903 | BK7: 0.04495412976 | BL7: 0.04973569512 | BM7: 0.05429227248 | BN7: 0.05846227926 | BO7: 0.06208922668 | BP7: 0.06503205298 | BQ7: 0.06717481891 | BR7: 0.06843482368 | DI7: 6.076998442 | DJ7: 7.415008927 | DK7: 9.027203264 | DL7: 10.95720531 | DM7: 13.24609129 | DN7: 15.92801418 | DO7: 19.02526002 | DP7: 22.54316534 | DQ7: 26.46542884 | DR7: 30.7504027 | DS7: 35.3289341 | DT7: 40.10423903 | DU7: 44.95412976 | DV7: 49.73569512 | DW7: 54.29227248 | DX7: 58.46227926 | DY7: 62.08922668 | DZ7: 65.03205298 | EA7: 67.17481891 | EB7: 68.43482368
A8: 3 | D8: Not Used | E8: Not Used | AN8: Not Used (mod) | AY8: 0 | AZ8: 0 | BA8: 0 | BB8: 0 | BC8: 0 | BD8: 0 | BE8: 0 | BF8: 0 | BG8: 0 | BH8: 0 | BI8: 0 | BJ8: 0 | BK8: 0 | BL8: 0 | BM8: 0 | BN8: 0 | BO8: 0 | BP8: 0 | BQ8: 0 | BR8: 0 | DI8: 0 | DJ8: 0 | DK8: 0 | DL8: 0 | DM8: 0 | DN8: 0 | DO8: 0 | DP8: 0 | DQ8: 0 | DR8: 0 | DS8: 0 | DT8: 0 | DU8: 0 | DV8: 0 | DW8: 0 | DX8: 0 | DY8: 0 | DZ8: 0 | EA8: 0 | EB8: 0
A9: 4 | D9: Substation Switchgear Equipment By Highest Operating Voltage; Equipment Type | E9: Substation Switchgear Equipment By Highest Operating Voltage; Equipment Type | AN9: Substation Switchgear Equipment By Highest Operating Voltage; Equipment Type (mod) | AY9: 0.0317568677 | AZ9: 0.03424190123 | BA9: 0.03673553573 | BB9: 0.0392400804 | BC9: 0.04178061734 | BD9: 0.0444074806 | BE9: 0.04719652352 | BF9: 0.05024718344 | BG9: 0.05367859736 | BH9: 0.05762419244 | BI9: 0.06222524136 | BJ9: 0.06762382259 | BK9: 0.07395547832 | BL9: 0.08134166324 | BM9: 0.08988189387 | BN9: 0.09964541717 | BO9: 0.1106622817 | BP9: 0.1229139451 | BQ9: 0.1363239599 | BR9: 0.1507497719 | DI9: 31.7568677 | DJ9: 34.24190123 | DK9: 36.73553573 | DL9: 39.2400804 | DM9: 41.78061734 | DN9: 44.4074806 | DO9: 47.19652352 | DP9: 50.24718344 | DQ9: 53.67859736 | DR9: 57.62419244 | DS9: 62.22524136 | DT9: 67.62382259 | DU9: 73.95547832 | DV9: 81.34166324 | DW9: 89.88189387 | DX9: 99.64541717 | DY9: 110.6622817 | DZ9: 122.9139451 | EA9: 136.3239599 | EB9: 150.7497719
A10: 5 | D10: Secondary Systems by Function | E10: Secondary Systems by Function | AN10: Secondary Systems by Function (mod) | AY10: 0.008332360974 | AZ10: 0.0109645575 | BA10: 0.01442022356 | BB10: 0.01870062576 | BC10: 0.02376415705 | BD10: 0.02950304422 | BE10: 0.03572309819 | BF10: 0.04213288282 | BG10: 0.04834875634 | BH10: 0.05392057503 | BI10: 0.05837900852 | BJ10: 0.06129979344 | BK10: 0.062374248 | BL10: 0.06147108188 | BM10: 0.05867397825 | BN10: 0.05428358108 | BO10: 0.04878068536 | BP10: 0.04275723321 | BQ10: 0.03682995634 | BR10: 0.03155539797 | DI10: 8.332360974 | DJ10: 10.9645575 | DK10: 14.42022356 | DL10: 18.70062576 | DM10: 23.76415705 | DN10: 29.50304422 | DO10: 35.72309819 | DP10: 42.13288282 | DQ10: 48.34875634 | DR10: 53.92057503 | DS10: 58.37900852 | DT10: 61.29979344 | DU10: 62.374248 | DV10: 61.47108188 | DW10: 58.67397825 | DX10: 54.28358108 | DY10: 48.78068536 | DZ10: 42.75723321 | EA10: 36.82995634 | EB10: 31.55539797
A11: 6 | D11: Not Used | E11: Not Used | AN11: Not Used (mod) | AY11: 0 | AZ11: 0 | BA11: 0 | BB11: 0 | BC11: 0 | BD11: 0 | BE11: 0 | BF11: 0 | BG11: 0 | BH11: 0 | BI11: 0 | BJ11: 0 | BK11: 0 | BL11: 0 | BM11: 0 | BN11: 0 | BO11: 0 | BP11: 0 | BQ11: 0 | BR11: 0 | DI11: 0 | DJ11: 0 | DK11: 0 | DL11: 0 | DM11: 0 | DN11: 0 | DO11: 0 | DP11: 0 | DQ11: 0 | DR11: 0 | DS11: 0 | DT11: 0 | DU11: 0 | DV11: 0 | DW11: 0 | DX11: 0 | DY11: 0 | DZ11: 0 | EA11: 0 | EB11: 0
A12: 7 | D12: Not Used | E12: Not Used | AN12: Not Used (mod) | AY12: 0 | AZ12: 0 | BA12: 0 | BB12: 0 | BC12: 0 | BD12: 0 | BE12: 0 | BF12: 0 | BG12: 0 | BH12: 0 | BI12: 0 | BJ12: 0 | BK12: 0 | BL12: 0 | BM12: 0 | BN12: 0 | BO12: 0 | BP12: 0 | BQ12: 0 | BR12: 0 | DI12: 0 | DJ12: 0 | DK12: 0 | DL12: 0 | DM12: 0 | DN12: 0 | DO12: 0 | DP12: 0 | DQ12: 0 | DR12: 0 | DS12: 0 | DT12: 0 | DU12: 0 | DV12: 0 | DW12: 0 | DX12: 0 | DY12: 0 | DZ12: 0 | EA12: 0 | EB12: 0
A13: 8 | D13: Not Used | E13: Not Used | AN13: Not Used (mod) | AY13: 0 | AZ13: 0 | BA13: 0 | BB13: 0 | BC13: 0 | BD13: 0 | BE13: 0 | BF13: 0 | BG13: 0 | BH13: 0 | BI13: 0 | BJ13: 0 | BK13: 0 | BL13: 0 | BM13: 0 | BN13: 0 | BO13: 0 | BP13: 0 | BQ13: 0 | BR13: 0 | DI13: 0 | DJ13: 0 | DK13: 0 | DL13: 0 | DM13: 0 | DN13: 0 | DO13: 0 | DP13: 0 | DQ13: 0 | DR13: 0 | DS13: 0 | DT13: 0 | DU13: 0 | DV13: 0 | DW13: 0 | DX13: 0 | DY13: 0 | DZ13: 0 | EA13: 0 | EB13: 0
A14: 9 | D14: =VLOOKUP(A14,IDtable,2) -> Not Used | E14: =D14 -> Not Used | AN14: =D14 & " (mod)" -> Not Used (mod) | AY14: 0 | AZ14: 0 | BA14: 0 | BB14: 0 | BC14: 0 | BD14: 0 | BE14: 0 | BF14: 0 | BG14: 0 | BH14: 0 | BI14: 0 | BJ14: 0 | BK14: 0 | BL14: 0 | BM14: 0 | BN14: 0 | BO14: 0 | BP14: 0 | BQ14: 0 | BR14: 0 | DI14: 0 | DJ14: 0 | DK14: 0 | DL14: 0 | DM14: 0 | DN14: 0 | DO14: 0 | DP14: 0 | DQ14: 0 | DR14: 0 | DS14: 0 | DT14: 0 | DU14: 0 | DV14: 0 | DW14: 0 | DX14: 0 | DY14: 0 | DZ14: 0 | EA14: 0 | EB14: 0
A15: 10 | D15: =VLOOKUP(A15,IDtable,2) -> Not Used | E15: =D15 -> Not Used | AN15: =D15 & " (mod)" -> Not Used (mod) | AY15: 0 | AZ15: 0 | BA15: 0 | BB15: 0 | BC15: 0 | BD15: 0 | BE15: 0 | BF15: 0 | BG15: 0 | BH15: 0 | BI15: 0 | BJ15: 0 | BK15: 0 | BL15: 0 | BM15: 0 | BN15: 0 | BO15: 0 | BP15: 0 | BQ15: 0 | BR15: 0 | DI15: 0 | DJ15: 0 | DK15: 0 | DL15: 0 | DM15: 0 | DN15: 0 | DO15: 0 | DP15: 0 | DQ15: 0 | DR15: 0 | DS15: 0 | DT15: 0 | DU15: 0 | DV15: 0 | DW15: 0 | DX15: 0 | DY15: 0 | DZ15: 0 | EA15: 0 | EB15: 0
A16: 11 | D16: =VLOOKUP(A16,IDtable,2) -> Not Used | E16: =D16 -> Not Used | AN16: =D16 & " (mod)" -> Not Used (mod) | AY16: 0 | AZ16: 0 | BA16: 0 | BB16: 0 | BC16: 0 | BD16: 0 | BE16: 0 | BF16: 0 | BG16: 0 | BH16: 0 | BI16: 0 | BJ16: 0 | BK16: 0 | BL16: 0 | BM16: 0 | BN16: 0 | BO16: 0 | BP16: 0 | BQ16: 0 | BR16: 0 | DI16: 0 | DJ16: 0 | DK16: 0 | DL16: 0 | DM16: 0 | DN16: 0 | DO16: 0 | DP16: 0 | DQ16: 0 | DR16: 0 | DS16: 0 | DT16: 0 | DU16: 0 | DV16: 0 | DW16: 0 | DX16: 0 | DY16: 0 | DZ16: 0 | EA16: 0 | EB16: 0
A17: 12 | D17: =VLOOKUP(A17,IDtable,2) -> Not Used | E17: =D17 -> Not Used | AN17: =D17 & " (mod)" -> Not Used (mod) | AY17: 0 | AZ17: 0 | BA17: 0 | BB17: 0 | BC17: 0 | BD17: 0 | BE17: 0 | BF17: 0 | BG17: 0 | BH17: 0 | BI17: 0 | BJ17: 0 | BK17: 0 | BL17: 0 | BM17: 0 | BN17: 0 | BO17: 0 | BP17: 0 | BQ17: 0 | BR17: 0 | DI17: 0 | DJ17: 0 | DK17: 0 | DL17: 0 | DM17: 0 | DN17: 0 | DO17: 0 | DP17: 0 | DQ17: 0 | DR17: 0 | DS17: 0 | DT17: 0 | DU17: 0 | DV17: 0 | DW17: 0 | DX17: 0 | DY17: 0 | DZ17: 0 | EA17: 0 | EB17: 0
D18: Total | G18: =SUM(G6:G14) -> 0 | H18: =SUM(H6:H14) -> 0 | I18: 0 | J18: 0 | K18: 0 | L18: 0 | M18: 0 | N18: 0 | O18: 0 | P18: 0 | Q18: 0 | R18: 0 | S18: 0 | T18: 0 | U18: 0 | V18: 0 | W18: 0 | X18: 0 | Y18: 0 | Z18: 0 | AA18: 0 | AB18: 0 | AC18: 0 | AD18: 0 | AE18: 0 | AF18: 0 | AG18: 0 | AH18: 0 | AI18: 0 | AJ18: 0 | AN18: Total (mod) | AO18: 0 | AP18: 0 | AQ18: 0 | AR18: 0 | AS18: 0 | AT18: 0 | AU18: 0 | AV18: 0 | AW18: 0 | AX18: 0 | AY18: =SUM(AY6:AY17) -> 0.05905414082 | AZ18: 0.06613449639 | BA18: 0.07412091092 | BB18: 0.08304029574 | BC18: 0.09290733966 | BD18: 0.1037001153 | BE18: 0.1153350415 | BF18: 0.1276480284 | BG18: 0.1403891582 | BH18: 0.1532368981 | BI18: 0.1658341075 | BJ18: 0.1778423658 | BK18: 0.1890048167 | BL18: 0.1992029744 | BM18: 0.2084918654 | BN18: 0.2171015972 | BO18: 0.2254013522 | BP18: 0.2338316068 | BQ18: 0.2428188861 | BR18: 0.2526917287 | DI18: =SUM(DI6:DI17) -> 59.05414082 | DJ18: 66.13449639 | DK18: 74.12091092 | DL18: 83.04029574 | DM18: 92.90733966 | DN18: 103.7001153 | DO18: 115.3350415 | DP18: 127.6480284 | DQ18: 140.3891582 | DR18: 153.2368981 | DS18: 165.8341075 | DT18: 177.8423658 | DU18: 189.0048167 | DV18: 199.2029744 | DW18: 208.4918654 | DX18: 217.1015972 | DY18: 225.4013522 | DZ18: 233.8316068 | EA18: 242.8188861 | EB18: 252.6917287
D19: % | G19: RRR model | L19: recursive | M19: 1st year
D20: asset categories | F20: Std life | G20: Rep life | H20: SD | I20: Life (S/R) | J20: Meth (D/P) | K20: M life | L20: =IF(Tables!B18=1,TRUE,FALSE) -> TRUE | M20: =IF(Tables!B19=1,TRUE,FALSE) -> TRUE | AY20: % of RC ↑ | AZ20: =AZ18/AY18 -> 1.119896005 | BA20: =BA18/AZ18 -> 1.120760193 | BB20: 1.120335607 | BC20: 1.11882236 | BD20: 1.116167094 | BE20: 1.112197814 | BF20: 1.106758421 | BS20: % of total life ↑ | CN20: % of total life ↑
A21: ='Asset data'!A21 -> 1 | D21: ='Asset data'!E21 -> TowerRebuild_132_Grillage | E21: =IF(A21>0,VLOOKUP(A21,IDtable,2),0) -> Towers (Grillage - Rebuild), by Corrosion Zone; Highest Operating Voltage; Circuit Configuration | F21: ='Asset data'!G21 -> 60 | G21: =F21 -> 60 | H21: ='Asset data'!H21 -> 7.745966692 | I21: S | J21: =IF(A21=0,0,IF('Asset data'!$D$1=1,1,IF('Asset data'!$D$1=2,2,'Asset data'!I21))) -> 2 | K21: =IF(A21>0,IF(I21="S",F21,IF(I21="R",G21,9999)),0) -> 60 | AY21: =repcalc('Age profile (Inst)'!CT21:GF21,J21,K21,H21,20,$L$20,$M$20) -> 0.0128879137 | AZ21: 0.01351302874 | BA21: 0.01393794837 | BB21: 0.01414238427 | BC21: 0.01411647398 | BD21: 0.01386157629 | BE21: 0.01339015976 | BF21: 0.01272479679 | BG21: 0.01189637569 | BH21: 0.0109417279 | BI21: 0.009900923531 | BJ21: 0.008814510758 | BK21: 0.007720960647 | BL21: 0.006654534169 | BM21: 0.005643720768 | BN21: 0.004710319727 | BO21: 0.003869158407 | BP21: 0.003128375599 | BQ21: 0.002490150855 | BR21: 0.001951735178 | BS21: 56.00520833 | BT21: 53.20184092 | BU21: 50.42369279 | BV21: 47.74926028 | BW21: 45.2475808 | BX21: 42.97476917 | BY21: 40.97223765 | BZ21: 39.26651324 | CA21: 37.87033705 | CB21: 36.78461544 | CC21: 36.00078823 | CD21: 35.50325245 | CE21: 35.2715912 | CF21: 35.28246924 | CG21: 35.51114943 | CH21: 35.93264661 | CI21: 36.52256947 | CJ21: 37.25771246 | CK21: 38.11645649 | CL21: 39.0790263 | CM21: 40.12763947 | CN21: =BS21*$AX21 -> 0 | CO21: =BT21*$AX21 -> 0 | CP21: =BU21*$AX21 -> 0 | CQ21: =BV21*$AX21 -> 0 | CR21: =BW21*$AX21 -> 0 | CS21: =BX21*$AX21 -> 0 | CT21: =BY21*$AX21 -> 0 | CU21: =BZ21*$AX21 -> 0 | CV21: =CA21*$AX21 -> 0 | CW21: =CB21*$AX21 -> 0 | CX21: =CC21*$AX21 -> 0 | CY21: =CD21*$AX21 -> 0 | CZ21: =CE21*$AX21 -> 0 | DA21: =CF21*$AX21 -> 0 | DB21: =CG21*$AX21 -> 0 | DC21: =CH21*$AX21 -> 0 | DD21: =CI21*$AX21 -> 0 | DE21: =CJ21*$AX21 -> 0 | DF21: =CK21*$AX21 -> 0 | DG21: =CL21*$AX21 -> 0 | DH21: =CM21*$AX21 -> 0 | DI21: =IF('Asset data'!$F21=0,0,AY21/'Asset data'!$F21) -> 12.8879137 | DJ21: =IF('Asset data'!$F21=0,0,AZ21/'Asset data'!$F21) -> 13.51302874 | DK21: =IF('Asset data'!$F21=0,0,BA21/'Asset data'!$F21) -> 13.93794837 | DL21: =IF('Asset data'!$F21=0,0,BB21/'Asset data'!$F21) -> 14.14238427 | DM21: =IF('Asset data'!$F21=0,0,BC21/'Asset data'!$F21) -> 14.11647398 | DN21: =IF('Asset data'!$F21=0,0,BD21/'Asset data'!$F21) -> 13.86157629 | DO21: =IF('Asset data'!$F21=0,0,BE21/'Asset data'!$F21) -> 13.39015976 | DP21: =IF('Asset data'!$F21=0,0,BF21/'Asset data'!$F21) -> 12.72479679 | DQ21: =IF('Asset data'!$F21=0,0,BG21/'Asset data'!$F21) -> 11.89637569 | DR21: =IF('Asset data'!$F21=0,0,BH21/'Asset data'!$F21) -> 10.9417279 | DS21: =IF('Asset data'!$F21=0,0,BI21/'Asset data'!$F21) -> 9.900923531 | DT21: =IF('Asset data'!$F21=0,0,BJ21/'Asset data'!$F21) -> 8.814510758 | DU21: =IF('Asset data'!$F21=0,0,BK21/'Asset data'!$F21) -> 7.720960647 | DV21: =IF('Asset data'!$F21=0,0,BL21/'Asset data'!$F21) -> 6.654534169 | DW21: =IF('Asset data'!$F21=0,0,BM21/'Asset data'!$F21) -> 5.643720768 | DX21: =IF('Asset data'!$F21=0,0,BN21/'Asset data'!$F21) -> 4.710319727 | DY21: =IF('Asset data'!$F21=0,0,BO21/'Asset data'!$F21) -> 3.869158407 | DZ21: =IF('Asset data'!$F21=0,0,BP21/'Asset data'!$F21) -> 3.128375599 | EA21: =IF('Asset data'!$F21=0,0,BQ21/'Asset data'!$F21) -> 2.490150855 | EB21: =IF('Asset data'!$F21=0,0,BR21/'Asset data'!$F21) -> 1.951735178
A22: ='Asset data'!A22 -> 2 | B22: ='Asset data'!B22 -> 0 | C22: ='Asset data'!C22 -> 0 | D22: ='Asset data'!E22 -> TowerRefit_ZoneB_275_SC_NonGrillage | E22: =IF(A22>0,VLOOKUP(A22,IDtable,2),0) -> Towers (Non-Grillage - Refit), by Corrosion Zone; Highest Operating Voltage; Circuit Configuration | F22: ='Asset data'!G22 -> 76.25 | G22: =F22 -> 76.25 | H22: ='Asset data'!H22 -> 8.732124598 | I22: S | J22: =IF(A22=0,0,IF('Asset data'!$D$1=1,1,IF('Asset data'!$D$1=2,2,'Asset data'!I22))) -> 2 | K22: =IF(A22>0,IF(I22="S",F22,IF(I22="R",G22,9999)),0) -> 76.25 | AY22: =repcalc('Age profile (Inst)'!CT22:GF22,J22,K22,H22,20,$L$20,$M$20) -> 5.585002751e-05 | AZ22: 8.044169351e-05 | BA22: 0.0001143668978 | BB22: 0.0001605039155 | BC22: 0.0002223526866 | BD22: 0.0003040719858 | BE22: 0.0004104819871 | BF22: 0.0005470190669 | BG22: 0.0007196298454 | BH22: 0.0009345932068 | BI22: 0.001198262675 | BJ22: 0.001516727203 | BK22: 0.001895396037 | BL22: 0.00233852243 | BM22: 0.002848690847 | BN22: 0.003426301844 | BO22: 0.004069096762 | BP22: 0.004771769375 | BQ22: 0.005525712449 | BR22: 0.006318942895 | BS22: 45.66724739 | BT22: 46.65792548 | BU22: 47.64422444 | BV22: 48.62435753 | BW22: 49.5959372 | BX22: 50.55582848 | BY22: 51.49998895 | BZ22: 52.42330356 | CA22: 53.31942687 | CB22: 54.18065067 | CC22: 54.99781947 | CD22: 55.76032108 | CE22: 56.45618172 | CF22: 57.07229457 | CG22: 57.59480541 | CH22: 58.00966837 | CI22: 58.30336746 | CJ22: 58.46377777 | CK22: 58.48111379 | CL22: 58.34888813 | CM22: 58.06478426 | CN22: =BS22*$AX22 -> 0 | CO22: =BT22*$AX22 -> 0 | CP22: =BU22*$AX22 -> 0 | CQ22: =BV22*$AX22 -> 0 | CR22: =BW22*$AX22 -> 0 | CS22: =BX22*$AX22 -> 0 | CT22: =BY22*$AX22 -> 0 | CU22: =BZ22*$AX22 -> 0 | CV22: =CA22*$AX22 -> 0 | CW22: =CB22*$AX22 -> 0 | CX22: =CC22*$AX22 -> 0 | CY22: =CD22*$AX22 -> 0 | CZ22: =CE22*$AX22 -> 0 | DA22: =CF22*$AX22 -> 0 | DB22: =CG22*$AX22 -> 0 | DC22: =CH22*$AX22 -> 0 | DD22: =CI22*$AX22 -> 0 | DE22: =CJ22*$AX22 -> 0 | DF22: =CK22*$AX22 -> 0 | DG22: =CL22*$AX22 -> 0 | DH22: =CM22*$AX22 -> 0 | DI22: =IF('Asset data'!$F22=0,0,AY22/'Asset data'!$F22) -> 0.05585002751 | DJ22: =IF('Asset data'!$F22=0,0,AZ22/'Asset data'!$F22) -> 0.08044169351 | DK22: =IF('Asset data'!$F22=0,0,BA22/'Asset data'!$F22) -> 0.1143668978 | DL22: =IF('Asset data'!$F22=0,0,BB22/'Asset data'!$F22) -> 0.1605039155 | DM22: =IF('Asset data'!$F22=0,0,BC22/'Asset data'!$F22) -> 0.2223526866 | DN22: =IF('Asset data'!$F22=0,0,BD22/'Asset data'!$F22) -> 0.3040719858 | DO22: =IF('Asset data'!$F22=0,0,BE22/'Asset data'!$F22) -> 0.4104819871 | DP22: =IF('Asset data'!$F22=0,0,BF22/'Asset data'!$F22) -> 0.5470190669 | DQ22: =IF('Asset data'!$F22=0,0,BG22/'Asset data'!$F22) -> 0.7196298454 | DR22: =IF('Asset data'!$F22=0,0,BH22/'Asset data'!$F22) -> 0.9345932068 | DS22: =IF('Asset data'!$F22=0,0,BI22/'Asset data'!$F22) -> 1.198262675 | DT22: =IF('Asset data'!$F22=0,0,BJ22/'Asset data'!$F22) -> 1.516727203 | DU22: =IF('Asset data'!$F22=0,0,BK22/'Asset data'!$F22) -> 1.895396037 | DV22: =IF('Asset data'!$F22=0,0,BL22/'Asset data'!$F22) -> 2.33852243 | DW22: =IF('Asset data'!$F22=0,0,BM22/'Asset data'!$F22) -> 2.848690847 | DX22: =IF('Asset data'!$F22=0,0,BN22/'Asset data'!$F22) -> 3.426301844 | DY22: =IF('Asset data'!$F22=0,0,BO22/'Asset data'!$F22) -> 4.069096762 | DZ22: =IF('Asset data'!$F22=0,0,BP22/'Asset data'!$F22) -> 4.771769375 | EA22: =IF('Asset data'!$F22=0,0,BQ22/'Asset data'!$F22) -> 5.525712449 | EB22: =IF('Asset data'!$F22=0,0,BR22/'Asset data'!$F22) -> 6.318942895
A23: ='Asset data'!A23 -> 2 | B23: ='Asset data'!B23 -> 0 | C23: ='Asset data'!C23 -> 0 | D23: ='Asset data'!E23 -> TowerRefit_ZoneC_275_SC_NonGrillage | E23: =IF(A23>0,VLOOKUP(A23,IDtable,2),0) -> Towers (Non-Grillage - Refit), by Corrosion Zone; Highest Operating Voltage; Circuit Configuration | F23: ='Asset data'!G23 -> 60.12 | G23: =F23 -> 60.12 | H23: ='Asset data'!H23 -> 7.75370879 | I23: S | J23: =IF(A23=0,0,IF('Asset data'!$D$1=1,1,IF('Asset data'!$D$1=2,2,'Asset data'!I23))) -> 2 | K23: =IF(A23>0,IF(I23="S",F23,IF(I23="R",G23,9999)),0) -> 60.12 | AY23: =repcalc('Age profile (Inst)'!CT23:GF23,J23,K23,H23,20,$L$20,$M$20) -> 0.004049387111 | AZ23: 0.005336539746 | BA23: 0.006932512048 | BB23: 0.008876888406 | BC23: 0.01120332836 | BD23: 0.01393557325 | BE23: 0.01708315046 | BF23: 0.0206371235 | BG23: 0.02456632594 | BH23: 0.02881457211 | BI23: 0.03329934065 | BJ23: 0.03791236458 | BK23: 0.04252242948 | BL23: 0.04698048307 | BM23: 0.05112691333 | BN23: 0.05480058542 | BO23: 0.05784897603 | BP23: 0.06013854607 | BQ23: 0.06156438392 | BR23: 0.06205815563 | BS23: 40.70322581 | BT23: 41.56256966 | BU23: 42.37465377 | BV23: 43.12756215 | BW23: 43.80785329 | BX23: 44.40089187 | BY23: 44.89139468 | BZ23: 45.26420648 | CA23: 45.50529704 | CB23: 45.60293773 | CC23: 45.54897816 | CD23: 45.34010517 | CE23: 44.97893662 | CF23: 44.47478889 | CG23: 43.8439687 | CH23: 43.1094819 | CI23: 42.30012168 | CJ23: 41.44898796 | CK23: 40.59157954 | CL23: 39.76367188 | CM23: 38.99922647 | CN23: =BS23*$AX23 -> 0 | CO23: =BT23*$AX23 -> 0 | CP23: =BU23*$AX23 -> 0 | CQ23: =BV23*$AX23 -> 0 | CR23: =BW23*$AX23 -> 0 | CS23: =BX23*$AX23 -> 0 | CT23: =BY23*$AX23 -> 0 | CU23: =BZ23*$AX23 -> 0 | CV23: =CA23*$AX23 -> 0 | CW23: =CB23*$AX23 -> 0 | CX23: =CC23*$AX23 -> 0 | CY23: =CD23*$AX23 -> 0 | CZ23: =CE23*$AX23 -> 0 | DA23: =CF23*$AX23 -> 0 | DB23: =CG23*$AX23 -> 0 | DC23: =CH23*$AX23 -> 0 | DD23: =CI23*$AX23 -> 0 | DE23: =CJ23*$AX23 -> 0 | DF23: =CK23*$AX23 -> 0 | DG23: =CL23*$AX23 -> 0 | DH23: =CM23*$AX23 -> 0 | DI23: =IF('Asset data'!$F23=0,0,AY23/'Asset data'!$F23) -> 4.049387111 | DJ23: =IF('Asset data'!$F23=0,0,AZ23/'Asset data'!$F23) -> 5.336539746 | DK23: =IF('Asset data'!$F23=0,0,BA23/'Asset data'!$F23) -> 6.932512048 | DL23: =IF('Asset data'!$F23=0,0,BB23/'Asset data'!$F23) -> 8.876888406 | DM23: =IF('Asset data'!$F23=0,0,BC23/'Asset data'!$F23) -> 11.20332836 | DN23: =IF('Asset data'!$F23=0,0,BD23/'Asset data'!$F23) -> 13.93557325 | DO23: =IF('Asset data'!$F23=0,0,BE23/'Asset data'!$F23) -> 17.08315046 | DP23: =IF('Asset data'!$F23=0,0,BF23/'Asset data'!$F23) -> 20.6371235 | DQ23: =IF('Asset data'!$F23=0,0,BG23/'Asset data'!$F23) -> 24.56632594 | DR23: =IF('Asset data'!$F23=0,0,BH23/'Asset data'!$F23) -> 28.81457211 | DS23: =IF('Asset data'!$F23=0,0,BI23/'Asset data'!$F23) -> 33.29934065 | DT23: =IF('Asset data'!$F23=0,0,BJ23/'Asset data'!$F23) -> 37.91236458 | DU23: =IF('Asset data'!$F23=0,0,BK23/'Asset data'!$F23) -> 42.52242948 | DV23: =IF('Asset data'!$F23=0,0,BL23/'Asset data'!$F23) -> 46.98048307 | DW23: =IF('Asset data'!$F23=0,0,BM23/'Asset data'!$F23) -> 51.12691333 | DX23: =IF('Asset data'!$F23=0,0,BN23/'Asset data'!$F23) -> 54.80058542 | DY23: =IF('Asset data'!$F23=0,0,BO23/'Asset data'!$F23) -> 57.84897603 | DZ23: =IF('Asset data'!$F23=0,0,BP23/'Asset data'!$F23) -> 60.13854607 | EA23: =IF('Asset data'!$F23=0,0,BQ23/'Asset data'!$F23) -> 61.56438392 | EB23: =IF('Asset data'!$F23=0,0,BR23/'Asset data'!$F23) -> 62.05815563
A24: ='Asset data'!A24 -> 2 | B24: ='Asset data'!B24 -> 0 | C24: ='Asset data'!C24 -> 0 | D24: ='Asset data'!E24 -> TowerRefit_ZoneD_275_SC_NonGrillage | E24: =IF(A24>0,VLOOKUP(A24,IDtable,2),0) -> Towers (Non-Grillage - Refit), by Corrosion Zone; Highest Operating Voltage; Circuit Configuration | F24: ='Asset data'!G24 -> 45.09789487 | G24: =F24 -> 45.09789487 | H24: ='Asset data'!H24 -> 6.715496621 | I24: S | J24: =IF(A24=0,0,IF('Asset data'!$D$1=1,1,IF('Asset data'!$D$1=2,2,'Asset data'!I24))) -> 2 | K24: =IF(A24>0,IF(I24="S",F24,IF(I24="R",G24,9999)),0) -> 45.09789487 | AY24: =repcalc('Age profile (Inst)'!CT24:GF24,J24,K24,H24,20,$L$20,$M$20) -> 0.001971761304 | AZ24: 0.001998027488 | BA24: 0.001980324318 | BB24: 0.001919812986 | BC24: 0.001820410242 | BD24: 0.001688368944 | BE24: 0.001531627575 | BF24: 0.001359022769 | BG24: 0.001179473055 | BH24: 0.001001237382 | BI24: 0.0008313307714 | BJ24: 0.0006751472534 | BK24: 0.0005363042457 | BL24: 0.0004166896222 | BM24: 0.0003166683017 | BN24: 0.0002353919917 | BO24: 0.0001711538837 | BP24: 0.0001217375378 | BQ24: 8.472254684e-05 | BR24: 5.772515188e-05 | BS24: 43.5 | BT24: 40.16212513 | BU24: 37.11469657 | BV24: 34.43834784 | BW24: 32.18173562 | BX24: 30.36427116 | BY24: 28.98154532 | BZ24: 28.01175353 | CA24: 27.4218316 | CB24: 27.17256805 | CC24: 27.22244675 | CD24: 27.53029641 | CE24: 28.05697877 | CF24: 28.76638086 | CG24: 29.62594106 | CH24: 30.60687761 | CI24: 31.68422691 | CJ24: 32.83675232 | CK24: 34.04675493 | CL24: 35.29980487 | CM24: 36.58440963 | CN24: =BS24*$AX24 -> 0 | CO24: =BT24*$AX24 -> 0 | CP24: =BU24*$AX24 -> 0 | CQ24: =BV24*$AX24 -> 0 | CR24: =BW24*$AX24 -> 0 | CS24: =BX24*$AX24 -> 0 | CT24: =BY24*$AX24 -> 0 | CU24: =BZ24*$AX24 -> 0 | CV24: =CA24*$AX24 -> 0 | CW24: =CB24*$AX24 -> 0 | CX24: =CC24*$AX24 -> 0 | CY24: =CD24*$AX24 -> 0 | CZ24: =CE24*$AX24 -> 0 | DA24: =CF24*$AX24 -> 0 | DB24: =CG24*$AX24 -> 0 | DC24: =CH24*$AX24 -> 0 | DD24: =CI24*$AX24 -> 0 | DE24: =CJ24*$AX24 -> 0 | DF24: =CK24*$AX24 -> 0 | DG24: =CL24*$AX24 -> 0 | DH24: =CM24*$AX24 -> 0 | DI24: =IF('Asset data'!$F24=0,0,AY24/'Asset data'!$F24) -> 1.971761304 | DJ24: =IF('Asset data'!$F24=0,0,AZ24/'Asset data'!$F24) -> 1.998027488 | DK24: =IF('Asset data'!$F24=0,0,BA24/'Asset data'!$F24) -> 1.980324318 | DL24: =IF('Asset data'!$F24=0,0,BB24/'Asset data'!$F24) -> 1.919812986 | DM24: =IF('Asset data'!$F24=0,0,BC24/'Asset data'!$F24) -> 1.820410242 | DN24: =IF('Asset data'!$F24=0,0,BD24/'Asset data'!$F24) -> 1.688368944 | DO24: =IF('Asset data'!$F24=0,0,BE24/'Asset data'!$F24) -> 1.531627575 | DP24: =IF('Asset data'!$F24=0,0,BF24/'Asset data'!$F24) -> 1.359022769 | DQ24: =IF('Asset data'!$F24=0,0,BG24/'Asset data'!$F24) -> 1.179473055 | DR24: =IF('Asset data'!$F24=0,0,BH24/'Asset data'!$F24) -> 1.001237382 | DS24: =IF('Asset data'!$F24=0,0,BI24/'Asset data'!$F24) -> 0.8313307714 | DT24: =IF('Asset data'!$F24=0,0,BJ24/'Asset data'!$F24) -> 0.6751472534 | DU24: =IF('Asset data'!$F24=0,0,BK24/'Asset data'!$F24) -> 0.5363042457 | DV24: =IF('Asset data'!$F24=0,0,BL24/'Asset data'!$F24) -> 0.4166896222 | DW24: =IF('Asset data'!$F24=0,0,BM24/'Asset data'!$F24) -> 0.3166683017 | DX24: =IF('Asset data'!$F24=0,0,BN24/'Asset data'!$F24) -> 0.2353919917 | DY24: =IF('Asset data'!$F24=0,0,BO24/'Asset data'!$F24) -> 0.1711538837 | DZ24: =IF('Asset data'!$F24=0,0,BP24/'Asset data'!$F24) -> 0.1217375378 | EA24: =IF('Asset data'!$F24=0,0,BQ24/'Asset data'!$F24) -> 0.08472254684 | EB24: =IF('Asset data'!$F24=0,0,BR24/'Asset data'!$F24) -> 0.05772515188
A25: ='Asset data'!A25 -> 0 | B25: ='Asset data'!B25 -> 0 | C25: ='Asset data'!C25 -> 0 | D25: ='Asset data'!E25 -> 0 | E25: 0 | F25: ='Asset data'!G25 -> 0 | G25: 0 | H25: ='Asset data'!H25 -> 0 | I25: S | J25: =IF(A25=0,0,IF('Asset data'!$D$1=1,1,IF('Asset data'!$D$1=2,2,'Asset data'!I25))) -> 0 | K25: 0 | AY25: =repcalc('Age profile (Inst)'!CT25:GF25,J25,K25,H25,20,$L$20,$M$20) -> 0 | AZ25: 0 | BA25: 0 | BB25: 0 | BC25: 0 | BD25: 0 | BE25: 0 | BF25: 0 | BG25: 0 | BH25: 0 | BI25: 0 | BJ25: 0 | BK25: 0 | BL25: 0 | BM25: 0 | BN25: 0 | BO25: 0 | BP25: 0 | BQ25: 0 | BR25: 0 | BS25: 0 | BT25: 0 | BU25: 0 | BV25: 0 | BW25: 0 | BX25: 0 | BY25: 0 | BZ25: 0 | CA25: 0 | CB25: 0 | CC25: 0 | CD25: 0 | CE25: 0 | CF25: 0 | CG25: 0 | CH25: 0 | CI25: 0 | CJ25: 0 | CK25: 0 | CL25: 0 | CM25: 0 | CN25: 0 | CO25: 0 | CP25: 0 | CQ25: 0 | CR25: 0 | CS25: 0 | CT25: 0 | CU25: 0 | CV25: 0 | CW25: 0 | CX25: 0 | CY25: 0 | CZ25: 0 | DA25: 0 | DB25: 0 | DC25: 0 | DD25: 0 | DE25: 0 | DF25: 0 | DG25: 0 | DH25: 0 | DI25: =IF('Asset data'!$F25=0,0,AY25/'Asset data'!$F25) -> 0 | DJ25: =IF('Asset data'!$F25=0,0,AZ25/'Asset data'!$F25) -> 0 | DK25: =IF('Asset data'!$F25=0,0,BA25/'Asset data'!$F25) -> 0 | DL25: =IF('Asset data'!$F25=0,0,BB25/'Asset data'!$F25) -> 0 | DM25: =IF('Asset data'!$F25=0,0,BC25/'Asset data'!$F25) -> 0 | DN25: =IF('Asset data'!$F25=0,0,BD25/'Asset data'!$F25) -> 0 | DO25: =IF('Asset data'!$F25=0,0,BE25/'Asset data'!$F25) -> 0 | DP25: =IF('Asset data'!$F25=0,0,BF25/'Asset data'!$F25) -> 0 | DQ25: =IF('Asset data'!$F25=0,0,BG25/'Asset data'!$F25) -> 0 | DR25: =IF('Asset data'!$F25=0,0,BH25/'Asset data'!$F25) -> 0 | DS25: =IF('Asset data'!$F25=0,0,BI25/'Asset data'!$F25) -> 0 | DT25: =IF('Asset data'!$F25=0,0,BJ25/'Asset data'!$F25) -> 0 | DU25: =IF('Asset data'!$F25=0,0,BK25/'Asset data'!$F25) -> 0 | DV25: =IF('Asset data'!$F25=0,0,BL25/'Asset data'!$F25) -> 0 | DW25: =IF('Asset data'!$F25=0,0,BM25/'Asset data'!$F25) -> 0 | DX25: =IF('Asset data'!$F25=0,0,BN25/'Asset data'!$F25) -> 0 | DY25: =IF('Asset data'!$F25=0,0,BO25/'Asset data'!$F25) -> 0 | DZ25: =IF('Asset data'!$F25=0,0,BP25/'Asset data'!$F25) -> 0 | EA25: =IF('Asset data'!$F25=0,0,BQ25/'Asset data'!$F25) -> 0 | EB25: =IF('Asset data'!$F25=0,0,BR25/'Asset data'!$F25) -> 0
A26: ='Asset data'!A26 -> 4 | B26: ='Asset data'!B26 -> 0 | C26: ='Asset data'!C26 -> 0 | D26: ='Asset data'!E26 -> > 66 kV & < = 132 kV ; Air Insulated circuit Breaker | E26: Substation Switchgear Equipment By Highest Operating Voltage; Equipment Type | F26: ='Asset data'!G26 -> 40.54518893 | G26: 40.54518893 | H26: ='Asset data'!H26 -> 6.367510419 | I26: S | J26: =IF(A26=0,0,IF('Asset data'!$D$1=1,1,IF('Asset data'!$D$1=2,2,'Asset data'!I26))) -> 2 | K26: 40.54518893 | AY26: =repcalc('Age profile (Inst)'!CT26:GF26,J26,K26,H26,20,$L$20,$M$20) -> 0.001402287741 | AZ26: 0.001613548395 | BA26: 0.001825232289 | BB26: 0.002032183342 | BC26: 0.002230272963 | BD26: 0.002417089854 | BE26: 0.002592534017 | BF26: 0.002759247037 | BG26: 0.002922835775 | BH26: 0.003091876816 | BI26: 0.003277716143 | BJ26: 0.003494094522 | BK26: 0.003756628995 | BL26: 0.004082164647 | BM26: 0.004487984507 | BN26: 0.004990840154 | BO26: 0.005605754745 | BP26: 0.006344565801 | BQ26: 0.00721422319 | BR26: 0.00821493506 | BS26: 12.76616915 | BT26: 13.64588089 | BU26: 14.51209548 | BV26: 15.36645123 | BW26: 16.21089747 | BX26: 17.04744302 | BY26: 17.87788451 | BZ26: 18.70355056 | CA26: 19.52509194 | CB26: 20.34233397 | CC26: 21.15419113 | CD26: 21.95862872 | CE26: 22.75264715 | CF26: 23.53226382 | CG26: 24.29247759 | CH26: 25.02722044 | CI26: 25.72932647 | CJ26: 26.39057384 | CK26: 27.0018703 | CL26: 27.55365048 | CM26: 28.03652684 | CN26: 0 | CO26: 0 | CP26: 0 | CQ26: 0 | CR26: 0 | CS26: 0 | CT26: 0 | CU26: 0 | CV26: 0 | CW26: 0 | CX26: 0 | CY26: 0 | CZ26: 0 | DA26: 0 | DB26: 0 | DC26: 0 | DD26: 0 | DE26: 0 | DF26: 0 | DG26: 0 | DH26: 0 | DI26: =IF('Asset data'!$F26=0,0,AY26/'Asset data'!$F26) -> 1.402287741 | DJ26: =IF('Asset data'!$F26=0,0,AZ26/'Asset data'!$F26) -> 1.613548395 | DK26: =IF('Asset data'!$F26=0,0,BA26/'Asset data'!$F26) -> 1.825232289 | DL26: =IF('Asset data'!$F26=0,0,BB26/'Asset data'!$F26) -> 2.032183342 | DM26: =IF('Asset data'!$F26=0,0,BC26/'Asset data'!$F26) -> 2.230272963 | DN26: =IF('Asset data'!$F26=0,0,BD26/'Asset data'!$F26) -> 2.417089854 | DO26: =IF('Asset data'!$F26=0,0,BE26/'Asset data'!$F26) -> 2.592534017 | DP26: =IF('Asset data'!$F26=0,0,BF26/'Asset data'!$F26) -> 2.759247037 | DQ26: =IF('Asset data'!$F26=0,0,BG26/'Asset data'!$F26) -> 2.922835775 | DR26: =IF('Asset data'!$F26=0,0,BH26/'Asset data'!$F26) -> 3.091876816 | DS26: =IF('Asset data'!$F26=0,0,BI26/'Asset data'!$F26) -> 3.277716143 | DT26: =IF('Asset data'!$F26=0,0,BJ26/'Asset data'!$F26) -> 3.494094522 | DU26: =IF('Asset data'!$F26=0,0,BK26/'Asset data'!$F26) -> 3.756628995 | DV26: =IF('Asset data'!$F26=0,0,BL26/'Asset data'!$F26) -> 4.082164647 | DW26: =IF('Asset data'!$F26=0,0,BM26/'Asset data'!$F26) -> 4.487984507 | DX26: =IF('Asset data'!$F26=0,0,BN26/'Asset data'!$F26) -> 4.990840154 | DY26: =IF('Asset data'!$F26=0,0,BO26/'Asset data'!$F26) -> 5.605754745 | DZ26: =IF('Asset data'!$F26=0,0,BP26/'Asset data'!$F26) -> 6.344565801 | EA26: =IF('Asset data'!$F26=0,0,BQ26/'Asset data'!$F26) -> 7.21422319 | EB26: =IF('Asset data'!$F26=0,0,BR26/'Asset data'!$F26) -> 8.21493506
A27: ='Asset data'!A27 -> 4 | B27: ='Asset data'!B27 -> 0 | C27: ='Asset data'!C27 -> 0 | D27: ='Asset data'!E27 -> > 132 kV & < = 275 kV ; Air Insulated circuit Breaker | E27: Substation Switchgear Equipment By Highest Operating Voltage; Equipment Type | F27: ='Asset data'!G27 -> 40.54518893 | G27: 40.54518893 | H27: ='Asset data'!H27 -> 6.367510419 | I27: S | J27: =IF(A27=0,0,IF('Asset data'!$D$1=1,1,IF('Asset data'!$D$1=2,2,'Asset data'!I27))) -> 2 | K27: 40.54518893 | AY27: =repcalc('Age profile (Inst)'!CT27:GF27,J27,K27,H27,20,$L$20,$M$20) -> 0.0006473561562 | AZ27: 0.0007973830771 | BA27: 0.0009683377992 | BB27: 0.001160438038 | BC27: 0.001373690821 | BD27: 0.001608086051 | BE27: 0.00186386668 | BF27: 0.002141864461 | BG27: 0.002443875686 | BH27: 0.002773033657 | BI27: 0.003134115752 | BJ27: 0.003533706627 | BK27: 0.003980130172 | BL27: 0.004483066949 | BM27: 0.005052795699 | BN27: 0.005699039377 | BO27: 0.006429456456 | BP27: 0.007247890414 | BQ27: 0.008152563081 | BR27: 0.009134456277 | BS27: 13.75433526 | BT27: 14.69488207 | BU27: 15.62283765 | BV27: 16.53698923 | BW27: 17.43620741 | BX27: 18.31943536 | BY27: 19.18566568 | BZ27: 20.03390109 | CA27: 20.86308994 | CB27: 21.67202475 | CC27: 22.4591953 | CD27: 23.22259773 | CE27: 23.95951641 | CF27: 24.66631162 | CG27: 25.33825983 | CH27: 25.96950027 | CI27: 26.55314111 | CJ27: 27.08156928 | CK27: 27.5469876 | CL27: 27.9421709 | CM27: 28.26139045 | CN27: 0 | CO27: 0 | CP27: 0 | CQ27: 0 | CR27: 0 | CS27: 0 | CT27: 0 | CU27: 0 | CV27: 0 | CW27: 0 | CX27: 0 | CY27: 0 | CZ27: 0 | DA27: 0 | DB27: 0 | DC27: 0 | DD27: 0 | DE27: 0 | DF27: 0 | DG27: 0 | DH27: 0 | DI27: =IF('Asset data'!$F27=0,0,AY27/'Asset data'!$F27) -> 0.6473561562 | DJ27: =IF('Asset data'!$F27=0,0,AZ27/'Asset data'!$F27) -> 0.7973830771 | DK27: =IF('Asset data'!$F27=0,0,BA27/'Asset data'!$F27) -> 0.9683377992 | DL27: =IF('Asset data'!$F27=0,0,BB27/'Asset data'!$F27) -> 1.160438038 | DM27: =IF('Asset data'!$F27=0,0,BC27/'Asset data'!$F27) -> 1.373690821 | DN27: =IF('Asset data'!$F27=0,0,BD27/'Asset data'!$F27) -> 1.608086051 | DO27: =IF('Asset data'!$F27=0,0,BE27/'Asset data'!$F27) -> 1.86386668 | DP27: =IF('Asset data'!$F27=0,0,BF27/'Asset data'!$F27) -> 2.141864461 | DQ27: =IF('Asset data'!$F27=0,0,BG27/'Asset data'!$F27) -> 2.443875686 | DR27: =IF('Asset data'!$F27=0,0,BH27/'Asset data'!$F27) -> 2.773033657 | DS27: =IF('Asset data'!$F27=0,0,BI27/'Asset data'!$F27) -> 3.134115752 | DT27: =IF('Asset data'!$F27=0,0,BJ27/'Asset data'!$F27) -> 3.533706627 | DU27: =IF('Asset data'!$F27=0,0,BK27/'Asset data'!$F27) -> 3.980130172 | DV27: =IF('Asset data'!$F27=0,0,BL27/'Asset data'!$F27) -> 4.483066949 | DW27: =IF('Asset data'!$F27=0,0,BM27/'Asset data'!$F27) -> 5.052795699 | DX27: =IF('Asset data'!$F27=0,0,BN27/'Asset data'!$F27) -> 5.699039377 | DY27: =IF('Asset data'!$F27=0,0,BO27/'Asset data'!$F27) -> 6.429456456 | DZ27: =IF('Asset data'!$F27=0,0,BP27/'Asset data'!$F27) -> 7.247890414 | EA27: =IF('Asset data'!$F27=0,0,BQ27/'Asset data'!$F27) -> 8.152563081 | EB27: =IF('Asset data'!$F27=0,0,BR27/'Asset data'!$F27) -> 9.134456277
A28: ='Asset data'!A28 -> 4 | B28: ='Asset data'!B28 -> 0 | C28: ='Asset data'!C28 -> 0 | D28: ='Asset data'!E28 -> > 66 kV & < = 132 kV ; Air Insulated Isolators / Earth Switch | E28: Substation Switchgear Equipment By Highest Operating Voltage; Equipment Type | F28: ='Asset data'!G28 -> 48.84757771 | G28: 48.84757771 | H28: ='Asset data'!H28 -> 6.989104213 | I28: S | J28: =IF(A28=0,0,IF('Asset data'!$D$1=1,1,IF('Asset data'!$D$1=2,2,'Asset data'!I28))) -> 2 | K28: 48.84757771 | AY28: =repcalc('Age profile (Inst)'!CT28:GF28,J28,K28,H28,20,$L$20,$M$20) -> 0.005356582501 | AZ28: 0.00574569641 | BA28: 0.006132547004 | BB28: 0.006514759837 | BC28: 0.006889453076 | BD28: 0.007253310657 | BE28: 0.007602826004 | BF28: 0.007934719618 | BG28: 0.008246507816 | BH28: 0.008537175919 | BI28: 0.008807891537 | BJ28: 0.009062685301 | BK28: 0.009309029053 | BL28: 0.009558254106 | BM28: 0.009825771844 | BN28: 0.01013108065 | BO28: 0.01049756135 | BP28: 0.01095207243 | BQ28: 0.01152435333 | BR28: 0.01224622804 | BS28: 14.8125 | BT28: 15.62759601 | BU28: 16.44448801 | BV28: 17.26126756 | BW28: 18.07657656 | BX28: 18.88954264 | BY28: 19.69972503 | BZ28: 20.50705237 | CA28: 21.31174408 | CB28: 22.11421387 | CC28: 22.91495791 | CD28: 23.71443176 | CE28: 24.51292172 | CF28: 25.31041801 | CG28: 26.10649786 | CH28: 26.90022635 | CI28: 27.69007966 | CJ28: 28.47389084 | CK28: 29.24881309 | CL28: 30.01129291 | CM28: 30.75704584 | CN28: 0 | CO28: 0 | CP28: 0 | CQ28: 0 | CR28: 0 | CS28: 0 | CT28: 0 | CU28: 0 | CV28: 0 | CW28: 0 | CX28: 0 | CY28: 0 | CZ28: 0 | DA28: 0 | DB28: 0 | DC28: 0 | DD28: 0 | DE28: 0 | DF28: 0 | DG28: 0 | DH28: 0 | DI28: =IF('Asset data'!$F28=0,0,AY28/'Asset data'!$F28) -> 5.356582501 | DJ28: =IF('Asset data'!$F28=0,0,AZ28/'Asset data'!$F28) -> 5.74569641 | DK28: =IF('Asset data'!$F28=0,0,BA28/'Asset data'!$F28) -> 6.132547004 | DL28: =IF('Asset data'!$F28=0,0,BB28/'Asset data'!$F28) -> 6.514759837 | DM28: =IF('Asset data'!$F28=0,0,BC28/'Asset data'!$F28) -> 6.889453076 | DN28: =IF('Asset data'!$F28=0,0,BD28/'Asset data'!$F28) -> 7.253310657 | DO28: =IF('Asset data'!$F28=0,0,BE28/'Asset data'!$F28) -> 7.602826004 | DP28: =IF('Asset data'!$F28=0,0,BF28/'Asset data'!$F28) -> 7.934719618 | DQ28: =IF('Asset data'!$F28=0,0,BG28/'Asset data'!$F28) -> 8.246507816 | DR28: =IF('Asset data'!$F28=0,0,BH28/'Asset data'!$F28) -> 8.537175919 | DS28: =IF('Asset data'!$F28=0,0,BI28/'Asset data'!$F28) -> 8.807891537 | DT28: =IF('Asset data'!$F28=0,0,BJ28/'Asset data'!$F28) -> 9.062685301 | DU28: =IF('Asset data'!$F28=0,0,BK28/'Asset data'!$F28) -> 9.309029053 | DV28: =IF('Asset data'!$F28=0,0,BL28/'Asset data'!$F28) -> 9.558254106 | DW28: =IF('Asset data'!$F28=0,0,BM28/'Asset data'!$F28) -> 9.825771844 | DX28: =IF('Asset data'!$F28=0,0,BN28/'Asset data'!$F28) -> 10.13108065 | DY28: =IF('Asset data'!$F28=0,0,BO28/'Asset data'!$F28) -> 10.49756135 | DZ28: =IF('Asset data'!$F28=0,0,BP28/'Asset data'!$F28) -> 10.95207243 | EA28: =IF('Asset data'!$F28=0,0,BQ28/'Asset data'!$F28) -> 11.52435333 | EB28: =IF('Asset data'!$F28=0,0,BR28/'Asset data'!$F28) -> 12.24622804
A29: ='Asset data'!A29 -> 4 | B29: ='Asset data'!B29 -> 0 | C29: ='Asset data'!C29 -> 0 | D29: ='Asset data'!E29 -> > 132 kV & < = 275 kV ; Air Insulated Isolators / Earth Switch | E29: Substation Switchgear Equipment By Highest Operating Voltage; Equipment Type | F29: ='Asset data'!G29 -> 48.84757771 | G29: 48.84757771 | H29: ='Asset data'!H29 -> 6.989104213 | I29: S | J29: =IF(A29=0,0,IF('Asset data'!$D$1=1,1,IF('Asset data'!$D$1=2,2,'Asset data'!I29))) -> 2 | K29: 48.84757771 | AY29: =repcalc('Age profile (Inst)'!CT29:GF29,J29,K29,H29,20,$L$20,$M$20) -> 0.0128819846 | AZ29: 0.01356506205 | BA29: 0.01415524911 | BB29: 0.01465696982 | BC29: 0.01508068637 | BD29: 0.01544207548 | BE29: 0.01576092188 | BF29: 0.01605985702 | BG29: 0.01636306957 | BH29: 0.01669510163 | BI29: 0.01707982643 | BJ29: 0.01753968261 | BK29: 0.01809521986 | BL29: 0.01876498744 | BM29: 0.01956576872 | BN29: 0.02051312834 | BO29: 0.02162219171 | BP29: 0.02290852295 | BQ29: 0.02438891393 | BR29: 0.02608185464 | BS29: 17.35110565 | BT29: 18.05942793 | BU29: 18.77592101 | BV29: 19.50081833 | BW29: 20.23378894 | BX29: 20.97410774 | BY29: 21.72076764 | BZ29: 22.47254241 | CA29: 23.2280163 | CB29: 23.98559577 | CC29: 24.74351628 | CD29: 25.49985338 | CE29: 26.25254385 | CF29: 26.99941691 | CG29: 27.73822952 | CH29: 28.46669395 | CI29: 29.18248295 | CJ29: 29.88320001 | CK29: 30.56630987 | CL29: 31.22903547 | CM29: 31.86823924 | CN29: 0 | CO29: 0 | CP29: 0 | CQ29: 0 | CR29: 0 | CS29: 0 | CT29: 0 | CU29: 0 | CV29: 0 | CW29: 0 | CX29: 0 | CY29: 0 | CZ29: 0 | DA29: 0 | DB29: 0 | DC29: 0 | DD29: 0 | DE29: 0 | DF29: 0 | DG29: 0 | DH29: 0 | DI29: =IF('Asset data'!$F29=0,0,AY29/'Asset data'!$F29) -> 12.8819846 | DJ29: =IF('Asset data'!$F29=0,0,AZ29/'Asset data'!$F29) -> 13.56506205 | DK29: =IF('Asset data'!$F29=0,0,BA29/'Asset data'!$F29) -> 14.15524911 | DL29: =IF('Asset data'!$F29=0,0,BB29/'Asset data'!$F29) -> 14.65696982 | DM29: =IF('Asset data'!$F29=0,0,BC29/'Asset data'!$F29) -> 15.08068637 | DN29: =IF('Asset data'!$F29=0,0,BD29/'Asset data'!$F29) -> 15.44207548 | DO29: =IF('Asset data'!$F29=0,0,BE29/'Asset data'!$F29) -> 15.76092188 | DP29: =IF('Asset data'!$F29=0,0,BF29/'Asset data'!$F29) -> 16.05985702 | DQ29: =IF('Asset data'!$F29=0,0,BG29/'Asset data'!$F29) -> 16.36306957 | DR29: =IF('Asset data'!$F29=0,0,BH29/'Asset data'!$F29) -> 16.69510163 | DS29: =IF('Asset data'!$F29=0,0,BI29/'Asset data'!$F29) -> 17.07982643 | DT29: =IF('Asset data'!$F29=0,0,BJ29/'Asset data'!$F29) -> 17.53968261 | DU29: =IF('Asset data'!$F29=0,0,BK29/'Asset data'!$F29) -> 18.09521986 | DV29: =IF('Asset data'!$F29=0,0,BL29/'Asset data'!$F29) -> 18.76498744 | DW29: =IF('Asset data'!$F29=0,0,BM29/'Asset data'!$F29) -> 19.56576872 | DX29: =IF('Asset data'!$F29=0,0,BN29/'Asset data'!$F29) -> 20.51312834 | DY29: =IF('Asset data'!$F29=0,0,BO29/'Asset data'!$F29) -> 21.62219171 | DZ29: =IF('Asset data'!$F29=0,0,BP29/'Asset data'!$F29) -> 22.90852295 | EA29: =IF('Asset data'!$F29=0,0,BQ29/'Asset data'!$F29) -> 24.38891393 | EB29: =IF('Asset data'!$F29=0,0,BR29/'Asset data'!$F29) -> 26.08185464
A30: ='Asset data'!A30 -> 4 | B30: ='Asset data'!B30 -> 0 | C30: ='Asset data'!C30 -> 0 | D30: ='Asset data'!E30 -> > 66 kV & < = 132 kV ; VT | E30: Substation Switchgear Equipment By Highest Operating Voltage; Equipment Type | F30: ='Asset data'!G30 -> 39.02313645 | G30: 39.02313645 | H30: ='Asset data'!H30 -> 6.246850123 | I30: S | J30: =IF(A30=0,0,IF('Asset data'!$D$1=1,1,IF('Asset data'!$D$1=2,2,'Asset data'!I30))) -> 2 | K30: 39.02313645 | AY30: =repcalc('Age profile (Inst)'!CT30:GF30,J30,K30,H30,20,$L$20,$M$20) -> 0.002825724994 | AZ30: 0.00311486183 | BA30: 0.003406157007 | BB30: 0.003707692509 | BC30: 0.004033815543 | BD30: 0.004405640845 | BE30: 0.00485090639 | BF30: 0.005403077292 | BG30: 0.00609967282 | BH30: 0.006979882195 | BI30: 0.00808162216 | BJ30: 0.009438259759 | BK30: 0.0110752663 | BL30: 0.01300707761 | BM30: 0.01523441246 | BN30: 0.01774225251 | BO30: 0.02049862729 | BP30: 0.02345428991 | BQ30: 0.02654332701 | BR30: 0.02968472481 | BS30: 13.10970464 | BT30: 14.00532449 | BU30: 14.89829884 | BV30: 15.78904111 | BW30: 16.67751054 | BX30: 17.56295881 | BY30: 18.44369852 | BZ30: 19.31692697 | CA30: 20.17862846 | CB30: 21.02356757 | CC30: 21.84537868 | CD30: 22.63675184 | CE30: 23.38971083 | CF30: 24.0959734 | CG30: 24.74737536 | CH30: 25.33633192 | CI30: 25.85630464 | CJ30: 26.30224509 | CK30: 26.67099734 | CL30: 26.96165659 | CM30: 27.1758905 | CN30: 0 | CO30: 0 | CP30: 0 | CQ30: 0 | CR30: 0 | CS30: 0 | CT30: 0 | CU30: 0 | CV30: 0 | CW30: 0 | CX30: 0 | CY30: 0 | CZ30: 0 | DA30: 0 | DB30: 0 | DC30: 0 | DD30: 0 | DE30: 0 | DF30: 0 | DG30: 0 | DH30: 0 | DI30: =IF('Asset data'!$F30=0,0,AY30/'Asset data'!$F30) -> 2.825724994 | DJ30: =IF('Asset data'!$F30=0,0,AZ30/'Asset data'!$F30) -> 3.11486183 | DK30: =IF('Asset data'!$F30=0,0,BA30/'Asset data'!$F30) -> 3.406157007 | DL30: =IF('Asset data'!$F30=0,0,BB30/'Asset data'!$F30) -> 3.707692509 | DM30: =IF('Asset data'!$F30=0,0,BC30/'Asset data'!$F30) -> 4.033815543 | DN30: =IF('Asset data'!$F30=0,0,BD30/'Asset data'!$F30) -> 4.405640845 | DO30: =IF('Asset data'!$F30=0,0,BE30/'Asset data'!$F30) -> 4.85090639 | DP30: =IF('Asset data'!$F30=0,0,BF30/'Asset data'!$F30) -> 5.403077292 | DQ30: =IF('Asset data'!$F30=0,0,BG30/'Asset data'!$F30) -> 6.09967282 | DR30: =IF('Asset data'!$F30=0,0,BH30/'Asset data'!$F30) -> 6.979882195 | DS30: =IF('Asset data'!$F30=0,0,BI30/'Asset data'!$F30) -> 8.08162216 | DT30: =IF('Asset data'!$F30=0,0,BJ30/'Asset data'!$F30) -> 9.438259759 | DU30: =IF('Asset data'!$F30=0,0,BK30/'Asset data'!$F30) -> 11.0752663 | DV30: =IF('Asset data'!$F30=0,0,BL30/'Asset data'!$F30) -> 13.00707761 | DW30: =IF('Asset data'!$F30=0,0,BM30/'Asset data'!$F30) -> 15.23441246 | DX30: =IF('Asset data'!$F30=0,0,BN30/'Asset data'!$F30) -> 17.74225251 | DY30: =IF('Asset data'!$F30=0,0,BO30/'Asset data'!$F30) -> 20.49862729 | DZ30: =IF('Asset data'!$F30=0,0,BP30/'Asset data'!$F30) -> 23.45428991 | EA30: =IF('Asset data'!$F30=0,0,BQ30/'Asset data'!$F30) -> 26.54332701 | EB30: =IF('Asset data'!$F30=0,0,BR30/'Asset data'!$F30) -> 29.68472481
A31: ='Asset data'!A31 -> 4 | B31: ='Asset data'!B31 -> 0 | C31: ='Asset data'!C31 -> 0 | D31: ='Asset data'!E31 -> > 132 kV & < = 275 kV ; VT | E31: Substation Switchgear Equipment By Highest Operating Voltage; Equipment Type | F31: ='Asset data'!G31 -> 39.02313645 | G31: 39.02313645 | H31: ='Asset data'!H31 -> 6.246850123 | I31: S | J31: =IF(A31=0,0,IF('Asset data'!$D$1=1,1,IF('Asset data'!$D$1=2,2,'Asset data'!I31))) -> 2 | K31: 39.02313645 | AY31: =repcalc('Age profile (Inst)'!CT31:GF31,J31,K31,H31,20,$L$20,$M$20) -> 0.002679306817 | AZ31: 0.002597415403 | BA31: 0.002566016472 | BB31: 0.002582111752 | BC31: 0.002646078969 | BD31: 0.002762438112 | BE31: 0.002939817862 | BF31: 0.003190220104 | BG31: 0.003527782121 | BH31: 0.003967290991 | BI31: 0.004522706479 | BJ31: 0.005205899762 | BK31: 0.00602572718 | BL31: 0.006987450417 | BM31: 0.008092411912 | BN31: 0.00933780251 | BO31: 0.01071633804 | BP31: 0.01221570266 | BQ31: 0.01381771471 | BR31: 0.01549730507 | BS31: 12.57243816 | BT31: 13.38020193 | BU31: 14.22605185 | BV31: 15.08985939 | BW31: 15.9631303 | BX31: 16.8409416 | BY31: 17.71918004 | BZ31: 18.593525 | CA31: 19.4591181 | CB31: 20.3105468 | CC31: 21.14198188 | CD31: 21.94737801 | CE31: 22.72067179 | CF31: 23.45592933 | CG31: 24.14741967 | CH31: 24.78962407 | CI31: 25.3772264 | CJ31: 25.90515501 | CK31: 26.36874984 | CL31: 26.76410457 | CM31: 27.08858669 | CN31: 0 | CO31: 0 | CP31: 0 | CQ31: 0 | CR31: 0 | CS31: 0 | CT31: 0 | CU31: 0 | CV31: 0 | CW31: 0 | CX31: 0 | CY31: 0 | CZ31: 0 | DA31: 0 | DB31: 0 | DC31: 0 | DD31: 0 | DE31: 0 | DF31: 0 | DG31: 0 | DH31: 0 | DI31: =IF('Asset data'!$F31=0,0,AY31/'Asset data'!$F31) -> 2.679306817 | DJ31: =IF('Asset data'!$F31=0,0,AZ31/'Asset data'!$F31) -> 2.597415403 | DK31: =IF('Asset data'!$F31=0,0,BA31/'Asset data'!$F31) -> 2.566016472 | DL31: =IF('Asset data'!$F31=0,0,BB31/'Asset data'!$F31) -> 2.582111752 | DM31: =IF('Asset data'!$F31=0,0,BC31/'Asset data'!$F31) -> 2.646078969 | DN31: =IF('Asset data'!$F31=0,0,BD31/'Asset data'!$F31) -> 2.762438112 | DO31: =IF('Asset data'!$F31=0,0,BE31/'Asset data'!$F31) -> 2.939817862 | DP31: =IF('Asset data'!$F31=0,0,BF31/'Asset data'!$F31) -> 3.190220104 | DQ31: =IF('Asset data'!$F31=0,0,BG31/'Asset data'!$F31) -> 3.527782121 | DR31: =IF('Asset data'!$F31=0,0,BH31/'Asset data'!$F31) -> 3.967290991 | DS31: =IF('Asset data'!$F31=0,0,BI31/'Asset data'!$F31) -> 4.522706479 | DT31: =IF('Asset data'!$F31=0,0,BJ31/'Asset data'!$F31) -> 5.205899762 | DU31: =IF('Asset data'!$F31=0,0,BK31/'Asset data'!$F31) -> 6.02572718 | DV31: =IF('Asset data'!$F31=0,0,BL31/'Asset data'!$F31) -> 6.987450417 | DW31: =IF('Asset data'!$F31=0,0,BM31/'Asset data'!$F31) -> 8.092411912 | DX31: =IF('Asset data'!$F31=0,0,BN31/'Asset data'!$F31) -> 9.33780251 | DY31: =IF('Asset data'!$F31=0,0,BO31/'Asset data'!$F31) -> 10.71633804 | DZ31: =IF('Asset data'!$F31=0,0,BP31/'Asset data'!$F31) -> 12.21570266 | EA31: =IF('Asset data'!$F31=0,0,BQ31/'Asset data'!$F31) -> 13.81771471 | EB31: =IF('Asset data'!$F31=0,0,BR31/'Asset data'!$F31) -> 15.49730507
A32: ='Asset data'!A32 -> 4 | B32: ='Asset data'!B32 -> 0 | C32: ='Asset data'!C32 -> 0 | D32: ='Asset data'!E32 -> > 66 kV & < = 132 kV ; CT | E32: Substation Switchgear Equipment By Highest Operating Voltage; Equipment Type | F32: ='Asset data'!G32 -> 39.93573553 | G32: 39.93573553 | H32: ='Asset data'!H32 -> 6.319472726 | I32: S | J32: =IF(A32=0,0,IF('Asset data'!$D$1=1,1,IF('Asset data'!$D$1=2,2,'Asset data'!I32))) -> 2 | K32: 39.93573553 | AY32: =repcalc('Age profile (Inst)'!CT32:GF32,J32,K32,H32,20,$L$20,$M$20) -> 0.004377299373 | AZ32: 0.005018341443 | BA32: 0.005678119353 | BB32: 0.006351902979 | BC32: 0.007038800472 | BD32: 0.007742497358 | BE32: 0.008471431836 | BF32: 0.009238350296 | BG32: 0.01005928804 | BH32: 0.01095211301 | BI32: 0.01193483299 | BJ32: 0.01302388251 | BK32: 0.01423256966 | BL32: 0.01556978285 | BM32: 0.01703895656 | BN32: 0.01863720338 | BO32: 0.02035447166 | BP32: 0.02217260762 | BQ32: 0.02406429533 | BR32: 0.0259920004 | BS32: 16.07894737 | BT32: 16.89580876 | BU32: 17.69497228 | BV32: 18.47797037 | BW32: 19.2460689 | BX32: 19.99998245 | BY32: 20.73965872 | BZ32: 21.46415588 | CA32: 22.17162277 | CB32: 22.85937819 | CC32: 23.5240719 | CD32: 24.16189842 | CE32: 24.76882665 | CF32: 25.34080714 | CG32: 25.8739278 | CH32: 26.36450947 | CI32: 26.80916317 | CJ32: 27.20486081 | CK32: 27.54908956 | CL32: 27.84015353 | CM32: 28.07765219 | CN32: 0 | CO32: 0 | CP32: 0 | CQ32: 0 | CR32: 0 | CS32: 0 | CT32: 0 | CU32: 0 | CV32: 0 | CW32: 0 | CX32: 0 | CY32: 0 | CZ32: 0 | DA32: 0 | DB32: 0 | DC32: 0 | DD32: 0 | DE32: 0 | DF32: 0 | DG32: 0 | DH32: 0 | DI32: =IF('Asset data'!$F32=0,0,AY32/'Asset data'!$F32) -> 4.377299373 | DJ32: =IF('Asset data'!$F32=0,0,AZ32/'Asset data'!$F32) -> 5.018341443 | DK32: =IF('Asset data'!$F32=0,0,BA32/'Asset data'!$F32) -> 5.678119353 | DL32: =IF('Asset data'!$F32=0,0,BB32/'Asset data'!$F32) -> 6.351902979 | DM32: =IF('Asset data'!$F32=0,0,BC32/'Asset data'!$F32) -> 7.038800472 | DN32: =IF('Asset data'!$F32=0,0,BD32/'Asset data'!$F32) -> 7.742497358 | DO32: =IF('Asset data'!$F32=0,0,BE32/'Asset data'!$F32) -> 8.471431836 | DP32: =IF('Asset data'!$F32=0,0,BF32/'Asset data'!$F32) -> 9.238350296 | DQ32: =IF('Asset data'!$F32=0,0,BG32/'Asset data'!$F32) -> 10.05928804 | DR32: =IF('Asset data'!$F32=0,0,BH32/'Asset data'!$F32) -> 10.95211301 | DS32: =IF('Asset data'!$F32=0,0,BI32/'Asset data'!$F32) -> 11.93483299 | DT32: =IF('Asset data'!$F32=0,0,BJ32/'Asset data'!$F32) -> 13.02388251 | DU32: =IF('Asset data'!$F32=0,0,BK32/'Asset data'!$F32) -> 14.23256966 | DV32: =IF('Asset data'!$F32=0,0,BL32/'Asset data'!$F32) -> 15.56978285 | DW32: =IF('Asset data'!$F32=0,0,BM32/'Asset data'!$F32) -> 17.03895656 | DX32: =IF('Asset data'!$F32=0,0,BN32/'Asset data'!$F32) -> 18.63720338 | DY32: =IF('Asset data'!$F32=0,0,BO32/'Asset data'!$F32) -> 20.35447166 | DZ32: =IF('Asset data'!$F32=0,0,BP32/'Asset data'!$F32) -> 22.17260762 | EA32: =IF('Asset data'!$F32=0,0,BQ32/'Asset data'!$F32) -> 24.06429533 | EB32: =IF('Asset data'!$F32=0,0,BR32/'Asset data'!$F32) -> 25.9920004
A33: ='Asset data'!A33 -> 4 | B33: ='Asset data'!B33 -> 0 | C33: ='Asset data'!C33 -> 0 | D33: ='Asset data'!E33 -> > 132 kV & < = 275 kV ; CT | E33: Substation Switchgear Equipment By Highest Operating Voltage; Equipment Type | F33: ='Asset data'!G33 -> 39.93573553 | G33: 39.93573553 | H33: ='Asset data'!H33 -> 6.319472726 | I33: S | J33: =IF(A33=0,0,IF('Asset data'!$D$1=1,1,IF('Asset data'!$D$1=2,2,'Asset data'!I33))) -> 2 | K33: 39.93573553 | AY33: =repcalc('Age profile (Inst)'!CT33:GF33,J33,K33,H33,20,$L$20,$M$20) -> 0.001586325522 | AZ33: 0.001789592614 | BA33: 0.002003876689 | BB33: 0.002234022119 | BC33: 0.002487819128 | BD33: 0.00277634225 | BE33: 0.003114218847 | BF33: 0.003519847609 | BG33: 0.004015565537 | BH33: 0.00462771822 | BI33: 0.005386529869 | BJ33: 0.006325611496 | BK33: 0.007480907101 | BL33: 0.008888879217 | BM33: 0.01058379217 | BN33: 0.01259407024 | BO33: 0.01493788049 | BP33: 0.01761829326 | BQ33: 0.02061856936 | BR33: 0.02389826757 | BS33: 11.97852761 | BT33: 12.9218829 | BU33: 13.861823 | BV33: 14.79851528 | BW33: 15.73172941 | BX33: 16.66079192 | BY33: 17.58456991 | BZ33: 18.50145849 | CA33: 19.40934742 | CB33: 20.3055512 | CC33: 21.18669943 | CD33: 22.04859775 | CE33: 22.88608123 | CF33: 23.69289266 | CG33: 24.46162663 | CH33: 25.18378695 | CI33: 25.85000717 | CJ33: 26.45047584 | CK33: 26.97558556 | CL33: 27.41678608 | CM33: 27.76757178 | CN33: 0 | CO33: 0 | CP33: 0 | CQ33: 0 | CR33: 0 | CS33: 0 | CT33: 0 | CU33: 0 | CV33: 0 | CW33: 0 | CX33: 0 | CY33: 0 | CZ33: 0 | DA33: 0 | DB33: 0 | DC33: 0 | DD33: 0 | DE33: 0 | DF33: 0 | DG33: 0 | DH33: 0 | DI33: =IF('Asset data'!$F33=0,0,AY33/'Asset data'!$F33) -> 1.586325522 | DJ33: =IF('Asset data'!$F33=0,0,AZ33/'Asset data'!$F33) -> 1.789592614 | DK33: =IF('Asset data'!$F33=0,0,BA33/'Asset data'!$F33) -> 2.003876689 | DL33: =IF('Asset data'!$F33=0,0,BB33/'Asset data'!$F33) -> 2.234022119 | DM33: =IF('Asset data'!$F33=0,0,BC33/'Asset data'!$F33) -> 2.487819128 | DN33: =IF('Asset data'!$F33=0,0,BD33/'Asset data'!$F33) -> 2.77634225 | DO33: =IF('Asset data'!$F33=0,0,BE33/'Asset data'!$F33) -> 3.114218847 | DP33: =IF('Asset data'!$F33=0,0,BF33/'Asset data'!$F33) -> 3.519847609 | DQ33: =IF('Asset data'!$F33=0,0,BG33/'Asset data'!$F33) -> 4.015565537 | DR33: =IF('Asset data'!$F33=0,0,BH33/'Asset data'!$F33) -> 4.62771822 | DS33: =IF('Asset data'!$F33=0,0,BI33/'Asset data'!$F33) -> 5.386529869 | DT33: =IF('Asset data'!$F33=0,0,BJ33/'Asset data'!$F33) -> 6.325611496 | DU33: =IF('Asset data'!$F33=0,0,BK33/'Asset data'!$F33) -> 7.480907101 | DV33: =IF('Asset data'!$F33=0,0,BL33/'Asset data'!$F33) -> 8.888879217 | DW33: =IF('Asset data'!$F33=0,0,BM33/'Asset data'!$F33) -> 10.58379217 | DX33: =IF('Asset data'!$F33=0,0,BN33/'Asset data'!$F33) -> 12.59407024 | DY33: =IF('Asset data'!$F33=0,0,BO33/'Asset data'!$F33) -> 14.93788049 | DZ33: =IF('Asset data'!$F33=0,0,BP33/'Asset data'!$F33) -> 17.61829326 | EA33: =IF('Asset data'!$F33=0,0,BQ33/'Asset data'!$F33) -> 20.61856936 | EB33: =IF('Asset data'!$F33=0,0,BR33/'Asset data'!$F33) -> 23.89826757
A34: ='Asset data'!A34 -> 0 | B34: ='Asset data'!B34 -> 0 | C34: ='Asset data'!C34 -> 0 | D34: ='Asset data'!E34 -> 0 | E34: 0 | F34: ='Asset data'!G34 -> 0 | G34: 0 | H34: ='Asset data'!H34 -> 0 | I34: S | J34: =IF(A34=0,0,IF('Asset data'!$D$1=1,1,IF('Asset data'!$D$1=2,2,'Asset data'!I34))) -> 0 | K34: 0 | AY34: =repcalc('Age profile (Inst)'!CT34:GF34,J34,K34,H34,20,$L$20,$M$20) -> 0 | AZ34: 0 | BA34: 0 | BB34: 0 | BC34: 0 | BD34: 0 | BE34: 0 | BF34: 0 | BG34: 0 | BH34: 0 | BI34: 0 | BJ34: 0 | BK34: 0 | BL34: 0 | BM34: 0 | BN34: 0 | BO34: 0 | BP34: 0 | BQ34: 0 | BR34: 0 | BS34: 0 | BT34: 0 | BU34: 0 | BV34: 0 | BW34: 0 | BX34: 0 | BY34: 0 | BZ34: 0 | CA34: 0 | CB34: 0 | CC34: 0 | CD34: 0 | CE34: 0 | CF34: 0 | CG34: 0 | CH34: 0 | CI34: 0 | CJ34: 0 | CK34: 0 | CL34: 0 | CM34: 0 | CN34: 0 | CO34: 0 | CP34: 0 | CQ34: 0 | CR34: 0 | CS34: 0 | CT34: 0 | CU34: 0 | CV34: 0 | CW34: 0 | CX34: 0 | CY34: 0 | CZ34: 0 | DA34: 0 | DB34: 0 | DC34: 0 | DD34: 0 | DE34: 0 | DF34: 0 | DG34: 0 | DH34: 0 | DI34: =IF('Asset data'!$F34=0,0,AY34/'Asset data'!$F34) -> 0 | DJ34: =IF('Asset data'!$F34=0,0,AZ34/'Asset data'!$F34) -> 0 | DK34: =IF('Asset data'!$F34=0,0,BA34/'Asset data'!$F34) -> 0 | DL34: =IF('Asset data'!$F34=0,0,BB34/'Asset data'!$F34) -> 0 | DM34: =IF('Asset data'!$F34=0,0,BC34/'Asset data'!$F34) -> 0 | DN34: =IF('Asset data'!$F34=0,0,BD34/'Asset data'!$F34) -> 0 | DO34: =IF('Asset data'!$F34=0,0,BE34/'Asset data'!$F34) -> 0 | DP34: =IF('Asset data'!$F34=0,0,BF34/'Asset data'!$F34) -> 0 | DQ34: =IF('Asset data'!$F34=0,0,BG34/'Asset data'!$F34) -> 0 | DR34: =IF('Asset data'!$F34=0,0,BH34/'Asset data'!$F34) -> 0 | DS34: =IF('Asset data'!$F34=0,0,BI34/'Asset data'!$F34) -> 0 | DT34: =IF('Asset data'!$F34=0,0,BJ34/'Asset data'!$F34) -> 0 | DU34: =IF('Asset data'!$F34=0,0,BK34/'Asset data'!$F34) -> 0 | DV34: =IF('Asset data'!$F34=0,0,BL34/'Asset data'!$F34) -> 0 | DW34: =IF('Asset data'!$F34=0,0,BM34/'Asset data'!$F34) -> 0 | DX34: =IF('Asset data'!$F34=0,0,BN34/'Asset data'!$F34) -> 0 | DY34: =IF('Asset data'!$F34=0,0,BO34/'Asset data'!$F34) -> 0 | DZ34: =IF('Asset data'!$F34=0,0,BP34/'Asset data'!$F34) -> 0 | EA34: =IF('Asset data'!$F34=0,0,BQ34/'Asset data'!$F34) -> 0 | EB34: =IF('Asset data'!$F34=0,0,BR34/'Asset data'!$F34) -> 0
A35: ='Asset data'!A35 -> 5 | B35: ='Asset data'!B35 -> 0 | C35: ='Asset data'!C35 -> 0 | D35: ='Asset data'!E35 -> Secondary Systems (Bay or Non-bay) | E35: Secondary Systems by Function | F35: ='Asset data'!G35 -> 21.6901574 | G35: 21.6901574 | H35: ='Asset data'!H35 -> 4.657269308 | I35: S | J35: =IF(A35=0,0,IF('Asset data'!$D$1=1,1,IF('Asset data'!$D$1=2,2,'Asset data'!I35))) -> 2 | K35: 21.6901574 | AY35: =repcalc('Age profile (Inst)'!CT35:GF35,J35,K35,H35,20,$L$20,$M$20) -> 0.006850040533 | AZ35: 0.009013971372 | BA35: 0.01185487717 | BB35: 0.0153737992 | BC35: 0.01953653227 | BD35: 0.02425447594 | BE35: 0.02936798722 | BF35: 0.03463747623 | BG35: 0.03974755075 | BH35: 0.04432814729 | BI35: 0.04799342898 | BJ35: 0.05039460857 | BK35: 0.05127791851 | BL35: 0.05053542493 | BM35: 0.04823592383 | BN35: 0.04462657485 | BO35: 0.04010263993 | BP35: 0.03515075517 | BQ35: 0.03027793618 | BR35: 0.02594171758 | BS35: 9.612391931 | BT35: 10.45574705 | BU35: 11.26662642 | BV35: 12.02173768 | BW35: 12.70636896 | BX35: 13.30793892 | BY35: 13.81621955 | BZ35: 14.2249873 | CA35: 14.53422861 | CB35: 14.75231381 | CC35: 14.89744246 | CD35: 14.99765571 | CE35: 15.08895369 | CF35: 15.21155768 | CG35: 15.4049794 | CH35: 15.70304604 | CI35: 16.13011355 | CJ35: 16.69929871 | CK35: 17.41286353 | CL35: 18.26424527 | CM35: 19.2409139 | CN35: 0 | CO35: 0 | CP35: 0 | CQ35: 0 | CR35: 0 | CS35: 0 | CT35: 0 | CU35: 0 | CV35: 0 | CW35: 0 | CX35: 0 | CY35: 0 | CZ35: 0 | DA35: 0 | DB35: 0 | DC35: 0 | DD35: 0 | DE35: 0 | DF35: 0 | DG35: 0 | DH35: 0 | DI35: =IF('Asset data'!$F35=0,0,AY35/'Asset data'!$F35) -> 6.850040533 | DJ35: =IF('Asset data'!$F35=0,0,AZ35/'Asset data'!$F35) -> 9.013971372 | DK35: =IF('Asset data'!$F35=0,0,BA35/'Asset data'!$F35) -> 11.85487717 | DL35: =IF('Asset data'!$F35=0,0,BB35/'Asset data'!$F35) -> 15.3737992 | DM35: =IF('Asset data'!$F35=0,0,BC35/'Asset data'!$F35) -> 19.53653227 | DN35: =IF('Asset data'!$F35=0,0,BD35/'Asset data'!$F35) -> 24.25447594 | DO35: =IF('Asset data'!$F35=0,0,BE35/'Asset data'!$F35) -> 29.36798722 | DP35: =IF('Asset data'!$F35=0,0,BF35/'Asset data'!$F35) -> 34.63747623 | DQ35: =IF('Asset data'!$F35=0,0,BG35/'Asset data'!$F35) -> 39.74755075 | DR35: =IF('Asset data'!$F35=0,0,BH35/'Asset data'!$F35) -> 44.32814729 | DS35: =IF('Asset data'!$F35=0,0,BI35/'Asset data'!$F35) -> 47.99342898 | DT35: =IF('Asset data'!$F35=0,0,BJ35/'Asset data'!$F35) -> 50.39460857 | DU35: =IF('Asset data'!$F35=0,0,BK35/'Asset data'!$F35) -> 51.27791851 | DV35: =IF('Asset data'!$F35=0,0,BL35/'Asset data'!$F35) -> 50.53542493 | DW35: =IF('Asset data'!$F35=0,0,BM35/'Asset data'!$F35) -> 48.23592383 | DX35: =IF('Asset data'!$F35=0,0,BN35/'Asset data'!$F35) -> 44.62657485 | DY35: =IF('Asset data'!$F35=0,0,BO35/'Asset data'!$F35) -> 40.10263993 | DZ35: =IF('Asset data'!$F35=0,0,BP35/'Asset data'!$F35) -> 35.15075517 | EA35: =IF('Asset data'!$F35=0,0,BQ35/'Asset data'!$F35) -> 30.27793618 | EB35: =IF('Asset data'!$F35=0,0,BR35/'Asset data'!$F35) -> 25.94171758
A36: ='Asset data'!A36 -> 5 | B36: ='Asset data'!B36 -> 0 | C36: ='Asset data'!C36 -> 0 | D36: ='Asset data'!E36 -> Metering Secondary Systems | E36: Secondary Systems by Function | F36: ='Asset data'!G36 -> 0 | G36: 0 | H36: ='Asset data'!H36 -> 0 | I36: S | J36: =IF(A36=0,0,IF('Asset data'!$D$1=1,1,IF('Asset data'!$D$1=2,2,'Asset data'!I36))) -> 2 | K36: 0 | AY36: =DI36*'Asset data'!$F$36 -> 0.00148232044 | AZ36: =DJ36*'Asset data'!$F$36 -> 0.001950586124 | BA36: =DK36*'Asset data'!$F$36 -> 0.002565346389 | BB36: =DL36*'Asset data'!$F$36 -> 0.003326826563 | BC36: =DM36*'Asset data'!$F$36 -> 0.004227624782 | BD36: =DN36*'Asset data'!$F$36 -> 0.00524856828 | BE36: =DO36*'Asset data'!$F$36 -> 0.006355110972 | BF36: =DP36*'Asset data'!$F$36 -> 0.007495406598 | BG36: =DQ36*'Asset data'!$F$36 -> 0.008601205591 | BH36: =DR36*'Asset data'!$F$36 -> 0.009592427737 | BI36: =DS36*'Asset data'!$F$36 -> 0.01038557954 | BJ36: =DT36*'Asset data'!$F$36 -> 0.01090518487 | BK36: =DU36*'Asset data'!$F$36 -> 0.01109632949 | BL36: =DV36*'Asset data'!$F$36 -> 0.01093565695 | BM36: =DW36*'Asset data'!$F$36 -> 0.01043805442 | BN36: =DX36*'Asset data'!$F$36 -> 0.009657006228 | BO36: =DY36*'Asset data'!$F$36 -> 0.008678045422 | BP36: =DZ36*'Asset data'!$F$36 -> 0.007606478039 | BQ36: =EA36*'Asset data'!$F$36 -> 0.006552020162 | BR36: =EB36*'Asset data'!$F$36 -> 0.005613680392 | DI36: =MeteringPerYearRatio*DI35 -> 1.48232044 | DJ36: 1.950586124 | DK36: 2.565346389 | DL36: 3.326826563 | DM36: 4.227624782 | DN36: 5.24856828 | DO36: 6.355110972 | DP36: 7.495406598 | DQ36: 8.601205591 | DR36: 9.592427737 | DS36: 10.38557954 | DT36: 10.90518487 | DU36: 11.09632949 | DV36: 10.93565695 | DW36: 10.43805442 | DX36: 9.657006228 | DY36: 8.678045422 | DZ36: 7.606478039 | EA36: 6.552020162 | EB36: 5.613680392
A37: ='Asset data'!A37 -> 0 | B37: ='Asset data'!B37 -> 0 | C37: ='Asset data'!C37 -> 0 | D37: ='Asset data'!E37 -> 0 | E37: 0 | F37: ='Asset data'!G37 -> 0 | G37: 0 | H37: ='Asset data'!H37 -> 0 | I37: S | J37: =IF(A37=0,0,IF('Asset data'!$D$1=1,1,IF('Asset data'!$D$1=2,2,'Asset data'!I37))) -> 0 | K37: 0 | AY37: =repcalc('Age profile (Inst)'!CT37:GF37,J37,K37,H37,20,$L$20,$M$20) -> 0 | AZ37: 0 | BA37: 0 | BB37: 0 | BC37: 0 | BD37: 0 | BE37: 0 | BF37: 0 | BG37: 0 | BH37: 0 | BI37: 0 | BJ37: 0 | BK37: 0 | BL37: 0 | BM37: 0 | BN37: 0 | BO37: 0 | BP37: 0 | BQ37: 0 | BR37: 0 | BS37: 0 | BT37: 0 | BU37: 0 | BV37: 0 | BW37: 0 | BX37: 0 | BY37: 0 | BZ37: 0 | CA37: 0 | CB37: 0 | CC37: 0 | CD37: 0 | CE37: 0 | CF37: 0 | CG37: 0 | CH37: 0 | CI37: 0 | CJ37: 0 | CK37: 0 | CL37: 0 | CM37: 0 | CN37: 0 | CO37: 0 | CP37: 0 | CQ37: 0 | CR37: 0 | CS37: 0 | CT37: 0 | CU37: 0 | CV37: 0 | CW37: 0 | CX37: 0 | CY37: 0 | CZ37: 0 | DA37: 0 | DB37: 0 | DC37: 0 | DD37: 0 | DE37: 0 | DF37: 0 | DG37: 0 | DH37: 0 | DI37: =IF('Asset data'!$F37=0,0,AY37/'Asset data'!$F37) -> 0 | DJ37: =IF('Asset data'!$F37=0,0,AZ37/'Asset data'!$F37) -> 0 | DK37: =IF('Asset data'!$F37=0,0,BA37/'Asset data'!$F37) -> 0 | DL37: =IF('Asset data'!$F37=0,0,BB37/'Asset data'!$F37) -> 0 | DM37: =IF('Asset data'!$F37=0,0,BC37/'Asset data'!$F37) -> 0 | DN37: =IF('Asset data'!$F37=0,0,BD37/'Asset data'!$F37) -> 0 | DO37: =IF('Asset data'!$F37=0,0,BE37/'Asset data'!$F37) -> 0 | DP37: =IF('Asset data'!$F37=0,0,BF37/'Asset data'!$F37) -> 0 | DQ37: =IF('Asset data'!$F37=0,0,BG37/'Asset data'!$F37) -> 0 | DR37: =IF('Asset data'!$F37=0,0,BH37/'Asset data'!$F37) -> 0 | DS37: =IF('Asset data'!$F37=0,0,BI37/'Asset data'!$F37) -> 0 | DT37: =IF('Asset data'!$F37=0,0,BJ37/'Asset data'!$F37) -> 0 | DU37: =IF('Asset data'!$F37=0,0,BK37/'Asset data'!$F37) -> 0 | DV37: =IF('Asset data'!$F37=0,0,BL37/'Asset data'!$F37) -> 0 | DW37: =IF('Asset data'!$F37=0,0,BM37/'Asset data'!$F37) -> 0 | DX37: =IF('Asset data'!$F37=0,0,BN37/'Asset data'!$F37) -> 0 | DY37: =IF('Asset data'!$F37=0,0,BO37/'Asset data'!$F37) -> 0 | DZ37: =IF('Asset data'!$F37=0,0,BP37/'Asset data'!$F37) -> 0 | EA37: =IF('Asset data'!$F37=0,0,BQ37/'Asset data'!$F37) -> 0 | EB37: =IF('Asset data'!$F37=0,0,BR37/'Asset data'!$F37) -> 0
A38: ='Asset data'!A38 -> 0 | B38: ='Asset data'!B38 -> 0 | C38: ='Asset data'!C38 -> 0 | D38: ='Asset data'!E38 -> 0 | E38: 0 | F38: ='Asset data'!G38 -> 0 | G38: 0 | H38: ='Asset data'!H38 -> 0 | I38: S | J38: =IF(A38=0,0,IF('Asset data'!$D$1=1,1,IF('Asset data'!$D$1=2,2,'Asset data'!I38))) -> 0 | K38: 0 | AY38: =DI38*'Asset data'!$F38 -> 0 | AZ38: =DJ38*'Asset data'!$F38 -> 0 | BA38: =DK38*'Asset data'!$F38 -> 0 | BB38: =DL38*'Asset data'!$F38 -> 0 | BC38: =DM38*'Asset data'!$F38 -> 0 | BD38: =DN38*'Asset data'!$F38 -> 0 | BE38: =DO38*'Asset data'!$F38 -> 0 | DI38: =AllocationOfTowersForOpex -> 0 | DJ38: 0 | DK38: 0 | DL38: 0 | DM38: 0 | DN38: 0 | DO38: 0 | DP38: =IF('Asset data'!$F38=0,0,BF38/'Asset data'!$F38) -> 0 | DQ38: =IF('Asset data'!$F38=0,0,BG38/'Asset data'!$F38) -> 0 | DR38: =IF('Asset data'!$F38=0,0,BH38/'Asset data'!$F38) -> 0 | DS38: =IF('Asset data'!$F38=0,0,BI38/'Asset data'!$F38) -> 0 | DT38: =IF('Asset data'!$F38=0,0,BJ38/'Asset data'!$F38) -> 0 | DU38: =IF('Asset data'!$F38=0,0,BK38/'Asset data'!$F38) -> 0 | DV38: =IF('Asset data'!$F38=0,0,BL38/'Asset data'!$F38) -> 0 | DW38: =IF('Asset data'!$F38=0,0,BM38/'Asset data'!$F38) -> 0 | DX38: =IF('Asset data'!$F38=0,0,BN38/'Asset data'!$F38) -> 0 | DY38: =IF('Asset data'!$F38=0,0,BO38/'Asset data'!$F38) -> 0 | DZ38: =IF('Asset data'!$F38=0,0,BP38/'Asset data'!$F38) -> 0 | EA38: =IF('Asset data'!$F38=0,0,BQ38/'Asset data'!$F38) -> 0 | EB38: =IF('Asset data'!$F38=0,0,BR38/'Asset data'!$F38) -> 0
A39: ='Asset data'!A40 -> 0 | B39: ='Asset data'!B40 -> 0 | C39: ='Asset data'!C40 -> 0 | D39: ='Asset data'!E40 -> 0 | E39: 0 | F39: ='Asset data'!G40 -> 0 | G39: 0 | H39: ='Asset data'!H40 -> 0 | I39: S | J39: =IF(A39=0,0,IF('Asset data'!$D$1=1,1,IF('Asset data'!$D$1=2,2,'Asset data'!I40))) -> 0 | K39: 0 | AY39: =repcalc('Age profile (Inst)'!CT40:GF40,J39,K39,H39,20,$L$20,$M$20) -> 0 | AZ39: 0 | BA39: 0 | BB39: 0 | BC39: 0 | BD39: 0 | BE39: 0 | BF39: 0 | BG39: 0 | BH39: 0 | BI39: 0 | BJ39: 0 | BK39: 0 | BL39: 0 | BM39: 0 | BN39: 0 | BO39: 0 | BP39: 0 | BQ39: 0 | BR39: 0 | BS39: 0 | BT39: 0 | BU39: 0 | BV39: 0 | BW39: 0 | BX39: 0 | BY39: 0 | BZ39: 0 | CA39: 0 | CB39: 0 | CC39: 0 | CD39: 0 | CE39: 0 | CF39: 0 | CG39: 0 | CH39: 0 | CI39: 0 | CJ39: 0 | CK39: 0 | CL39: 0 | CM39: 0 | CN39: 0 | CO39: 0 | CP39: 0 | CQ39: 0 | CR39: 0 | CS39: 0 | CT39: 0 | CU39: 0 | CV39: 0 | CW39: 0 | CX39: 0 | CY39: 0 | CZ39: 0 | DA39: 0 | DB39: 0 | DC39: 0 | DD39: 0 | DE39: 0 | DF39: 0 | DG39: 0 | DH39: 0 | DI39: =IF('Asset data'!$F40=0,0,AY39/'Asset data'!$F40) -> 0 | DJ39: =IF('Asset data'!$F40=0,0,AZ39/'Asset data'!$F40) -> 0 | DK39: =IF('Asset data'!$F40=0,0,BA39/'Asset data'!$F40) -> 0 | DL39: =IF('Asset data'!$F40=0,0,BB39/'Asset data'!$F40) -> 0 | DM39: =IF('Asset data'!$F40=0,0,BC39/'Asset data'!$F40) -> 0 | DN39: =IF('Asset data'!$F40=0,0,BD39/'Asset data'!$F40) -> 0 | DO39: =IF('Asset data'!$F40=0,0,BE39/'Asset data'!$F40) -> 0 | DP39: =IF('Asset data'!$F40=0,0,BF39/'Asset data'!$F40) -> 0 | DQ39: =IF('Asset data'!$F40=0,0,BG39/'Asset data'!$F40) -> 0 | DR39: =IF('Asset data'!$F40=0,0,BH39/'Asset data'!$F40) -> 0 | DS39: =IF('Asset data'!$F40=0,0,BI39/'Asset data'!$F40) -> 0 | DT39: =IF('Asset data'!$F40=0,0,BJ39/'Asset data'!$F40) -> 0 | DU39: =IF('Asset data'!$F40=0,0,BK39/'Asset data'!$F40) -> 0 | DV39: =IF('Asset data'!$F40=0,0,BL39/'Asset data'!$F40) -> 0 | DW39: =IF('Asset data'!$F40=0,0,BM39/'Asset data'!$F40) -> 0 | DX39: =IF('Asset data'!$F40=0,0,BN39/'Asset data'!$F40) -> 0 | DY39: =IF('Asset data'!$F40=0,0,BO39/'Asset data'!$F40) -> 0 | DZ39: =IF('Asset data'!$F40=0,0,BP39/'Asset data'!$F40) -> 0 | EA39: =IF('Asset data'!$F40=0,0,BQ39/'Asset data'!$F40) -> 0 | EB39: =IF('Asset data'!$F40=0,0,BR39/'Asset data'!$F40) -> 0
A40: ='Asset data'!A41 -> 0 | B40: ='Asset data'!B41 -> 0 | C40: ='Asset data'!C41 -> 0 | D40: ='Asset data'!E41 -> 0 | E40: 0 | F40: ='Asset data'!G41 -> 0 | G40: 0 | H40: ='Asset data'!H41 -> 0 | I40: S | J40: =IF(A40=0,0,IF('Asset data'!$D$1=1,1,IF('Asset data'!$D$1=2,2,'Asset data'!I41))) -> 0 | K40: 0 | AY40: =repcalc('Age profile (Inst)'!CT41:GF41,J40,K40,H40,20,$L$20,$M$20) -> 0 | AZ40: 0 | BA40: 0 | BB40: 0 | BC40: 0 | BD40: 0 | BE40: 0 | BF40: 0 | BG40: 0 | BH40: 0 | BI40: 0 | BJ40: 0 | BK40: 0 | BL40: 0 | BM40: 0 | BN40: 0 | BO40: 0 | BP40: 0 | BQ40: 0 | BR40: 0 | BS40: 0 | BT40: 0 | BU40: 0 | BV40: 0 | BW40: 0 | BX40: 0 | BY40: 0 | BZ40: 0 | CA40: 0 | CB40: 0 | CC40: 0 | CD40: 0 | CE40: 0 | CF40: 0 | CG40: 0 | CH40: 0 | CI40: 0 | CJ40: 0 | CK40: 0 | CL40: 0 | CM40: 0 | CN40: 0 | CO40: 0 | CP40: 0 | CQ40: 0 | CR40: 0 | CS40: 0 | CT40: 0 | CU40: 0 | CV40: 0 | CW40: 0 | CX40: 0 | CY40: 0 | CZ40: 0 | DA40: 0 | DB40: 0 | DC40: 0 | DD40: 0 | DE40: 0 | DF40: 0 | DG40: 0 | DH40: 0 | DI40: =IF('Asset data'!$F41=0,0,AY40/'Asset data'!$F41) -> 0 | DJ40: =IF('Asset data'!$F41=0,0,AZ40/'Asset data'!$F41) -> 0 | DK40: =IF('Asset data'!$F41=0,0,BA40/'Asset data'!$F41) -> 0 | DL40: =IF('Asset data'!$F41=0,0,BB40/'Asset data'!$F41) -> 0 | DM40: =IF('Asset data'!$F41=0,0,BC40/'Asset data'!$F41) -> 0 | DN40: =IF('Asset data'!$F41=0,0,BD40/'Asset data'!$F41) -> 0 | DO40: =IF('Asset data'!$F41=0,0,BE40/'Asset data'!$F41) -> 0 | DP40: =IF('Asset data'!$F41=0,0,BF40/'Asset data'!$F41) -> 0 | DQ40: =IF('Asset data'!$F41=0,0,BG40/'Asset data'!$F41) -> 0 | DR40: =IF('Asset data'!$F41=0,0,BH40/'Asset data'!$F41) -> 0 | DS40: =IF('Asset data'!$F41=0,0,BI40/'Asset data'!$F41) -> 0 | DT40: =IF('Asset data'!$F41=0,0,BJ40/'Asset data'!$F41) -> 0 | DU40: =IF('Asset data'!$F41=0,0,BK40/'Asset data'!$F41) -> 0 | DV40: =IF('Asset data'!$F41=0,0,BL40/'Asset data'!$F41) -> 0 | DW40: =IF('Asset data'!$F41=0,0,BM40/'Asset data'!$F41) -> 0 | DX40: =IF('Asset data'!$F41=0,0,BN40/'Asset data'!$F41) -> 0 | DY40: =IF('Asset data'!$F41=0,0,BO40/'Asset data'!$F41) -> 0 | DZ40: =IF('Asset data'!$F41=0,0,BP40/'Asset data'!$F41) -> 0 | EA40: =IF('Asset data'!$F41=0,0,BQ40/'Asset data'!$F41) -> 0 | EB40: =IF('Asset data'!$F41=0,0,BR40/'Asset data'!$F41) -> 0
A41: ='Asset data'!A42 -> 0 | B41: ='Asset data'!B42 -> 0 | C41: ='Asset data'!C42 -> 0 | D41: ='Asset data'!E42 -> 0 | E41: 0 | F41: ='Asset data'!G42 -> 0 | G41: 0 | H41: ='Asset data'!H42 -> 0 | I41: S | J41: =IF(A41=0,0,IF('Asset data'!$D$1=1,1,IF('Asset data'!$D$1=2,2,'Asset data'!I42))) -> 0 | K41: 0 | AY41: =repcalc('Age profile (Inst)'!CT42:GF42,J41,K41,H41,20,$L$20,$M$20) -> 0 | AZ41: 0 | BA41: 0 | BB41: 0 | BC41: 0 | BD41: 0 | BE41: 0 | BF41: 0 | BG41: 0 | BH41: 0 | BI41: 0 | BJ41: 0 | BK41: 0 | BL41: 0 | BM41: 0 | BN41: 0 | BO41: 0 | BP41: 0 | BQ41: 0 | BR41: 0 | BS41: 0 | BT41: 0 | BU41: 0 | BV41: 0 | BW41: 0 | BX41: 0 | BY41: 0 | BZ41: 0 | CA41: 0 | CB41: 0 | CC41: 0 | CD41: 0 | CE41: 0 | CF41: 0 | CG41: 0 | CH41: 0 | CI41: 0 | CJ41: 0 | CK41: 0 | CL41: 0 | CM41: 0 | CN41: 0 | CO41: 0 | CP41: 0 | CQ41: 0 | CR41: 0 | CS41: 0 | CT41: 0 | CU41: 0 | CV41: 0 | CW41: 0 | CX41: 0 | CY41: 0 | CZ41: 0 | DA41: 0 | DB41: 0 | DC41: 0 | DD41: 0 | DE41: 0 | DF41: 0 | DG41: 0 | DH41: 0 | DI41: =IF('Asset data'!$F42=0,0,AY41/'Asset data'!$F42) -> 0 | DJ41: =IF('Asset data'!$F42=0,0,AZ41/'Asset data'!$F42) -> 0 | DK41: =IF('Asset data'!$F42=0,0,BA41/'Asset data'!$F42) -> 0 | DL41: =IF('Asset data'!$F42=0,0,BB41/'Asset data'!$F42) -> 0 | DM41: =IF('Asset data'!$F42=0,0,BC41/'Asset data'!$F42) -> 0 | DN41: =IF('Asset data'!$F42=0,0,BD41/'Asset data'!$F42) -> 0 | DO41: =IF('Asset data'!$F42=0,0,BE41/'Asset data'!$F42) -> 0 | DP41: =IF('Asset data'!$F42=0,0,BF41/'Asset data'!$F42) -> 0 | DQ41: =IF('Asset data'!$F42=0,0,BG41/'Asset data'!$F42) -> 0 | DR41: =IF('Asset data'!$F42=0,0,BH41/'Asset data'!$F42) -> 0 | DS41: =IF('Asset data'!$F42=0,0,BI41/'Asset data'!$F42) -> 0 | DT41: =IF('Asset data'!$F42=0,0,BJ41/'Asset data'!$F42) -> 0 | DU41: =IF('Asset data'!$F42=0,0,BK41/'Asset data'!$F42) -> 0 | DV41: =IF('Asset data'!$F42=0,0,BL41/'Asset data'!$F42) -> 0 | DW41: =IF('Asset data'!$F42=0,0,BM41/'Asset data'!$F42) -> 0 | DX41: =IF('Asset data'!$F42=0,0,BN41/'Asset data'!$F42) -> 0 | DY41: =IF('Asset data'!$F42=0,0,BO41/'Asset data'!$F42) -> 0 | DZ41: =IF('Asset data'!$F42=0,0,BP41/'Asset data'!$F42) -> 0 | EA41: =IF('Asset data'!$F42=0,0,BQ41/'Asset data'!$F42) -> 0 | EB41: =IF('Asset data'!$F42=0,0,BR41/'Asset data'!$F42) -> 0
A42: ='Asset data'!A43 -> 0 | B42: ='Asset data'!B43 -> 0 | C42: ='Asset data'!C43 -> 0 | D42: ='Asset data'!E43 -> 0 | E42: 0 | F42: ='Asset data'!G43 -> 0 | G42: 0 | H42: ='Asset data'!H43 -> 0 | I42: S | J42: =IF(A42=0,0,IF('Asset data'!$D$1=1,1,IF('Asset data'!$D$1=2,2,'Asset data'!I43))) -> 0 | K42: 0 | AY42: =repcalc('Age profile (Inst)'!CT43:GF43,J42,K42,H42,20,$L$20,$M$20) -> 0 | AZ42: 0 | BA42: 0 | BB42: 0 | BC42: 0 | BD42: 0 | BE42: 0 | BF42: 0 | BG42: 0 | BH42: 0 | BI42: 0 | BJ42: 0 | BK42: 0 | BL42: 0 | BM42: 0 | BN42: 0 | BO42: 0 | BP42: 0 | BQ42: 0 | BR42: 0 | BS42: 0 | BT42: 0 | BU42: 0 | BV42: 0 | BW42: 0 | BX42: 0 | BY42: 0 | BZ42: 0 | CA42: 0 | CB42: 0 | CC42: 0 | CD42: 0 | CE42: 0 | CF42: 0 | CG42: 0 | CH42: 0 | CI42: 0 | CJ42: 0 | CK42: 0 | CL42: 0 | CM42: 0 | CN42: 0 | CO42: 0 | CP42: 0 | CQ42: 0 | CR42: 0 | CS42: 0 | CT42: 0 | CU42: 0 | CV42: 0 | CW42: 0 | CX42: 0 | CY42: 0 | CZ42: 0 | DA42: 0 | DB42: 0 | DC42: 0 | DD42: 0 | DE42: 0 | DF42: 0 | DG42: 0 | DH42: 0 | DI42: =IF('Asset data'!$F43=0,0,AY42/'Asset data'!$F43) -> 0 | DJ42: =IF('Asset data'!$F43=0,0,AZ42/'Asset data'!$F43) -> 0 | DK42: =IF('Asset data'!$F43=0,0,BA42/'Asset data'!$F43) -> 0 | DL42: =IF('Asset data'!$F43=0,0,BB42/'Asset data'!$F43) -> 0 | DM42: =IF('Asset data'!$F43=0,0,BC42/'Asset data'!$F43) -> 0 | DN42: =IF('Asset data'!$F43=0,0,BD42/'Asset data'!$F43) -> 0 | DO42: =IF('Asset data'!$F43=0,0,BE42/'Asset data'!$F43) -> 0 | DP42: =IF('Asset data'!$F43=0,0,BF42/'Asset data'!$F43) -> 0 | DQ42: =IF('Asset data'!$F43=0,0,BG42/'Asset data'!$F43) -> 0 | DR42: =IF('Asset data'!$F43=0,0,BH42/'Asset data'!$F43) -> 0 | DS42: =IF('Asset data'!$F43=0,0,BI42/'Asset data'!$F43) -> 0 | DT42: =IF('Asset data'!$F43=0,0,BJ42/'Asset data'!$F43) -> 0 | DU42: =IF('Asset data'!$F43=0,0,BK42/'Asset data'!$F43) -> 0 | DV42: =IF('Asset data'!$F43=0,0,BL42/'Asset data'!$F43) -> 0 | DW42: =IF('Asset data'!$F43=0,0,BM42/'Asset data'!$F43) -> 0 | DX42: =IF('Asset data'!$F43=0,0,BN42/'Asset data'!$F43) -> 0 | DY42: =IF('Asset data'!$F43=0,0,BO42/'Asset data'!$F43) -> 0 | DZ42: =IF('Asset data'!$F43=0,0,BP42/'Asset data'!$F43) -> 0 | EA42: =IF('Asset data'!$F43=0,0,BQ42/'Asset data'!$F43) -> 0 | EB42: =IF('Asset data'!$F43=0,0,BR42/'Asset data'!$F43) -> 0
A43: ='Asset data'!A44 -> 0 | B43: ='Asset data'!B44 -> 0 | C43: ='Asset data'!C44 -> 0 | D43: ='Asset data'!E44 -> 0 | E43: 0 | F43: ='Asset data'!G44 -> 0 | G43: 0 | H43: ='Asset data'!H44 -> 0 | I43: S | J43: =IF(A43=0,0,IF('Asset data'!$D$1=1,1,IF('Asset data'!$D$1=2,2,'Asset data'!I44))) -> 0 | K43: 0 | AY43: =repcalc('Age profile (Inst)'!CT44:GF44,J43,K43,H43,20,$L$20,$M$20) -> 0 | AZ43: 0 | BA43: 0 | BB43: 0 | BC43: 0 | BD43: 0 | BE43: 0 | BF43: 0 | BG43: 0 | BH43: 0 | BI43: 0 | BJ43: 0 | BK43: 0 | BL43: 0 | BM43: 0 | BN43: 0 | BO43: 0 | BP43: 0 | BQ43: 0 | BR43: 0 | BS43: 0 | BT43: 0 | BU43: 0 | BV43: 0 | BW43: 0 | BX43: 0 | BY43: 0 | BZ43: 0 | CA43: 0 | CB43: 0 | CC43: 0 | CD43: 0 | CE43: 0 | CF43: 0 | CG43: 0 | CH43: 0 | CI43: 0 | CJ43: 0 | CK43: 0 | CL43: 0 | CM43: 0 | CN43: 0 | CO43: 0 | CP43: 0 | CQ43: 0 | CR43: 0 | CS43: 0 | CT43: 0 | CU43: 0 | CV43: 0 | CW43: 0 | CX43: 0 | CY43: 0 | CZ43: 0 | DA43: 0 | DB43: 0 | DC43: 0 | DD43: 0 | DE43: 0 | DF43: 0 | DG43: 0 | DH43: 0 | DI43: =IF('Asset data'!$F44=0,0,AY43/'Asset data'!$F44) -> 0 | DJ43: =IF('Asset data'!$F44=0,0,AZ43/'Asset data'!$F44) -> 0 | DK43: =IF('Asset data'!$F44=0,0,BA43/'Asset data'!$F44) -> 0 | DL43: =IF('Asset data'!$F44=0,0,BB43/'Asset data'!$F44) -> 0 | DM43: =IF('Asset data'!$F44=0,0,BC43/'Asset data'!$F44) -> 0 | DN43: =IF('Asset data'!$F44=0,0,BD43/'Asset data'!$F44) -> 0 | DO43: =IF('Asset data'!$F44=0,0,BE43/'Asset data'!$F44) -> 0 | DP43: =IF('Asset data'!$F44=0,0,BF43/'Asset data'!$F44) -> 0 | DQ43: =IF('Asset data'!$F44=0,0,BG43/'Asset data'!$F44) -> 0 | DR43: =IF('Asset data'!$F44=0,0,BH43/'Asset data'!$F44) -> 0 | DS43: =IF('Asset data'!$F44=0,0,BI43/'Asset data'!$F44) -> 0 | DT43: =IF('Asset data'!$F44=0,0,BJ43/'Asset data'!$F44) -> 0 | DU43: =IF('Asset data'!$F44=0,0,BK43/'Asset data'!$F44) -> 0 | DV43: =IF('Asset data'!$F44=0,0,BL43/'Asset data'!$F44) -> 0 | DW43: =IF('Asset data'!$F44=0,0,BM43/'Asset data'!$F44) -> 0 | DX43: =IF('Asset data'!$F44=0,0,BN43/'Asset data'!$F44) -> 0 | DY43: =IF('Asset data'!$F44=0,0,BO43/'Asset data'!$F44) -> 0 | DZ43: =IF('Asset data'!$F44=0,0,BP43/'Asset data'!$F44) -> 0 | EA43: =IF('Asset data'!$F44=0,0,BQ43/'Asset data'!$F44) -> 0 | EB43: =IF('Asset data'!$F44=0,0,BR43/'Asset data'!$F44) -> 0
A44: ='Asset data'!A45 -> 0 | B44: ='Asset data'!B45 -> 0 | C44: ='Asset data'!C45 -> 0 | D44: ='Asset data'!E45 -> 0 | E44: 0 | F44: ='Asset data'!G45 -> 0 | G44: 0 | H44: ='Asset data'!H45 -> 0 | I44: S | J44: =IF(A44=0,0,IF('Asset data'!$D$1=1,1,IF('Asset data'!$D$1=2,2,'Asset data'!I45))) -> 0 | K44: 0 | AY44: =repcalc('Age profile (Inst)'!CT45:GF45,J44,K44,H44,20,$L$20,$M$20) -> 0 | AZ44: 0 | BA44: 0 | BB44: 0 | BC44: 0 | BD44: 0 | BE44: 0 | BF44: 0 | BG44: 0 | BH44: 0 | BI44: 0 | BJ44: 0 | BK44: 0 | BL44: 0 | BM44: 0 | BN44: 0 | BO44: 0 | BP44: 0 | BQ44: 0 | BR44: 0 | BS44: 0 | BT44: 0 | BU44: 0 | BV44: 0 | BW44: 0 | BX44: 0 | BY44: 0 | BZ44: 0 | CA44: 0 | CB44: 0 | CC44: 0 | CD44: 0 | CE44: 0 | CF44: 0 | CG44: 0 | CH44: 0 | CI44: 0 | CJ44: 0 | CK44: 0 | CL44: 0 | CM44: 0 | CN44: 0 | CO44: 0 | CP44: 0 | CQ44: 0 | CR44: 0 | CS44: 0 | CT44: 0 | CU44: 0 | CV44: 0 | CW44: 0 | CX44: 0 | CY44: 0 | CZ44: 0 | DA44: 0 | DB44: 0 | DC44: 0 | DD44: 0 | DE44: 0 | DF44: 0 | DG44: 0 | DH44: 0 | DI44: =IF('Asset data'!$F45=0,0,AY44/'Asset data'!$F45) -> 0 | DJ44: =IF('Asset data'!$F45=0,0,AZ44/'Asset data'!$F45) -> 0 | DK44: =IF('Asset data'!$F45=0,0,BA44/'Asset data'!$F45) -> 0 | DL44: =IF('Asset data'!$F45=0,0,BB44/'Asset data'!$F45) -> 0 | DM44: =IF('Asset data'!$F45=0,0,BC44/'Asset data'!$F45) -> 0 | DN44: =IF('Asset data'!$F45=0,0,BD44/'Asset data'!$F45) -> 0 | DO44: =IF('Asset data'!$F45=0,0,BE44/'Asset data'!$F45) -> 0 | DP44: =IF('Asset data'!$F45=0,0,BF44/'Asset data'!$F45) -> 0 | DQ44: =IF('Asset data'!$F45=0,0,BG44/'Asset data'!$F45) -> 0 | DR44: =IF('Asset data'!$F45=0,0,BH44/'Asset data'!$F45) -> 0 | DS44: =IF('Asset data'!$F45=0,0,BI44/'Asset data'!$F45) -> 0 | DT44: =IF('Asset data'!$F45=0,0,BJ44/'Asset data'!$F45) -> 0 | DU44: =IF('Asset data'!$F45=0,0,BK44/'Asset data'!$F45) -> 0 | DV44: =IF('Asset data'!$F45=0,0,BL44/'Asset data'!$F45) -> 0 | DW44: =IF('Asset data'!$F45=0,0,BM44/'Asset data'!$F45) -> 0 | DX44: =IF('Asset data'!$F45=0,0,BN44/'Asset data'!$F45) -> 0 | DY44: =IF('Asset data'!$F45=0,0,BO44/'Asset data'!$F45) -> 0 | DZ44: =IF('Asset data'!$F45=0,0,BP44/'Asset data'!$F45) -> 0 | EA44: =IF('Asset data'!$F45=0,0,BQ44/'Asset data'!$F45) -> 0 | EB44: =IF('Asset data'!$F45=0,0,BR44/'Asset data'!$F45) -> 0
A45: ='Asset data'!A46 -> 0 | B45: ='Asset data'!B46 -> 0 | C45: ='Asset data'!C46 -> 0 | D45: ='Asset data'!E46 -> 0 | E45: 0 | F45: ='Asset data'!G46 -> 0 | G45: 0 | H45: ='Asset data'!H46 -> 0 | I45: S | J45: =IF(A45=0,0,IF('Asset data'!$D$1=1,1,IF('Asset data'!$D$1=2,2,'Asset data'!I46))) -> 0 | K45: 0 | AY45: =repcalc('Age profile (Inst)'!CT46:GF46,J45,K45,H45,20,$L$20,$M$20) -> 0 | AZ45: 0 | BA45: 0 | BB45: 0 | BC45: 0 | BD45: 0 | BE45: 0 | BF45: 0 | BG45: 0 | BH45: 0 | BI45: 0 | BJ45: 0 | BK45: 0 | BL45: 0 | BM45: 0 | BN45: 0 | BO45: 0 | BP45: 0 | BQ45: 0 | BR45: 0 | BS45: 0 | BT45: 0 | BU45: 0 | BV45: 0 | BW45: 0 | BX45: 0 | BY45: 0 | BZ45: 0 | CA45: 0 | CB45: 0 | CC45: 0 | CD45: 0 | CE45: 0 | CF45: 0 | CG45: 0 | CH45: 0 | CI45: 0 | CJ45: 0 | CK45: 0 | CL45: 0 | CM45: 0 | CN45: 0 | CO45: 0 | CP45: 0 | CQ45: 0 | CR45: 0 | CS45: 0 | CT45: 0 | CU45: 0 | CV45: 0 | CW45: 0 | CX45: 0 | CY45: 0 | CZ45: 0 | DA45: 0 | DB45: 0 | DC45: 0 | DD45: 0 | DE45: 0 | DF45: 0 | DG45: 0 | DH45: 0 | DI45: =IF('Asset data'!$F46=0,0,AY45/'Asset data'!$F46) -> 0 | DJ45: =IF('Asset data'!$F46=0,0,AZ45/'Asset data'!$F46) -> 0 | DK45: =IF('Asset data'!$F46=0,0,BA45/'Asset data'!$F46) -> 0 | DL45: =IF('Asset data'!$F46=0,0,BB45/'Asset data'!$F46) -> 0 | DM45: =IF('Asset data'!$F46=0,0,BC45/'Asset data'!$F46) -> 0 | DN45: =IF('Asset data'!$F46=0,0,BD45/'Asset data'!$F46) -> 0 | DO45: =IF('Asset data'!$F46=0,0,BE45/'Asset data'!$F46) -> 0 | DP45: =IF('Asset data'!$F46=0,0,BF45/'Asset data'!$F46) -> 0 | DQ45: =IF('Asset data'!$F46=0,0,BG45/'Asset data'!$F46) -> 0 | DR45: =IF('Asset data'!$F46=0,0,BH45/'Asset data'!$F46) -> 0 | DS45: =IF('Asset data'!$F46=0,0,BI45/'Asset data'!$F46) -> 0 | DT45: =IF('Asset data'!$F46=0,0,BJ45/'Asset data'!$F46) -> 0 | DU45: =IF('Asset data'!$F46=0,0,BK45/'Asset data'!$F46) -> 0 | DV45: =IF('Asset data'!$F46=0,0,BL45/'Asset data'!$F46) -> 0 | DW45: =IF('Asset data'!$F46=0,0,BM45/'Asset data'!$F46) -> 0 | DX45: =IF('Asset data'!$F46=0,0,BN45/'Asset data'!$F46) -> 0 | DY45: =IF('Asset data'!$F46=0,0,BO45/'Asset data'!$F46) -> 0 | DZ45: =IF('Asset data'!$F46=0,0,BP45/'Asset data'!$F46) -> 0 | EA45: =IF('Asset data'!$F46=0,0,BQ45/'Asset data'!$F46) -> 0 | EB45: =IF('Asset data'!$F46=0,0,BR45/'Asset data'!$F46) -> 0
A46: ='Asset data'!A47 -> 0 | B46: ='Asset data'!B47 -> 0 | C46: ='Asset data'!C47 -> 0 | D46: ='Asset data'!E47 -> 0 | E46: 0 | F46: ='Asset data'!G47 -> 0 | G46: 0 | H46: ='Asset data'!H47 -> 0 | I46: S | J46: =IF(A46=0,0,IF('Asset data'!$D$1=1,1,IF('Asset data'!$D$1=2,2,'Asset data'!I47))) -> 0 | K46: 0 | AY46: =repcalc('Age profile (Inst)'!CT47:GF47,J46,K46,H46,20,$L$20,$M$20) -> 0 | AZ46: 0 | BA46: 0 | BB46: 0 | BC46: 0 | BD46: 0 | BE46: 0 | BF46: 0 | BG46: 0 | BH46: 0 | BI46: 0 | BJ46: 0 | BK46: 0 | BL46: 0 | BM46: 0 | BN46: 0 | BO46: 0 | BP46: 0 | BQ46: 0 | BR46: 0 | BS46: 0 | BT46: 0 | BU46: 0 | BV46: 0 | BW46: 0 | BX46: 0 | BY46: 0 | BZ46: 0 | CA46: 0 | CB46: 0 | CC46: 0 | CD46: 0 | CE46: 0 | CF46: 0 | CG46: 0 | CH46: 0 | CI46: 0 | CJ46: 0 | CK46: 0 | CL46: 0 | CM46: 0 | CN46: 0 | CO46: 0 | CP46: 0 | CQ46: 0 | CR46: 0 | CS46: 0 | CT46: 0 | CU46: 0 | CV46: 0 | CW46: 0 | CX46: 0 | CY46: 0 | CZ46: 0 | DA46: 0 | DB46: 0 | DC46: 0 | DD46: 0 | DE46: 0 | DF46: 0 | DG46: 0 | DH46: 0 | DI46: =IF('Asset data'!$F47=0,0,AY46/'Asset data'!$F47) -> 0 | DJ46: =IF('Asset data'!$F47=0,0,AZ46/'Asset data'!$F47) -> 0 | DK46: =IF('Asset data'!$F47=0,0,BA46/'Asset data'!$F47) -> 0 | DL46: =IF('Asset data'!$F47=0,0,BB46/'Asset data'!$F47) -> 0 | DM46: =IF('Asset data'!$F47=0,0,BC46/'Asset data'!$F47) -> 0 | DN46: =IF('Asset data'!$F47=0,0,BD46/'Asset data'!$F47) -> 0 | DO46: =IF('Asset data'!$F47=0,0,BE46/'Asset data'!$F47) -> 0 | DP46: =IF('Asset data'!$F47=0,0,BF46/'Asset data'!$F47) -> 0 | DQ46: =IF('Asset data'!$F47=0,0,BG46/'Asset data'!$F47) -> 0 | DR46: =IF('Asset data'!$F47=0,0,BH46/'Asset data'!$F47) -> 0 | DS46: =IF('Asset data'!$F47=0,0,BI46/'Asset data'!$F47) -> 0 | DT46: =IF('Asset data'!$F47=0,0,BJ46/'Asset data'!$F47) -> 0 | DU46: =IF('Asset data'!$F47=0,0,BK46/'Asset data'!$F47) -> 0 | DV46: =IF('Asset data'!$F47=0,0,BL46/'Asset data'!$F47) -> 0 | DW46: =IF('Asset data'!$F47=0,0,BM46/'Asset data'!$F47) -> 0 | DX46: =IF('Asset data'!$F47=0,0,BN46/'Asset data'!$F47) -> 0 | DY46: =IF('Asset data'!$F47=0,0,BO46/'Asset data'!$F47) -> 0 | DZ46: =IF('Asset data'!$F47=0,0,BP46/'Asset data'!$F47) -> 0 | EA46: =IF('Asset data'!$F47=0,0,BQ46/'Asset data'!$F47) -> 0 | EB46: =IF('Asset data'!$F47=0,0,BR46/'Asset data'!$F47) -> 0
A47: ='Asset data'!A48 -> 0 | B47: ='Asset data'!B48 -> 0 | C47: ='Asset data'!C48 -> 0 | D47: ='Asset data'!E48 -> 0 | E47: =IF(A47>0,VLOOKUP(A47,IDtable,2),0) -> 0 | F47: ='Asset data'!G48 -> 0 | G47: =F47 -> 0 | H47: ='Asset data'!H48 -> 0 | I47: S | J47: =IF(A47=0,0,IF('Asset data'!$D$1=1,1,IF('Asset data'!$D$1=2,2,'Asset data'!I48))) -> 0 | K47: =IF(A47>0,IF(I47="S",F47,IF(I47="R",G47,9999)),0) -> 0 | AY47: =repcalc('Age profile (Inst)'!CT48:GF48,J47,K47,H47,20,$L$20,$M$20) -> 0 | AZ47: 0 | BA47: 0 | BB47: 0 | BC47: 0 | BD47: 0 | BE47: 0 | BF47: 0 | BG47: 0 | BH47: 0 | BI47: 0 | BJ47: 0 | BK47: 0 | BL47: 0 | BM47: 0 | BN47: 0 | BO47: 0 | BP47: 0 | BQ47: 0 | BR47: 0 | BS47: 0 | BT47: 0 | BU47: 0 | BV47: 0 | BW47: 0 | BX47: 0 | BY47: 0 | BZ47: 0 | CA47: 0 | CB47: 0 | CC47: 0 | CD47: 0 | CE47: 0 | CF47: 0 | CG47: 0 | CH47: 0 | CI47: 0 | CJ47: 0 | CK47: 0 | CL47: 0 | CM47: 0 | CN47: 0 | CO47: 0 | CP47: 0 | CQ47: 0 | CR47: 0 | CS47: 0 | CT47: 0 | CU47: 0 | CV47: 0 | CW47: 0 | CX47: 0 | CY47: 0 | CZ47: 0 | DA47: 0 | DB47: 0 | DC47: 0 | DD47: 0 | DE47: 0 | DF47: 0 | DG47: 0 | DH47: =CM47*$AX47 -> 0 | DI47: =IF('Asset data'!$F48=0,0,AY47/'Asset data'!$F48) -> 0 | DJ47: =IF('Asset data'!$F48=0,0,AZ47/'Asset data'!$F48) -> 0 | DK47: =IF('Asset data'!$F48=0,0,BA47/'Asset data'!$F48) -> 0 | DL47: =IF('Asset data'!$F48=0,0,BB47/'Asset data'!$F48) -> 0 | DM47: =IF('Asset data'!$F48=0,0,BC47/'Asset data'!$F48) -> 0 | DN47: =IF('Asset data'!$F48=0,0,BD47/'Asset data'!$F48) -> 0 | DO47: =IF('Asset data'!$F48=0,0,BE47/'Asset data'!$F48) -> 0 | DP47: =IF('Asset data'!$F48=0,0,BF47/'Asset data'!$F48) -> 0 | DQ47: =IF('Asset data'!$F48=0,0,BG47/'Asset data'!$F48) -> 0 | DR47: =IF('Asset data'!$F48=0,0,BH47/'Asset data'!$F48) -> 0 | DS47: =IF('Asset data'!$F48=0,0,BI47/'Asset data'!$F48) -> 0 | DT47: =IF('Asset data'!$F48=0,0,BJ47/'Asset data'!$F48) -> 0 | DU47: =IF('Asset data'!$F48=0,0,BK47/'Asset data'!$F48) -> 0 | DV47: =IF('Asset data'!$F48=0,0,BL47/'Asset data'!$F48) -> 0 | DW47: =IF('Asset data'!$F48=0,0,BM47/'Asset data'!$F48) -> 0 | DX47: =IF('Asset data'!$F48=0,0,BN47/'Asset data'!$F48) -> 0 | DY47: =IF('Asset data'!$F48=0,0,BO47/'Asset data'!$F48) -> 0 | DZ47: =IF('Asset data'!$F48=0,0,BP47/'Asset data'!$F48) -> 0 | EA47: =IF('Asset data'!$F48=0,0,BQ47/'Asset data'!$F48) -> 0 | EB47: =IF('Asset data'!$F48=0,0,BR47/'Asset data'!$F48) -> 0
A48: ='Asset data'!A49 -> 0 | B48: ='Asset data'!B49 -> 0 | C48: ='Asset data'!C49 -> 0 | D48: ='Asset data'!E49 -> 0 | E48: 0 | F48: ='Asset data'!G49 -> 0 | G48: 0 | H48: ='Asset data'!H49 -> 0 | I48: S | J48: =IF(A48=0,0,IF('Asset data'!$D$1=1,1,IF('Asset data'!$D$1=2,2,'Asset data'!I49))) -> 0 | K48: 0 | AY48: =repcalc('Age profile (Inst)'!CT49:GF49,J48,K48,H48,20,$L$20,$M$20) -> 0 | AZ48: 0 | BA48: 0 | BB48: 0 | BC48: 0 | BD48: 0 | BE48: 0 | BF48: 0 | BG48: 0 | BH48: 0 | BI48: 0 | BJ48: 0 | BK48: 0 | BL48: 0 | BM48: 0 | BN48: 0 | BO48: 0 | BP48: 0 | BQ48: 0 | BR48: 0 | BS48: 0 | BT48: 0 | BU48: 0 | BV48: 0 | BW48: 0 | BX48: 0 | BY48: 0 | BZ48: 0 | CA48: 0 | CB48: 0 | CC48: 0 | CD48: 0 | CE48: 0 | CF48: 0 | CG48: 0 | CH48: 0 | CI48: 0 | CJ48: 0 | CK48: 0 | CL48: 0 | CM48: 0 | CN48: =BS48*$AX48 -> 0 | CO48: =BT48*$AX48 -> 0 | CP48: =BU48*$AX48 -> 0 | CQ48: =BV48*$AX48 -> 0 | CR48: =BW48*$AX48 -> 0 | CS48: =BX48*$AX48 -> 0 | CT48: =BY48*$AX48 -> 0 | CU48: =BZ48*$AX48 -> 0 | CV48: =CA48*$AX48 -> 0 | CW48: =CB48*$AX48 -> 0 | CX48: =CC48*$AX48 -> 0 | CY48: =CD48*$AX48 -> 0 | CZ48: =CE48*$AX48 -> 0 | DA48: =CF48*$AX48 -> 0 | DB48: =CG48*$AX48 -> 0 | DC48: =CH48*$AX48 -> 0 | DD48: =CI48*$AX48 -> 0 | DE48: =CJ48*$AX48 -> 0 | DF48: =CK48*$AX48 -> 0 | DG48: =CL48*$AX48 -> 0 | DH48: 0 | DI48: =IF('Asset data'!$F49=0,0,AY48/'Asset data'!$F49) -> 0 | DJ48: =IF('Asset data'!$F49=0,0,AZ48/'Asset data'!$F49) -> 0 | DK48: =IF('Asset data'!$F49=0,0,BA48/'Asset data'!$F49) -> 0 | DL48: =IF('Asset data'!$F49=0,0,BB48/'Asset data'!$F49) -> 0 | DM48: =IF('Asset data'!$F49=0,0,BC48/'Asset data'!$F49) -> 0 | DN48: =IF('Asset data'!$F49=0,0,BD48/'Asset data'!$F49) -> 0 | DO48: =IF('Asset data'!$F49=0,0,BE48/'Asset data'!$F49) -> 0 | DP48: =IF('Asset data'!$F49=0,0,BF48/'Asset data'!$F49) -> 0 | DQ48: =IF('Asset data'!$F49=0,0,BG48/'Asset data'!$F49) -> 0 | DR48: =IF('Asset data'!$F49=0,0,BH48/'Asset data'!$F49) -> 0 | DS48: =IF('Asset data'!$F49=0,0,BI48/'Asset data'!$F49) -> 0 | DT48: =IF('Asset data'!$F49=0,0,BJ48/'Asset data'!$F49) -> 0 | DU48: =IF('Asset data'!$F49=0,0,BK48/'Asset data'!$F49) -> 0 | DV48: =IF('Asset data'!$F49=0,0,BL48/'Asset data'!$F49) -> 0 | DW48: =IF('Asset data'!$F49=0,0,BM48/'Asset data'!$F49) -> 0 | DX48: =IF('Asset data'!$F49=0,0,BN48/'Asset data'!$F49) -> 0 | DY48: =IF('Asset data'!$F49=0,0,BO48/'Asset data'!$F49) -> 0 | DZ48: =IF('Asset data'!$F49=0,0,BP48/'Asset data'!$F49) -> 0 | EA48: =IF('Asset data'!$F49=0,0,BQ48/'Asset data'!$F49) -> 0 | EB48: =IF('Asset data'!$F49=0,0,BR48/'Asset data'!$F49) -> 0
A49: ='Asset data'!A50 -> 0 | B49: ='Asset data'!B50 -> 0 | C49: ='Asset data'!C50 -> 0 | D49: ='Asset data'!E50 -> 0 | E49: 0 | F49: ='Asset data'!G50 -> 0 | G49: 0 | H49: ='Asset data'!H50 -> 0 | I49: S | J49: =IF(A49=0,0,IF('Asset data'!$D$1=1,1,IF('Asset data'!$D$1=2,2,'Asset data'!I50))) -> 0 | K49: 0 | AY49: =repcalc('Age profile (Inst)'!CT50:GF50,J49,K49,H49,20,$L$20,$M$20) -> 0 | AZ49: 0 | BA49: 0 | BB49: 0 | BC49: 0 | BD49: 0 | BE49: 0 | BF49: 0 | BG49: 0 | BH49: 0 | BI49: 0 | BJ49: 0 | BK49: 0 | BL49: 0 | BM49: 0 | BN49: 0 | BO49: 0 | BP49: 0 | BQ49: 0 | BR49: 0 | BS49: 0 | BT49: 0 | BU49: 0 | BV49: 0 | BW49: 0 | BX49: 0 | BY49: 0 | BZ49: 0 | CA49: 0 | CB49: 0 | CC49: 0 | CD49: 0 | CE49: 0 | CF49: 0 | CG49: 0 | CH49: 0 | CI49: 0 | CJ49: 0 | CK49: 0 | CL49: 0 | CM49: 0 | CN49: 0 | CO49: 0 | CP49: 0 | CQ49: 0 | CR49: 0 | CS49: 0 | CT49: 0 | CU49: 0 | CV49: 0 | CW49: 0 | CX49: 0 | CY49: 0 | CZ49: 0 | DA49: 0 | DB49: 0 | DC49: 0 | DD49: 0 | DE49: 0 | DF49: 0 | DG49: 0 | DH49: 0 | DI49: =IF('Asset data'!$F50=0,0,AY49/'Asset data'!$F50) -> 0 | DJ49: =IF('Asset data'!$F50=0,0,AZ49/'Asset data'!$F50) -> 0 | DK49: =IF('Asset data'!$F50=0,0,BA49/'Asset data'!$F50) -> 0 | DL49: =IF('Asset data'!$F50=0,0,BB49/'Asset data'!$F50) -> 0 | DM49: =IF('Asset data'!$F50=0,0,BC49/'Asset data'!$F50) -> 0 | DN49: =IF('Asset data'!$F50=0,0,BD49/'Asset data'!$F50) -> 0 | DO49: =IF('Asset data'!$F50=0,0,BE49/'Asset data'!$F50) -> 0 | DP49: =IF('Asset data'!$F50=0,0,BF49/'Asset data'!$F50) -> 0 | DQ49: =IF('Asset data'!$F50=0,0,BG49/'Asset data'!$F50) -> 0 | DR49: =IF('Asset data'!$F50=0,0,BH49/'Asset data'!$F50) -> 0 | DS49: =IF('Asset data'!$F50=0,0,BI49/'Asset data'!$F50) -> 0 | DT49: =IF('Asset data'!$F50=0,0,BJ49/'Asset data'!$F50) -> 0 | DU49: =IF('Asset data'!$F50=0,0,BK49/'Asset data'!$F50) -> 0 | DV49: =IF('Asset data'!$F50=0,0,BL49/'Asset data'!$F50) -> 0 | DW49: =IF('Asset data'!$F50=0,0,BM49/'Asset data'!$F50) -> 0 | DX49: =IF('Asset data'!$F50=0,0,BN49/'Asset data'!$F50) -> 0 | DY49: =IF('Asset data'!$F50=0,0,BO49/'Asset data'!$F50) -> 0 | DZ49: =IF('Asset data'!$F50=0,0,BP49/'Asset data'!$F50) -> 0 | EA49: =IF('Asset data'!$F50=0,0,BQ49/'Asset data'!$F50) -> 0 | EB49: =IF('Asset data'!$F50=0,0,BR49/'Asset data'!$F50) -> 0
A50: ='Asset data'!A51 -> 0 | B50: ='Asset data'!B51 -> 0 | C50: ='Asset data'!C51 -> 0 | D50: ='Asset data'!E51 -> 0 | E50: 0 | F50: ='Asset data'!G51 -> 0 | G50: 0 | H50: ='Asset data'!H51 -> 0 | I50: S | J50: =IF(A50=0,0,IF('Asset data'!$D$1=1,1,IF('Asset data'!$D$1=2,2,'Asset data'!I51))) -> 0 | K50: 0 | AY50: =repcalc('Age profile (Inst)'!CT51:GF51,J50,K50,H50,20,$L$20,$M$20) -> 0 | AZ50: 0 | BA50: 0 | BB50: 0 | BC50: 0 | BD50: 0 | BE50: 0 | BF50: 0 | BG50: 0 | BH50: 0 | BI50: 0 | BJ50: 0 | BK50: 0 | BL50: 0 | BM50: 0 | BN50: 0 | BO50: 0 | BP50: 0 | BQ50: 0 | BR50: 0 | BS50: 0 | BT50: 0 | BU50: 0 | BV50: 0 | BW50: 0 | BX50: 0 | BY50: 0 | BZ50: 0 | CA50: 0 | CB50: 0 | CC50: 0 | CD50: 0 | CE50: 0 | CF50: 0 | CG50: 0 | CH50: 0 | CI50: 0 | CJ50: 0 | CK50: 0 | CL50: 0 | CM50: 0 | CN50: 0 | CO50: 0 | CP50: 0 | CQ50: 0 | CR50: 0 | CS50: 0 | CT50: 0 | CU50: 0 | CV50: 0 | CW50: 0 | CX50: 0 | CY50: 0 | CZ50: 0 | DA50: 0 | DB50: 0 | DC50: 0 | DD50: 0 | DE50: 0 | DF50: 0 | DG50: 0 | DH50: 0 | DI50: =IF('Asset data'!$F51=0,0,AY50/'Asset data'!$F51) -> 0 | DJ50: =IF('Asset data'!$F51=0,0,AZ50/'Asset data'!$F51) -> 0 | DK50: =IF('Asset data'!$F51=0,0,BA50/'Asset data'!$F51) -> 0 | DL50: =IF('Asset data'!$F51=0,0,BB50/'Asset data'!$F51) -> 0 | DM50: =IF('Asset data'!$F51=0,0,BC50/'Asset data'!$F51) -> 0 | DN50: =IF('Asset data'!$F51=0,0,BD50/'Asset data'!$F51) -> 0 | DO50: =IF('Asset data'!$F51=0,0,BE50/'Asset data'!$F51) -> 0 | DP50: =IF('Asset data'!$F51=0,0,BF50/'Asset data'!$F51) -> 0 | DQ50: =IF('Asset data'!$F51=0,0,BG50/'Asset data'!$F51) -> 0 | DR50: =IF('Asset data'!$F51=0,0,BH50/'Asset data'!$F51) -> 0 | DS50: =IF('Asset data'!$F51=0,0,BI50/'Asset data'!$F51) -> 0 | DT50: =IF('Asset data'!$F51=0,0,BJ50/'Asset data'!$F51) -> 0 | DU50: =IF('Asset data'!$F51=0,0,BK50/'Asset data'!$F51) -> 0 | DV50: =IF('Asset data'!$F51=0,0,BL50/'Asset data'!$F51) -> 0 | DW50: =IF('Asset data'!$F51=0,0,BM50/'Asset data'!$F51) -> 0 | DX50: =IF('Asset data'!$F51=0,0,BN50/'Asset data'!$F51) -> 0 | DY50: =IF('Asset data'!$F51=0,0,BO50/'Asset data'!$F51) -> 0 | DZ50: =IF('Asset data'!$F51=0,0,BP50/'Asset data'!$F51) -> 0 | EA50: =IF('Asset data'!$F51=0,0,BQ50/'Asset data'!$F51) -> 0 | EB50: =IF('Asset data'!$F51=0,0,BR50/'Asset data'!$F51) -> 0
A51: ='Asset data'!A52 -> 0 | B51: ='Asset data'!B52 -> 0 | C51: ='Asset data'!C52 -> 0 | D51: ='Asset data'!E52 -> 0 | E51: 0 | F51: ='Asset data'!G52 -> 0 | G51: 0 | H51: ='Asset data'!H52 -> 0 | I51: S | J51: =IF(A51=0,0,IF('Asset data'!$D$1=1,1,IF('Asset data'!$D$1=2,2,'Asset data'!I52))) -> 0 | K51: 0 | AY51: =repcalc('Age profile (Inst)'!CT52:GF52,J51,K51,H51,20,$L$20,$M$20) -> 0 | AZ51: 0 | BA51: 0 | BB51: 0 | BC51: 0 | BD51: 0 | BE51: 0 | BF51: 0 | BG51: 0 | BH51: 0 | BI51: 0 | BJ51: 0 | BK51: 0 | BL51: 0 | BM51: 0 | BN51: 0 | BO51: 0 | BP51: 0 | BQ51: 0 | BR51: 0 | BS51: 0 | BT51: 0 | BU51: 0 | BV51: 0 | BW51: 0 | BX51: 0 | BY51: 0 | BZ51: 0 | CA51: 0 | CB51: 0 | CC51: 0 | CD51: 0 | CE51: 0 | CF51: 0 | CG51: 0 | CH51: 0 | CI51: 0 | CJ51: 0 | CK51: 0 | CL51: 0 | CM51: 0 | CN51: 0 | CO51: 0 | CP51: 0 | CQ51: 0 | CR51: 0 | CS51: 0 | CT51: 0 | CU51: 0 | CV51: 0 | CW51: 0 | CX51: 0 | CY51: 0 | CZ51: 0 | DA51: 0 | DB51: 0 | DC51: 0 | DD51: 0 | DE51: 0 | DF51: 0 | DG51: 0 | DH51: 0 | DI51: =IF('Asset data'!$F52=0,0,AY51/'Asset data'!$F52) -> 0 | DJ51: =IF('Asset data'!$F52=0,0,AZ51/'Asset data'!$F52) -> 0 | DK51: =IF('Asset data'!$F52=0,0,BA51/'Asset data'!$F52) -> 0 | DL51: =IF('Asset data'!$F52=0,0,BB51/'Asset data'!$F52) -> 0 | DM51: =IF('Asset data'!$F52=0,0,BC51/'Asset data'!$F52) -> 0 | DN51: =IF('Asset data'!$F52=0,0,BD51/'Asset data'!$F52) -> 0 | DO51: =IF('Asset data'!$F52=0,0,BE51/'Asset data'!$F52) -> 0 | DP51: =IF('Asset data'!$F52=0,0,BF51/'Asset data'!$F52) -> 0 | DQ51: =IF('Asset data'!$F52=0,0,BG51/'Asset data'!$F52) -> 0 | DR51: =IF('Asset data'!$F52=0,0,BH51/'Asset data'!$F52) -> 0 | DS51: =IF('Asset data'!$F52=0,0,BI51/'Asset data'!$F52) -> 0 | DT51: =IF('Asset data'!$F52=0,0,BJ51/'Asset data'!$F52) -> 0 | DU51: =IF('Asset data'!$F52=0,0,BK51/'Asset data'!$F52) -> 0 | DV51: =IF('Asset data'!$F52=0,0,BL51/'Asset data'!$F52) -> 0 | DW51: =IF('Asset data'!$F52=0,0,BM51/'Asset data'!$F52) -> 0 | DX51: =IF('Asset data'!$F52=0,0,BN51/'Asset data'!$F52) -> 0 | DY51: =IF('Asset data'!$F52=0,0,BO51/'Asset data'!$F52) -> 0 | DZ51: =IF('Asset data'!$F52=0,0,BP51/'Asset data'!$F52) -> 0 | EA51: =IF('Asset data'!$F52=0,0,BQ51/'Asset data'!$F52) -> 0 | EB51: =IF('Asset data'!$F52=0,0,BR51/'Asset data'!$F52) -> 0
A52: ='Asset data'!A53 -> 0 | B52: ='Asset data'!B53 -> 0 | C52: ='Asset data'!C53 -> 0 | D52: ='Asset data'!E53 -> 0 | E52: 0 | F52: ='Asset data'!G53 -> 0 | G52: 0 | H52: ='Asset data'!H53 -> 0 | I52: S | J52: =IF(A52=0,0,IF('Asset data'!$D$1=1,1,IF('Asset data'!$D$1=2,2,'Asset data'!I53))) -> 0 | K52: 0 | AY52: =repcalc('Age profile (Inst)'!CT53:GF53,J52,K52,H52,20,$L$20,$M$20) -> 0 | AZ52: 0 | BA52: 0 | BB52: 0 | BC52: 0 | BD52: 0 | BE52: 0 | BF52: 0 | BG52: 0 | BH52: 0 | BI52: 0 | BJ52: 0 | BK52: 0 | BL52: 0 | BM52: 0 | BN52: 0 | BO52: 0 | BP52: 0 | BQ52: 0 | BR52: 0 | BS52: 0 | BT52: 0 | BU52: 0 | BV52: 0 | BW52: 0 | BX52: 0 | BY52: 0 | BZ52: 0 | CA52: 0 | CB52: 0 | CC52: 0 | CD52: 0 | CE52: 0 | CF52: 0 | CG52: 0 | CH52: 0 | CI52: 0 | CJ52: 0 | CK52: 0 | CL52: 0 | CM52: 0 | CN52: 0 | CO52: 0 | CP52: 0 | CQ52: 0 | CR52: 0 | CS52: 0 | CT52: 0 | CU52: 0 | CV52: 0 | CW52: 0 | CX52: 0 | CY52: 0 | CZ52: 0 | DA52: 0 | DB52: 0 | DC52: 0 | DD52: 0 | DE52: 0 | DF52: 0 | DG52: 0 | DH52: 0 | DI52: =IF('Asset data'!$F53=0,0,AY52/'Asset data'!$F53) -> 0 | DJ52: =IF('Asset data'!$F53=0,0,AZ52/'Asset data'!$F53) -> 0 | DK52: =IF('Asset data'!$F53=0,0,BA52/'Asset data'!$F53) -> 0 | DL52: =IF('Asset data'!$F53=0,0,BB52/'Asset data'!$F53) -> 0 | DM52: =IF('Asset data'!$F53=0,0,BC52/'Asset data'!$F53) -> 0 | DN52: =IF('Asset data'!$F53=0,0,BD52/'Asset data'!$F53) -> 0 | DO52: =IF('Asset data'!$F53=0,0,BE52/'Asset data'!$F53) -> 0 | DP52: =IF('Asset data'!$F53=0,0,BF52/'Asset data'!$F53) -> 0 | DQ52: =IF('Asset data'!$F53=0,0,BG52/'Asset data'!$F53) -> 0 | DR52: =IF('Asset data'!$F53=0,0,BH52/'Asset data'!$F53) -> 0 | DS52: =IF('Asset data'!$F53=0,0,BI52/'Asset data'!$F53) -> 0 | DT52: =IF('Asset data'!$F53=0,0,BJ52/'Asset data'!$F53) -> 0 | DU52: =IF('Asset data'!$F53=0,0,BK52/'Asset data'!$F53) -> 0 | DV52: =IF('Asset data'!$F53=0,0,BL52/'Asset data'!$F53) -> 0 | DW52: =IF('Asset data'!$F53=0,0,BM52/'Asset data'!$F53) -> 0 | DX52: =IF('Asset data'!$F53=0,0,BN52/'Asset data'!$F53) -> 0 | DY52: =IF('Asset data'!$F53=0,0,BO52/'Asset data'!$F53) -> 0 | DZ52: =IF('Asset data'!$F53=0,0,BP52/'Asset data'!$F53) -> 0 | EA52: =IF('Asset data'!$F53=0,0,BQ52/'Asset data'!$F53) -> 0 | EB52: =IF('Asset data'!$F53=0,0,BR52/'Asset data'!$F53) -> 0
A53: ='Asset data'!A54 -> 0 | B53: ='Asset data'!B54 -> 0 | C53: ='Asset data'!C54 -> 0 | D53: ='Asset data'!E54 -> 0 | E53: 0 | F53: ='Asset data'!G54 -> 0 | G53: 0 | H53: ='Asset data'!H54 -> 0 | I53: S | J53: =IF(A53=0,0,IF('Asset data'!$D$1=1,1,IF('Asset data'!$D$1=2,2,'Asset data'!I54))) -> 0 | K53: 0 | AY53: =repcalc('Age profile (Inst)'!CT54:GF54,J53,K53,H53,20,$L$20,$M$20) -> 0 | AZ53: 0 | BA53: 0 | BB53: 0 | BC53: 0 | BD53: 0 | BE53: 0 | BF53: 0 | BG53: 0 | BH53: 0 | BI53: 0 | BJ53: 0 | BK53: 0 | BL53: 0 | BM53: 0 | BN53: 0 | BO53: 0 | BP53: 0 | BQ53: 0 | BR53: 0 | BS53: 0 | BT53: 0 | BU53: 0 | BV53: 0 | BW53: 0 | BX53: 0 | BY53: 0 | BZ53: 0 | CA53: 0 | CB53: 0 | CC53: 0 | CD53: 0 | CE53: 0 | CF53: 0 | CG53: 0 | CH53: 0 | CI53: 0 | CJ53: 0 | CK53: 0 | CL53: 0 | CM53: 0 | CN53: 0 | CO53: 0 | CP53: 0 | CQ53: 0 | CR53: 0 | CS53: 0 | CT53: 0 | CU53: 0 | CV53: 0 | CW53: 0 | CX53: 0 | CY53: 0 | CZ53: 0 | DA53: 0 | DB53: 0 | DC53: 0 | DD53: 0 | DE53: 0 | DF53: 0 | DG53: 0 | DH53: 0 | DI53: =IF('Asset data'!$F54=0,0,AY53/'Asset data'!$F54) -> 0 | DJ53: =IF('Asset data'!$F54=0,0,AZ53/'Asset data'!$F54) -> 0 | DK53: =IF('Asset data'!$F54=0,0,BA53/'Asset data'!$F54) -> 0 | DL53: =IF('Asset data'!$F54=0,0,BB53/'Asset data'!$F54) -> 0 | DM53: =IF('Asset data'!$F54=0,0,BC53/'Asset data'!$F54) -> 0 | DN53: =IF('Asset data'!$F54=0,0,BD53/'Asset data'!$F54) -> 0 | DO53: =IF('Asset data'!$F54=0,0,BE53/'Asset data'!$F54) -> 0 | DP53: =IF('Asset data'!$F54=0,0,BF53/'Asset data'!$F54) -> 0 | DQ53: =IF('Asset data'!$F54=0,0,BG53/'Asset data'!$F54) -> 0 | DR53: =IF('Asset data'!$F54=0,0,BH53/'Asset data'!$F54) -> 0 | DS53: =IF('Asset data'!$F54=0,0,BI53/'Asset data'!$F54) -> 0 | DT53: =IF('Asset data'!$F54=0,0,BJ53/'Asset data'!$F54) -> 0 | DU53: =IF('Asset data'!$F54=0,0,BK53/'Asset data'!$F54) -> 0 | DV53: =IF('Asset data'!$F54=0,0,BL53/'Asset data'!$F54) -> 0 | DW53: =IF('Asset data'!$F54=0,0,BM53/'Asset data'!$F54) -> 0 | DX53: =IF('Asset data'!$F54=0,0,BN53/'Asset data'!$F54) -> 0 | DY53: =IF('Asset data'!$F54=0,0,BO53/'Asset data'!$F54) -> 0 | DZ53: =IF('Asset data'!$F54=0,0,BP53/'Asset data'!$F54) -> 0 | EA53: =IF('Asset data'!$F54=0,0,BQ53/'Asset data'!$F54) -> 0 | EB53: =IF('Asset data'!$F54=0,0,BR53/'Asset data'!$F54) -> 0
A54: ='Asset data'!A55 -> 0 | B54: ='Asset data'!B55 -> 0 | C54: ='Asset data'!C55 -> 0 | D54: ='Asset data'!E55 -> 0 | E54: 0 | F54: ='Asset data'!G55 -> 0 | G54: 0 | H54: ='Asset data'!H55 -> 0 | I54: S | J54: =IF(A54=0,0,IF('Asset data'!$D$1=1,1,IF('Asset data'!$D$1=2,2,'Asset data'!I55))) -> 0 | K54: 0 | AY54: =repcalc('Age profile (Inst)'!CT55:GF55,J54,K54,H54,20,$L$20,$M$20) -> 0 | AZ54: 0 | BA54: 0 | BB54: 0 | BC54: 0 | BD54: 0 | BE54: 0 | BF54: 0 | BG54: 0 | BH54: 0 | BI54: 0 | BJ54: 0 | BK54: 0 | BL54: 0 | BM54: 0 | BN54: 0 | BO54: 0 | BP54: 0 | BQ54: 0 | BR54: 0 | BS54: 0 | BT54: 0 | BU54: 0 | BV54: 0 | BW54: 0 | BX54: 0 | BY54: 0 | BZ54: 0 | CA54: 0 | CB54: 0 | CC54: 0 | CD54: 0 | CE54: 0 | CF54: 0 | CG54: 0 | CH54: 0 | CI54: 0 | CJ54: 0 | CK54: 0 | CL54: 0 | CM54: 0 | CN54: 0 | CO54: 0 | CP54: 0 | CQ54: 0 | CR54: 0 | CS54: 0 | CT54: 0 | CU54: 0 | CV54: 0 | CW54: 0 | CX54: 0 | CY54: 0 | CZ54: 0 | DA54: 0 | DB54: 0 | DC54: 0 | DD54: 0 | DE54: 0 | DF54: 0 | DG54: 0 | DH54: 0 | DI54: =IF('Asset data'!$F55=0,0,AY54/'Asset data'!$F55) -> 0 | DJ54: =IF('Asset data'!$F55=0,0,AZ54/'Asset data'!$F55) -> 0 | DK54: =IF('Asset data'!$F55=0,0,BA54/'Asset data'!$F55) -> 0 | DL54: =IF('Asset data'!$F55=0,0,BB54/'Asset data'!$F55) -> 0 | DM54: =IF('Asset data'!$F55=0,0,BC54/'Asset data'!$F55) -> 0 | DN54: =IF('Asset data'!$F55=0,0,BD54/'Asset data'!$F55) -> 0 | DO54: =IF('Asset data'!$F55=0,0,BE54/'Asset data'!$F55) -> 0 | DP54: =IF('Asset data'!$F55=0,0,BF54/'Asset data'!$F55) -> 0 | DQ54: =IF('Asset data'!$F55=0,0,BG54/'Asset data'!$F55) -> 0 | DR54: =IF('Asset data'!$F55=0,0,BH54/'Asset data'!$F55) -> 0 | DS54: =IF('Asset data'!$F55=0,0,BI54/'Asset data'!$F55) -> 0 | DT54: =IF('Asset data'!$F55=0,0,BJ54/'Asset data'!$F55) -> 0 | DU54: =IF('Asset data'!$F55=0,0,BK54/'Asset data'!$F55) -> 0 | DV54: =IF('Asset data'!$F55=0,0,BL54/'Asset data'!$F55) -> 0 | DW54: =IF('Asset data'!$F55=0,0,BM54/'Asset data'!$F55) -> 0 | DX54: =IF('Asset data'!$F55=0,0,BN54/'Asset data'!$F55) -> 0 | DY54: =IF('Asset data'!$F55=0,0,BO54/'Asset data'!$F55) -> 0 | DZ54: =IF('Asset data'!$F55=0,0,BP54/'Asset data'!$F55) -> 0 | EA54: =IF('Asset data'!$F55=0,0,BQ54/'Asset data'!$F55) -> 0 | EB54: =IF('Asset data'!$F55=0,0,BR54/'Asset data'!$F55) -> 0
A55: ='Asset data'!A56 -> 0 | B55: ='Asset data'!B56 -> 0 | C55: ='Asset data'!C56 -> 0 | D55: ='Asset data'!E56 -> 0 | E55: 0 | F55: ='Asset data'!G56 -> 0 | G55: 0 | H55: ='Asset data'!H56 -> 0 | I55: S | J55: =IF(A55=0,0,IF('Asset data'!$D$1=1,1,IF('Asset data'!$D$1=2,2,'Asset data'!I56))) -> 0 | K55: 0 | AY55: =repcalc('Age profile (Inst)'!CT56:GF56,J55,K55,H55,20,$L$20,$M$20) -> 0 | AZ55: 0 | BA55: 0 | BB55: 0 | BC55: 0 | BD55: 0 | BE55: 0 | BF55: 0 | BG55: 0 | BH55: 0 | BI55: 0 | BJ55: 0 | BK55: 0 | BL55: 0 | BM55: 0 | BN55: 0 | BO55: 0 | BP55: 0 | BQ55: 0 | BR55: 0 | BS55: 0 | BT55: 0 | BU55: 0 | BV55: 0 | BW55: 0 | BX55: 0 | BY55: 0 | BZ55: 0 | CA55: 0 | CB55: 0 | CC55: 0 | CD55: 0 | CE55: 0 | CF55: 0 | CG55: 0 | CH55: 0 | CI55: 0 | CJ55: 0 | CK55: 0 | CL55: 0 | CM55: 0 | CN55: 0 | CO55: 0 | CP55: 0 | CQ55: 0 | CR55: 0 | CS55: 0 | CT55: 0 | CU55: 0 | CV55: 0 | CW55: 0 | CX55: 0 | CY55: 0 | CZ55: 0 | DA55: 0 | DB55: 0 | DC55: 0 | DD55: 0 | DE55: 0 | DF55: 0 | DG55: 0 | DH55: 0 | DI55: =IF('Asset data'!$F56=0,0,AY55/'Asset data'!$F56) -> 0 | DJ55: =IF('Asset data'!$F56=0,0,AZ55/'Asset data'!$F56) -> 0 | DK55: =IF('Asset data'!$F56=0,0,BA55/'Asset data'!$F56) -> 0 | DL55: =IF('Asset data'!$F56=0,0,BB55/'Asset data'!$F56) -> 0 | DM55: =IF('Asset data'!$F56=0,0,BC55/'Asset data'!$F56) -> 0 | DN55: =IF('Asset data'!$F56=0,0,BD55/'Asset data'!$F56) -> 0 | DO55: =IF('Asset data'!$F56=0,0,BE55/'Asset data'!$F56) -> 0 | DP55: =IF('Asset data'!$F56=0,0,BF55/'Asset data'!$F56) -> 0 | DQ55: =IF('Asset data'!$F56=0,0,BG55/'Asset data'!$F56) -> 0 | DR55: =IF('Asset data'!$F56=0,0,BH55/'Asset data'!$F56) -> 0 | DS55: =IF('Asset data'!$F56=0,0,BI55/'Asset data'!$F56) -> 0 | DT55: =IF('Asset data'!$F56=0,0,BJ55/'Asset data'!$F56) -> 0 | DU55: =IF('Asset data'!$F56=0,0,BK55/'Asset data'!$F56) -> 0 | DV55: =IF('Asset data'!$F56=0,0,BL55/'Asset data'!$F56) -> 0 | DW55: =IF('Asset data'!$F56=0,0,BM55/'Asset data'!$F56) -> 0 | DX55: =IF('Asset data'!$F56=0,0,BN55/'Asset data'!$F56) -> 0 | DY55: =IF('Asset data'!$F56=0,0,BO55/'Asset data'!$F56) -> 0 | DZ55: =IF('Asset data'!$F56=0,0,BP55/'Asset data'!$F56) -> 0 | EA55: =IF('Asset data'!$F56=0,0,BQ55/'Asset data'!$F56) -> 0 | EB55: =IF('Asset data'!$F56=0,0,BR55/'Asset data'!$F56) -> 0
A56: ='Asset data'!A57 -> 0 | B56: ='Asset data'!B57 -> 0 | C56: ='Asset data'!C57 -> 0 | D56: ='Asset data'!E57 -> 0 | E56: 0 | F56: ='Asset data'!G57 -> 0 | G56: 0 | H56: ='Asset data'!H57 -> 0 | I56: S | J56: =IF(A56=0,0,IF('Asset data'!$D$1=1,1,IF('Asset data'!$D$1=2,2,'Asset data'!I57))) -> 0 | K56: 0 | AY56: =repcalc('Age profile (Inst)'!CT57:GF57,J56,K56,H56,20,$L$20,$M$20) -> 0 | AZ56: 0 | BA56: 0 | BB56: 0 | BC56: 0 | BD56: 0 | BE56: 0 | BF56: 0 | BG56: 0 | BH56: 0 | BI56: 0 | BJ56: 0 | BK56: 0 | BL56: 0 | BM56: 0 | BN56: 0 | BO56: 0 | BP56: 0 | BQ56: 0 | BR56: 0 | BS56: 0 | BT56: 0 | BU56: 0 | BV56: 0 | BW56: 0 | BX56: 0 | BY56: 0 | BZ56: 0 | CA56: 0 | CB56: 0 | CC56: 0 | CD56: 0 | CE56: 0 | CF56: 0 | CG56: 0 | CH56: 0 | CI56: 0 | CJ56: 0 | CK56: 0 | CL56: 0 | CM56: 0 | CN56: 0 | CO56: 0 | CP56: 0 | CQ56: 0 | CR56: 0 | CS56: 0 | CT56: 0 | CU56: 0 | CV56: 0 | CW56: 0 | CX56: 0 | CY56: 0 | CZ56: 0 | DA56: 0 | DB56: 0 | DC56: 0 | DD56: 0 | DE56: 0 | DF56: 0 | DG56: 0 | DH56: 0 | DI56: =IF('Asset data'!$F57=0,0,AY56/'Asset data'!$F57) -> 0 | DJ56: =IF('Asset data'!$F57=0,0,AZ56/'Asset data'!$F57) -> 0 | DK56: =IF('Asset data'!$F57=0,0,BA56/'Asset data'!$F57) -> 0 | DL56: =IF('Asset data'!$F57=0,0,BB56/'Asset data'!$F57) -> 0 | DM56: =IF('Asset data'!$F57=0,0,BC56/'Asset data'!$F57) -> 0 | DN56: =IF('Asset data'!$F57=0,0,BD56/'Asset data'!$F57) -> 0 | DO56: =IF('Asset data'!$F57=0,0,BE56/'Asset data'!$F57) -> 0 | DP56: =IF('Asset data'!$F57=0,0,BF56/'Asset data'!$F57) -> 0 | DQ56: =IF('Asset data'!$F57=0,0,BG56/'Asset data'!$F57) -> 0 | DR56: =IF('Asset data'!$F57=0,0,BH56/'Asset data'!$F57) -> 0 | DS56: =IF('Asset data'!$F57=0,0,BI56/'Asset data'!$F57) -> 0 | DT56: =IF('Asset data'!$F57=0,0,BJ56/'Asset data'!$F57) -> 0 | DU56: =IF('Asset data'!$F57=0,0,BK56/'Asset data'!$F57) -> 0 | DV56: =IF('Asset data'!$F57=0,0,BL56/'Asset data'!$F57) -> 0 | DW56: =IF('Asset data'!$F57=0,0,BM56/'Asset data'!$F57) -> 0 | DX56: =IF('Asset data'!$F57=0,0,BN56/'Asset data'!$F57) -> 0 | DY56: =IF('Asset data'!$F57=0,0,BO56/'Asset data'!$F57) -> 0 | DZ56: =IF('Asset data'!$F57=0,0,BP56/'Asset data'!$F57) -> 0 | EA56: =IF('Asset data'!$F57=0,0,BQ56/'Asset data'!$F57) -> 0 | EB56: =IF('Asset data'!$F57=0,0,BR56/'Asset data'!$F57) -> 0
A57: ='Asset data'!A58 -> 0 | B57: ='Asset data'!B58 -> 0 | C57: ='Asset data'!C58 -> 0 | D57: ='Asset data'!E58 -> 0 | E57: 0 | F57: ='Asset data'!G58 -> 0 | G57: 0 | H57: ='Asset data'!H58 -> 0 | I57: S | J57: =IF(A57=0,0,IF('Asset data'!$D$1=1,1,IF('Asset data'!$D$1=2,2,'Asset data'!I58))) -> 0 | K57: 0 | AY57: =repcalc('Age profile (Inst)'!CT58:GF58,J57,K57,H57,20,$L$20,$M$20) -> 0 | AZ57: 0 | BA57: 0 | BB57: 0 | BC57: 0 | BD57: 0 | BE57: 0 | BF57: 0 | BG57: 0 | BH57: 0 | BI57: 0 | BJ57: 0 | BK57: 0 | BL57: 0 | BM57: 0 | BN57: 0 | BO57: 0 | BP57: 0 | BQ57: 0 | BR57: 0 | BS57: 0 | BT57: 0 | BU57: 0 | BV57: 0 | BW57: 0 | BX57: 0 | BY57: 0 | BZ57: 0 | CA57: 0 | CB57: 0 | CC57: 0 | CD57: 0 | CE57: 0 | CF57: 0 | CG57: 0 | CH57: 0 | CI57: 0 | CJ57: 0 | CK57: 0 | CL57: 0 | CM57: 0 | CN57: 0 | CO57: 0 | CP57: 0 | CQ57: 0 | CR57: 0 | CS57: 0 | CT57: 0 | CU57: 0 | CV57: 0 | CW57: 0 | CX57: 0 | CY57: 0 | CZ57: 0 | DA57: 0 | DB57: 0 | DC57: 0 | DD57: 0 | DE57: 0 | DF57: 0 | DG57: 0 | DH57: 0 | DI57: =IF('Asset data'!$F58=0,0,AY57/'Asset data'!$F58) -> 0 | DJ57: =IF('Asset data'!$F58=0,0,AZ57/'Asset data'!$F58) -> 0 | DK57: =IF('Asset data'!$F58=0,0,BA57/'Asset data'!$F58) -> 0 | DL57: =IF('Asset data'!$F58=0,0,BB57/'Asset data'!$F58) -> 0 | DM57: =IF('Asset data'!$F58=0,0,BC57/'Asset data'!$F58) -> 0 | DN57: =IF('Asset data'!$F58=0,0,BD57/'Asset data'!$F58) -> 0 | DO57: =IF('Asset data'!$F58=0,0,BE57/'Asset data'!$F58) -> 0 | DP57: =IF('Asset data'!$F58=0,0,BF57/'Asset data'!$F58) -> 0 | DQ57: =IF('Asset data'!$F58=0,0,BG57/'Asset data'!$F58) -> 0 | DR57: =IF('Asset data'!$F58=0,0,BH57/'Asset data'!$F58) -> 0 | DS57: =IF('Asset data'!$F58=0,0,BI57/'Asset data'!$F58) -> 0 | DT57: =IF('Asset data'!$F58=0,0,BJ57/'Asset data'!$F58) -> 0 | DU57: =IF('Asset data'!$F58=0,0,BK57/'Asset data'!$F58) -> 0 | DV57: =IF('Asset data'!$F58=0,0,BL57/'Asset data'!$F58) -> 0 | DW57: =IF('Asset data'!$F58=0,0,BM57/'Asset data'!$F58) -> 0 | DX57: =IF('Asset data'!$F58=0,0,BN57/'Asset data'!$F58) -> 0 | DY57: =IF('Asset data'!$F58=0,0,BO57/'Asset data'!$F58) -> 0 | DZ57: =IF('Asset data'!$F58=0,0,BP57/'Asset data'!$F58) -> 0 | EA57: =IF('Asset data'!$F58=0,0,BQ57/'Asset data'!$F58) -> 0 | EB57: =IF('Asset data'!$F58=0,0,BR57/'Asset data'!$F58) -> 0
A58: ='Asset data'!A59 -> 0 | B58: ='Asset data'!B59 -> 0 | C58: ='Asset data'!C59 -> 0 | D58: ='Asset data'!E59 -> 0 | E58: 0 | F58: ='Asset data'!G59 -> 0 | G58: 0 | H58: ='Asset data'!H59 -> 0 | I58: S | J58: =IF(A58=0,0,IF('Asset data'!$D$1=1,1,IF('Asset data'!$D$1=2,2,'Asset data'!I59))) -> 0 | K58: 0 | AY58: =repcalc('Age profile (Inst)'!CT59:GF59,J58,K58,H58,20,$L$20,$M$20) -> 0 | AZ58: 0 | BA58: 0 | BB58: 0 | BC58: 0 | BD58: 0 | BE58: 0 | BF58: 0 | BG58: 0 | BH58: 0 | BI58: 0 | BJ58: 0 | BK58: 0 | BL58: 0 | BM58: 0 | BN58: 0 | BO58: 0 | BP58: 0 | BQ58: 0 | BR58: 0 | BS58: 0 | BT58: 0 | BU58: 0 | BV58: 0 | BW58: 0 | BX58: 0 | BY58: 0 | BZ58: 0 | CA58: 0 | CB58: 0 | CC58: 0 | CD58: 0 | CE58: 0 | CF58: 0 | CG58: 0 | CH58: 0 | CI58: 0 | CJ58: 0 | CK58: 0 | CL58: 0 | CM58: 0 | CN58: 0 | CO58: 0 | CP58: 0 | CQ58: 0 | CR58: 0 | CS58: 0 | CT58: 0 | CU58: 0 | CV58: 0 | CW58: 0 | CX58: 0 | CY58: 0 | CZ58: 0 | DA58: 0 | DB58: 0 | DC58: 0 | DD58: 0 | DE58: 0 | DF58: 0 | DG58: 0 | DH58: 0 | DI58: =IF('Asset data'!$F59=0,0,AY58/'Asset data'!$F59) -> 0 | DJ58: =IF('Asset data'!$F59=0,0,AZ58/'Asset data'!$F59) -> 0 | DK58: =IF('Asset data'!$F59=0,0,BA58/'Asset data'!$F59) -> 0 | DL58: =IF('Asset data'!$F59=0,0,BB58/'Asset data'!$F59) -> 0 | DM58: =IF('Asset data'!$F59=0,0,BC58/'Asset data'!$F59) -> 0 | DN58: =IF('Asset data'!$F59=0,0,BD58/'Asset data'!$F59) -> 0 | DO58: =IF('Asset data'!$F59=0,0,BE58/'Asset data'!$F59) -> 0 | DP58: =IF('Asset data'!$F59=0,0,BF58/'Asset data'!$F59) -> 0 | DQ58: =IF('Asset data'!$F59=0,0,BG58/'Asset data'!$F59) -> 0 | DR58: =IF('Asset data'!$F59=0,0,BH58/'Asset data'!$F59) -> 0 | DS58: =IF('Asset data'!$F59=0,0,BI58/'Asset data'!$F59) -> 0 | DT58: =IF('Asset data'!$F59=0,0,BJ58/'Asset data'!$F59) -> 0 | DU58: =IF('Asset data'!$F59=0,0,BK58/'Asset data'!$F59) -> 0 | DV58: =IF('Asset data'!$F59=0,0,BL58/'Asset data'!$F59) -> 0 | DW58: =IF('Asset data'!$F59=0,0,BM58/'Asset data'!$F59) -> 0 | DX58: =IF('Asset data'!$F59=0,0,BN58/'Asset data'!$F59) -> 0 | DY58: =IF('Asset data'!$F59=0,0,BO58/'Asset data'!$F59) -> 0 | DZ58: =IF('Asset data'!$F59=0,0,BP58/'Asset data'!$F59) -> 0 | EA58: =IF('Asset data'!$F59=0,0,BQ58/'Asset data'!$F59) -> 0 | EB58: =IF('Asset data'!$F59=0,0,BR58/'Asset data'!$F59) -> 0
A59: ='Asset data'!A60 -> 0 | B59: ='Asset data'!B60 -> 0 | C59: ='Asset data'!C60 -> 0 | D59: ='Asset data'!E60 -> 0 | E59: 0 | F59: ='Asset data'!G60 -> 0 | G59: 0 | H59: ='Asset data'!H60 -> 0 | I59: S | J59: =IF(A59=0,0,IF('Asset data'!$D$1=1,1,IF('Asset data'!$D$1=2,2,'Asset data'!I60))) -> 0 | K59: 0 | AY59: =repcalc('Age profile (Inst)'!CT60:GF60,J59,K59,H59,20,$L$20,$M$20) -> 0 | AZ59: 0 | BA59: 0 | BB59: 0 | BC59: 0 | BD59: 0 | BE59: 0 | BF59: 0 | BG59: 0 | BH59: 0 | BI59: 0 | BJ59: 0 | BK59: 0 | BL59: 0 | BM59: 0 | BN59: 0 | BO59: 0 | BP59: 0 | BQ59: 0 | BR59: 0 | BS59: 0 | BT59: 0 | BU59: 0 | BV59: 0 | BW59: 0 | BX59: 0 | BY59: 0 | BZ59: 0 | CA59: 0 | CB59: 0 | CC59: 0 | CD59: 0 | CE59: 0 | CF59: 0 | CG59: 0 | CH59: 0 | CI59: 0 | CJ59: 0 | CK59: 0 | CL59: 0 | CM59: 0 | CN59: 0 | CO59: 0 | CP59: 0 | CQ59: 0 | CR59: 0 | CS59: 0 | CT59: 0 | CU59: 0 | CV59: 0 | CW59: 0 | CX59: 0 | CY59: 0 | CZ59: 0 | DA59: 0 | DB59: 0 | DC59: 0 | DD59: 0 | DE59: 0 | DF59: 0 | DG59: 0 | DH59: 0 | DI59: =IF('Asset data'!$F60=0,0,AY59/'Asset data'!$F60) -> 0 | DJ59: =IF('Asset data'!$F60=0,0,AZ59/'Asset data'!$F60) -> 0 | DK59: =IF('Asset data'!$F60=0,0,BA59/'Asset data'!$F60) -> 0 | DL59: =IF('Asset data'!$F60=0,0,BB59/'Asset data'!$F60) -> 0 | DM59: =IF('Asset data'!$F60=0,0,BC59/'Asset data'!$F60) -> 0 | DN59: =IF('Asset data'!$F60=0,0,BD59/'Asset data'!$F60) -> 0 | DO59: =IF('Asset data'!$F60=0,0,BE59/'Asset data'!$F60) -> 0 | DP59: =IF('Asset data'!$F60=0,0,BF59/'Asset data'!$F60) -> 0 | DQ59: =IF('Asset data'!$F60=0,0,BG59/'Asset data'!$F60) -> 0 | DR59: =IF('Asset data'!$F60=0,0,BH59/'Asset data'!$F60) -> 0 | DS59: =IF('Asset data'!$F60=0,0,BI59/'Asset data'!$F60) -> 0 | DT59: =IF('Asset data'!$F60=0,0,BJ59/'Asset data'!$F60) -> 0 | DU59: =IF('Asset data'!$F60=0,0,BK59/'Asset data'!$F60) -> 0 | DV59: =IF('Asset data'!$F60=0,0,BL59/'Asset data'!$F60) -> 0 | DW59: =IF('Asset data'!$F60=0,0,BM59/'Asset data'!$F60) -> 0 | DX59: =IF('Asset data'!$F60=0,0,BN59/'Asset data'!$F60) -> 0 | DY59: =IF('Asset data'!$F60=0,0,BO59/'Asset data'!$F60) -> 0 | DZ59: =IF('Asset data'!$F60=0,0,BP59/'Asset data'!$F60) -> 0 | EA59: =IF('Asset data'!$F60=0,0,BQ59/'Asset data'!$F60) -> 0 | EB59: =IF('Asset data'!$F60=0,0,BR59/'Asset data'!$F60) -> 0
A60: ='Asset data'!A61 -> 0 | B60: ='Asset data'!B61 -> 0 | C60: ='Asset data'!C61 -> 0 | D60: ='Asset data'!E61 -> 0 | E60: 0 | F60: ='Asset data'!G61 -> 0 | G60: 0 | H60: ='Asset data'!H61 -> 0 | I60: S | J60: =IF(A60=0,0,IF('Asset data'!$D$1=1,1,IF('Asset data'!$D$1=2,2,'Asset data'!I61))) -> 0 | K60: 0 | AY60: =repcalc('Age profile (Inst)'!CT61:GF61,J60,K60,H60,20,$L$20,$M$20) -> 0 | AZ60: 0 | BA60: 0 | BB60: 0 | BC60: 0 | BD60: 0 | BE60: 0 | BF60: 0 | BG60: 0 | BH60: 0 | BI60: 0 | BJ60: 0 | BK60: 0 | BL60: 0 | BM60: 0 | BN60: 0 | BO60: 0 | BP60: 0 | BQ60: 0 | BR60: 0 | BS60: 0 | BT60: 0 | BU60: 0 | BV60: 0 | BW60: 0 | BX60: 0 | BY60: 0 | BZ60: 0 | CA60: 0 | CB60: 0 | CC60: 0 | CD60: 0 | CE60: 0 | CF60: 0 | CG60: 0 | CH60: 0 | CI60: 0 | CJ60: 0 | CK60: 0 | CL60: 0 | CM60: 0 | CN60: 0 | CO60: 0 | CP60: 0 | CQ60: 0 | CR60: 0 | CS60: 0 | CT60: 0 | CU60: 0 | CV60: 0 | CW60: 0 | CX60: 0 | CY60: 0 | CZ60: 0 | DA60: 0 | DB60: 0 | DC60: 0 | DD60: 0 | DE60: 0 | DF60: 0 | DG60: 0 | DH60: 0 | DI60: =IF('Asset data'!$F61=0,0,AY60/'Asset data'!$F61) -> 0 | DJ60: =IF('Asset data'!$F61=0,0,AZ60/'Asset data'!$F61) -> 0 | DK60: =IF('Asset data'!$F61=0,0,BA60/'Asset data'!$F61) -> 0 | DL60: =IF('Asset data'!$F61=0,0,BB60/'Asset data'!$F61) -> 0 | DM60: =IF('Asset data'!$F61=0,0,BC60/'Asset data'!$F61) -> 0 | DN60: =IF('Asset data'!$F61=0,0,BD60/'Asset data'!$F61) -> 0 | DO60: =IF('Asset data'!$F61=0,0,BE60/'Asset data'!$F61) -> 0 | DP60: =IF('Asset data'!$F61=0,0,BF60/'Asset data'!$F61) -> 0 | DQ60: =IF('Asset data'!$F61=0,0,BG60/'Asset data'!$F61) -> 0 | DR60: =IF('Asset data'!$F61=0,0,BH60/'Asset data'!$F61) -> 0 | DS60: =IF('Asset data'!$F61=0,0,BI60/'Asset data'!$F61) -> 0 | DT60: =IF('Asset data'!$F61=0,0,BJ60/'Asset data'!$F61) -> 0 | DU60: =IF('Asset data'!$F61=0,0,BK60/'Asset data'!$F61) -> 0 | DV60: =IF('Asset data'!$F61=0,0,BL60/'Asset data'!$F61) -> 0 | DW60: =IF('Asset data'!$F61=0,0,BM60/'Asset data'!$F61) -> 0 | DX60: =IF('Asset data'!$F61=0,0,BN60/'Asset data'!$F61) -> 0 | DY60: =IF('Asset data'!$F61=0,0,BO60/'Asset data'!$F61) -> 0 | DZ60: =IF('Asset data'!$F61=0,0,BP60/'Asset data'!$F61) -> 0 | EA60: =IF('Asset data'!$F61=0,0,BQ60/'Asset data'!$F61) -> 0 | EB60: =IF('Asset data'!$F61=0,0,BR60/'Asset data'!$F61) -> 0
A61: ='Asset data'!A62 -> 0 | B61: ='Asset data'!B62 -> 0 | C61: ='Asset data'!C62 -> 0 | D61: ='Asset data'!E62 -> 0 | E61: 0 | F61: ='Asset data'!G62 -> 0 | G61: 0 | H61: ='Asset data'!H62 -> 0 | I61: S | J61: =IF(A61=0,0,IF('Asset data'!$D$1=1,1,IF('Asset data'!$D$1=2,2,'Asset data'!I62))) -> 0 | K61: 0 | AY61: =repcalc('Age profile (Inst)'!CT62:GF62,J61,K61,H61,20,$L$20,$M$20) -> 0 | AZ61: 0 | BA61: 0 | BB61: 0 | BC61: 0 | BD61: 0 | BE61: 0 | BF61: 0 | BG61: 0 | BH61: 0 | BI61: 0 | BJ61: 0 | BK61: 0 | BL61: 0 | BM61: 0 | BN61: 0 | BO61: 0 | BP61: 0 | BQ61: 0 | BR61: 0 | BS61: 0 | BT61: 0 | BU61: 0 | BV61: 0 | BW61: 0 | BX61: 0 | BY61: 0 | BZ61: 0 | CA61: 0 | CB61: 0 | CC61: 0 | CD61: 0 | CE61: 0 | CF61: 0 | CG61: 0 | CH61: 0 | CI61: 0 | CJ61: 0 | CK61: 0 | CL61: 0 | CM61: 0 | CN61: 0 | CO61: 0 | CP61: 0 | CQ61: 0 | CR61: 0 | CS61: 0 | CT61: 0 | CU61: 0 | CV61: 0 | CW61: 0 | CX61: 0 | CY61: 0 | CZ61: 0 | DA61: 0 | DB61: 0 | DC61: 0 | DD61: 0 | DE61: 0 | DF61: 0 | DG61: 0 | DH61: 0 | DI61: =IF('Asset data'!$F62=0,0,AY61/'Asset data'!$F62) -> 0 | DJ61: =IF('Asset data'!$F62=0,0,AZ61/'Asset data'!$F62) -> 0 | DK61: =IF('Asset data'!$F62=0,0,BA61/'Asset data'!$F62) -> 0 | DL61: =IF('Asset data'!$F62=0,0,BB61/'Asset data'!$F62) -> 0 | DM61: =IF('Asset data'!$F62=0,0,BC61/'Asset data'!$F62) -> 0 | DN61: =IF('Asset data'!$F62=0,0,BD61/'Asset data'!$F62) -> 0 | DO61: =IF('Asset data'!$F62=0,0,BE61/'Asset data'!$F62) -> 0 | DP61: =IF('Asset data'!$F62=0,0,BF61/'Asset data'!$F62) -> 0 | DQ61: =IF('Asset data'!$F62=0,0,BG61/'Asset data'!$F62) -> 0 | DR61: =IF('Asset data'!$F62=0,0,BH61/'Asset data'!$F62) -> 0 | DS61: =IF('Asset data'!$F62=0,0,BI61/'Asset data'!$F62) -> 0 | DT61: =IF('Asset data'!$F62=0,0,BJ61/'Asset data'!$F62) -> 0 | DU61: =IF('Asset data'!$F62=0,0,BK61/'Asset data'!$F62) -> 0 | DV61: =IF('Asset data'!$F62=0,0,BL61/'Asset data'!$F62) -> 0 | DW61: =IF('Asset data'!$F62=0,0,BM61/'Asset data'!$F62) -> 0 | DX61: =IF('Asset data'!$F62=0,0,BN61/'Asset data'!$F62) -> 0 | DY61: =IF('Asset data'!$F62=0,0,BO61/'Asset data'!$F62) -> 0 | DZ61: =IF('Asset data'!$F62=0,0,BP61/'Asset data'!$F62) -> 0 | EA61: =IF('Asset data'!$F62=0,0,BQ61/'Asset data'!$F62) -> 0 | EB61: =IF('Asset data'!$F62=0,0,BR61/'Asset data'!$F62) -> 0
A62: ='Asset data'!A63 -> 0 | B62: ='Asset data'!B63 -> 0 | C62: ='Asset data'!C63 -> 0 | D62: ='Asset data'!E63 -> 0 | E62: 0 | F62: ='Asset data'!G63 -> 0 | G62: 0 | H62: ='Asset data'!H63 -> 0 | I62: S | J62: =IF(A62=0,0,IF('Asset data'!$D$1=1,1,IF('Asset data'!$D$1=2,2,'Asset data'!I63))) -> 0 | K62: 0 | AY62: =repcalc('Age profile (Inst)'!CT63:GF63,J62,K62,H62,20,$L$20,$M$20) -> 0 | AZ62: 0 | BA62: 0 | BB62: 0 | BC62: 0 | BD62: 0 | BE62: 0 | BF62: 0 | BG62: 0 | BH62: 0 | BI62: 0 | BJ62: 0 | BK62: 0 | BL62: 0 | BM62: 0 | BN62: 0 | BO62: 0 | BP62: 0 | BQ62: 0 | BR62: 0 | BS62: 0 | BT62: 0 | BU62: 0 | BV62: 0 | BW62: 0 | BX62: 0 | BY62: 0 | BZ62: 0 | CA62: 0 | CB62: 0 | CC62: 0 | CD62: 0 | CE62: 0 | CF62: 0 | CG62: 0 | CH62: 0 | CI62: 0 | CJ62: 0 | CK62: 0 | CL62: 0 | CM62: 0 | CN62: 0 | CO62: 0 | CP62: 0 | CQ62: 0 | CR62: 0 | CS62: 0 | CT62: 0 | CU62: 0 | CV62: 0 | CW62: 0 | CX62: 0 | CY62: 0 | CZ62: 0 | DA62: 0 | DB62: 0 | DC62: 0 | DD62: 0 | DE62: 0 | DF62: 0 | DG62: 0 | DH62: 0 | DI62: =IF('Asset data'!$F63=0,0,AY62/'Asset data'!$F63) -> 0 | DJ62: =IF('Asset data'!$F63=0,0,AZ62/'Asset data'!$F63) -> 0 | DK62: =IF('Asset data'!$F63=0,0,BA62/'Asset data'!$F63) -> 0 | DL62: =IF('Asset data'!$F63=0,0,BB62/'Asset data'!$F63) -> 0 | DM62: =IF('Asset data'!$F63=0,0,BC62/'Asset data'!$F63) -> 0 | DN62: =IF('Asset data'!$F63=0,0,BD62/'Asset data'!$F63) -> 0 | DO62: =IF('Asset data'!$F63=0,0,BE62/'Asset data'!$F63) -> 0 | DP62: =IF('Asset data'!$F63=0,0,BF62/'Asset data'!$F63) -> 0 | DQ62: =IF('Asset data'!$F63=0,0,BG62/'Asset data'!$F63) -> 0 | DR62: =IF('Asset data'!$F63=0,0,BH62/'Asset data'!$F63) -> 0 | DS62: =IF('Asset data'!$F63=0,0,BI62/'Asset data'!$F63) -> 0 | DT62: =IF('Asset data'!$F63=0,0,BJ62/'Asset data'!$F63) -> 0 | DU62: =IF('Asset data'!$F63=0,0,BK62/'Asset data'!$F63) -> 0 | DV62: =IF('Asset data'!$F63=0,0,BL62/'Asset data'!$F63) -> 0 | DW62: =IF('Asset data'!$F63=0,0,BM62/'Asset data'!$F63) -> 0 | DX62: =IF('Asset data'!$F63=0,0,BN62/'Asset data'!$F63) -> 0 | DY62: =IF('Asset data'!$F63=0,0,BO62/'Asset data'!$F63) -> 0 | DZ62: =IF('Asset data'!$F63=0,0,BP62/'Asset data'!$F63) -> 0 | EA62: =IF('Asset data'!$F63=0,0,BQ62/'Asset data'!$F63) -> 0 | EB62: =IF('Asset data'!$F63=0,0,BR62/'Asset data'!$F63) -> 0
A63: ='Asset data'!A64 -> 0 | B63: ='Asset data'!B64 -> 0 | C63: ='Asset data'!C64 -> 0 | D63: ='Asset data'!E64 -> 0 | E63: 0 | F63: ='Asset data'!G64 -> 0 | G63: 0 | H63: ='Asset data'!H64 -> 0 | I63: S | J63: =IF(A63=0,0,IF('Asset data'!$D$1=1,1,IF('Asset data'!$D$1=2,2,'Asset data'!I64))) -> 0 | K63: 0 | AY63: =repcalc('Age profile (Inst)'!CT64:GF64,J63,K63,H63,20,$L$20,$M$20) -> 0 | AZ63: 0 | BA63: 0 | BB63: 0 | BC63: 0 | BD63: 0 | BE63: 0 | BF63: 0 | BG63: 0 | BH63: 0 | BI63: 0 | BJ63: 0 | BK63: 0 | BL63: 0 | BM63: 0 | BN63: 0 | BO63: 0 | BP63: 0 | BQ63: 0 | BR63: 0 | BS63: 0 | BT63: 0 | BU63: 0 | BV63: 0 | BW63: 0 | BX63: 0 | BY63: 0 | BZ63: 0 | CA63: 0 | CB63: 0 | CC63: 0 | CD63: 0 | CE63: 0 | CF63: 0 | CG63: 0 | CH63: 0 | CI63: 0 | CJ63: 0 | CK63: 0 | CL63: 0 | CM63: 0 | CN63: 0 | CO63: 0 | CP63: 0 | CQ63: 0 | CR63: 0 | CS63: 0 | CT63: 0 | CU63: 0 | CV63: 0 | CW63: 0 | CX63: 0 | CY63: 0 | CZ63: 0 | DA63: 0 | DB63: 0 | DC63: 0 | DD63: 0 | DE63: 0 | DF63: 0 | DG63: 0 | DH63: 0 | DI63: =IF('Asset data'!$F64=0,0,AY63/'Asset data'!$F64) -> 0 | DJ63: =IF('Asset data'!$F64=0,0,AZ63/'Asset data'!$F64) -> 0 | DK63: =IF('Asset data'!$F64=0,0,BA63/'Asset data'!$F64) -> 0 | DL63: =IF('Asset data'!$F64=0,0,BB63/'Asset data'!$F64) -> 0 | DM63: =IF('Asset data'!$F64=0,0,BC63/'Asset data'!$F64) -> 0 | DN63: =IF('Asset data'!$F64=0,0,BD63/'Asset data'!$F64) -> 0 | DO63: =IF('Asset data'!$F64=0,0,BE63/'Asset data'!$F64) -> 0 | DP63: =IF('Asset data'!$F64=0,0,BF63/'Asset data'!$F64) -> 0 | DQ63: =IF('Asset data'!$F64=0,0,BG63/'Asset data'!$F64) -> 0 | DR63: =IF('Asset data'!$F64=0,0,BH63/'Asset data'!$F64) -> 0 | DS63: =IF('Asset data'!$F64=0,0,BI63/'Asset data'!$F64) -> 0 | DT63: =IF('Asset data'!$F64=0,0,BJ63/'Asset data'!$F64) -> 0 | DU63: =IF('Asset data'!$F64=0,0,BK63/'Asset data'!$F64) -> 0 | DV63: =IF('Asset data'!$F64=0,0,BL63/'Asset data'!$F64) -> 0 | DW63: =IF('Asset data'!$F64=0,0,BM63/'Asset data'!$F64) -> 0 | DX63: =IF('Asset data'!$F64=0,0,BN63/'Asset data'!$F64) -> 0 | DY63: =IF('Asset data'!$F64=0,0,BO63/'Asset data'!$F64) -> 0 | DZ63: =IF('Asset data'!$F64=0,0,BP63/'Asset data'!$F64) -> 0 | EA63: =IF('Asset data'!$F64=0,0,BQ63/'Asset data'!$F64) -> 0 | EB63: =IF('Asset data'!$F64=0,0,BR63/'Asset data'!$F64) -> 0
A64: ='Asset data'!A65 -> 0 | B64: ='Asset data'!B65 -> 0 | C64: ='Asset data'!C65 -> 0 | D64: ='Asset data'!E65 -> 0 | E64: 0 | F64: ='Asset data'!G65 -> 0 | G64: 0 | H64: ='Asset data'!H65 -> 0 | I64: S | J64: =IF(A64=0,0,IF('Asset data'!$D$1=1,1,IF('Asset data'!$D$1=2,2,'Asset data'!I65))) -> 0 | K64: 0 | AY64: =repcalc('Age profile (Inst)'!CT65:GF65,J64,K64,H64,20,$L$20,$M$20) -> 0 | AZ64: 0 | BA64: 0 | BB64: 0 | BC64: 0 | BD64: 0 | BE64: 0 | BF64: 0 | BG64: 0 | BH64: 0 | BI64: 0 | BJ64: 0 | BK64: 0 | BL64: 0 | BM64: 0 | BN64: 0 | BO64: 0 | BP64: 0 | BQ64: 0 | BR64: 0 | BS64: 0 | BT64: 0 | BU64: 0 | BV64: 0 | BW64: 0 | BX64: 0 | BY64: 0 | BZ64: 0 | CA64: 0 | CB64: 0 | CC64: 0 | CD64: 0 | CE64: 0 | CF64: 0 | CG64: 0 | CH64: 0 | CI64: 0 | CJ64: 0 | CK64: 0 | CL64: 0 | CM64: 0 | CN64: 0 | CO64: 0 | CP64: 0 | CQ64: 0 | CR64: 0 | CS64: 0 | CT64: 0 | CU64: 0 | CV64: 0 | CW64: 0 | CX64: 0 | CY64: 0 | CZ64: 0 | DA64: 0 | DB64: 0 | DC64: 0 | DD64: 0 | DE64: 0 | DF64: 0 | DG64: 0 | DH64: 0 | DI64: =IF('Asset data'!$F65=0,0,AY64/'Asset data'!$F65) -> 0 | DJ64: =IF('Asset data'!$F65=0,0,AZ64/'Asset data'!$F65) -> 0 | DK64: =IF('Asset data'!$F65=0,0,BA64/'Asset data'!$F65) -> 0 | DL64: =IF('Asset data'!$F65=0,0,BB64/'Asset data'!$F65) -> 0 | DM64: =IF('Asset data'!$F65=0,0,BC64/'Asset data'!$F65) -> 0 | DN64: =IF('Asset data'!$F65=0,0,BD64/'Asset data'!$F65) -> 0 | DO64: =IF('Asset data'!$F65=0,0,BE64/'Asset data'!$F65) -> 0 | DP64: =IF('Asset data'!$F65=0,0,BF64/'Asset data'!$F65) -> 0 | DQ64: =IF('Asset data'!$F65=0,0,BG64/'Asset data'!$F65) -> 0 | DR64: =IF('Asset data'!$F65=0,0,BH64/'Asset data'!$F65) -> 0 | DS64: =IF('Asset data'!$F65=0,0,BI64/'Asset data'!$F65) -> 0 | DT64: =IF('Asset data'!$F65=0,0,BJ64/'Asset data'!$F65) -> 0 | DU64: =IF('Asset data'!$F65=0,0,BK64/'Asset data'!$F65) -> 0 | DV64: =IF('Asset data'!$F65=0,0,BL64/'Asset data'!$F65) -> 0 | DW64: =IF('Asset data'!$F65=0,0,BM64/'Asset data'!$F65) -> 0 | DX64: =IF('Asset data'!$F65=0,0,BN64/'Asset data'!$F65) -> 0 | DY64: =IF('Asset data'!$F65=0,0,BO64/'Asset data'!$F65) -> 0 | DZ64: =IF('Asset data'!$F65=0,0,BP64/'Asset data'!$F65) -> 0 | EA64: =IF('Asset data'!$F65=0,0,BQ64/'Asset data'!$F65) -> 0 | EB64: =IF('Asset data'!$F65=0,0,BR64/'Asset data'!$F65) -> 0
A65: ='Asset data'!A66 -> 0 | B65: ='Asset data'!B66 -> 0 | C65: ='Asset data'!C66 -> 0 | D65: ='Asset data'!E66 -> 0 | E65: 0 | F65: ='Asset data'!G66 -> 0 | G65: 0 | H65: ='Asset data'!H66 -> 0 | I65: S | J65: =IF(A65=0,0,IF('Asset data'!$D$1=1,1,IF('Asset data'!$D$1=2,2,'Asset data'!I66))) -> 0 | K65: 0 | AY65: =repcalc('Age profile (Inst)'!CT66:GF66,J65,K65,H65,20,$L$20,$M$20) -> 0 | AZ65: 0 | BA65: 0 | BB65: 0 | BC65: 0 | BD65: 0 | BE65: 0 | BF65: 0 | BG65: 0 | BH65: 0 | BI65: 0 | BJ65: 0 | BK65: 0 | BL65: 0 | BM65: 0 | BN65: 0 | BO65: 0 | BP65: 0 | BQ65: 0 | BR65: 0 | BS65: 0 | BT65: 0 | BU65: 0 | BV65: 0 | BW65: 0 | BX65: 0 | BY65: 0 | BZ65: 0 | CA65: 0 | CB65: 0 | CC65: 0 | CD65: 0 | CE65: 0 | CF65: 0 | CG65: 0 | CH65: 0 | CI65: 0 | CJ65: 0 | CK65: 0 | CL65: 0 | CM65: 0 | CN65: 0 | CO65: 0 | CP65: 0 | CQ65: 0 | CR65: 0 | CS65: 0 | CT65: 0 | CU65: 0 | CV65: 0 | CW65: 0 | CX65: 0 | CY65: 0 | CZ65: 0 | DA65: 0 | DB65: 0 | DC65: 0 | DD65: 0 | DE65: 0 | DF65: 0 | DG65: 0 | DH65: 0 | DI65: =IF('Asset data'!$F66=0,0,AY65/'Asset data'!$F66) -> 0 | DJ65: =IF('Asset data'!$F66=0,0,AZ65/'Asset data'!$F66) -> 0 | DK65: =IF('Asset data'!$F66=0,0,BA65/'Asset data'!$F66) -> 0 | DL65: =IF('Asset data'!$F66=0,0,BB65/'Asset data'!$F66) -> 0 | DM65: =IF('Asset data'!$F66=0,0,BC65/'Asset data'!$F66) -> 0 | DN65: =IF('Asset data'!$F66=0,0,BD65/'Asset data'!$F66) -> 0 | DO65: =IF('Asset data'!$F66=0,0,BE65/'Asset data'!$F66) -> 0 | DP65: =IF('Asset data'!$F66=0,0,BF65/'Asset data'!$F66) -> 0 | DQ65: =IF('Asset data'!$F66=0,0,BG65/'Asset data'!$F66) -> 0 | DR65: =IF('Asset data'!$F66=0,0,BH65/'Asset data'!$F66) -> 0 | DS65: =IF('Asset data'!$F66=0,0,BI65/'Asset data'!$F66) -> 0 | DT65: =IF('Asset data'!$F66=0,0,BJ65/'Asset data'!$F66) -> 0 | DU65: =IF('Asset data'!$F66=0,0,BK65/'Asset data'!$F66) -> 0 | DV65: =IF('Asset data'!$F66=0,0,BL65/'Asset data'!$F66) -> 0 | DW65: =IF('Asset data'!$F66=0,0,BM65/'Asset data'!$F66) -> 0 | DX65: =IF('Asset data'!$F66=0,0,BN65/'Asset data'!$F66) -> 0 | DY65: =IF('Asset data'!$F66=0,0,BO65/'Asset data'!$F66) -> 0 | DZ65: =IF('Asset data'!$F66=0,0,BP65/'Asset data'!$F66) -> 0 | EA65: =IF('Asset data'!$F66=0,0,BQ65/'Asset data'!$F66) -> 0 | EB65: =IF('Asset data'!$F66=0,0,BR65/'Asset data'!$F66) -> 0
A66: ='Asset data'!A67 -> 0 | B66: ='Asset data'!B67 -> 0 | C66: ='Asset data'!C67 -> 0 | D66: ='Asset data'!E67 -> 0 | E66: 0 | F66: ='Asset data'!G67 -> 0 | G66: 0 | H66: ='Asset data'!H67 -> 0 | I66: S | J66: =IF(A66=0,0,IF('Asset data'!$D$1=1,1,IF('Asset data'!$D$1=2,2,'Asset data'!I67))) -> 0 | K66: 0 | AY66: =repcalc('Age profile (Inst)'!CT67:GF67,J66,K66,H66,20,$L$20,$M$20) -> 0 | AZ66: 0 | BA66: 0 | BB66: 0 | BC66: 0 | BD66: 0 | BE66: 0 | BF66: 0 | BG66: 0 | BH66: 0 | BI66: 0 | BJ66: 0 | BK66: 0 | BL66: 0 | BM66: 0 | BN66: 0 | BO66: 0 | BP66: 0 | BQ66: 0 | BR66: 0 | BS66: 0 | BT66: 0 | BU66: 0 | BV66: 0 | BW66: 0 | BX66: 0 | BY66: 0 | BZ66: 0 | CA66: 0 | CB66: 0 | CC66: 0 | CD66: 0 | CE66: 0 | CF66: 0 | CG66: 0 | CH66: 0 | CI66: 0 | CJ66: 0 | CK66: 0 | CL66: 0 | CM66: 0 | CN66: 0 | CO66: 0 | CP66: 0 | CQ66: 0 | CR66: 0 | CS66: 0 | CT66: 0 | CU66: 0 | CV66: 0 | CW66: 0 | CX66: 0 | CY66: 0 | CZ66: 0 | DA66: 0 | DB66: 0 | DC66: 0 | DD66: 0 | DE66: 0 | DF66: 0 | DG66: 0 | DH66: 0 | DI66: =IF('Asset data'!$F67=0,0,AY66/'Asset data'!$F67) -> 0 | DJ66: =IF('Asset data'!$F67=0,0,AZ66/'Asset data'!$F67) -> 0 | DK66: =IF('Asset data'!$F67=0,0,BA66/'Asset data'!$F67) -> 0 | DL66: =IF('Asset data'!$F67=0,0,BB66/'Asset data'!$F67) -> 0 | DM66: =IF('Asset data'!$F67=0,0,BC66/'Asset data'!$F67) -> 0 | DN66: =IF('Asset data'!$F67=0,0,BD66/'Asset data'!$F67) -> 0 | DO66: =IF('Asset data'!$F67=0,0,BE66/'Asset data'!$F67) -> 0 | DP66: =IF('Asset data'!$F67=0,0,BF66/'Asset data'!$F67) -> 0 | DQ66: =IF('Asset data'!$F67=0,0,BG66/'Asset data'!$F67) -> 0 | DR66: =IF('Asset data'!$F67=0,0,BH66/'Asset data'!$F67) -> 0 | DS66: =IF('Asset data'!$F67=0,0,BI66/'Asset data'!$F67) -> 0 | DT66: =IF('Asset data'!$F67=0,0,BJ66/'Asset data'!$F67) -> 0 | DU66: =IF('Asset data'!$F67=0,0,BK66/'Asset data'!$F67) -> 0 | DV66: =IF('Asset data'!$F67=0,0,BL66/'Asset data'!$F67) -> 0 | DW66: =IF('Asset data'!$F67=0,0,BM66/'Asset data'!$F67) -> 0 | DX66: =IF('Asset data'!$F67=0,0,BN66/'Asset data'!$F67) -> 0 | DY66: =IF('Asset data'!$F67=0,0,BO66/'Asset data'!$F67) -> 0 | DZ66: =IF('Asset data'!$F67=0,0,BP66/'Asset data'!$F67) -> 0 | EA66: =IF('Asset data'!$F67=0,0,BQ66/'Asset data'!$F67) -> 0 | EB66: =IF('Asset data'!$F67=0,0,BR66/'Asset data'!$F67) -> 0
A67: ='Asset data'!A68 -> 0 | B67: ='Asset data'!B68 -> 0 | C67: ='Asset data'!C68 -> 0 | D67: ='Asset data'!E68 -> 0 | E67: 0 | F67: ='Asset data'!G68 -> 0 | G67: 0 | H67: ='Asset data'!H68 -> 0 | I67: S | J67: =IF(A67=0,0,IF('Asset data'!$D$1=1,1,IF('Asset data'!$D$1=2,2,'Asset data'!I68))) -> 0 | K67: 0 | AY67: =repcalc('Age profile (Inst)'!CT68:GF68,J67,K67,H67,20,$L$20,$M$20) -> 0 | AZ67: 0 | BA67: 0 | BB67: 0 | BC67: 0 | BD67: 0 | BE67: 0 | BF67: 0 | BG67: 0 | BH67: 0 | BI67: 0 | BJ67: 0 | BK67: 0 | BL67: 0 | BM67: 0 | BN67: 0 | BO67: 0 | BP67: 0 | BQ67: 0 | BR67: 0 | BS67: 0 | BT67: 0 | BU67: 0 | BV67: 0 | BW67: 0 | BX67: 0 | BY67: 0 | BZ67: 0 | CA67: 0 | CB67: 0 | CC67: 0 | CD67: 0 | CE67: 0 | CF67: 0 | CG67: 0 | CH67: 0 | CI67: 0 | CJ67: 0 | CK67: 0 | CL67: 0 | CM67: 0 | CN67: 0 | CO67: 0 | CP67: 0 | CQ67: 0 | CR67: 0 | CS67: 0 | CT67: 0 | CU67: 0 | CV67: 0 | CW67: 0 | CX67: 0 | CY67: 0 | CZ67: 0 | DA67: 0 | DB67: 0 | DC67: 0 | DD67: 0 | DE67: 0 | DF67: 0 | DG67: 0 | DH67: 0 | DI67: =IF('Asset data'!$F68=0,0,AY67/'Asset data'!$F68) -> 0 | DJ67: =IF('Asset data'!$F68=0,0,AZ67/'Asset data'!$F68) -> 0 | DK67: =IF('Asset data'!$F68=0,0,BA67/'Asset data'!$F68) -> 0 | DL67: =IF('Asset data'!$F68=0,0,BB67/'Asset data'!$F68) -> 0 | DM67: =IF('Asset data'!$F68=0,0,BC67/'Asset data'!$F68) -> 0 | DN67: =IF('Asset data'!$F68=0,0,BD67/'Asset data'!$F68) -> 0 | DO67: =IF('Asset data'!$F68=0,0,BE67/'Asset data'!$F68) -> 0 | DP67: =IF('Asset data'!$F68=0,0,BF67/'Asset data'!$F68) -> 0 | DQ67: =IF('Asset data'!$F68=0,0,BG67/'Asset data'!$F68) -> 0 | DR67: =IF('Asset data'!$F68=0,0,BH67/'Asset data'!$F68) -> 0 | DS67: =IF('Asset data'!$F68=0,0,BI67/'Asset data'!$F68) -> 0 | DT67: =IF('Asset data'!$F68=0,0,BJ67/'Asset data'!$F68) -> 0 | DU67: =IF('Asset data'!$F68=0,0,BK67/'Asset data'!$F68) -> 0 | DV67: =IF('Asset data'!$F68=0,0,BL67/'Asset data'!$F68) -> 0 | DW67: =IF('Asset data'!$F68=0,0,BM67/'Asset data'!$F68) -> 0 | DX67: =IF('Asset data'!$F68=0,0,BN67/'Asset data'!$F68) -> 0 | DY67: =IF('Asset data'!$F68=0,0,BO67/'Asset data'!$F68) -> 0 | DZ67: =IF('Asset data'!$F68=0,0,BP67/'Asset data'!$F68) -> 0 | EA67: =IF('Asset data'!$F68=0,0,BQ67/'Asset data'!$F68) -> 0 | EB67: =IF('Asset data'!$F68=0,0,BR67/'Asset data'!$F68) -> 0
A68: ='Asset data'!A69 -> 0 | B68: ='Asset data'!B69 -> 0 | C68: ='Asset data'!C69 -> 0 | D68: ='Asset data'!E69 -> 0 | E68: 0 | F68: ='Asset data'!G69 -> 0 | G68: 0 | H68: ='Asset data'!H69 -> 0 | I68: S | J68: =IF(A68=0,0,IF('Asset data'!$D$1=1,1,IF('Asset data'!$D$1=2,2,'Asset data'!I69))) -> 0 | K68: 0 | AY68: =repcalc('Age profile (Inst)'!CT69:GF69,J68,K68,H68,20,$L$20,$M$20) -> 0 | AZ68: 0 | BA68: 0 | BB68: 0 | BC68: 0 | BD68: 0 | BE68: 0 | BF68: 0 | BG68: 0 | BH68: 0 | BI68: 0 | BJ68: 0 | BK68: 0 | BL68: 0 | BM68: 0 | BN68: 0 | BO68: 0 | BP68: 0 | BQ68: 0 | BR68: 0 | BS68: 0 | BT68: 0 | BU68: 0 | BV68: 0 | BW68: 0 | BX68: 0 | BY68: 0 | BZ68: 0 | CA68: 0 | CB68: 0 | CC68: 0 | CD68: 0 | CE68: 0 | CF68: 0 | CG68: 0 | CH68: 0 | CI68: 0 | CJ68: 0 | CK68: 0 | CL68: 0 | CM68: 0 | CN68: 0 | CO68: 0 | CP68: 0 | CQ68: 0 | CR68: 0 | CS68: 0 | CT68: 0 | CU68: 0 | CV68: 0 | CW68: 0 | CX68: 0 | CY68: 0 | CZ68: 0 | DA68: 0 | DB68: 0 | DC68: 0 | DD68: 0 | DE68: 0 | DF68: 0 | DG68: 0 | DH68: 0 | DI68: =IF('Asset data'!$F69=0,0,AY68/'Asset data'!$F69) -> 0 | DJ68: =IF('Asset data'!$F69=0,0,AZ68/'Asset data'!$F69) -> 0 | DK68: =IF('Asset data'!$F69=0,0,BA68/'Asset data'!$F69) -> 0 | DL68: =IF('Asset data'!$F69=0,0,BB68/'Asset data'!$F69) -> 0 | DM68: =IF('Asset data'!$F69=0,0,BC68/'Asset data'!$F69) -> 0 | DN68: =IF('Asset data'!$F69=0,0,BD68/'Asset data'!$F69) -> 0 | DO68: =IF('Asset data'!$F69=0,0,BE68/'Asset data'!$F69) -> 0 | DP68: =IF('Asset data'!$F69=0,0,BF68/'Asset data'!$F69) -> 0 | DQ68: =IF('Asset data'!$F69=0,0,BG68/'Asset data'!$F69) -> 0 | DR68: =IF('Asset data'!$F69=0,0,BH68/'Asset data'!$F69) -> 0 | DS68: =IF('Asset data'!$F69=0,0,BI68/'Asset data'!$F69) -> 0 | DT68: =IF('Asset data'!$F69=0,0,BJ68/'Asset data'!$F69) -> 0 | DU68: =IF('Asset data'!$F69=0,0,BK68/'Asset data'!$F69) -> 0 | DV68: =IF('Asset data'!$F69=0,0,BL68/'Asset data'!$F69) -> 0 | DW68: =IF('Asset data'!$F69=0,0,BM68/'Asset data'!$F69) -> 0 | DX68: =IF('Asset data'!$F69=0,0,BN68/'Asset data'!$F69) -> 0 | DY68: =IF('Asset data'!$F69=0,0,BO68/'Asset data'!$F69) -> 0 | DZ68: =IF('Asset data'!$F69=0,0,BP68/'Asset data'!$F69) -> 0 | EA68: =IF('Asset data'!$F69=0,0,BQ68/'Asset data'!$F69) -> 0 | EB68: =IF('Asset data'!$F69=0,0,BR68/'Asset data'!$F69) -> 0
A69: ='Asset data'!A70 -> 0 | B69: ='Asset data'!B70 -> 0 | C69: ='Asset data'!C70 -> 0 | D69: ='Asset data'!E70 -> 0 | E69: 0 | F69: ='Asset data'!G70 -> 0 | G69: 0 | H69: ='Asset data'!H70 -> 0 | I69: S | J69: =IF(A69=0,0,IF('Asset data'!$D$1=1,1,IF('Asset data'!$D$1=2,2,'Asset data'!I70))) -> 0 | K69: 0 | AY69: =repcalc('Age profile (Inst)'!CT70:GF70,J69,K69,H69,20,$L$20,$M$20) -> 0 | AZ69: 0 | BA69: 0 | BB69: 0 | BC69: 0 | BD69: 0 | BE69: 0 | BF69: 0 | BG69: 0 | BH69: 0 | BI69: 0 | BJ69: 0 | BK69: 0 | BL69: 0 | BM69: 0 | BN69: 0 | BO69: 0 | BP69: 0 | BQ69: 0 | BR69: 0 | BS69: 0 | BT69: 0 | BU69: 0 | BV69: 0 | BW69: 0 | BX69: 0 | BY69: 0 | BZ69: 0 | CA69: 0 | CB69: 0 | CC69: 0 | CD69: 0 | CE69: 0 | CF69: 0 | CG69: 0 | CH69: 0 | CI69: 0 | CJ69: 0 | CK69: 0 | CL69: 0 | CM69: 0 | CN69: 0 | CO69: 0 | CP69: 0 | CQ69: 0 | CR69: 0 | CS69: 0 | CT69: 0 | CU69: 0 | CV69: 0 | CW69: 0 | CX69: 0 | CY69: 0 | CZ69: 0 | DA69: 0 | DB69: 0 | DC69: 0 | DD69: 0 | DE69: 0 | DF69: 0 | DG69: 0 | DH69: 0 | DI69: =IF('Asset data'!$F70=0,0,AY69/'Asset data'!$F70) -> 0 | DJ69: =IF('Asset data'!$F70=0,0,AZ69/'Asset data'!$F70) -> 0 | DK69: =IF('Asset data'!$F70=0,0,BA69/'Asset data'!$F70) -> 0 | DL69: =IF('Asset data'!$F70=0,0,BB69/'Asset data'!$F70) -> 0 | DM69: =IF('Asset data'!$F70=0,0,BC69/'Asset data'!$F70) -> 0 | DN69: =IF('Asset data'!$F70=0,0,BD69/'Asset data'!$F70) -> 0 | DO69: =IF('Asset data'!$F70=0,0,BE69/'Asset data'!$F70) -> 0 | DP69: =IF('Asset data'!$F70=0,0,BF69/'Asset data'!$F70) -> 0 | DQ69: =IF('Asset data'!$F70=0,0,BG69/'Asset data'!$F70) -> 0 | DR69: =IF('Asset data'!$F70=0,0,BH69/'Asset data'!$F70) -> 0 | DS69: =IF('Asset data'!$F70=0,0,BI69/'Asset data'!$F70) -> 0 | DT69: =IF('Asset data'!$F70=0,0,BJ69/'Asset data'!$F70) -> 0 | DU69: =IF('Asset data'!$F70=0,0,BK69/'Asset data'!$F70) -> 0 | DV69: =IF('Asset data'!$F70=0,0,BL69/'Asset data'!$F70) -> 0 | DW69: =IF('Asset data'!$F70=0,0,BM69/'Asset data'!$F70) -> 0 | DX69: =IF('Asset data'!$F70=0,0,BN69/'Asset data'!$F70) -> 0 | DY69: =IF('Asset data'!$F70=0,0,BO69/'Asset data'!$F70) -> 0 | DZ69: =IF('Asset data'!$F70=0,0,BP69/'Asset data'!$F70) -> 0 | EA69: =IF('Asset data'!$F70=0,0,BQ69/'Asset data'!$F70) -> 0 | EB69: =IF('Asset data'!$F70=0,0,BR69/'Asset data'!$F70) -> 0
A70: ='Asset data'!A71 -> 0 | B70: ='Asset data'!B71 -> 0 | C70: ='Asset data'!C71 -> 0 | D70: ='Asset data'!E71 -> 0 | E70: 0 | F70: ='Asset data'!G71 -> 0 | G70: 0 | H70: ='Asset data'!H71 -> 0 | I70: S | J70: =IF(A70=0,0,IF('Asset data'!$D$1=1,1,IF('Asset data'!$D$1=2,2,'Asset data'!I71))) -> 0 | K70: 0 | AY70: =repcalc('Age profile (Inst)'!CT71:GF71,J70,K70,H70,20,$L$20,$M$20) -> 0 | AZ70: 0 | BA70: 0 | BB70: 0 | BC70: 0 | BD70: 0 | BE70: 0 | BF70: 0 | BG70: 0 | BH70: 0 | BI70: 0 | BJ70: 0 | BK70: 0 | BL70: 0 | BM70: 0 | BN70: 0 | BO70: 0 | BP70: 0 | BQ70: 0 | BR70: 0 | BS70: 0 | BT70: 0 | BU70: 0 | BV70: 0 | BW70: 0 | BX70: 0 | BY70: 0 | BZ70: 0 | CA70: 0 | CB70: 0 | CC70: 0 | CD70: 0 | CE70: 0 | CF70: 0 | CG70: 0 | CH70: 0 | CI70: 0 | CJ70: 0 | CK70: 0 | CL70: 0 | CM70: 0 | CN70: 0 | CO70: 0 | CP70: 0 | CQ70: 0 | CR70: 0 | CS70: 0 | CT70: 0 | CU70: 0 | CV70: 0 | CW70: 0 | CX70: 0 | CY70: 0 | CZ70: 0 | DA70: 0 | DB70: 0 | DC70: 0 | DD70: 0 | DE70: 0 | DF70: 0 | DG70: 0 | DH70: 0 | DI70: =IF('Asset data'!$F71=0,0,AY70/'Asset data'!$F71) -> 0 | DJ70: =IF('Asset data'!$F71=0,0,AZ70/'Asset data'!$F71) -> 0 | DK70: =IF('Asset data'!$F71=0,0,BA70/'Asset data'!$F71) -> 0 | DL70: =IF('Asset data'!$F71=0,0,BB70/'Asset data'!$F71) -> 0 | DM70: =IF('Asset data'!$F71=0,0,BC70/'Asset data'!$F71) -> 0 | DN70: =IF('Asset data'!$F71=0,0,BD70/'Asset data'!$F71) -> 0 | DO70: =IF('Asset data'!$F71=0,0,BE70/'Asset data'!$F71) -> 0 | DP70: =IF('Asset data'!$F71=0,0,BF70/'Asset data'!$F71) -> 0 | DQ70: =IF('Asset data'!$F71=0,0,BG70/'Asset data'!$F71) -> 0 | DR70: =IF('Asset data'!$F71=0,0,BH70/'Asset data'!$F71) -> 0 | DS70: =IF('Asset data'!$F71=0,0,BI70/'Asset data'!$F71) -> 0 | DT70: =IF('Asset data'!$F71=0,0,BJ70/'Asset data'!$F71) -> 0 | DU70: =IF('Asset data'!$F71=0,0,BK70/'Asset data'!$F71) -> 0 | DV70: =IF('Asset data'!$F71=0,0,BL70/'Asset data'!$F71) -> 0 | DW70: =IF('Asset data'!$F71=0,0,BM70/'Asset data'!$F71) -> 0 | DX70: =IF('Asset data'!$F71=0,0,BN70/'Asset data'!$F71) -> 0 | DY70: =IF('Asset data'!$F71=0,0,BO70/'Asset data'!$F71) -> 0 | DZ70: =IF('Asset data'!$F71=0,0,BP70/'Asset data'!$F71) -> 0 | EA70: =IF('Asset data'!$F71=0,0,BQ70/'Asset data'!$F71) -> 0 | EB70: =IF('Asset data'!$F71=0,0,BR70/'Asset data'!$F71) -> 0
A71: ='Asset data'!A72 -> 0 | B71: ='Asset data'!B72 -> 0 | C71: ='Asset data'!C72 -> 0 | D71: ='Asset data'!E72 -> 0 | E71: 0 | F71: ='Asset data'!G72 -> 0 | G71: 0 | H71: ='Asset data'!H72 -> 0 | I71: S | J71: =IF(A71=0,0,IF('Asset data'!$D$1=1,1,IF('Asset data'!$D$1=2,2,'Asset data'!I72))) -> 0 | K71: 0 | AY71: =repcalc('Age profile (Inst)'!CT72:GF72,J71,K71,H71,20,$L$20,$M$20) -> 0 | AZ71: 0 | BA71: 0 | BB71: 0 | BC71: 0 | BD71: 0 | BE71: 0 | BF71: 0 | BG71: 0 | BH71: 0 | BI71: 0 | BJ71: 0 | BK71: 0 | BL71: 0 | BM71: 0 | BN71: 0 | BO71: 0 | BP71: 0 | BQ71: 0 | BR71: 0 | BS71: 0 | BT71: 0 | BU71: 0 | BV71: 0 | BW71: 0 | BX71: 0 | BY71: 0 | BZ71: 0 | CA71: 0 | CB71: 0 | CC71: 0 | CD71: 0 | CE71: 0 | CF71: 0 | CG71: 0 | CH71: 0 | CI71: 0 | CJ71: 0 | CK71: 0 | CL71: 0 | CM71: 0 | CN71: 0 | CO71: 0 | CP71: 0 | CQ71: 0 | CR71: 0 | CS71: 0 | CT71: 0 | CU71: 0 | CV71: 0 | CW71: 0 | CX71: 0 | CY71: 0 | CZ71: 0 | DA71: 0 | DB71: 0 | DC71: 0 | DD71: 0 | DE71: 0 | DF71: 0 | DG71: 0 | DH71: 0 | DI71: =IF('Asset data'!$F72=0,0,AY71/'Asset data'!$F72) -> 0 | DJ71: =IF('Asset data'!$F72=0,0,AZ71/'Asset data'!$F72) -> 0 | DK71: =IF('Asset data'!$F72=0,0,BA71/'Asset data'!$F72) -> 0 | DL71: =IF('Asset data'!$F72=0,0,BB71/'Asset data'!$F72) -> 0 | DM71: =IF('Asset data'!$F72=0,0,BC71/'Asset data'!$F72) -> 0 | DN71: =IF('Asset data'!$F72=0,0,BD71/'Asset data'!$F72) -> 0 | DO71: =IF('Asset data'!$F72=0,0,BE71/'Asset data'!$F72) -> 0 | DP71: =IF('Asset data'!$F72=0,0,BF71/'Asset data'!$F72) -> 0 | DQ71: =IF('Asset data'!$F72=0,0,BG71/'Asset data'!$F72) -> 0 | DR71: =IF('Asset data'!$F72=0,0,BH71/'Asset data'!$F72) -> 0 | DS71: =IF('Asset data'!$F72=0,0,BI71/'Asset data'!$F72) -> 0 | DT71: =IF('Asset data'!$F72=0,0,BJ71/'Asset data'!$F72) -> 0 | DU71: =IF('Asset data'!$F72=0,0,BK71/'Asset data'!$F72) -> 0 | DV71: =IF('Asset data'!$F72=0,0,BL71/'Asset data'!$F72) -> 0 | DW71: =IF('Asset data'!$F72=0,0,BM71/'Asset data'!$F72) -> 0 | DX71: =IF('Asset data'!$F72=0,0,BN71/'Asset data'!$F72) -> 0 | DY71: =IF('Asset data'!$F72=0,0,BO71/'Asset data'!$F72) -> 0 | DZ71: =IF('Asset data'!$F72=0,0,BP71/'Asset data'!$F72) -> 0 | EA71: =IF('Asset data'!$F72=0,0,BQ71/'Asset data'!$F72) -> 0 | EB71: =IF('Asset data'!$F72=0,0,BR71/'Asset data'!$F72) -> 0
A72: ='Asset data'!A73 -> 0 | B72: ='Asset data'!B73 -> 0 | C72: ='Asset data'!C73 -> 0 | D72: ='Asset data'!E73 -> 0 | E72: 0 | F72: ='Asset data'!G73 -> 0 | G72: 0 | H72: ='Asset data'!H73 -> 0 | I72: S | J72: =IF(A72=0,0,IF('Asset data'!$D$1=1,1,IF('Asset data'!$D$1=2,2,'Asset data'!I73))) -> 0 | K72: 0 | AY72: =repcalc('Age profile (Inst)'!CT73:GF73,J72,K72,H72,20,$L$20,$M$20) -> 0 | AZ72: 0 | BA72: 0 | BB72: 0 | BC72: 0 | BD72: 0 | BE72: 0 | BF72: 0 | BG72: 0 | BH72: 0 | BI72: 0 | BJ72: 0 | BK72: 0 | BL72: 0 | BM72: 0 | BN72: 0 | BO72: 0 | BP72: 0 | BQ72: 0 | BR72: 0 | BS72: 0 | BT72: 0 | BU72: 0 | BV72: 0 | BW72: 0 | BX72: 0 | BY72: 0 | BZ72: 0 | CA72: 0 | CB72: 0 | CC72: 0 | CD72: 0 | CE72: 0 | CF72: 0 | CG72: 0 | CH72: 0 | CI72: 0 | CJ72: 0 | CK72: 0 | CL72: 0 | CM72: 0 | CN72: 0 | CO72: 0 | CP72: 0 | CQ72: 0 | CR72: 0 | CS72: 0 | CT72: 0 | CU72: 0 | CV72: 0 | CW72: 0 | CX72: 0 | CY72: 0 | CZ72: 0 | DA72: 0 | DB72: 0 | DC72: 0 | DD72: 0 | DE72: 0 | DF72: 0 | DG72: 0 | DH72: 0 | DI72: =IF('Asset data'!$F73=0,0,AY72/'Asset data'!$F73) -> 0 | DJ72: =IF('Asset data'!$F73=0,0,AZ72/'Asset data'!$F73) -> 0 | DK72: =IF('Asset data'!$F73=0,0,BA72/'Asset data'!$F73) -> 0 | DL72: =IF('Asset data'!$F73=0,0,BB72/'Asset data'!$F73) -> 0 | DM72: =IF('Asset data'!$F73=0,0,BC72/'Asset data'!$F73) -> 0 | DN72: =IF('Asset data'!$F73=0,0,BD72/'Asset data'!$F73) -> 0 | DO72: =IF('Asset data'!$F73=0,0,BE72/'Asset data'!$F73) -> 0 | DP72: =IF('Asset data'!$F73=0,0,BF72/'Asset data'!$F73) -> 0 | DQ72: =IF('Asset data'!$F73=0,0,BG72/'Asset data'!$F73) -> 0 | DR72: =IF('Asset data'!$F73=0,0,BH72/'Asset data'!$F73) -> 0 | DS72: =IF('Asset data'!$F73=0,0,BI72/'Asset data'!$F73) -> 0 | DT72: =IF('Asset data'!$F73=0,0,BJ72/'Asset data'!$F73) -> 0 | DU72: =IF('Asset data'!$F73=0,0,BK72/'Asset data'!$F73) -> 0 | DV72: =IF('Asset data'!$F73=0,0,BL72/'Asset data'!$F73) -> 0 | DW72: =IF('Asset data'!$F73=0,0,BM72/'Asset data'!$F73) -> 0 | DX72: =IF('Asset data'!$F73=0,0,BN72/'Asset data'!$F73) -> 0 | DY72: =IF('Asset data'!$F73=0,0,BO72/'Asset data'!$F73) -> 0 | DZ72: =IF('Asset data'!$F73=0,0,BP72/'Asset data'!$F73) -> 0 | EA72: =IF('Asset data'!$F73=0,0,BQ72/'Asset data'!$F73) -> 0 | EB72: =IF('Asset data'!$F73=0,0,BR72/'Asset data'!$F73) -> 0
A73: ='Asset data'!A74 -> 0 | B73: ='Asset data'!B74 -> 0 | C73: ='Asset data'!C74 -> 0 | D73: ='Asset data'!E74 -> 0 | E73: 0 | F73: ='Asset data'!G74 -> 0 | G73: 0 | H73: ='Asset data'!H74 -> 0 | I73: S | J73: =IF(A73=0,0,IF('Asset data'!$D$1=1,1,IF('Asset data'!$D$1=2,2,'Asset data'!I74))) -> 0 | K73: 0 | AY73: =repcalc('Age profile (Inst)'!CT74:GF74,J73,K73,H73,20,$L$20,$M$20) -> 0 | AZ73: 0 | BA73: 0 | BB73: 0 | BC73: 0 | BD73: 0 | BE73: 0 | BF73: 0 | BG73: 0 | BH73: 0 | BI73: 0 | BJ73: 0 | BK73: 0 | BL73: 0 | BM73: 0 | BN73: 0 | BO73: 0 | BP73: 0 | BQ73: 0 | BR73: 0 | BS73: 0 | BT73: 0 | BU73: 0 | BV73: 0 | BW73: 0 | BX73: 0 | BY73: 0 | BZ73: 0 | CA73: 0 | CB73: 0 | CC73: 0 | CD73: 0 | CE73: 0 | CF73: 0 | CG73: 0 | CH73: 0 | CI73: 0 | CJ73: 0 | CK73: 0 | CL73: 0 | CM73: 0 | CN73: 0 | CO73: 0 | CP73: 0 | CQ73: 0 | CR73: 0 | CS73: 0 | CT73: 0 | CU73: 0 | CV73: 0 | CW73: 0 | CX73: 0 | CY73: 0 | CZ73: 0 | DA73: 0 | DB73: 0 | DC73: 0 | DD73: 0 | DE73: 0 | DF73: 0 | DG73: 0 | DH73: 0 | DI73: =IF('Asset data'!$F74=0,0,AY73/'Asset data'!$F74) -> 0 | DJ73: =IF('Asset data'!$F74=0,0,AZ73/'Asset data'!$F74) -> 0 | DK73: =IF('Asset data'!$F74=0,0,BA73/'Asset data'!$F74) -> 0 | DL73: =IF('Asset data'!$F74=0,0,BB73/'Asset data'!$F74) -> 0 | DM73: =IF('Asset data'!$F74=0,0,BC73/'Asset data'!$F74) -> 0 | DN73: =IF('Asset data'!$F74=0,0,BD73/'Asset data'!$F74) -> 0 | DO73: =IF('Asset data'!$F74=0,0,BE73/'Asset data'!$F74) -> 0 | DP73: =IF('Asset data'!$F74=0,0,BF73/'Asset data'!$F74) -> 0 | DQ73: =IF('Asset data'!$F74=0,0,BG73/'Asset data'!$F74) -> 0 | DR73: =IF('Asset data'!$F74=0,0,BH73/'Asset data'!$F74) -> 0 | DS73: =IF('Asset data'!$F74=0,0,BI73/'Asset data'!$F74) -> 0 | DT73: =IF('Asset data'!$F74=0,0,BJ73/'Asset data'!$F74) -> 0 | DU73: =IF('Asset data'!$F74=0,0,BK73/'Asset data'!$F74) -> 0 | DV73: =IF('Asset data'!$F74=0,0,BL73/'Asset data'!$F74) -> 0 | DW73: =IF('Asset data'!$F74=0,0,BM73/'Asset data'!$F74) -> 0 | DX73: =IF('Asset data'!$F74=0,0,BN73/'Asset data'!$F74) -> 0 | DY73: =IF('Asset data'!$F74=0,0,BO73/'Asset data'!$F74) -> 0 | DZ73: =IF('Asset data'!$F74=0,0,BP73/'Asset data'!$F74) -> 0 | EA73: =IF('Asset data'!$F74=0,0,BQ73/'Asset data'!$F74) -> 0 | EB73: =IF('Asset data'!$F74=0,0,BR73/'Asset data'!$F74) -> 0
A74: ='Asset data'!A75 -> 0 | B74: ='Asset data'!B75 -> 0 | C74: ='Asset data'!C75 -> 0 | D74: ='Asset data'!E75 -> 0 | E74: 0 | F74: ='Asset data'!G75 -> 0 | G74: 0 | H74: ='Asset data'!H75 -> 0 | I74: S | J74: =IF(A74=0,0,IF('Asset data'!$D$1=1,1,IF('Asset data'!$D$1=2,2,'Asset data'!I75))) -> 0 | K74: 0 | AY74: =repcalc('Age profile (Inst)'!CT75:GF75,J74,K74,H74,20,$L$20,$M$20) -> 0 | AZ74: 0 | BA74: 0 | BB74: 0 | BC74: 0 | BD74: 0 | BE74: 0 | BF74: 0 | BG74: 0 | BH74: 0 | BI74: 0 | BJ74: 0 | BK74: 0 | BL74: 0 | BM74: 0 | BN74: 0 | BO74: 0 | BP74: 0 | BQ74: 0 | BR74: 0 | BS74: 0 | BT74: 0 | BU74: 0 | BV74: 0 | BW74: 0 | BX74: 0 | BY74: 0 | BZ74: 0 | CA74: 0 | CB74: 0 | CC74: 0 | CD74: 0 | CE74: 0 | CF74: 0 | CG74: 0 | CH74: 0 | CI74: 0 | CJ74: 0 | CK74: 0 | CL74: 0 | CM74: 0 | CN74: 0 | CO74: 0 | CP74: 0 | CQ74: 0 | CR74: 0 | CS74: 0 | CT74: 0 | CU74: 0 | CV74: 0 | CW74: 0 | CX74: 0 | CY74: 0 | CZ74: 0 | DA74: 0 | DB74: 0 | DC74: 0 | DD74: 0 | DE74: 0 | DF74: 0 | DG74: 0 | DH74: 0 | DI74: =IF('Asset data'!$F75=0,0,AY74/'Asset data'!$F75) -> 0 | DJ74: =IF('Asset data'!$F75=0,0,AZ74/'Asset data'!$F75) -> 0 | DK74: =IF('Asset data'!$F75=0,0,BA74/'Asset data'!$F75) -> 0 | DL74: =IF('Asset data'!$F75=0,0,BB74/'Asset data'!$F75) -> 0 | DM74: =IF('Asset data'!$F75=0,0,BC74/'Asset data'!$F75) -> 0 | DN74: =IF('Asset data'!$F75=0,0,BD74/'Asset data'!$F75) -> 0 | DO74: =IF('Asset data'!$F75=0,0,BE74/'Asset data'!$F75) -> 0 | DP74: =IF('Asset data'!$F75=0,0,BF74/'Asset data'!$F75) -> 0 | DQ74: =IF('Asset data'!$F75=0,0,BG74/'Asset data'!$F75) -> 0 | DR74: =IF('Asset data'!$F75=0,0,BH74/'Asset data'!$F75) -> 0 | DS74: =IF('Asset data'!$F75=0,0,BI74/'Asset data'!$F75) -> 0 | DT74: =IF('Asset data'!$F75=0,0,BJ74/'Asset data'!$F75) -> 0 | DU74: =IF('Asset data'!$F75=0,0,BK74/'Asset data'!$F75) -> 0 | DV74: =IF('Asset data'!$F75=0,0,BL74/'Asset data'!$F75) -> 0 | DW74: =IF('Asset data'!$F75=0,0,BM74/'Asset data'!$F75) -> 0 | DX74: =IF('Asset data'!$F75=0,0,BN74/'Asset data'!$F75) -> 0 | DY74: =IF('Asset data'!$F75=0,0,BO74/'Asset data'!$F75) -> 0 | DZ74: =IF('Asset data'!$F75=0,0,BP74/'Asset data'!$F75) -> 0 | EA74: =IF('Asset data'!$F75=0,0,BQ74/'Asset data'!$F75) -> 0 | EB74: =IF('Asset data'!$F75=0,0,BR74/'Asset data'!$F75) -> 0
A75: ='Asset data'!A76 -> 0 | B75: ='Asset data'!B76 -> 0 | C75: ='Asset data'!C76 -> 0 | D75: ='Asset data'!E76 -> 0 | E75: 0 | F75: ='Asset data'!G76 -> 0 | G75: 0 | H75: ='Asset data'!H76 -> 0 | I75: S | J75: =IF(A75=0,0,IF('Asset data'!$D$1=1,1,IF('Asset data'!$D$1=2,2,'Asset data'!I76))) -> 0 | K75: 0 | AY75: =repcalc('Age profile (Inst)'!CT76:GF76,J75,K75,H75,20,$L$20,$M$20) -> 0 | AZ75: 0 | BA75: 0 | BB75: 0 | BC75: 0 | BD75: 0 | BE75: 0 | BF75: 0 | BG75: 0 | BH75: 0 | BI75: 0 | BJ75: 0 | BK75: 0 | BL75: 0 | BM75: 0 | BN75: 0 | BO75: 0 | BP75: 0 | BQ75: 0 | BR75: 0 | BS75: 0 | BT75: 0 | BU75: 0 | BV75: 0 | BW75: 0 | BX75: 0 | BY75: 0 | BZ75: 0 | CA75: 0 | CB75: 0 | CC75: 0 | CD75: 0 | CE75: 0 | CF75: 0 | CG75: 0 | CH75: 0 | CI75: 0 | CJ75: 0 | CK75: 0 | CL75: 0 | CM75: 0 | CN75: 0 | CO75: 0 | CP75: 0 | CQ75: 0 | CR75: 0 | CS75: 0 | CT75: 0 | CU75: 0 | CV75: 0 | CW75: 0 | CX75: 0 | CY75: 0 | CZ75: 0 | DA75: 0 | DB75: 0 | DC75: 0 | DD75: 0 | DE75: 0 | DF75: 0 | DG75: 0 | DH75: 0 | DI75: =IF('Asset data'!$F76=0,0,AY75/'Asset data'!$F76) -> 0 | DJ75: =IF('Asset data'!$F76=0,0,AZ75/'Asset data'!$F76) -> 0 | DK75: =IF('Asset data'!$F76=0,0,BA75/'Asset data'!$F76) -> 0 | DL75: =IF('Asset data'!$F76=0,0,BB75/'Asset data'!$F76) -> 0 | DM75: =IF('Asset data'!$F76=0,0,BC75/'Asset data'!$F76) -> 0 | DN75: =IF('Asset data'!$F76=0,0,BD75/'Asset data'!$F76) -> 0 | DO75: =IF('Asset data'!$F76=0,0,BE75/'Asset data'!$F76) -> 0 | DP75: =IF('Asset data'!$F76=0,0,BF75/'Asset data'!$F76) -> 0 | DQ75: =IF('Asset data'!$F76=0,0,BG75/'Asset data'!$F76) -> 0 | DR75: =IF('Asset data'!$F76=0,0,BH75/'Asset data'!$F76) -> 0 | DS75: =IF('Asset data'!$F76=0,0,BI75/'Asset data'!$F76) -> 0 | DT75: =IF('Asset data'!$F76=0,0,BJ75/'Asset data'!$F76) -> 0 | DU75: =IF('Asset data'!$F76=0,0,BK75/'Asset data'!$F76) -> 0 | DV75: =IF('Asset data'!$F76=0,0,BL75/'Asset data'!$F76) -> 0 | DW75: =IF('Asset data'!$F76=0,0,BM75/'Asset data'!$F76) -> 0 | DX75: =IF('Asset data'!$F76=0,0,BN75/'Asset data'!$F76) -> 0 | DY75: =IF('Asset data'!$F76=0,0,BO75/'Asset data'!$F76) -> 0 | DZ75: =IF('Asset data'!$F76=0,0,BP75/'Asset data'!$F76) -> 0 | EA75: =IF('Asset data'!$F76=0,0,BQ75/'Asset data'!$F76) -> 0 | EB75: =IF('Asset data'!$F76=0,0,BR75/'Asset data'!$F76) -> 0
A76: ='Asset data'!A77 -> 0 | B76: ='Asset data'!B77 -> 0 | C76: ='Asset data'!C77 -> 0 | D76: ='Asset data'!E77 -> 0 | E76: 0 | F76: ='Asset data'!G77 -> 0 | G76: 0 | H76: ='Asset data'!H77 -> 0 | I76: S | J76: =IF(A76=0,0,IF('Asset data'!$D$1=1,1,IF('Asset data'!$D$1=2,2,'Asset data'!I77))) -> 0 | K76: 0 | AY76: =repcalc('Age profile (Inst)'!CT77:GF77,J76,K76,H76,20,$L$20,$M$20) -> 0 | AZ76: 0 | BA76: 0 | BB76: 0 | BC76: 0 | BD76: 0 | BE76: 0 | BF76: 0 | BG76: 0 | BH76: 0 | BI76: 0 | BJ76: 0 | BK76: 0 | BL76: 0 | BM76: 0 | BN76: 0 | BO76: 0 | BP76: 0 | BQ76: 0 | BR76: 0 | BS76: 0 | BT76: 0 | BU76: 0 | BV76: 0 | BW76: 0 | BX76: 0 | BY76: 0 | BZ76: 0 | CA76: 0 | CB76: 0 | CC76: 0 | CD76: 0 | CE76: 0 | CF76: 0 | CG76: 0 | CH76: 0 | CI76: 0 | CJ76: 0 | CK76: 0 | CL76: 0 | CM76: 0 | CN76: 0 | CO76: 0 | CP76: 0 | CQ76: 0 | CR76: 0 | CS76: 0 | CT76: 0 | CU76: 0 | CV76: 0 | CW76: 0 | CX76: 0 | CY76: 0 | CZ76: 0 | DA76: 0 | DB76: 0 | DC76: 0 | DD76: 0 | DE76: 0 | DF76: 0 | DG76: 0 | DH76: 0 | DI76: =IF('Asset data'!$F77=0,0,AY76/'Asset data'!$F77) -> 0 | DJ76: =IF('Asset data'!$F77=0,0,AZ76/'Asset data'!$F77) -> 0 | DK76: =IF('Asset data'!$F77=0,0,BA76/'Asset data'!$F77) -> 0 | DL76: =IF('Asset data'!$F77=0,0,BB76/'Asset data'!$F77) -> 0 | DM76: =IF('Asset data'!$F77=0,0,BC76/'Asset data'!$F77) -> 0 | DN76: =IF('Asset data'!$F77=0,0,BD76/'Asset data'!$F77) -> 0 | DO76: =IF('Asset data'!$F77=0,0,BE76/'Asset data'!$F77) -> 0 | DP76: =IF('Asset data'!$F77=0,0,BF76/'Asset data'!$F77) -> 0 | DQ76: =IF('Asset data'!$F77=0,0,BG76/'Asset data'!$F77) -> 0 | DR76: =IF('Asset data'!$F77=0,0,BH76/'Asset data'!$F77) -> 0 | DS76: =IF('Asset data'!$F77=0,0,BI76/'Asset data'!$F77) -> 0 | DT76: =IF('Asset data'!$F77=0,0,BJ76/'Asset data'!$F77) -> 0 | DU76: =IF('Asset data'!$F77=0,0,BK76/'Asset data'!$F77) -> 0 | DV76: =IF('Asset data'!$F77=0,0,BL76/'Asset data'!$F77) -> 0 | DW76: =IF('Asset data'!$F77=0,0,BM76/'Asset data'!$F77) -> 0 | DX76: =IF('Asset data'!$F77=0,0,BN76/'Asset data'!$F77) -> 0 | DY76: =IF('Asset data'!$F77=0,0,BO76/'Asset data'!$F77) -> 0 | DZ76: =IF('Asset data'!$F77=0,0,BP76/'Asset data'!$F77) -> 0 | EA76: =IF('Asset data'!$F77=0,0,BQ76/'Asset data'!$F77) -> 0 | EB76: =IF('Asset data'!$F77=0,0,BR76/'Asset data'!$F77) -> 0
A77: ='Asset data'!A78 -> 0 | B77: ='Asset data'!B78 -> 0 | C77: ='Asset data'!C78 -> 0 | D77: ='Asset data'!E78 -> 0 | E77: 0 | F77: ='Asset data'!G78 -> 0 | G77: 0 | H77: ='Asset data'!H78 -> 0 | I77: S | J77: =IF(A77=0,0,IF('Asset data'!$D$1=1,1,IF('Asset data'!$D$1=2,2,'Asset data'!I78))) -> 0 | K77: 0 | AY77: =repcalc('Age profile (Inst)'!CT78:GF78,J77,K77,H77,20,$L$20,$M$20) -> 0 | AZ77: 0 | BA77: 0 | BB77: 0 | BC77: 0 | BD77: 0 | BE77: 0 | BF77: 0 | BG77: 0 | BH77: 0 | BI77: 0 | BJ77: 0 | BK77: 0 | BL77: 0 | BM77: 0 | BN77: 0 | BO77: 0 | BP77: 0 | BQ77: 0 | BR77: 0 | BS77: 0 | BT77: 0 | BU77: 0 | BV77: 0 | BW77: 0 | BX77: 0 | BY77: 0 | BZ77: 0 | CA77: 0 | CB77: 0 | CC77: 0 | CD77: 0 | CE77: 0 | CF77: 0 | CG77: 0 | CH77: 0 | CI77: 0 | CJ77: 0 | CK77: 0 | CL77: 0 | CM77: 0 | CN77: 0 | CO77: 0 | CP77: 0 | CQ77: 0 | CR77: 0 | CS77: 0 | CT77: 0 | CU77: 0 | CV77: 0 | CW77: 0 | CX77: 0 | CY77: 0 | CZ77: 0 | DA77: 0 | DB77: 0 | DC77: 0 | DD77: 0 | DE77: 0 | DF77: 0 | DG77: 0 | DH77: 0 | DI77: =IF('Asset data'!$F78=0,0,AY77/'Asset data'!$F78) -> 0 | DJ77: =IF('Asset data'!$F78=0,0,AZ77/'Asset data'!$F78) -> 0 | DK77: =IF('Asset data'!$F78=0,0,BA77/'Asset data'!$F78) -> 0 | DL77: =IF('Asset data'!$F78=0,0,BB77/'Asset data'!$F78) -> 0 | DM77: =IF('Asset data'!$F78=0,0,BC77/'Asset data'!$F78) -> 0 | DN77: =IF('Asset data'!$F78=0,0,BD77/'Asset data'!$F78) -> 0 | DO77: =IF('Asset data'!$F78=0,0,BE77/'Asset data'!$F78) -> 0 | DP77: =IF('Asset data'!$F78=0,0,BF77/'Asset data'!$F78) -> 0 | DQ77: =IF('Asset data'!$F78=0,0,BG77/'Asset data'!$F78) -> 0 | DR77: =IF('Asset data'!$F78=0,0,BH77/'Asset data'!$F78) -> 0 | DS77: =IF('Asset data'!$F78=0,0,BI77/'Asset data'!$F78) -> 0 | DT77: =IF('Asset data'!$F78=0,0,BJ77/'Asset data'!$F78) -> 0 | DU77: =IF('Asset data'!$F78=0,0,BK77/'Asset data'!$F78) -> 0 | DV77: =IF('Asset data'!$F78=0,0,BL77/'Asset data'!$F78) -> 0 | DW77: =IF('Asset data'!$F78=0,0,BM77/'Asset data'!$F78) -> 0 | DX77: =IF('Asset data'!$F78=0,0,BN77/'Asset data'!$F78) -> 0 | DY77: =IF('Asset data'!$F78=0,0,BO77/'Asset data'!$F78) -> 0 | DZ77: =IF('Asset data'!$F78=0,0,BP77/'Asset data'!$F78) -> 0 | EA77: =IF('Asset data'!$F78=0,0,BQ77/'Asset data'!$F78) -> 0 | EB77: =IF('Asset data'!$F78=0,0,BR77/'Asset data'!$F78) -> 0
A78: ='Asset data'!A79 -> 0 | B78: ='Asset data'!B79 -> 0 | C78: ='Asset data'!C79 -> 0 | D78: ='Asset data'!E79 -> 0 | E78: 0 | F78: ='Asset data'!G79 -> 0 | G78: 0 | H78: ='Asset data'!H79 -> 0 | I78: S | J78: =IF(A78=0,0,IF('Asset data'!$D$1=1,1,IF('Asset data'!$D$1=2,2,'Asset data'!I79))) -> 0 | K78: 0 | AY78: =repcalc('Age profile (Inst)'!CT79:GF79,J78,K78,H78,20,$L$20,$M$20) -> 0 | AZ78: 0 | BA78: 0 | BB78: 0 | BC78: 0 | BD78: 0 | BE78: 0 | BF78: 0 | BG78: 0 | BH78: 0 | BI78: 0 | BJ78: 0 | BK78: 0 | BL78: 0 | BM78: 0 | BN78: 0 | BO78: 0 | BP78: 0 | BQ78: 0 | BR78: 0 | BS78: 0 | BT78: 0 | BU78: 0 | BV78: 0 | BW78: 0 | BX78: 0 | BY78: 0 | BZ78: 0 | CA78: 0 | CB78: 0 | CC78: 0 | CD78: 0 | CE78: 0 | CF78: 0 | CG78: 0 | CH78: 0 | CI78: 0 | CJ78: 0 | CK78: 0 | CL78: 0 | CM78: 0 | CN78: 0 | CO78: 0 | CP78: 0 | CQ78: 0 | CR78: 0 | CS78: 0 | CT78: 0 | CU78: 0 | CV78: 0 | CW78: 0 | CX78: 0 | CY78: 0 | CZ78: 0 | DA78: 0 | DB78: 0 | DC78: 0 | DD78: 0 | DE78: 0 | DF78: 0 | DG78: 0 | DH78: 0 | DI78: =IF('Asset data'!$F79=0,0,AY78/'Asset data'!$F79) -> 0 | DJ78: =IF('Asset data'!$F79=0,0,AZ78/'Asset data'!$F79) -> 0 | DK78: =IF('Asset data'!$F79=0,0,BA78/'Asset data'!$F79) -> 0 | DL78: =IF('Asset data'!$F79=0,0,BB78/'Asset data'!$F79) -> 0 | DM78: =IF('Asset data'!$F79=0,0,BC78/'Asset data'!$F79) -> 0 | DN78: =IF('Asset data'!$F79=0,0,BD78/'Asset data'!$F79) -> 0 | DO78: =IF('Asset data'!$F79=0,0,BE78/'Asset data'!$F79) -> 0 | DP78: =IF('Asset data'!$F79=0,0,BF78/'Asset data'!$F79) -> 0 | DQ78: =IF('Asset data'!$F79=0,0,BG78/'Asset data'!$F79) -> 0 | DR78: =IF('Asset data'!$F79=0,0,BH78/'Asset data'!$F79) -> 0 | DS78: =IF('Asset data'!$F79=0,0,BI78/'Asset data'!$F79) -> 0 | DT78: =IF('Asset data'!$F79=0,0,BJ78/'Asset data'!$F79) -> 0 | DU78: =IF('Asset data'!$F79=0,0,BK78/'Asset data'!$F79) -> 0 | DV78: =IF('Asset data'!$F79=0,0,BL78/'Asset data'!$F79) -> 0 | DW78: =IF('Asset data'!$F79=0,0,BM78/'Asset data'!$F79) -> 0 | DX78: =IF('Asset data'!$F79=0,0,BN78/'Asset data'!$F79) -> 0 | DY78: =IF('Asset data'!$F79=0,0,BO78/'Asset data'!$F79) -> 0 | DZ78: =IF('Asset data'!$F79=0,0,BP78/'Asset data'!$F79) -> 0 | EA78: =IF('Asset data'!$F79=0,0,BQ78/'Asset data'!$F79) -> 0 | EB78: =IF('Asset data'!$F79=0,0,BR78/'Asset data'!$F79) -> 0
A79: ='Asset data'!A80 -> 0 | B79: ='Asset data'!B80 -> 0 | C79: ='Asset data'!C80 -> 0 | D79: ='Asset data'!E80 -> 0 | E79: 0 | F79: ='Asset data'!G80 -> 0 | G79: 0 | H79: ='Asset data'!H80 -> 0 | I79: S | J79: =IF(A79=0,0,IF('Asset data'!$D$1=1,1,IF('Asset data'!$D$1=2,2,'Asset data'!I80))) -> 0 | K79: 0 | AY79: =repcalc('Age profile (Inst)'!CT80:GF80,J79,K79,H79,20,$L$20,$M$20) -> 0 | AZ79: 0 | BA79: 0 | BB79: 0 | BC79: 0 | BD79: 0 | BE79: 0 | BF79: 0 | BG79: 0 | BH79: 0 | BI79: 0 | BJ79: 0 | BK79: 0 | BL79: 0 | BM79: 0 | BN79: 0 | BO79: 0 | BP79: 0 | BQ79: 0 | BR79: 0 | BS79: 0 | BT79: 0 | BU79: 0 | BV79: 0 | BW79: 0 | BX79: 0 | BY79: 0 | BZ79: 0 | CA79: 0 | CB79: 0 | CC79: 0 | CD79: 0 | CE79: 0 | CF79: 0 | CG79: 0 | CH79: 0 | CI79: 0 | CJ79: 0 | CK79: 0 | CL79: 0 | CM79: 0 | CN79: 0 | CO79: 0 | CP79: 0 | CQ79: 0 | CR79: 0 | CS79: 0 | CT79: 0 | CU79: 0 | CV79: 0 | CW79: 0 | CX79: 0 | CY79: 0 | CZ79: 0 | DA79: 0 | DB79: 0 | DC79: 0 | DD79: 0 | DE79: 0 | DF79: 0 | DG79: 0 | DH79: 0 | DI79: =IF('Asset data'!$F80=0,0,AY79/'Asset data'!$F80) -> 0 | DJ79: =IF('Asset data'!$F80=0,0,AZ79/'Asset data'!$F80) -> 0 | DK79: =IF('Asset data'!$F80=0,0,BA79/'Asset data'!$F80) -> 0 | DL79: =IF('Asset data'!$F80=0,0,BB79/'Asset data'!$F80) -> 0 | DM79: =IF('Asset data'!$F80=0,0,BC79/'Asset data'!$F80) -> 0 | DN79: =IF('Asset data'!$F80=0,0,BD79/'Asset data'!$F80) -> 0 | DO79: =IF('Asset data'!$F80=0,0,BE79/'Asset data'!$F80) -> 0 | DP79: =IF('Asset data'!$F80=0,0,BF79/'Asset data'!$F80) -> 0 | DQ79: =IF('Asset data'!$F80=0,0,BG79/'Asset data'!$F80) -> 0 | DR79: =IF('Asset data'!$F80=0,0,BH79/'Asset data'!$F80) -> 0 | DS79: =IF('Asset data'!$F80=0,0,BI79/'Asset data'!$F80) -> 0 | DT79: =IF('Asset data'!$F80=0,0,BJ79/'Asset data'!$F80) -> 0 | DU79: =IF('Asset data'!$F80=0,0,BK79/'Asset data'!$F80) -> 0 | DV79: =IF('Asset data'!$F80=0,0,BL79/'Asset data'!$F80) -> 0 | DW79: =IF('Asset data'!$F80=0,0,BM79/'Asset data'!$F80) -> 0 | DX79: =IF('Asset data'!$F80=0,0,BN79/'Asset data'!$F80) -> 0 | DY79: =IF('Asset data'!$F80=0,0,BO79/'Asset data'!$F80) -> 0 | DZ79: =IF('Asset data'!$F80=0,0,BP79/'Asset data'!$F80) -> 0 | EA79: =IF('Asset data'!$F80=0,0,BQ79/'Asset data'!$F80) -> 0 | EB79: =IF('Asset data'!$F80=0,0,BR79/'Asset data'!$F80) -> 0
A80: ='Asset data'!A81 -> 0 | B80: ='Asset data'!B81 -> 0 | C80: ='Asset data'!C81 -> 0 | D80: ='Asset data'!E81 -> 0 | E80: 0 | F80: ='Asset data'!G81 -> 0 | G80: 0 | H80: ='Asset data'!H81 -> 0 | I80: S | J80: =IF(A80=0,0,IF('Asset data'!$D$1=1,1,IF('Asset data'!$D$1=2,2,'Asset data'!I81))) -> 0 | K80: 0 | AY80: =repcalc('Age profile (Inst)'!CT81:GF81,J80,K80,H80,20,$L$20,$M$20) -> 0 | AZ80: 0 | BA80: 0 | BB80: 0 | BC80: 0 | BD80: 0 | BE80: 0 | BF80: 0 | BG80: 0 | BH80: 0 | BI80: 0 | BJ80: 0 | BK80: 0 | BL80: 0 | BM80: 0 | BN80: 0 | BO80: 0 | BP80: 0 | BQ80: 0 | BR80: 0 | BS80: 0 | BT80: 0 | BU80: 0 | BV80: 0 | BW80: 0 | BX80: 0 | BY80: 0 | BZ80: 0 | CA80: 0 | CB80: 0 | CC80: 0 | CD80: 0 | CE80: 0 | CF80: 0 | CG80: 0 | CH80: 0 | CI80: 0 | CJ80: 0 | CK80: 0 | CL80: 0 | CM80: 0 | CN80: 0 | CO80: 0 | CP80: 0 | CQ80: 0 | CR80: 0 | CS80: 0 | CT80: 0 | CU80: 0 | CV80: 0 | CW80: 0 | CX80: 0 | CY80: 0 | CZ80: 0 | DA80: 0 | DB80: 0 | DC80: 0 | DD80: 0 | DE80: 0 | DF80: 0 | DG80: 0 | DH80: 0 | DI80: =IF('Asset data'!$F81=0,0,AY80/'Asset data'!$F81) -> 0 | DJ80: =IF('Asset data'!$F81=0,0,AZ80/'Asset data'!$F81) -> 0 | DK80: =IF('Asset data'!$F81=0,0,BA80/'Asset data'!$F81) -> 0 | DL80: =IF('Asset data'!$F81=0,0,BB80/'Asset data'!$F81) -> 0 | DM80: =IF('Asset data'!$F81=0,0,BC80/'Asset data'!$F81) -> 0 | DN80: =IF('Asset data'!$F81=0,0,BD80/'Asset data'!$F81) -> 0 | DO80: =IF('Asset data'!$F81=0,0,BE80/'Asset data'!$F81) -> 0 | DP80: =IF('Asset data'!$F81=0,0,BF80/'Asset data'!$F81) -> 0 | DQ80: =IF('Asset data'!$F81=0,0,BG80/'Asset data'!$F81) -> 0 | DR80: =IF('Asset data'!$F81=0,0,BH80/'Asset data'!$F81) -> 0 | DS80: =IF('Asset data'!$F81=0,0,BI80/'Asset data'!$F81) -> 0 | DT80: =IF('Asset data'!$F81=0,0,BJ80/'Asset data'!$F81) -> 0 | DU80: =IF('Asset data'!$F81=0,0,BK80/'Asset data'!$F81) -> 0 | DV80: =IF('Asset data'!$F81=0,0,BL80/'Asset data'!$F81) -> 0 | DW80: =IF('Asset data'!$F81=0,0,BM80/'Asset data'!$F81) -> 0 | DX80: =IF('Asset data'!$F81=0,0,BN80/'Asset data'!$F81) -> 0 | DY80: =IF('Asset data'!$F81=0,0,BO80/'Asset data'!$F81) -> 0 | DZ80: =IF('Asset data'!$F81=0,0,BP80/'Asset data'!$F81) -> 0 | EA80: =IF('Asset data'!$F81=0,0,BQ80/'Asset data'!$F81) -> 0 | EB80: =IF('Asset data'!$F81=0,0,BR80/'Asset data'!$F81) -> 0
A81: ='Asset data'!A82 -> 0 | B81: ='Asset data'!B82 -> 0 | C81: ='Asset data'!C82 -> 0 | D81: ='Asset data'!E82 -> 0 | E81: 0 | F81: ='Asset data'!G82 -> 0 | G81: 0 | H81: ='Asset data'!H82 -> 0 | I81: S | J81: =IF(A81=0,0,IF('Asset data'!$D$1=1,1,IF('Asset data'!$D$1=2,2,'Asset data'!I82))) -> 0 | K81: 0 | AY81: =repcalc('Age profile (Inst)'!CT82:GF82,J81,K81,H81,20,$L$20,$M$20) -> 0 | AZ81: 0 | BA81: 0 | BB81: 0 | BC81: 0 | BD81: 0 | BE81: 0 | BF81: 0 | BG81: 0 | BH81: 0 | BI81: 0 | BJ81: 0 | BK81: 0 | BL81: 0 | BM81: 0 | BN81: 0 | BO81: 0 | BP81: 0 | BQ81: 0 | BR81: 0 | BS81: 0 | BT81: 0 | BU81: 0 | BV81: 0 | BW81: 0 | BX81: 0 | BY81: 0 | BZ81: 0 | CA81: 0 | CB81: 0 | CC81: 0 | CD81: 0 | CE81: 0 | CF81: 0 | CG81: 0 | CH81: 0 | CI81: 0 | CJ81: 0 | CK81: 0 | CL81: 0 | CM81: 0 | CN81: 0 | CO81: 0 | CP81: 0 | CQ81: 0 | CR81: 0 | CS81: 0 | CT81: 0 | CU81: 0 | CV81: 0 | CW81: 0 | CX81: 0 | CY81: 0 | CZ81: 0 | DA81: 0 | DB81: 0 | DC81: 0 | DD81: 0 | DE81: 0 | DF81: 0 | DG81: 0 | DH81: 0 | DI81: =IF('Asset data'!$F82=0,0,AY81/'Asset data'!$F82) -> 0 | DJ81: =IF('Asset data'!$F82=0,0,AZ81/'Asset data'!$F82) -> 0 | DK81: =IF('Asset data'!$F82=0,0,BA81/'Asset data'!$F82) -> 0 | DL81: =IF('Asset data'!$F82=0,0,BB81/'Asset data'!$F82) -> 0 | DM81: =IF('Asset data'!$F82=0,0,BC81/'Asset data'!$F82) -> 0 | DN81: =IF('Asset data'!$F82=0,0,BD81/'Asset data'!$F82) -> 0 | DO81: =IF('Asset data'!$F82=0,0,BE81/'Asset data'!$F82) -> 0 | DP81: =IF('Asset data'!$F82=0,0,BF81/'Asset data'!$F82) -> 0 | DQ81: =IF('Asset data'!$F82=0,0,BG81/'Asset data'!$F82) -> 0 | DR81: =IF('Asset data'!$F82=0,0,BH81/'Asset data'!$F82) -> 0 | DS81: =IF('Asset data'!$F82=0,0,BI81/'Asset data'!$F82) -> 0 | DT81: =IF('Asset data'!$F82=0,0,BJ81/'Asset data'!$F82) -> 0 | DU81: =IF('Asset data'!$F82=0,0,BK81/'Asset data'!$F82) -> 0 | DV81: =IF('Asset data'!$F82=0,0,BL81/'Asset data'!$F82) -> 0 | DW81: =IF('Asset data'!$F82=0,0,BM81/'Asset data'!$F82) -> 0 | DX81: =IF('Asset data'!$F82=0,0,BN81/'Asset data'!$F82) -> 0 | DY81: =IF('Asset data'!$F82=0,0,BO81/'Asset data'!$F82) -> 0 | DZ81: =IF('Asset data'!$F82=0,0,BP81/'Asset data'!$F82) -> 0 | EA81: =IF('Asset data'!$F82=0,0,BQ81/'Asset data'!$F82) -> 0 | EB81: =IF('Asset data'!$F82=0,0,BR81/'Asset data'!$F82) -> 0
A82: ='Asset data'!A83 -> 0 | B82: ='Asset data'!B83 -> 0 | C82: ='Asset data'!C83 -> 0 | D82: ='Asset data'!E83 -> 0 | E82: 0 | F82: ='Asset data'!G83 -> 0 | G82: 0 | H82: ='Asset data'!H83 -> 0 | I82: S | J82: =IF(A82=0,0,IF('Asset data'!$D$1=1,1,IF('Asset data'!$D$1=2,2,'Asset data'!I83))) -> 0 | K82: 0 | AY82: =repcalc('Age profile (Inst)'!CT83:GF83,J82,K82,H82,20,$L$20,$M$20) -> 0 | AZ82: 0 | BA82: 0 | BB82: 0 | BC82: 0 | BD82: 0 | BE82: 0 | BF82: 0 | BG82: 0 | BH82: 0 | BI82: 0 | BJ82: 0 | BK82: 0 | BL82: 0 | BM82: 0 | BN82: 0 | BO82: 0 | BP82: 0 | BQ82: 0 | BR82: 0 | BS82: 0 | BT82: 0 | BU82: 0 | BV82: 0 | BW82: 0 | BX82: 0 | BY82: 0 | BZ82: 0 | CA82: 0 | CB82: 0 | CC82: 0 | CD82: 0 | CE82: 0 | CF82: 0 | CG82: 0 | CH82: 0 | CI82: 0 | CJ82: 0 | CK82: 0 | CL82: 0 | CM82: 0 | CN82: 0 | CO82: 0 | CP82: 0 | CQ82: 0 | CR82: 0 | CS82: 0 | CT82: 0 | CU82: 0 | CV82: 0 | CW82: 0 | CX82: 0 | CY82: 0 | CZ82: 0 | DA82: 0 | DB82: 0 | DC82: 0 | DD82: 0 | DE82: 0 | DF82: 0 | DG82: 0 | DH82: 0 | DI82: =IF('Asset data'!$F83=0,0,AY82/'Asset data'!$F83) -> 0 | DJ82: =IF('Asset data'!$F83=0,0,AZ82/'Asset data'!$F83) -> 0 | DK82: =IF('Asset data'!$F83=0,0,BA82/'Asset data'!$F83) -> 0 | DL82: =IF('Asset data'!$F83=0,0,BB82/'Asset data'!$F83) -> 0 | DM82: =IF('Asset data'!$F83=0,0,BC82/'Asset data'!$F83) -> 0 | DN82: =IF('Asset data'!$F83=0,0,BD82/'Asset data'!$F83) -> 0 | DO82: =IF('Asset data'!$F83=0,0,BE82/'Asset data'!$F83) -> 0 | DP82: =IF('Asset data'!$F83=0,0,BF82/'Asset data'!$F83) -> 0 | DQ82: =IF('Asset data'!$F83=0,0,BG82/'Asset data'!$F83) -> 0 | DR82: =IF('Asset data'!$F83=0,0,BH82/'Asset data'!$F83) -> 0 | DS82: =IF('Asset data'!$F83=0,0,BI82/'Asset data'!$F83) -> 0 | DT82: =IF('Asset data'!$F83=0,0,BJ82/'Asset data'!$F83) -> 0 | DU82: =IF('Asset data'!$F83=0,0,BK82/'Asset data'!$F83) -> 0 | DV82: =IF('Asset data'!$F83=0,0,BL82/'Asset data'!$F83) -> 0 | DW82: =IF('Asset data'!$F83=0,0,BM82/'Asset data'!$F83) -> 0 | DX82: =IF('Asset data'!$F83=0,0,BN82/'Asset data'!$F83) -> 0 | DY82: =IF('Asset data'!$F83=0,0,BO82/'Asset data'!$F83) -> 0 | DZ82: =IF('Asset data'!$F83=0,0,BP82/'Asset data'!$F83) -> 0 | EA82: =IF('Asset data'!$F83=0,0,BQ82/'Asset data'!$F83) -> 0 | EB82: =IF('Asset data'!$F83=0,0,BR82/'Asset data'!$F83) -> 0
A83: ='Asset data'!A84 -> 0 | B83: ='Asset data'!B84 -> 0 | C83: ='Asset data'!C84 -> 0 | D83: ='Asset data'!E84 -> 0 | E83: 0 | F83: ='Asset data'!G84 -> 0 | G83: 0 | H83: ='Asset data'!H84 -> 0 | I83: S | J83: =IF(A83=0,0,IF('Asset data'!$D$1=1,1,IF('Asset data'!$D$1=2,2,'Asset data'!I84))) -> 0 | K83: 0 | AY83: =repcalc('Age profile (Inst)'!CT84:GF84,J83,K83,H83,20,$L$20,$M$20) -> 0 | AZ83: 0 | BA83: 0 | BB83: 0 | BC83: 0 | BD83: 0 | BE83: 0 | BF83: 0 | BG83: 0 | BH83: 0 | BI83: 0 | BJ83: 0 | BK83: 0 | BL83: 0 | BM83: 0 | BN83: 0 | BO83: 0 | BP83: 0 | BQ83: 0 | BR83: 0 | BS83: 0 | BT83: 0 | BU83: 0 | BV83: 0 | BW83: 0 | BX83: 0 | BY83: 0 | BZ83: 0 | CA83: 0 | CB83: 0 | CC83: 0 | CD83: 0 | CE83: 0 | CF83: 0 | CG83: 0 | CH83: 0 | CI83: 0 | CJ83: 0 | CK83: 0 | CL83: 0 | CM83: 0 | CN83: 0 | CO83: 0 | CP83: 0 | CQ83: 0 | CR83: 0 | CS83: 0 | CT83: 0 | CU83: 0 | CV83: 0 | CW83: 0 | CX83: 0 | CY83: 0 | CZ83: 0 | DA83: 0 | DB83: 0 | DC83: 0 | DD83: 0 | DE83: 0 | DF83: 0 | DG83: 0 | DH83: 0 | DI83: =IF('Asset data'!$F84=0,0,AY83/'Asset data'!$F84) -> 0 | DJ83: =IF('Asset data'!$F84=0,0,AZ83/'Asset data'!$F84) -> 0 | DK83: =IF('Asset data'!$F84=0,0,BA83/'Asset data'!$F84) -> 0 | DL83: =IF('Asset data'!$F84=0,0,BB83/'Asset data'!$F84) -> 0 | DM83: =IF('Asset data'!$F84=0,0,BC83/'Asset data'!$F84) -> 0 | DN83: =IF('Asset data'!$F84=0,0,BD83/'Asset data'!$F84) -> 0 | DO83: =IF('Asset data'!$F84=0,0,BE83/'Asset data'!$F84) -> 0 | DP83: =IF('Asset data'!$F84=0,0,BF83/'Asset data'!$F84) -> 0 | DQ83: =IF('Asset data'!$F84=0,0,BG83/'Asset data'!$F84) -> 0 | DR83: =IF('Asset data'!$F84=0,0,BH83/'Asset data'!$F84) -> 0 | DS83: =IF('Asset data'!$F84=0,0,BI83/'Asset data'!$F84) -> 0 | DT83: =IF('Asset data'!$F84=0,0,BJ83/'Asset data'!$F84) -> 0 | DU83: =IF('Asset data'!$F84=0,0,BK83/'Asset data'!$F84) -> 0 | DV83: =IF('Asset data'!$F84=0,0,BL83/'Asset data'!$F84) -> 0 | DW83: =IF('Asset data'!$F84=0,0,BM83/'Asset data'!$F84) -> 0 | DX83: =IF('Asset data'!$F84=0,0,BN83/'Asset data'!$F84) -> 0 | DY83: =IF('Asset data'!$F84=0,0,BO83/'Asset data'!$F84) -> 0 | DZ83: =IF('Asset data'!$F84=0,0,BP83/'Asset data'!$F84) -> 0 | EA83: =IF('Asset data'!$F84=0,0,BQ83/'Asset data'!$F84) -> 0 | EB83: =IF('Asset data'!$F84=0,0,BR83/'Asset data'!$F84) -> 0
A84: ='Asset data'!A85 -> 0 | B84: ='Asset data'!B85 -> 0 | C84: ='Asset data'!C85 -> 0 | D84: ='Asset data'!E85 -> 0 | E84: 0 | F84: ='Asset data'!G85 -> 0 | G84: 0 | H84: ='Asset data'!H85 -> 0 | I84: S | J84: =IF(A84=0,0,IF('Asset data'!$D$1=1,1,IF('Asset data'!$D$1=2,2,'Asset data'!I85))) -> 0 | K84: 0 | AY84: =repcalc('Age profile (Inst)'!CT85:GF85,J84,K84,H84,20,$L$20,$M$20) -> 0 | AZ84: 0 | BA84: 0 | BB84: 0 | BC84: 0 | BD84: 0 | BE84: 0 | BF84: 0 | BG84: 0 | BH84: 0 | BI84: 0 | BJ84: 0 | BK84: 0 | BL84: 0 | BM84: 0 | BN84: 0 | BO84: 0 | BP84: 0 | BQ84: 0 | BR84: 0 | BS84: 0 | BT84: 0 | BU84: 0 | BV84: 0 | BW84: 0 | BX84: 0 | BY84: 0 | BZ84: 0 | CA84: 0 | CB84: 0 | CC84: 0 | CD84: 0 | CE84: 0 | CF84: 0 | CG84: 0 | CH84: 0 | CI84: 0 | CJ84: 0 | CK84: 0 | CL84: 0 | CM84: 0 | CN84: 0 | CO84: 0 | CP84: 0 | CQ84: 0 | CR84: 0 | CS84: 0 | CT84: 0 | CU84: 0 | CV84: 0 | CW84: 0 | CX84: 0 | CY84: 0 | CZ84: 0 | DA84: 0 | DB84: 0 | DC84: 0 | DD84: 0 | DE84: 0 | DF84: 0 | DG84: 0 | DH84: 0 | DI84: =IF('Asset data'!$F85=0,0,AY84/'Asset data'!$F85) -> 0 | DJ84: =IF('Asset data'!$F85=0,0,AZ84/'Asset data'!$F85) -> 0 | DK84: =IF('Asset data'!$F85=0,0,BA84/'Asset data'!$F85) -> 0 | DL84: =IF('Asset data'!$F85=0,0,BB84/'Asset data'!$F85) -> 0 | DM84: =IF('Asset data'!$F85=0,0,BC84/'Asset data'!$F85) -> 0 | DN84: =IF('Asset data'!$F85=0,0,BD84/'Asset data'!$F85) -> 0 | DO84: =IF('Asset data'!$F85=0,0,BE84/'Asset data'!$F85) -> 0 | DP84: =IF('Asset data'!$F85=0,0,BF84/'Asset data'!$F85) -> 0 | DQ84: =IF('Asset data'!$F85=0,0,BG84/'Asset data'!$F85) -> 0 | DR84: =IF('Asset data'!$F85=0,0,BH84/'Asset data'!$F85) -> 0 | DS84: =IF('Asset data'!$F85=0,0,BI84/'Asset data'!$F85) -> 0 | DT84: =IF('Asset data'!$F85=0,0,BJ84/'Asset data'!$F85) -> 0 | DU84: =IF('Asset data'!$F85=0,0,BK84/'Asset data'!$F85) -> 0 | DV84: =IF('Asset data'!$F85=0,0,BL84/'Asset data'!$F85) -> 0 | DW84: =IF('Asset data'!$F85=0,0,BM84/'Asset data'!$F85) -> 0 | DX84: =IF('Asset data'!$F85=0,0,BN84/'Asset data'!$F85) -> 0 | DY84: =IF('Asset data'!$F85=0,0,BO84/'Asset data'!$F85) -> 0 | DZ84: =IF('Asset data'!$F85=0,0,BP84/'Asset data'!$F85) -> 0 | EA84: =IF('Asset data'!$F85=0,0,BQ84/'Asset data'!$F85) -> 0 | EB84: =IF('Asset data'!$F85=0,0,BR84/'Asset data'!$F85) -> 0
A85: ='Asset data'!A86 -> 0 | B85: ='Asset data'!B86 -> 0 | C85: ='Asset data'!C86 -> 0 | D85: ='Asset data'!E86 -> 0 | E85: 0 | F85: ='Asset data'!G86 -> 0 | G85: 0 | H85: ='Asset data'!H86 -> 0 | I85: S | J85: =IF(A85=0,0,IF('Asset data'!$D$1=1,1,IF('Asset data'!$D$1=2,2,'Asset data'!I86))) -> 0 | K85: 0 | AY85: =repcalc('Age profile (Inst)'!CT86:GF86,J85,K85,H85,20,$L$20,$M$20) -> 0 | AZ85: 0 | BA85: 0 | BB85: 0 | BC85: 0 | BD85: 0 | BE85: 0 | BF85: 0 | BG85: 0 | BH85: 0 | BI85: 0 | BJ85: 0 | BK85: 0 | BL85: 0 | BM85: 0 | BN85: 0 | BO85: 0 | BP85: 0 | BQ85: 0 | BR85: 0 | BS85: 0 | BT85: 0 | BU85: 0 | BV85: 0 | BW85: 0 | BX85: 0 | BY85: 0 | BZ85: 0 | CA85: 0 | CB85: 0 | CC85: 0 | CD85: 0 | CE85: 0 | CF85: 0 | CG85: 0 | CH85: 0 | CI85: 0 | CJ85: 0 | CK85: 0 | CL85: 0 | CM85: 0 | CN85: 0 | CO85: 0 | CP85: 0 | CQ85: 0 | CR85: 0 | CS85: 0 | CT85: 0 | CU85: 0 | CV85: 0 | CW85: 0 | CX85: 0 | CY85: 0 | CZ85: 0 | DA85: 0 | DB85: 0 | DC85: 0 | DD85: 0 | DE85: 0 | DF85: 0 | DG85: 0 | DH85: 0 | DI85: =IF('Asset data'!$F86=0,0,AY85/'Asset data'!$F86) -> 0 | DJ85: =IF('Asset data'!$F86=0,0,AZ85/'Asset data'!$F86) -> 0 | DK85: =IF('Asset data'!$F86=0,0,BA85/'Asset data'!$F86) -> 0 | DL85: =IF('Asset data'!$F86=0,0,BB85/'Asset data'!$F86) -> 0 | DM85: =IF('Asset data'!$F86=0,0,BC85/'Asset data'!$F86) -> 0 | DN85: =IF('Asset data'!$F86=0,0,BD85/'Asset data'!$F86) -> 0 | DO85: =IF('Asset data'!$F86=0,0,BE85/'Asset data'!$F86) -> 0 | DP85: =IF('Asset data'!$F86=0,0,BF85/'Asset data'!$F86) -> 0 | DQ85: =IF('Asset data'!$F86=0,0,BG85/'Asset data'!$F86) -> 0 | DR85: =IF('Asset data'!$F86=0,0,BH85/'Asset data'!$F86) -> 0 | DS85: =IF('Asset data'!$F86=0,0,BI85/'Asset data'!$F86) -> 0 | DT85: =IF('Asset data'!$F86=0,0,BJ85/'Asset data'!$F86) -> 0 | DU85: =IF('Asset data'!$F86=0,0,BK85/'Asset data'!$F86) -> 0 | DV85: =IF('Asset data'!$F86=0,0,BL85/'Asset data'!$F86) -> 0 | DW85: =IF('Asset data'!$F86=0,0,BM85/'Asset data'!$F86) -> 0 | DX85: =IF('Asset data'!$F86=0,0,BN85/'Asset data'!$F86) -> 0 | DY85: =IF('Asset data'!$F86=0,0,BO85/'Asset data'!$F86) -> 0 | DZ85: =IF('Asset data'!$F86=0,0,BP85/'Asset data'!$F86) -> 0 | EA85: =IF('Asset data'!$F86=0,0,BQ85/'Asset data'!$F86) -> 0 | EB85: =IF('Asset data'!$F86=0,0,BR85/'Asset data'!$F86) -> 0
A86: ='Asset data'!A87 -> 0 | B86: ='Asset data'!B87 -> 0 | C86: ='Asset data'!C87 -> 0 | D86: ='Asset data'!E87 -> 0 | E86: 0 | F86: ='Asset data'!G87 -> 0 | G86: 0 | H86: ='Asset data'!H87 -> 0 | I86: S | J86: =IF(A86=0,0,IF('Asset data'!$D$1=1,1,IF('Asset data'!$D$1=2,2,'Asset data'!I87))) -> 0 | K86: 0 | AY86: =repcalc('Age profile (Inst)'!CT87:GF87,J86,K86,H86,20,$L$20,$M$20) -> 0 | AZ86: 0 | BA86: 0 | BB86: 0 | BC86: 0 | BD86: 0 | BE86: 0 | BF86: 0 | BG86: 0 | BH86: 0 | BI86: 0 | BJ86: 0 | BK86: 0 | BL86: 0 | BM86: 0 | BN86: 0 | BO86: 0 | BP86: 0 | BQ86: 0 | BR86: 0 | BS86: 0 | BT86: 0 | BU86: 0 | BV86: 0 | BW86: 0 | BX86: 0 | BY86: 0 | BZ86: 0 | CA86: 0 | CB86: 0 | CC86: 0 | CD86: 0 | CE86: 0 | CF86: 0 | CG86: 0 | CH86: 0 | CI86: 0 | CJ86: 0 | CK86: 0 | CL86: 0 | CM86: 0 | CN86: 0 | CO86: 0 | CP86: 0 | CQ86: 0 | CR86: 0 | CS86: 0 | CT86: 0 | CU86: 0 | CV86: 0 | CW86: 0 | CX86: 0 | CY86: 0 | CZ86: 0 | DA86: 0 | DB86: 0 | DC86: 0 | DD86: 0 | DE86: 0 | DF86: 0 | DG86: 0 | DH86: 0 | DI86: =IF('Asset data'!$F87=0,0,AY86/'Asset data'!$F87) -> 0 | DJ86: =IF('Asset data'!$F87=0,0,AZ86/'Asset data'!$F87) -> 0 | DK86: =IF('Asset data'!$F87=0,0,BA86/'Asset data'!$F87) -> 0 | DL86: =IF('Asset data'!$F87=0,0,BB86/'Asset data'!$F87) -> 0 | DM86: =IF('Asset data'!$F87=0,0,BC86/'Asset data'!$F87) -> 0 | DN86: =IF('Asset data'!$F87=0,0,BD86/'Asset data'!$F87) -> 0 | DO86: =IF('Asset data'!$F87=0,0,BE86/'Asset data'!$F87) -> 0 | DP86: =IF('Asset data'!$F87=0,0,BF86/'Asset data'!$F87) -> 0 | DQ86: =IF('Asset data'!$F87=0,0,BG86/'Asset data'!$F87) -> 0 | DR86: =IF('Asset data'!$F87=0,0,BH86/'Asset data'!$F87) -> 0 | DS86: =IF('Asset data'!$F87=0,0,BI86/'Asset data'!$F87) -> 0 | DT86: =IF('Asset data'!$F87=0,0,BJ86/'Asset data'!$F87) -> 0 | DU86: =IF('Asset data'!$F87=0,0,BK86/'Asset data'!$F87) -> 0 | DV86: =IF('Asset data'!$F87=0,0,BL86/'Asset data'!$F87) -> 0 | DW86: =IF('Asset data'!$F87=0,0,BM86/'Asset data'!$F87) -> 0 | DX86: =IF('Asset data'!$F87=0,0,BN86/'Asset data'!$F87) -> 0 | DY86: =IF('Asset data'!$F87=0,0,BO86/'Asset data'!$F87) -> 0 | DZ86: =IF('Asset data'!$F87=0,0,BP86/'Asset data'!$F87) -> 0 | EA86: =IF('Asset data'!$F87=0,0,BQ86/'Asset data'!$F87) -> 0 | EB86: =IF('Asset data'!$F87=0,0,BR86/'Asset data'!$F87) -> 0
A87: ='Asset data'!A88 -> 0 | B87: ='Asset data'!B88 -> 0 | C87: ='Asset data'!C88 -> 0 | D87: ='Asset data'!E88 -> 0 | E87: 0 | F87: ='Asset data'!G88 -> 0 | G87: 0 | H87: ='Asset data'!H88 -> 0 | I87: S | J87: =IF(A87=0,0,IF('Asset data'!$D$1=1,1,IF('Asset data'!$D$1=2,2,'Asset data'!I88))) -> 0 | K87: 0 | AY87: =repcalc('Age profile (Inst)'!CT88:GF88,J87,K87,H87,20,$L$20,$M$20) -> 0 | AZ87: 0 | BA87: 0 | BB87: 0 | BC87: 0 | BD87: 0 | BE87: 0 | BF87: 0 | BG87: 0 | BH87: 0 | BI87: 0 | BJ87: 0 | BK87: 0 | BL87: 0 | BM87: 0 | BN87: 0 | BO87: 0 | BP87: 0 | BQ87: 0 | BR87: 0 | BS87: 0 | BT87: 0 | BU87: 0 | BV87: 0 | BW87: 0 | BX87: 0 | BY87: 0 | BZ87: 0 | CA87: 0 | CB87: 0 | CC87: 0 | CD87: 0 | CE87: 0 | CF87: 0 | CG87: 0 | CH87: 0 | CI87: 0 | CJ87: 0 | CK87: 0 | CL87: 0 | CM87: 0 | CN87: 0 | CO87: 0 | CP87: 0 | CQ87: 0 | CR87: 0 | CS87: 0 | CT87: 0 | CU87: 0 | CV87: 0 | CW87: 0 | CX87: 0 | CY87: 0 | CZ87: 0 | DA87: 0 | DB87: 0 | DC87: 0 | DD87: 0 | DE87: 0 | DF87: 0 | DG87: 0 | DH87: 0 | DI87: =IF('Asset data'!$F88=0,0,AY87/'Asset data'!$F88) -> 0 | DJ87: =IF('Asset data'!$F88=0,0,AZ87/'Asset data'!$F88) -> 0 | DK87: =IF('Asset data'!$F88=0,0,BA87/'Asset data'!$F88) -> 0 | DL87: =IF('Asset data'!$F88=0,0,BB87/'Asset data'!$F88) -> 0 | DM87: =IF('Asset data'!$F88=0,0,BC87/'Asset data'!$F88) -> 0 | DN87: =IF('Asset data'!$F88=0,0,BD87/'Asset data'!$F88) -> 0 | DO87: =IF('Asset data'!$F88=0,0,BE87/'Asset data'!$F88) -> 0 | DP87: =IF('Asset data'!$F88=0,0,BF87/'Asset data'!$F88) -> 0 | DQ87: =IF('Asset data'!$F88=0,0,BG87/'Asset data'!$F88) -> 0 | DR87: =IF('Asset data'!$F88=0,0,BH87/'Asset data'!$F88) -> 0 | DS87: =IF('Asset data'!$F88=0,0,BI87/'Asset data'!$F88) -> 0 | DT87: =IF('Asset data'!$F88=0,0,BJ87/'Asset data'!$F88) -> 0 | DU87: =IF('Asset data'!$F88=0,0,BK87/'Asset data'!$F88) -> 0 | DV87: =IF('Asset data'!$F88=0,0,BL87/'Asset data'!$F88) -> 0 | DW87: =IF('Asset data'!$F88=0,0,BM87/'Asset data'!$F88) -> 0 | DX87: =IF('Asset data'!$F88=0,0,BN87/'Asset data'!$F88) -> 0 | DY87: =IF('Asset data'!$F88=0,0,BO87/'Asset data'!$F88) -> 0 | DZ87: =IF('Asset data'!$F88=0,0,BP87/'Asset data'!$F88) -> 0 | EA87: =IF('Asset data'!$F88=0,0,BQ87/'Asset data'!$F88) -> 0 | EB87: =IF('Asset data'!$F88=0,0,BR87/'Asset data'!$F88) -> 0
A88: ='Asset data'!A89 -> 0 | B88: ='Asset data'!B89 -> 0 | C88: ='Asset data'!C89 -> 0 | D88: ='Asset data'!E89 -> 0 | E88: 0 | F88: ='Asset data'!G89 -> 0 | G88: 0 | H88: ='Asset data'!H89 -> 0 | I88: S | J88: =IF(A88=0,0,IF('Asset data'!$D$1=1,1,IF('Asset data'!$D$1=2,2,'Asset data'!I89))) -> 0 | K88: 0 | AY88: =repcalc('Age profile (Inst)'!CT89:GF89,J88,K88,H88,20,$L$20,$M$20) -> 0 | AZ88: 0 | BA88: 0 | BB88: 0 | BC88: 0 | BD88: 0 | BE88: 0 | BF88: 0 | BG88: 0 | BH88: 0 | BI88: 0 | BJ88: 0 | BK88: 0 | BL88: 0 | BM88: 0 | BN88: 0 | BO88: 0 | BP88: 0 | BQ88: 0 | BR88: 0 | BS88: 0 | BT88: 0 | BU88: 0 | BV88: 0 | BW88: 0 | BX88: 0 | BY88: 0 | BZ88: 0 | CA88: 0 | CB88: 0 | CC88: 0 | CD88: 0 | CE88: 0 | CF88: 0 | CG88: 0 | CH88: 0 | CI88: 0 | CJ88: 0 | CK88: 0 | CL88: 0 | CM88: 0 | CN88: 0 | CO88: 0 | CP88: 0 | CQ88: 0 | CR88: 0 | CS88: 0 | CT88: 0 | CU88: 0 | CV88: 0 | CW88: 0 | CX88: 0 | CY88: 0 | CZ88: 0 | DA88: 0 | DB88: 0 | DC88: 0 | DD88: 0 | DE88: 0 | DF88: 0 | DG88: 0 | DH88: 0 | DI88: =IF('Asset data'!$F89=0,0,AY88/'Asset data'!$F89) -> 0 | DJ88: =IF('Asset data'!$F89=0,0,AZ88/'Asset data'!$F89) -> 0 | DK88: =IF('Asset data'!$F89=0,0,BA88/'Asset data'!$F89) -> 0 | DL88: =IF('Asset data'!$F89=0,0,BB88/'Asset data'!$F89) -> 0 | DM88: =IF('Asset data'!$F89=0,0,BC88/'Asset data'!$F89) -> 0 | DN88: =IF('Asset data'!$F89=0,0,BD88/'Asset data'!$F89) -> 0 | DO88: =IF('Asset data'!$F89=0,0,BE88/'Asset data'!$F89) -> 0 | DP88: =IF('Asset data'!$F89=0,0,BF88/'Asset data'!$F89) -> 0 | DQ88: =IF('Asset data'!$F89=0,0,BG88/'Asset data'!$F89) -> 0 | DR88: =IF('Asset data'!$F89=0,0,BH88/'Asset data'!$F89) -> 0 | DS88: =IF('Asset data'!$F89=0,0,BI88/'Asset data'!$F89) -> 0 | DT88: =IF('Asset data'!$F89=0,0,BJ88/'Asset data'!$F89) -> 0 | DU88: =IF('Asset data'!$F89=0,0,BK88/'Asset data'!$F89) -> 0 | DV88: =IF('Asset data'!$F89=0,0,BL88/'Asset data'!$F89) -> 0 | DW88: =IF('Asset data'!$F89=0,0,BM88/'Asset data'!$F89) -> 0 | DX88: =IF('Asset data'!$F89=0,0,BN88/'Asset data'!$F89) -> 0 | DY88: =IF('Asset data'!$F89=0,0,BO88/'Asset data'!$F89) -> 0 | DZ88: =IF('Asset data'!$F89=0,0,BP88/'Asset data'!$F89) -> 0 | EA88: =IF('Asset data'!$F89=0,0,BQ88/'Asset data'!$F89) -> 0 | EB88: =IF('Asset data'!$F89=0,0,BR88/'Asset data'!$F89) -> 0
A89: ='Asset data'!A90 -> 0 | B89: ='Asset data'!B90 -> 0 | C89: ='Asset data'!C90 -> 0 | D89: ='Asset data'!E90 -> 0 | E89: 0 | F89: ='Asset data'!G90 -> 0 | G89: 0 | H89: ='Asset data'!H90 -> 0 | I89: S | J89: =IF(A89=0,0,IF('Asset data'!$D$1=1,1,IF('Asset data'!$D$1=2,2,'Asset data'!I90))) -> 0 | K89: 0 | AY89: =repcalc('Age profile (Inst)'!CT90:GF90,J89,K89,H89,20,$L$20,$M$20) -> 0 | AZ89: 0 | BA89: 0 | BB89: 0 | BC89: 0 | BD89: 0 | BE89: 0 | BF89: 0 | BG89: 0 | BH89: 0 | BI89: 0 | BJ89: 0 | BK89: 0 | BL89: 0 | BM89: 0 | BN89: 0 | BO89: 0 | BP89: 0 | BQ89: 0 | BR89: 0 | BS89: 0 | BT89: 0 | BU89: 0 | BV89: 0 | BW89: 0 | BX89: 0 | BY89: 0 | BZ89: 0 | CA89: 0 | CB89: 0 | CC89: 0 | CD89: 0 | CE89: 0 | CF89: 0 | CG89: 0 | CH89: 0 | CI89: 0 | CJ89: 0 | CK89: 0 | CL89: 0 | CM89: 0 | CN89: 0 | CO89: 0 | CP89: 0 | CQ89: 0 | CR89: 0 | CS89: 0 | CT89: 0 | CU89: 0 | CV89: 0 | CW89: 0 | CX89: 0 | CY89: 0 | CZ89: 0 | DA89: 0 | DB89: 0 | DC89: 0 | DD89: 0 | DE89: 0 | DF89: 0 | DG89: 0 | DH89: 0 | DI89: =IF('Asset data'!$F90=0,0,AY89/'Asset data'!$F90) -> 0 | DJ89: =IF('Asset data'!$F90=0,0,AZ89/'Asset data'!$F90) -> 0 | DK89: =IF('Asset data'!$F90=0,0,BA89/'Asset data'!$F90) -> 0 | DL89: =IF('Asset data'!$F90=0,0,BB89/'Asset data'!$F90) -> 0 | DM89: =IF('Asset data'!$F90=0,0,BC89/'Asset data'!$F90) -> 0 | DN89: =IF('Asset data'!$F90=0,0,BD89/'Asset data'!$F90) -> 0 | DO89: =IF('Asset data'!$F90=0,0,BE89/'Asset data'!$F90) -> 0 | DP89: =IF('Asset data'!$F90=0,0,BF89/'Asset data'!$F90) -> 0 | DQ89: =IF('Asset data'!$F90=0,0,BG89/'Asset data'!$F90) -> 0 | DR89: =IF('Asset data'!$F90=0,0,BH89/'Asset data'!$F90) -> 0 | DS89: =IF('Asset data'!$F90=0,0,BI89/'Asset data'!$F90) -> 0 | DT89: =IF('Asset data'!$F90=0,0,BJ89/'Asset data'!$F90) -> 0 | DU89: =IF('Asset data'!$F90=0,0,BK89/'Asset data'!$F90) -> 0 | DV89: =IF('Asset data'!$F90=0,0,BL89/'Asset data'!$F90) -> 0 | DW89: =IF('Asset data'!$F90=0,0,BM89/'Asset data'!$F90) -> 0 | DX89: =IF('Asset data'!$F90=0,0,BN89/'Asset data'!$F90) -> 0 | DY89: =IF('Asset data'!$F90=0,0,BO89/'Asset data'!$F90) -> 0 | DZ89: =IF('Asset data'!$F90=0,0,BP89/'Asset data'!$F90) -> 0 | EA89: =IF('Asset data'!$F90=0,0,BQ89/'Asset data'!$F90) -> 0 | EB89: =IF('Asset data'!$F90=0,0,BR89/'Asset data'!$F90) -> 0
A90: ='Asset data'!A91 -> 0 | B90: ='Asset data'!B91 -> 0 | C90: ='Asset data'!C91 -> 0 | D90: ='Asset data'!E91 -> 0 | E90: 0 | F90: ='Asset data'!G91 -> 0 | G90: 0 | H90: ='Asset data'!H91 -> 0 | I90: S | J90: =IF(A90=0,0,IF('Asset data'!$D$1=1,1,IF('Asset data'!$D$1=2,2,'Asset data'!I91))) -> 0 | K90: 0 | AY90: =repcalc('Age profile (Inst)'!CT91:GF91,J90,K90,H90,20,$L$20,$M$20) -> 0 | AZ90: 0 | BA90: 0 | BB90: 0 | BC90: 0 | BD90: 0 | BE90: 0 | BF90: 0 | BG90: 0 | BH90: 0 | BI90: 0 | BJ90: 0 | BK90: 0 | BL90: 0 | BM90: 0 | BN90: 0 | BO90: 0 | BP90: 0 | BQ90: 0 | BR90: 0 | BS90: 0 | BT90: 0 | BU90: 0 | BV90: 0 | BW90: 0 | BX90: 0 | BY90: 0 | BZ90: 0 | CA90: 0 | CB90: 0 | CC90: 0 | CD90: 0 | CE90: 0 | CF90: 0 | CG90: 0 | CH90: 0 | CI90: 0 | CJ90: 0 | CK90: 0 | CL90: 0 | CM90: 0 | CN90: 0 | CO90: 0 | CP90: 0 | CQ90: 0 | CR90: 0 | CS90: 0 | CT90: 0 | CU90: 0 | CV90: 0 | CW90: 0 | CX90: 0 | CY90: 0 | CZ90: 0 | DA90: 0 | DB90: 0 | DC90: 0 | DD90: 0 | DE90: 0 | DF90: 0 | DG90: 0 | DH90: 0 | DI90: =IF('Asset data'!$F91=0,0,AY90/'Asset data'!$F91) -> 0 | DJ90: =IF('Asset data'!$F91=0,0,AZ90/'Asset data'!$F91) -> 0 | DK90: =IF('Asset data'!$F91=0,0,BA90/'Asset data'!$F91) -> 0 | DL90: =IF('Asset data'!$F91=0,0,BB90/'Asset data'!$F91) -> 0 | DM90: =IF('Asset data'!$F91=0,0,BC90/'Asset data'!$F91) -> 0 | DN90: =IF('Asset data'!$F91=0,0,BD90/'Asset data'!$F91) -> 0 | DO90: =IF('Asset data'!$F91=0,0,BE90/'Asset data'!$F91) -> 0 | DP90: =IF('Asset data'!$F91=0,0,BF90/'Asset data'!$F91) -> 0 | DQ90: =IF('Asset data'!$F91=0,0,BG90/'Asset data'!$F91) -> 0 | DR90: =IF('Asset data'!$F91=0,0,BH90/'Asset data'!$F91) -> 0 | DS90: =IF('Asset data'!$F91=0,0,BI90/'Asset data'!$F91) -> 0 | DT90: =IF('Asset data'!$F91=0,0,BJ90/'Asset data'!$F91) -> 0 | DU90: =IF('Asset data'!$F91=0,0,BK90/'Asset data'!$F91) -> 0 | DV90: =IF('Asset data'!$F91=0,0,BL90/'Asset data'!$F91) -> 0 | DW90: =IF('Asset data'!$F91=0,0,BM90/'Asset data'!$F91) -> 0 | DX90: =IF('Asset data'!$F91=0,0,BN90/'Asset data'!$F91) -> 0 | DY90: =IF('Asset data'!$F91=0,0,BO90/'Asset data'!$F91) -> 0 | DZ90: =IF('Asset data'!$F91=0,0,BP90/'Asset data'!$F91) -> 0 | EA90: =IF('Asset data'!$F91=0,0,BQ90/'Asset data'!$F91) -> 0 | EB90: =IF('Asset data'!$F91=0,0,BR90/'Asset data'!$F91) -> 0
A91: ='Asset data'!A92 -> 0 | B91: ='Asset data'!B92 -> 0 | C91: ='Asset data'!C92 -> 0 | D91: ='Asset data'!E92 -> 0 | E91: 0 | F91: ='Asset data'!G92 -> 0 | G91: 0 | H91: ='Asset data'!H92 -> 0 | I91: S | J91: =IF(A91=0,0,IF('Asset data'!$D$1=1,1,IF('Asset data'!$D$1=2,2,'Asset data'!I92))) -> 0 | K91: 0 | AY91: =repcalc('Age profile (Inst)'!CT92:GF92,J91,K91,H91,20,$L$20,$M$20) -> 0 | AZ91: 0 | BA91: 0 | BB91: 0 | BC91: 0 | BD91: 0 | BE91: 0 | BF91: 0 | BG91: 0 | BH91: 0 | BI91: 0 | BJ91: 0 | BK91: 0 | BL91: 0 | BM91: 0 | BN91: 0 | BO91: 0 | BP91: 0 | BQ91: 0 | BR91: 0 | BS91: 0 | BT91: 0 | BU91: 0 | BV91: 0 | BW91: 0 | BX91: 0 | BY91: 0 | BZ91: 0 | CA91: 0 | CB91: 0 | CC91: 0 | CD91: 0 | CE91: 0 | CF91: 0 | CG91: 0 | CH91: 0 | CI91: 0 | CJ91: 0 | CK91: 0 | CL91: 0 | CM91: 0 | CN91: 0 | CO91: 0 | CP91: 0 | CQ91: 0 | CR91: 0 | CS91: 0 | CT91: 0 | CU91: 0 | CV91: 0 | CW91: 0 | CX91: 0 | CY91: 0 | CZ91: 0 | DA91: 0 | DB91: 0 | DC91: 0 | DD91: 0 | DE91: 0 | DF91: 0 | DG91: 0 | DH91: 0 | DI91: =IF('Asset data'!$F92=0,0,AY91/'Asset data'!$F92) -> 0 | DJ91: =IF('Asset data'!$F92=0,0,AZ91/'Asset data'!$F92) -> 0 | DK91: =IF('Asset data'!$F92=0,0,BA91/'Asset data'!$F92) -> 0 | DL91: =IF('Asset data'!$F92=0,0,BB91/'Asset data'!$F92) -> 0 | DM91: =IF('Asset data'!$F92=0,0,BC91/'Asset data'!$F92) -> 0 | DN91: =IF('Asset data'!$F92=0,0,BD91/'Asset data'!$F92) -> 0 | DO91: =IF('Asset data'!$F92=0,0,BE91/'Asset data'!$F92) -> 0 | DP91: =IF('Asset data'!$F92=0,0,BF91/'Asset data'!$F92) -> 0 | DQ91: =IF('Asset data'!$F92=0,0,BG91/'Asset data'!$F92) -> 0 | DR91: =IF('Asset data'!$F92=0,0,BH91/'Asset data'!$F92) -> 0 | DS91: =IF('Asset data'!$F92=0,0,BI91/'Asset data'!$F92) -> 0 | DT91: =IF('Asset data'!$F92=0,0,BJ91/'Asset data'!$F92) -> 0 | DU91: =IF('Asset data'!$F92=0,0,BK91/'Asset data'!$F92) -> 0 | DV91: =IF('Asset data'!$F92=0,0,BL91/'Asset data'!$F92) -> 0 | DW91: =IF('Asset data'!$F92=0,0,BM91/'Asset data'!$F92) -> 0 | DX91: =IF('Asset data'!$F92=0,0,BN91/'Asset data'!$F92) -> 0 | DY91: =IF('Asset data'!$F92=0,0,BO91/'Asset data'!$F92) -> 0 | DZ91: =IF('Asset data'!$F92=0,0,BP91/'Asset data'!$F92) -> 0 | EA91: =IF('Asset data'!$F92=0,0,BQ91/'Asset data'!$F92) -> 0 | EB91: =IF('Asset data'!$F92=0,0,BR91/'Asset data'!$F92) -> 0
A92: ='Asset data'!A93 -> 0 | B92: ='Asset data'!B93 -> 0 | C92: ='Asset data'!C93 -> 0 | D92: ='Asset data'!E93 -> 0 | E92: 0 | F92: ='Asset data'!G93 -> 0 | G92: 0 | H92: ='Asset data'!H93 -> 0 | I92: S | J92: =IF(A92=0,0,IF('Asset data'!$D$1=1,1,IF('Asset data'!$D$1=2,2,'Asset data'!I93))) -> 0 | K92: 0 | AY92: =repcalc('Age profile (Inst)'!CT93:GF93,J92,K92,H92,20,$L$20,$M$20) -> 0 | AZ92: 0 | BA92: 0 | BB92: 0 | BC92: 0 | BD92: 0 | BE92: 0 | BF92: 0 | BG92: 0 | BH92: 0 | BI92: 0 | BJ92: 0 | BK92: 0 | BL92: 0 | BM92: 0 | BN92: 0 | BO92: 0 | BP92: 0 | BQ92: 0 | BR92: 0 | BS92: 0 | BT92: 0 | BU92: 0 | BV92: 0 | BW92: 0 | BX92: 0 | BY92: 0 | BZ92: 0 | CA92: 0 | CB92: 0 | CC92: 0 | CD92: 0 | CE92: 0 | CF92: 0 | CG92: 0 | CH92: 0 | CI92: 0 | CJ92: 0 | CK92: 0 | CL92: 0 | CM92: 0 | CN92: 0 | CO92: 0 | CP92: 0 | CQ92: 0 | CR92: 0 | CS92: 0 | CT92: 0 | CU92: 0 | CV92: 0 | CW92: 0 | CX92: 0 | CY92: 0 | CZ92: 0 | DA92: 0 | DB92: 0 | DC92: 0 | DD92: 0 | DE92: 0 | DF92: 0 | DG92: 0 | DH92: 0 | DI92: =IF('Asset data'!$F93=0,0,AY92/'Asset data'!$F93) -> 0 | DJ92: =IF('Asset data'!$F93=0,0,AZ92/'Asset data'!$F93) -> 0 | DK92: =IF('Asset data'!$F93=0,0,BA92/'Asset data'!$F93) -> 0 | DL92: =IF('Asset data'!$F93=0,0,BB92/'Asset data'!$F93) -> 0 | DM92: =IF('Asset data'!$F93=0,0,BC92/'Asset data'!$F93) -> 0 | DN92: =IF('Asset data'!$F93=0,0,BD92/'Asset data'!$F93) -> 0 | DO92: =IF('Asset data'!$F93=0,0,BE92/'Asset data'!$F93) -> 0 | DP92: =IF('Asset data'!$F93=0,0,BF92/'Asset data'!$F93) -> 0 | DQ92: =IF('Asset data'!$F93=0,0,BG92/'Asset data'!$F93) -> 0 | DR92: =IF('Asset data'!$F93=0,0,BH92/'Asset data'!$F93) -> 0 | DS92: =IF('Asset data'!$F93=0,0,BI92/'Asset data'!$F93) -> 0 | DT92: =IF('Asset data'!$F93=0,0,BJ92/'Asset data'!$F93) -> 0 | DU92: =IF('Asset data'!$F93=0,0,BK92/'Asset data'!$F93) -> 0 | DV92: =IF('Asset data'!$F93=0,0,BL92/'Asset data'!$F93) -> 0 | DW92: =IF('Asset data'!$F93=0,0,BM92/'Asset data'!$F93) -> 0 | DX92: =IF('Asset data'!$F93=0,0,BN92/'Asset data'!$F93) -> 0 | DY92: =IF('Asset data'!$F93=0,0,BO92/'Asset data'!$F93) -> 0 | DZ92: =IF('Asset data'!$F93=0,0,BP92/'Asset data'!$F93) -> 0 | EA92: =IF('Asset data'!$F93=0,0,BQ92/'Asset data'!$F93) -> 0 | EB92: =IF('Asset data'!$F93=0,0,BR92/'Asset data'!$F93) -> 0
A93: ='Asset data'!A94 -> 0 | B93: ='Asset data'!B94 -> 0 | C93: ='Asset data'!C94 -> 0 | D93: ='Asset data'!E94 -> 0 | E93: 0 | F93: ='Asset data'!G94 -> 0 | G93: 0 | H93: ='Asset data'!H94 -> 0 | I93: S | J93: =IF(A93=0,0,IF('Asset data'!$D$1=1,1,IF('Asset data'!$D$1=2,2,'Asset data'!I94))) -> 0 | K93: 0 | AY93: =repcalc('Age profile (Inst)'!CT94:GF94,J93,K93,H93,20,$L$20,$M$20) -> 0 | AZ93: 0 | BA93: 0 | BB93: 0 | BC93: 0 | BD93: 0 | BE93: 0 | BF93: 0 | BG93: 0 | BH93: 0 | BI93: 0 | BJ93: 0 | BK93: 0 | BL93: 0 | BM93: 0 | BN93: 0 | BO93: 0 | BP93: 0 | BQ93: 0 | BR93: 0 | BS93: 0 | BT93: 0 | BU93: 0 | BV93: 0 | BW93: 0 | BX93: 0 | BY93: 0 | BZ93: 0 | CA93: 0 | CB93: 0 | CC93: 0 | CD93: 0 | CE93: 0 | CF93: 0 | CG93: 0 | CH93: 0 | CI93: 0 | CJ93: 0 | CK93: 0 | CL93: 0 | CM93: 0 | CN93: 0 | CO93: 0 | CP93: 0 | CQ93: 0 | CR93: 0 | CS93: 0 | CT93: 0 | CU93: 0 | CV93: 0 | CW93: 0 | CX93: 0 | CY93: 0 | CZ93: 0 | DA93: 0 | DB93: 0 | DC93: 0 | DD93: 0 | DE93: 0 | DF93: 0 | DG93: 0 | DH93: 0 | DI93: =IF('Asset data'!$F94=0,0,AY93/'Asset data'!$F94) -> 0 | DJ93: =IF('Asset data'!$F94=0,0,AZ93/'Asset data'!$F94) -> 0 | DK93: =IF('Asset data'!$F94=0,0,BA93/'Asset data'!$F94) -> 0 | DL93: =IF('Asset data'!$F94=0,0,BB93/'Asset data'!$F94) -> 0 | DM93: =IF('Asset data'!$F94=0,0,BC93/'Asset data'!$F94) -> 0 | DN93: =IF('Asset data'!$F94=0,0,BD93/'Asset data'!$F94) -> 0 | DO93: =IF('Asset data'!$F94=0,0,BE93/'Asset data'!$F94) -> 0 | DP93: =IF('Asset data'!$F94=0,0,BF93/'Asset data'!$F94) -> 0 | DQ93: =IF('Asset data'!$F94=0,0,BG93/'Asset data'!$F94) -> 0 | DR93: =IF('Asset data'!$F94=0,0,BH93/'Asset data'!$F94) -> 0 | DS93: =IF('Asset data'!$F94=0,0,BI93/'Asset data'!$F94) -> 0 | DT93: =IF('Asset data'!$F94=0,0,BJ93/'Asset data'!$F94) -> 0 | DU93: =IF('Asset data'!$F94=0,0,BK93/'Asset data'!$F94) -> 0 | DV93: =IF('Asset data'!$F94=0,0,BL93/'Asset data'!$F94) -> 0 | DW93: =IF('Asset data'!$F94=0,0,BM93/'Asset data'!$F94) -> 0 | DX93: =IF('Asset data'!$F94=0,0,BN93/'Asset data'!$F94) -> 0 | DY93: =IF('Asset data'!$F94=0,0,BO93/'Asset data'!$F94) -> 0 | DZ93: =IF('Asset data'!$F94=0,0,BP93/'Asset data'!$F94) -> 0 | EA93: =IF('Asset data'!$F94=0,0,BQ93/'Asset data'!$F94) -> 0 | EB93: =IF('Asset data'!$F94=0,0,BR93/'Asset data'!$F94) -> 0
A94: ='Asset data'!A95 -> 0 | B94: ='Asset data'!B95 -> 0 | C94: ='Asset data'!C95 -> 0 | D94: ='Asset data'!E95 -> 0 | E94: 0 | F94: ='Asset data'!G95 -> 0 | G94: 0 | H94: ='Asset data'!H95 -> 0 | I94: S | J94: =IF(A94=0,0,IF('Asset data'!$D$1=1,1,IF('Asset data'!$D$1=2,2,'Asset data'!I95))) -> 0 | K94: 0 | AY94: =repcalc('Age profile (Inst)'!CT95:GF95,J94,K94,H94,20,$L$20,$M$20) -> 0 | AZ94: 0 | BA94: 0 | BB94: 0 | BC94: 0 | BD94: 0 | BE94: 0 | BF94: 0 | BG94: 0 | BH94: 0 | BI94: 0 | BJ94: 0 | BK94: 0 | BL94: 0 | BM94: 0 | BN94: 0 | BO94: 0 | BP94: 0 | BQ94: 0 | BR94: 0 | BS94: 0 | BT94: 0 | BU94: 0 | BV94: 0 | BW94: 0 | BX94: 0 | BY94: 0 | BZ94: 0 | CA94: 0 | CB94: 0 | CC94: 0 | CD94: 0 | CE94: 0 | CF94: 0 | CG94: 0 | CH94: 0 | CI94: 0 | CJ94: 0 | CK94: 0 | CL94: 0 | CM94: 0 | CN94: 0 | CO94: 0 | CP94: 0 | CQ94: 0 | CR94: 0 | CS94: 0 | CT94: 0 | CU94: 0 | CV94: 0 | CW94: 0 | CX94: 0 | CY94: 0 | CZ94: 0 | DA94: 0 | DB94: 0 | DC94: 0 | DD94: 0 | DE94: 0 | DF94: 0 | DG94: 0 | DH94: 0 | DI94: =IF('Asset data'!$F95=0,0,AY94/'Asset data'!$F95) -> 0 | DJ94: =IF('Asset data'!$F95=0,0,AZ94/'Asset data'!$F95) -> 0 | DK94: =IF('Asset data'!$F95=0,0,BA94/'Asset data'!$F95) -> 0 | DL94: =IF('Asset data'!$F95=0,0,BB94/'Asset data'!$F95) -> 0 | DM94: =IF('Asset data'!$F95=0,0,BC94/'Asset data'!$F95) -> 0 | DN94: =IF('Asset data'!$F95=0,0,BD94/'Asset data'!$F95) -> 0 | DO94: =IF('Asset data'!$F95=0,0,BE94/'Asset data'!$F95) -> 0 | DP94: =IF('Asset data'!$F95=0,0,BF94/'Asset data'!$F95) -> 0 | DQ94: =IF('Asset data'!$F95=0,0,BG94/'Asset data'!$F95) -> 0 | DR94: =IF('Asset data'!$F95=0,0,BH94/'Asset data'!$F95) -> 0 | DS94: =IF('Asset data'!$F95=0,0,BI94/'Asset data'!$F95) -> 0 | DT94: =IF('Asset data'!$F95=0,0,BJ94/'Asset data'!$F95) -> 0 | DU94: =IF('Asset data'!$F95=0,0,BK94/'Asset data'!$F95) -> 0 | DV94: =IF('Asset data'!$F95=0,0,BL94/'Asset data'!$F95) -> 0 | DW94: =IF('Asset data'!$F95=0,0,BM94/'Asset data'!$F95) -> 0 | DX94: =IF('Asset data'!$F95=0,0,BN94/'Asset data'!$F95) -> 0 | DY94: =IF('Asset data'!$F95=0,0,BO94/'Asset data'!$F95) -> 0 | DZ94: =IF('Asset data'!$F95=0,0,BP94/'Asset data'!$F95) -> 0 | EA94: =IF('Asset data'!$F95=0,0,BQ94/'Asset data'!$F95) -> 0 | EB94: =IF('Asset data'!$F95=0,0,BR94/'Asset data'!$F95) -> 0
A95: ='Asset data'!A96 -> 0 | B95: ='Asset data'!B96 -> 0 | C95: ='Asset data'!C96 -> 0 | D95: ='Asset data'!E96 -> 0 | E95: 0 | F95: ='Asset data'!G96 -> 0 | G95: 0 | H95: ='Asset data'!H96 -> 0 | I95: S | J95: =IF(A95=0,0,IF('Asset data'!$D$1=1,1,IF('Asset data'!$D$1=2,2,'Asset data'!I96))) -> 0 | K95: 0 | AY95: =repcalc('Age profile (Inst)'!CT96:GF96,J95,K95,H95,20,$L$20,$M$20) -> 0 | AZ95: 0 | BA95: 0 | BB95: 0 | BC95: 0 | BD95: 0 | BE95: 0 | BF95: 0 | BG95: 0 | BH95: 0 | BI95: 0 | BJ95: 0 | BK95: 0 | BL95: 0 | BM95: 0 | BN95: 0 | BO95: 0 | BP95: 0 | BQ95: 0 | BR95: 0 | BS95: 0 | BT95: 0 | BU95: 0 | BV95: 0 | BW95: 0 | BX95: 0 | BY95: 0 | BZ95: 0 | CA95: 0 | CB95: 0 | CC95: 0 | CD95: 0 | CE95: 0 | CF95: 0 | CG95: 0 | CH95: 0 | CI95: 0 | CJ95: 0 | CK95: 0 | CL95: 0 | CM95: 0 | CN95: 0 | CO95: 0 | CP95: 0 | CQ95: 0 | CR95: 0 | CS95: 0 | CT95: 0 | CU95: 0 | CV95: 0 | CW95: 0 | CX95: 0 | CY95: 0 | CZ95: 0 | DA95: 0 | DB95: 0 | DC95: 0 | DD95: 0 | DE95: 0 | DF95: 0 | DG95: 0 | DH95: 0 | DI95: =IF('Asset data'!$F96=0,0,AY95/'Asset data'!$F96) -> 0 | DJ95: =IF('Asset data'!$F96=0,0,AZ95/'Asset data'!$F96) -> 0 | DK95: =IF('Asset data'!$F96=0,0,BA95/'Asset data'!$F96) -> 0 | DL95: =IF('Asset data'!$F96=0,0,BB95/'Asset data'!$F96) -> 0 | DM95: =IF('Asset data'!$F96=0,0,BC95/'Asset data'!$F96) -> 0 | DN95: =IF('Asset data'!$F96=0,0,BD95/'Asset data'!$F96) -> 0 | DO95: =IF('Asset data'!$F96=0,0,BE95/'Asset data'!$F96) -> 0 | DP95: =IF('Asset data'!$F96=0,0,BF95/'Asset data'!$F96) -> 0 | DQ95: =IF('Asset data'!$F96=0,0,BG95/'Asset data'!$F96) -> 0 | DR95: =IF('Asset data'!$F96=0,0,BH95/'Asset data'!$F96) -> 0 | DS95: =IF('Asset data'!$F96=0,0,BI95/'Asset data'!$F96) -> 0 | DT95: =IF('Asset data'!$F96=0,0,BJ95/'Asset data'!$F96) -> 0 | DU95: =IF('Asset data'!$F96=0,0,BK95/'Asset data'!$F96) -> 0 | DV95: =IF('Asset data'!$F96=0,0,BL95/'Asset data'!$F96) -> 0 | DW95: =IF('Asset data'!$F96=0,0,BM95/'Asset data'!$F96) -> 0 | DX95: =IF('Asset data'!$F96=0,0,BN95/'Asset data'!$F96) -> 0 | DY95: =IF('Asset data'!$F96=0,0,BO95/'Asset data'!$F96) -> 0 | DZ95: =IF('Asset data'!$F96=0,0,BP95/'Asset data'!$F96) -> 0 | EA95: =IF('Asset data'!$F96=0,0,BQ95/'Asset data'!$F96) -> 0 | EB95: =IF('Asset data'!$F96=0,0,BR95/'Asset data'!$F96) -> 0
A96: ='Asset data'!A97 -> 0 | B96: ='Asset data'!B97 -> 0 | C96: ='Asset data'!C97 -> 0 | D96: ='Asset data'!E97 -> 0 | E96: 0 | F96: ='Asset data'!G97 -> 0 | G96: 0 | H96: ='Asset data'!H97 -> 0 | I96: S | J96: =IF(A96=0,0,IF('Asset data'!$D$1=1,1,IF('Asset data'!$D$1=2,2,'Asset data'!I97))) -> 0 | K96: 0 | AY96: =repcalc('Age profile (Inst)'!CT97:GF97,J96,K96,H96,20,$L$20,$M$20) -> 0 | AZ96: 0 | BA96: 0 | BB96: 0 | BC96: 0 | BD96: 0 | BE96: 0 | BF96: 0 | BG96: 0 | BH96: 0 | BI96: 0 | BJ96: 0 | BK96: 0 | BL96: 0 | BM96: 0 | BN96: 0 | BO96: 0 | BP96: 0 | BQ96: 0 | BR96: 0 | BS96: 0 | BT96: 0 | BU96: 0 | BV96: 0 | BW96: 0 | BX96: 0 | BY96: 0 | BZ96: 0 | CA96: 0 | CB96: 0 | CC96: 0 | CD96: 0 | CE96: 0 | CF96: 0 | CG96: 0 | CH96: 0 | CI96: 0 | CJ96: 0 | CK96: 0 | CL96: 0 | CM96: 0 | CN96: 0 | CO96: 0 | CP96: 0 | CQ96: 0 | CR96: 0 | CS96: 0 | CT96: 0 | CU96: 0 | CV96: 0 | CW96: 0 | CX96: 0 | CY96: 0 | CZ96: 0 | DA96: 0 | DB96: 0 | DC96: 0 | DD96: 0 | DE96: 0 | DF96: 0 | DG96: 0 | DH96: 0 | DI96: =IF('Asset data'!$F97=0,0,AY96/'Asset data'!$F97) -> 0 | DJ96: =IF('Asset data'!$F97=0,0,AZ96/'Asset data'!$F97) -> 0 | DK96: =IF('Asset data'!$F97=0,0,BA96/'Asset data'!$F97) -> 0 | DL96: =IF('Asset data'!$F97=0,0,BB96/'Asset data'!$F97) -> 0 | DM96: =IF('Asset data'!$F97=0,0,BC96/'Asset data'!$F97) -> 0 | DN96: =IF('Asset data'!$F97=0,0,BD96/'Asset data'!$F97) -> 0 | DO96: =IF('Asset data'!$F97=0,0,BE96/'Asset data'!$F97) -> 0 | DP96: =IF('Asset data'!$F97=0,0,BF96/'Asset data'!$F97) -> 0 | DQ96: =IF('Asset data'!$F97=0,0,BG96/'Asset data'!$F97) -> 0 | DR96: =IF('Asset data'!$F97=0,0,BH96/'Asset data'!$F97) -> 0 | DS96: =IF('Asset data'!$F97=0,0,BI96/'Asset data'!$F97) -> 0 | DT96: =IF('Asset data'!$F97=0,0,BJ96/'Asset data'!$F97) -> 0 | DU96: =IF('Asset data'!$F97=0,0,BK96/'Asset data'!$F97) -> 0 | DV96: =IF('Asset data'!$F97=0,0,BL96/'Asset data'!$F97) -> 0 | DW96: =IF('Asset data'!$F97=0,0,BM96/'Asset data'!$F97) -> 0 | DX96: =IF('Asset data'!$F97=0,0,BN96/'Asset data'!$F97) -> 0 | DY96: =IF('Asset data'!$F97=0,0,BO96/'Asset data'!$F97) -> 0 | DZ96: =IF('Asset data'!$F97=0,0,BP96/'Asset data'!$F97) -> 0 | EA96: =IF('Asset data'!$F97=0,0,BQ96/'Asset data'!$F97) -> 0 | EB96: =IF('Asset data'!$F97=0,0,BR96/'Asset data'!$F97) -> 0
A97: ='Asset data'!A98 -> 0 | B97: ='Asset data'!B98 -> 0 | C97: ='Asset data'!C98 -> 0 | D97: ='Asset data'!E98 -> 0 | E97: 0 | F97: ='Asset data'!G98 -> 0 | G97: 0 | H97: ='Asset data'!H98 -> 0 | I97: S | J97: =IF(A97=0,0,IF('Asset data'!$D$1=1,1,IF('Asset data'!$D$1=2,2,'Asset data'!I98))) -> 0 | K97: 0 | AY97: =repcalc('Age profile (Inst)'!CT98:GF98,J97,K97,H97,20,$L$20,$M$20) -> 0 | AZ97: 0 | BA97: 0 | BB97: 0 | BC97: 0 | BD97: 0 | BE97: 0 | BF97: 0 | BG97: 0 | BH97: 0 | BI97: 0 | BJ97: 0 | BK97: 0 | BL97: 0 | BM97: 0 | BN97: 0 | BO97: 0 | BP97: 0 | BQ97: 0 | BR97: 0 | BS97: 0 | BT97: 0 | BU97: 0 | BV97: 0 | BW97: 0 | BX97: 0 | BY97: 0 | BZ97: 0 | CA97: 0 | CB97: 0 | CC97: 0 | CD97: 0 | CE97: 0 | CF97: 0 | CG97: 0 | CH97: 0 | CI97: 0 | CJ97: 0 | CK97: 0 | CL97: 0 | CM97: 0 | CN97: 0 | CO97: 0 | CP97: 0 | CQ97: 0 | CR97: 0 | CS97: 0 | CT97: 0 | CU97: 0 | CV97: 0 | CW97: 0 | CX97: 0 | CY97: 0 | CZ97: 0 | DA97: 0 | DB97: 0 | DC97: 0 | DD97: 0 | DE97: 0 | DF97: 0 | DG97: 0 | DH97: 0 | DI97: =IF('Asset data'!$F98=0,0,AY97/'Asset data'!$F98) -> 0 | DJ97: =IF('Asset data'!$F98=0,0,AZ97/'Asset data'!$F98) -> 0 | DK97: =IF('Asset data'!$F98=0,0,BA97/'Asset data'!$F98) -> 0 | DL97: =IF('Asset data'!$F98=0,0,BB97/'Asset data'!$F98) -> 0 | DM97: =IF('Asset data'!$F98=0,0,BC97/'Asset data'!$F98) -> 0 | DN97: =IF('Asset data'!$F98=0,0,BD97/'Asset data'!$F98) -> 0 | DO97: =IF('Asset data'!$F98=0,0,BE97/'Asset data'!$F98) -> 0 | DP97: =IF('Asset data'!$F98=0,0,BF97/'Asset data'!$F98) -> 0 | DQ97: =IF('Asset data'!$F98=0,0,BG97/'Asset data'!$F98) -> 0 | DR97: =IF('Asset data'!$F98=0,0,BH97/'Asset data'!$F98) -> 0 | DS97: =IF('Asset data'!$F98=0,0,BI97/'Asset data'!$F98) -> 0 | DT97: =IF('Asset data'!$F98=0,0,BJ97/'Asset data'!$F98) -> 0 | DU97: =IF('Asset data'!$F98=0,0,BK97/'Asset data'!$F98) -> 0 | DV97: =IF('Asset data'!$F98=0,0,BL97/'Asset data'!$F98) -> 0 | DW97: =IF('Asset data'!$F98=0,0,BM97/'Asset data'!$F98) -> 0 | DX97: =IF('Asset data'!$F98=0,0,BN97/'Asset data'!$F98) -> 0 | DY97: =IF('Asset data'!$F98=0,0,BO97/'Asset data'!$F98) -> 0 | DZ97: =IF('Asset data'!$F98=0,0,BP97/'Asset data'!$F98) -> 0 | EA97: =IF('Asset data'!$F98=0,0,BQ97/'Asset data'!$F98) -> 0 | EB97: =IF('Asset data'!$F98=0,0,BR97/'Asset data'!$F98) -> 0
A98: ='Asset data'!A99 -> 0 | B98: ='Asset data'!B99 -> 0 | C98: ='Asset data'!C99 -> 0 | D98: ='Asset data'!E99 -> 0 | E98: 0 | F98: ='Asset data'!G99 -> 0 | G98: 0 | H98: ='Asset data'!H99 -> 0 | I98: S | J98: =IF(A98=0,0,IF('Asset data'!$D$1=1,1,IF('Asset data'!$D$1=2,2,'Asset data'!I99))) -> 0 | K98: 0 | AY98: =repcalc('Age profile (Inst)'!CT99:GF99,J98,K98,H98,20,$L$20,$M$20) -> 0 | AZ98: 0 | BA98: 0 | BB98: 0 | BC98: 0 | BD98: 0 | BE98: 0 | BF98: 0 | BG98: 0 | BH98: 0 | BI98: 0 | BJ98: 0 | BK98: 0 | BL98: 0 | BM98: 0 | BN98: 0 | BO98: 0 | BP98: 0 | BQ98: 0 | BR98: 0 | BS98: 0 | BT98: 0 | BU98: 0 | BV98: 0 | BW98: 0 | BX98: 0 | BY98: 0 | BZ98: 0 | CA98: 0 | CB98: 0 | CC98: 0 | CD98: 0 | CE98: 0 | CF98: 0 | CG98: 0 | CH98: 0 | CI98: 0 | CJ98: 0 | CK98: 0 | CL98: 0 | CM98: 0 | CN98: 0 | CO98: 0 | CP98: 0 | CQ98: 0 | CR98: 0 | CS98: 0 | CT98: 0 | CU98: 0 | CV98: 0 | CW98: 0 | CX98: 0 | CY98: 0 | CZ98: 0 | DA98: 0 | DB98: 0 | DC98: 0 | DD98: 0 | DE98: 0 | DF98: 0 | DG98: 0 | DH98: 0 | DI98: =IF('Asset data'!$F99=0,0,AY98/'Asset data'!$F99) -> 0 | DJ98: =IF('Asset data'!$F99=0,0,AZ98/'Asset data'!$F99) -> 0 | DK98: =IF('Asset data'!$F99=0,0,BA98/'Asset data'!$F99) -> 0 | DL98: =IF('Asset data'!$F99=0,0,BB98/'Asset data'!$F99) -> 0 | DM98: =IF('Asset data'!$F99=0,0,BC98/'Asset data'!$F99) -> 0 | DN98: =IF('Asset data'!$F99=0,0,BD98/'Asset data'!$F99) -> 0 | DO98: =IF('Asset data'!$F99=0,0,BE98/'Asset data'!$F99) -> 0 | DP98: =IF('Asset data'!$F99=0,0,BF98/'Asset data'!$F99) -> 0 | DQ98: =IF('Asset data'!$F99=0,0,BG98/'Asset data'!$F99) -> 0 | DR98: =IF('Asset data'!$F99=0,0,BH98/'Asset data'!$F99) -> 0 | DS98: =IF('Asset data'!$F99=0,0,BI98/'Asset data'!$F99) -> 0 | DT98: =IF('Asset data'!$F99=0,0,BJ98/'Asset data'!$F99) -> 0 | DU98: =IF('Asset data'!$F99=0,0,BK98/'Asset data'!$F99) -> 0 | DV98: =IF('Asset data'!$F99=0,0,BL98/'Asset data'!$F99) -> 0 | DW98: =IF('Asset data'!$F99=0,0,BM98/'Asset data'!$F99) -> 0 | DX98: =IF('Asset data'!$F99=0,0,BN98/'Asset data'!$F99) -> 0 | DY98: =IF('Asset data'!$F99=0,0,BO98/'Asset data'!$F99) -> 0 | DZ98: =IF('Asset data'!$F99=0,0,BP98/'Asset data'!$F99) -> 0 | EA98: =IF('Asset data'!$F99=0,0,BQ98/'Asset data'!$F99) -> 0 | EB98: =IF('Asset data'!$F99=0,0,BR98/'Asset data'!$F99) -> 0
A99: ='Asset data'!A100 -> 0 | B99: ='Asset data'!B100 -> 0 | C99: ='Asset data'!C100 -> 0 | D99: ='Asset data'!E100 -> 0 | E99: 0 | F99: ='Asset data'!G100 -> 0 | G99: 0 | H99: ='Asset data'!H100 -> 0 | I99: S | J99: =IF(A99=0,0,IF('Asset data'!$D$1=1,1,IF('Asset data'!$D$1=2,2,'Asset data'!I100))) -> 0 | K99: 0 | AY99: =repcalc('Age profile (Inst)'!CT100:GF100,J99,K99,H99,20,$L$20,$M$20) -> 0 | AZ99: 0 | BA99: 0 | BB99: 0 | BC99: 0 | BD99: 0 | BE99: 0 | BF99: 0 | BG99: 0 | BH99: 0 | BI99: 0 | BJ99: 0 | BK99: 0 | BL99: 0 | BM99: 0 | BN99: 0 | BO99: 0 | BP99: 0 | BQ99: 0 | BR99: 0 | BS99: 0 | BT99: 0 | BU99: 0 | BV99: 0 | BW99: 0 | BX99: 0 | BY99: 0 | BZ99: 0 | CA99: 0 | CB99: 0 | CC99: 0 | CD99: 0 | CE99: 0 | CF99: 0 | CG99: 0 | CH99: 0 | CI99: 0 | CJ99: 0 | CK99: 0 | CL99: 0 | CM99: 0 | CN99: 0 | CO99: 0 | CP99: 0 | CQ99: 0 | CR99: 0 | CS99: 0 | CT99: 0 | CU99: 0 | CV99: 0 | CW99: 0 | CX99: 0 | CY99: 0 | CZ99: 0 | DA99: 0 | DB99: 0 | DC99: 0 | DD99: 0 | DE99: 0 | DF99: 0 | DG99: 0 | DH99: 0 | DI99: =IF('Asset data'!$F100=0,0,AY99/'Asset data'!$F100) -> 0 | DJ99: =IF('Asset data'!$F100=0,0,AZ99/'Asset data'!$F100) -> 0 | DK99: =IF('Asset data'!$F100=0,0,BA99/'Asset data'!$F100) -> 0 | DL99: =IF('Asset data'!$F100=0,0,BB99/'Asset data'!$F100) -> 0 | DM99: =IF('Asset data'!$F100=0,0,BC99/'Asset data'!$F100) -> 0 | DN99: =IF('Asset data'!$F100=0,0,BD99/'Asset data'!$F100) -> 0 | DO99: =IF('Asset data'!$F100=0,0,BE99/'Asset data'!$F100) -> 0 | DP99: =IF('Asset data'!$F100=0,0,BF99/'Asset data'!$F100) -> 0 | DQ99: =IF('Asset data'!$F100=0,0,BG99/'Asset data'!$F100) -> 0 | DR99: =IF('Asset data'!$F100=0,0,BH99/'Asset data'!$F100) -> 0 | DS99: =IF('Asset data'!$F100=0,0,BI99/'Asset data'!$F100) -> 0 | DT99: =IF('Asset data'!$F100=0,0,BJ99/'Asset data'!$F100) -> 0 | DU99: =IF('Asset data'!$F100=0,0,BK99/'Asset data'!$F100) -> 0 | DV99: =IF('Asset data'!$F100=0,0,BL99/'Asset data'!$F100) -> 0 | DW99: =IF('Asset data'!$F100=0,0,BM99/'Asset data'!$F100) -> 0 | DX99: =IF('Asset data'!$F100=0,0,BN99/'Asset data'!$F100) -> 0 | DY99: =IF('Asset data'!$F100=0,0,BO99/'Asset data'!$F100) -> 0 | DZ99: =IF('Asset data'!$F100=0,0,BP99/'Asset data'!$F100) -> 0 | EA99: =IF('Asset data'!$F100=0,0,BQ99/'Asset data'!$F100) -> 0 | EB99: =IF('Asset data'!$F100=0,0,BR99/'Asset data'!$F100) -> 0
A100: ='Asset data'!A101 -> 0 | B100: ='Asset data'!B101 -> 0 | C100: ='Asset data'!C101 -> 0 | D100: ='Asset data'!E101 -> 0 | E100: 0 | F100: ='Asset data'!G101 -> 0 | G100: 0 | H100: ='Asset data'!H101 -> 0 | I100: S | J100: =IF(A100=0,0,IF('Asset data'!$D$1=1,1,IF('Asset data'!$D$1=2,2,'Asset data'!I101))) -> 0 | K100: 0 | AY100: =repcalc('Age profile (Inst)'!CT101:GF101,J100,K100,H100,20,$L$20,$M$20) -> 0 | AZ100: 0 | BA100: 0 | BB100: 0 | BC100: 0 | BD100: 0 | BE100: 0 | BF100: 0 | BG100: 0 | BH100: 0 | BI100: 0 | BJ100: 0 | BK100: 0 | BL100: 0 | BM100: 0 | BN100: 0 | BO100: 0 | BP100: 0 | BQ100: 0 | BR100: 0 | BS100: 0 | BT100: 0 | BU100: 0 | BV100: 0 | BW100: 0 | BX100: 0 | BY100: 0 | BZ100: 0 | CA100: 0 | CB100: 0 | CC100: 0 | CD100: 0 | CE100: 0 | CF100: 0 | CG100: 0 | CH100: 0 | CI100: 0 | CJ100: 0 | CK100: 0 | CL100: 0 | CM100: 0 | CN100: 0 | CO100: 0 | CP100: 0 | CQ100: 0 | CR100: 0 | CS100: 0 | CT100: 0 | CU100: 0 | CV100: 0 | CW100: 0 | CX100: 0 | CY100: 0 | CZ100: 0 | DA100: 0 | DB100: 0 | DC100: 0 | DD100: 0 | DE100: 0 | DF100: 0 | DG100: 0 | DH100: 0 | DI100: =IF('Asset data'!$F101=0,0,AY100/'Asset data'!$F101) -> 0 | DJ100: =IF('Asset data'!$F101=0,0,AZ100/'Asset data'!$F101) -> 0 | DK100: =IF('Asset data'!$F101=0,0,BA100/'Asset data'!$F101) -> 0 | DL100: =IF('Asset data'!$F101=0,0,BB100/'Asset data'!$F101) -> 0 | DM100: =IF('Asset data'!$F101=0,0,BC100/'Asset data'!$F101) -> 0 | DN100: =IF('Asset data'!$F101=0,0,BD100/'Asset data'!$F101) -> 0 | DO100: =IF('Asset data'!$F101=0,0,BE100/'Asset data'!$F101) -> 0 | DP100: =IF('Asset data'!$F101=0,0,BF100/'Asset data'!$F101) -> 0 | DQ100: =IF('Asset data'!$F101=0,0,BG100/'Asset data'!$F101) -> 0 | DR100: =IF('Asset data'!$F101=0,0,BH100/'Asset data'!$F101) -> 0 | DS100: =IF('Asset data'!$F101=0,0,BI100/'Asset data'!$F101) -> 0 | DT100: =IF('Asset data'!$F101=0,0,BJ100/'Asset data'!$F101) -> 0 | DU100: =IF('Asset data'!$F101=0,0,BK100/'Asset data'!$F101) -> 0 | DV100: =IF('Asset data'!$F101=0,0,BL100/'Asset data'!$F101) -> 0 | DW100: =IF('Asset data'!$F101=0,0,BM100/'Asset data'!$F101) -> 0 | DX100: =IF('Asset data'!$F101=0,0,BN100/'Asset data'!$F101) -> 0 | DY100: =IF('Asset data'!$F101=0,0,BO100/'Asset data'!$F101) -> 0 | DZ100: =IF('Asset data'!$F101=0,0,BP100/'Asset data'!$F101) -> 0 | EA100: =IF('Asset data'!$F101=0,0,BQ100/'Asset data'!$F101) -> 0 | EB100: =IF('Asset data'!$F101=0,0,BR100/'Asset data'!$F101) -> 0
A101: ='Asset data'!A102 -> 0 | B101: ='Asset data'!B102 -> 0 | C101: ='Asset data'!C102 -> 0 | D101: ='Asset data'!E102 -> 0 | E101: 0 | F101: ='Asset data'!G102 -> 0 | G101: 0 | H101: ='Asset data'!H102 -> 0 | I101: S | J101: =IF(A101=0,0,IF('Asset data'!$D$1=1,1,IF('Asset data'!$D$1=2,2,'Asset data'!I102))) -> 0 | K101: 0 | AY101: =repcalc('Age profile (Inst)'!CT102:GF102,J101,K101,H101,20,$L$20,$M$20) -> 0 | AZ101: 0 | BA101: 0 | BB101: 0 | BC101: 0 | BD101: 0 | BE101: 0 | BF101: 0 | BG101: 0 | BH101: 0 | BI101: 0 | BJ101: 0 | BK101: 0 | BL101: 0 | BM101: 0 | BN101: 0 | BO101: 0 | BP101: 0 | BQ101: 0 | BR101: 0 | BS101: 0 | BT101: 0 | BU101: 0 | BV101: 0 | BW101: 0 | BX101: 0 | BY101: 0 | BZ101: 0 | CA101: 0 | CB101: 0 | CC101: 0 | CD101: 0 | CE101: 0 | CF101: 0 | CG101: 0 | CH101: 0 | CI101: 0 | CJ101: 0 | CK101: 0 | CL101: 0 | CM101: 0 | CN101: 0 | CO101: 0 | CP101: 0 | CQ101: 0 | CR101: 0 | CS101: 0 | CT101: 0 | CU101: 0 | CV101: 0 | CW101: 0 | CX101: 0 | CY101: 0 | CZ101: 0 | DA101: 0 | DB101: 0 | DC101: 0 | DD101: 0 | DE101: 0 | DF101: 0 | DG101: 0 | DH101: 0 | DI101: =IF('Asset data'!$F102=0,0,AY101/'Asset data'!$F102) -> 0 | DJ101: =IF('Asset data'!$F102=0,0,AZ101/'Asset data'!$F102) -> 0 | DK101: =IF('Asset data'!$F102=0,0,BA101/'Asset data'!$F102) -> 0 | DL101: =IF('Asset data'!$F102=0,0,BB101/'Asset data'!$F102) -> 0 | DM101: =IF('Asset data'!$F102=0,0,BC101/'Asset data'!$F102) -> 0 | DN101: =IF('Asset data'!$F102=0,0,BD101/'Asset data'!$F102) -> 0 | DO101: =IF('Asset data'!$F102=0,0,BE101/'Asset data'!$F102) -> 0 | DP101: =IF('Asset data'!$F102=0,0,BF101/'Asset data'!$F102) -> 0 | DQ101: =IF('Asset data'!$F102=0,0,BG101/'Asset data'!$F102) -> 0 | DR101: =IF('Asset data'!$F102=0,0,BH101/'Asset data'!$F102) -> 0 | DS101: =IF('Asset data'!$F102=0,0,BI101/'Asset data'!$F102) -> 0 | DT101: =IF('Asset data'!$F102=0,0,BJ101/'Asset data'!$F102) -> 0 | DU101: =IF('Asset data'!$F102=0,0,BK101/'Asset data'!$F102) -> 0 | DV101: =IF('Asset data'!$F102=0,0,BL101/'Asset data'!$F102) -> 0 | DW101: =IF('Asset data'!$F102=0,0,BM101/'Asset data'!$F102) -> 0 | DX101: =IF('Asset data'!$F102=0,0,BN101/'Asset data'!$F102) -> 0 | DY101: =IF('Asset data'!$F102=0,0,BO101/'Asset data'!$F102) -> 0 | DZ101: =IF('Asset data'!$F102=0,0,BP101/'Asset data'!$F102) -> 0 | EA101: =IF('Asset data'!$F102=0,0,BQ101/'Asset data'!$F102) -> 0 | EB101: =IF('Asset data'!$F102=0,0,BR101/'Asset data'!$F102) -> 0
A102: ='Asset data'!A103 -> 0 | B102: ='Asset data'!B103 -> 0 | C102: ='Asset data'!C103 -> 0 | D102: ='Asset data'!E103 -> 0 | E102: 0 | F102: ='Asset data'!G103 -> 0 | G102: 0 | H102: ='Asset data'!H103 -> 0 | I102: S | J102: =IF(A102=0,0,IF('Asset data'!$D$1=1,1,IF('Asset data'!$D$1=2,2,'Asset data'!I103))) -> 0 | K102: 0 | AY102: =repcalc('Age profile (Inst)'!CT103:GF103,J102,K102,H102,20,$L$20,$M$20) -> 0 | AZ102: 0 | BA102: 0 | BB102: 0 | BC102: 0 | BD102: 0 | BE102: 0 | BF102: 0 | BG102: 0 | BH102: 0 | BI102: 0 | BJ102: 0 | BK102: 0 | BL102: 0 | BM102: 0 | BN102: 0 | BO102: 0 | BP102: 0 | BQ102: 0 | BR102: 0 | BS102: 0 | BT102: 0 | BU102: 0 | BV102: 0 | BW102: 0 | BX102: 0 | BY102: 0 | BZ102: 0 | CA102: 0 | CB102: 0 | CC102: 0 | CD102: 0 | CE102: 0 | CF102: 0 | CG102: 0 | CH102: 0 | CI102: 0 | CJ102: 0 | CK102: 0 | CL102: 0 | CM102: 0 | CN102: 0 | CO102: 0 | CP102: 0 | CQ102: 0 | CR102: 0 | CS102: 0 | CT102: 0 | CU102: 0 | CV102: 0 | CW102: 0 | CX102: 0 | CY102: 0 | CZ102: 0 | DA102: 0 | DB102: 0 | DC102: 0 | DD102: 0 | DE102: 0 | DF102: 0 | DG102: 0 | DH102: 0 | DI102: =IF('Asset data'!$F103=0,0,AY102/'Asset data'!$F103) -> 0 | DJ102: =IF('Asset data'!$F103=0,0,AZ102/'Asset data'!$F103) -> 0 | DK102: =IF('Asset data'!$F103=0,0,BA102/'Asset data'!$F103) -> 0 | DL102: =IF('Asset data'!$F103=0,0,BB102/'Asset data'!$F103) -> 0 | DM102: =IF('Asset data'!$F103=0,0,BC102/'Asset data'!$F103) -> 0 | DN102: =IF('Asset data'!$F103=0,0,BD102/'Asset data'!$F103) -> 0 | DO102: =IF('Asset data'!$F103=0,0,BE102/'Asset data'!$F103) -> 0 | DP102: =IF('Asset data'!$F103=0,0,BF102/'Asset data'!$F103) -> 0 | DQ102: =IF('Asset data'!$F103=0,0,BG102/'Asset data'!$F103) -> 0 | DR102: =IF('Asset data'!$F103=0,0,BH102/'Asset data'!$F103) -> 0 | DS102: =IF('Asset data'!$F103=0,0,BI102/'Asset data'!$F103) -> 0 | DT102: =IF('Asset data'!$F103=0,0,BJ102/'Asset data'!$F103) -> 0 | DU102: =IF('Asset data'!$F103=0,0,BK102/'Asset data'!$F103) -> 0 | DV102: =IF('Asset data'!$F103=0,0,BL102/'Asset data'!$F103) -> 0 | DW102: =IF('Asset data'!$F103=0,0,BM102/'Asset data'!$F103) -> 0 | DX102: =IF('Asset data'!$F103=0,0,BN102/'Asset data'!$F103) -> 0 | DY102: =IF('Asset data'!$F103=0,0,BO102/'Asset data'!$F103) -> 0 | DZ102: =IF('Asset data'!$F103=0,0,BP102/'Asset data'!$F103) -> 0 | EA102: =IF('Asset data'!$F103=0,0,BQ102/'Asset data'!$F103) -> 0 | EB102: =IF('Asset data'!$F103=0,0,BR102/'Asset data'!$F103) -> 0
A103: ='Asset data'!A104 -> 0 | B103: ='Asset data'!B104 -> 0 | C103: ='Asset data'!C104 -> 0 | D103: ='Asset data'!E104 -> 0 | E103: 0 | F103: ='Asset data'!G104 -> 0 | G103: 0 | H103: ='Asset data'!H104 -> 0 | I103: S | J103: =IF(A103=0,0,IF('Asset data'!$D$1=1,1,IF('Asset data'!$D$1=2,2,'Asset data'!I104))) -> 0 | K103: 0 | AY103: =repcalc('Age profile (Inst)'!CT104:GF104,J103,K103,H103,20,$L$20,$M$20) -> 0 | AZ103: 0 | BA103: 0 | BB103: 0 | BC103: 0 | BD103: 0 | BE103: 0 | BF103: 0 | BG103: 0 | BH103: 0 | BI103: 0 | BJ103: 0 | BK103: 0 | BL103: 0 | BM103: 0 | BN103: 0 | BO103: 0 | BP103: 0 | BQ103: 0 | BR103: 0 | BS103: 0 | BT103: 0 | BU103: 0 | BV103: 0 | BW103: 0 | BX103: 0 | BY103: 0 | BZ103: 0 | CA103: 0 | CB103: 0 | CC103: 0 | CD103: 0 | CE103: 0 | CF103: 0 | CG103: 0 | CH103: 0 | CI103: 0 | CJ103: 0 | CK103: 0 | CL103: 0 | CM103: 0 | CN103: 0 | CO103: 0 | CP103: 0 | CQ103: 0 | CR103: 0 | CS103: 0 | CT103: 0 | CU103: 0 | CV103: 0 | CW103: 0 | CX103: 0 | CY103: 0 | CZ103: 0 | DA103: 0 | DB103: 0 | DC103: 0 | DD103: 0 | DE103: 0 | DF103: 0 | DG103: 0 | DH103: 0 | DI103: =IF('Asset data'!$F104=0,0,AY103/'Asset data'!$F104) -> 0 | DJ103: =IF('Asset data'!$F104=0,0,AZ103/'Asset data'!$F104) -> 0 | DK103: =IF('Asset data'!$F104=0,0,BA103/'Asset data'!$F104) -> 0 | DL103: =IF('Asset data'!$F104=0,0,BB103/'Asset data'!$F104) -> 0 | DM103: =IF('Asset data'!$F104=0,0,BC103/'Asset data'!$F104) -> 0 | DN103: =IF('Asset data'!$F104=0,0,BD103/'Asset data'!$F104) -> 0 | DO103: =IF('Asset data'!$F104=0,0,BE103/'Asset data'!$F104) -> 0 | DP103: =IF('Asset data'!$F104=0,0,BF103/'Asset data'!$F104) -> 0 | DQ103: =IF('Asset data'!$F104=0,0,BG103/'Asset data'!$F104) -> 0 | DR103: =IF('Asset data'!$F104=0,0,BH103/'Asset data'!$F104) -> 0 | DS103: =IF('Asset data'!$F104=0,0,BI103/'Asset data'!$F104) -> 0 | DT103: =IF('Asset data'!$F104=0,0,BJ103/'Asset data'!$F104) -> 0 | DU103: =IF('Asset data'!$F104=0,0,BK103/'Asset data'!$F104) -> 0 | DV103: =IF('Asset data'!$F104=0,0,BL103/'Asset data'!$F104) -> 0 | DW103: =IF('Asset data'!$F104=0,0,BM103/'Asset data'!$F104) -> 0 | DX103: =IF('Asset data'!$F104=0,0,BN103/'Asset data'!$F104) -> 0 | DY103: =IF('Asset data'!$F104=0,0,BO103/'Asset data'!$F104) -> 0 | DZ103: =IF('Asset data'!$F104=0,0,BP103/'Asset data'!$F104) -> 0 | EA103: =IF('Asset data'!$F104=0,0,BQ103/'Asset data'!$F104) -> 0 | EB103: =IF('Asset data'!$F104=0,0,BR103/'Asset data'!$F104) -> 0
A104: ='Asset data'!A105 -> 0 | B104: ='Asset data'!B105 -> 0 | C104: ='Asset data'!C105 -> 0 | D104: ='Asset data'!E105 -> 0 | E104: 0 | F104: ='Asset data'!G105 -> 0 | G104: 0 | H104: ='Asset data'!H105 -> 0 | I104: S | J104: =IF(A104=0,0,IF('Asset data'!$D$1=1,1,IF('Asset data'!$D$1=2,2,'Asset data'!I105))) -> 0 | K104: 0 | AY104: =repcalc('Age profile (Inst)'!CT105:GF105,J104,K104,H104,20,$L$20,$M$20) -> 0 | AZ104: 0 | BA104: 0 | BB104: 0 | BC104: 0 | BD104: 0 | BE104: 0 | BF104: 0 | BG104: 0 | BH104: 0 | BI104: 0 | BJ104: 0 | BK104: 0 | BL104: 0 | BM104: 0 | BN104: 0 | BO104: 0 | BP104: 0 | BQ104: 0 | BR104: 0 | BS104: 0 | BT104: 0 | BU104: 0 | BV104: 0 | BW104: 0 | BX104: 0 | BY104: 0 | BZ104: 0 | CA104: 0 | CB104: 0 | CC104: 0 | CD104: 0 | CE104: 0 | CF104: 0 | CG104: 0 | CH104: 0 | CI104: 0 | CJ104: 0 | CK104: 0 | CL104: 0 | CM104: 0 | CN104: 0 | CO104: 0 | CP104: 0 | CQ104: 0 | CR104: 0 | CS104: 0 | CT104: 0 | CU104: 0 | CV104: 0 | CW104: 0 | CX104: 0 | CY104: 0 | CZ104: 0 | DA104: 0 | DB104: 0 | DC104: 0 | DD104: 0 | DE104: 0 | DF104: 0 | DG104: 0 | DH104: 0 | DI104: =IF('Asset data'!$F105=0,0,AY104/'Asset data'!$F105) -> 0 | DJ104: =IF('Asset data'!$F105=0,0,AZ104/'Asset data'!$F105) -> 0 | DK104: =IF('Asset data'!$F105=0,0,BA104/'Asset data'!$F105) -> 0 | DL104: =IF('Asset data'!$F105=0,0,BB104/'Asset data'!$F105) -> 0 | DM104: =IF('Asset data'!$F105=0,0,BC104/'Asset data'!$F105) -> 0 | DN104: =IF('Asset data'!$F105=0,0,BD104/'Asset data'!$F105) -> 0 | DO104: =IF('Asset data'!$F105=0,0,BE104/'Asset data'!$F105) -> 0 | DP104: =IF('Asset data'!$F105=0,0,BF104/'Asset data'!$F105) -> 0 | DQ104: =IF('Asset data'!$F105=0,0,BG104/'Asset data'!$F105) -> 0 | DR104: =IF('Asset data'!$F105=0,0,BH104/'Asset data'!$F105) -> 0 | DS104: =IF('Asset data'!$F105=0,0,BI104/'Asset data'!$F105) -> 0 | DT104: =IF('Asset data'!$F105=0,0,BJ104/'Asset data'!$F105) -> 0 | DU104: =IF('Asset data'!$F105=0,0,BK104/'Asset data'!$F105) -> 0 | DV104: =IF('Asset data'!$F105=0,0,BL104/'Asset data'!$F105) -> 0 | DW104: =IF('Asset data'!$F105=0,0,BM104/'Asset data'!$F105) -> 0 | DX104: =IF('Asset data'!$F105=0,0,BN104/'Asset data'!$F105) -> 0 | DY104: =IF('Asset data'!$F105=0,0,BO104/'Asset data'!$F105) -> 0 | DZ104: =IF('Asset data'!$F105=0,0,BP104/'Asset data'!$F105) -> 0 | EA104: =IF('Asset data'!$F105=0,0,BQ104/'Asset data'!$F105) -> 0 | EB104: =IF('Asset data'!$F105=0,0,BR104/'Asset data'!$F105) -> 0
A105: ='Asset data'!A106 -> 0 | B105: ='Asset data'!B106 -> 0 | C105: ='Asset data'!C106 -> 0 | D105: ='Asset data'!E106 -> 0 | E105: 0 | F105: ='Asset data'!G106 -> 0 | G105: 0 | H105: ='Asset data'!H106 -> 0 | I105: S | J105: =IF(A105=0,0,IF('Asset data'!$D$1=1,1,IF('Asset data'!$D$1=2,2,'Asset data'!I106))) -> 0 | K105: 0 | AY105: =repcalc('Age profile (Inst)'!CT106:GF106,J105,K105,H105,20,$L$20,$M$20) -> 0 | AZ105: 0 | BA105: 0 | BB105: 0 | BC105: 0 | BD105: 0 | BE105: 0 | BF105: 0 | BG105: 0 | BH105: 0 | BI105: 0 | BJ105: 0 | BK105: 0 | BL105: 0 | BM105: 0 | BN105: 0 | BO105: 0 | BP105: 0 | BQ105: 0 | BR105: 0 | BS105: 0 | BT105: 0 | BU105: 0 | BV105: 0 | BW105: 0 | BX105: 0 | BY105: 0 | BZ105: 0 | CA105: 0 | CB105: 0 | CC105: 0 | CD105: 0 | CE105: 0 | CF105: 0 | CG105: 0 | CH105: 0 | CI105: 0 | CJ105: 0 | CK105: 0 | CL105: 0 | CM105: 0 | CN105: 0 | CO105: 0 | CP105: 0 | CQ105: 0 | CR105: 0 | CS105: 0 | CT105: 0 | CU105: 0 | CV105: 0 | CW105: 0 | CX105: 0 | CY105: 0 | CZ105: 0 | DA105: 0 | DB105: 0 | DC105: 0 | DD105: 0 | DE105: 0 | DF105: 0 | DG105: 0 | DH105: 0 | DI105: =IF('Asset data'!$F106=0,0,AY105/'Asset data'!$F106) -> 0 | DJ105: =IF('Asset data'!$F106=0,0,AZ105/'Asset data'!$F106) -> 0 | DK105: =IF('Asset data'!$F106=0,0,BA105/'Asset data'!$F106) -> 0 | DL105: =IF('Asset data'!$F106=0,0,BB105/'Asset data'!$F106) -> 0 | DM105: =IF('Asset data'!$F106=0,0,BC105/'Asset data'!$F106) -> 0 | DN105: =IF('Asset data'!$F106=0,0,BD105/'Asset data'!$F106) -> 0 | DO105: =IF('Asset data'!$F106=0,0,BE105/'Asset data'!$F106) -> 0 | DP105: =IF('Asset data'!$F106=0,0,BF105/'Asset data'!$F106) -> 0 | DQ105: =IF('Asset data'!$F106=0,0,BG105/'Asset data'!$F106) -> 0 | DR105: =IF('Asset data'!$F106=0,0,BH105/'Asset data'!$F106) -> 0 | DS105: =IF('Asset data'!$F106=0,0,BI105/'Asset data'!$F106) -> 0 | DT105: =IF('Asset data'!$F106=0,0,BJ105/'Asset data'!$F106) -> 0 | DU105: =IF('Asset data'!$F106=0,0,BK105/'Asset data'!$F106) -> 0 | DV105: =IF('Asset data'!$F106=0,0,BL105/'Asset data'!$F106) -> 0 | DW105: =IF('Asset data'!$F106=0,0,BM105/'Asset data'!$F106) -> 0 | DX105: =IF('Asset data'!$F106=0,0,BN105/'Asset data'!$F106) -> 0 | DY105: =IF('Asset data'!$F106=0,0,BO105/'Asset data'!$F106) -> 0 | DZ105: =IF('Asset data'!$F106=0,0,BP105/'Asset data'!$F106) -> 0 | EA105: =IF('Asset data'!$F106=0,0,BQ105/'Asset data'!$F106) -> 0 | EB105: =IF('Asset data'!$F106=0,0,BR105/'Asset data'!$F106) -> 0
A106: ='Asset data'!A107 -> 0 | B106: ='Asset data'!B107 -> 0 | C106: ='Asset data'!C107 -> 0 | D106: ='Asset data'!E107 -> 0 | E106: 0 | F106: ='Asset data'!G107 -> 0 | G106: 0 | H106: ='Asset data'!H107 -> 0 | I106: S | J106: =IF(A106=0,0,IF('Asset data'!$D$1=1,1,IF('Asset data'!$D$1=2,2,'Asset data'!I107))) -> 0 | K106: 0 | AY106: =repcalc('Age profile (Inst)'!CT107:GF107,J106,K106,H106,20,$L$20,$M$20) -> 0 | AZ106: 0 | BA106: 0 | BB106: 0 | BC106: 0 | BD106: 0 | BE106: 0 | BF106: 0 | BG106: 0 | BH106: 0 | BI106: 0 | BJ106: 0 | BK106: 0 | BL106: 0 | BM106: 0 | BN106: 0 | BO106: 0 | BP106: 0 | BQ106: 0 | BR106: 0 | BS106: 0 | BT106: 0 | BU106: 0 | BV106: 0 | BW106: 0 | BX106: 0 | BY106: 0 | BZ106: 0 | CA106: 0 | CB106: 0 | CC106: 0 | CD106: 0 | CE106: 0 | CF106: 0 | CG106: 0 | CH106: 0 | CI106: 0 | CJ106: 0 | CK106: 0 | CL106: 0 | CM106: 0 | CN106: 0 | CO106: 0 | CP106: 0 | CQ106: 0 | CR106: 0 | CS106: 0 | CT106: 0 | CU106: 0 | CV106: 0 | CW106: 0 | CX106: 0 | CY106: 0 | CZ106: 0 | DA106: 0 | DB106: 0 | DC106: 0 | DD106: 0 | DE106: 0 | DF106: 0 | DG106: 0 | DH106: 0 | DI106: =IF('Asset data'!$F107=0,0,AY106/'Asset data'!$F107) -> 0 | DJ106: =IF('Asset data'!$F107=0,0,AZ106/'Asset data'!$F107) -> 0 | DK106: =IF('Asset data'!$F107=0,0,BA106/'Asset data'!$F107) -> 0 | DL106: =IF('Asset data'!$F107=0,0,BB106/'Asset data'!$F107) -> 0 | DM106: =IF('Asset data'!$F107=0,0,BC106/'Asset data'!$F107) -> 0 | DN106: =IF('Asset data'!$F107=0,0,BD106/'Asset data'!$F107) -> 0 | DO106: =IF('Asset data'!$F107=0,0,BE106/'Asset data'!$F107) -> 0 | DP106: =IF('Asset data'!$F107=0,0,BF106/'Asset data'!$F107) -> 0 | DQ106: =IF('Asset data'!$F107=0,0,BG106/'Asset data'!$F107) -> 0 | DR106: =IF('Asset data'!$F107=0,0,BH106/'Asset data'!$F107) -> 0 | DS106: =IF('Asset data'!$F107=0,0,BI106/'Asset data'!$F107) -> 0 | DT106: =IF('Asset data'!$F107=0,0,BJ106/'Asset data'!$F107) -> 0 | DU106: =IF('Asset data'!$F107=0,0,BK106/'Asset data'!$F107) -> 0 | DV106: =IF('Asset data'!$F107=0,0,BL106/'Asset data'!$F107) -> 0 | DW106: =IF('Asset data'!$F107=0,0,BM106/'Asset data'!$F107) -> 0 | DX106: =IF('Asset data'!$F107=0,0,BN106/'Asset data'!$F107) -> 0 | DY106: =IF('Asset data'!$F107=0,0,BO106/'Asset data'!$F107) -> 0 | DZ106: =IF('Asset data'!$F107=0,0,BP106/'Asset data'!$F107) -> 0 | EA106: =IF('Asset data'!$F107=0,0,BQ106/'Asset data'!$F107) -> 0 | EB106: =IF('Asset data'!$F107=0,0,BR106/'Asset data'!$F107) -> 0
A107: ='Asset data'!A108 -> 0 | B107: ='Asset data'!B108 -> 0 | C107: ='Asset data'!C108 -> 0 | D107: ='Asset data'!E108 -> 0 | E107: 0 | F107: ='Asset data'!G108 -> 0 | G107: 0 | H107: ='Asset data'!H108 -> 0 | I107: S | J107: =IF(A107=0,0,IF('Asset data'!$D$1=1,1,IF('Asset data'!$D$1=2,2,'Asset data'!I108))) -> 0 | K107: 0 | AY107: =repcalc('Age profile (Inst)'!CT108:GF108,J107,K107,H107,20,$L$20,$M$20) -> 0 | AZ107: 0 | BA107: 0 | BB107: 0 | BC107: 0 | BD107: 0 | BE107: 0 | BF107: 0 | BG107: 0 | BH107: 0 | BI107: 0 | BJ107: 0 | BK107: 0 | BL107: 0 | BM107: 0 | BN107: 0 | BO107: 0 | BP107: 0 | BQ107: 0 | BR107: 0 | BS107: 0 | BT107: 0 | BU107: 0 | BV107: 0 | BW107: 0 | BX107: 0 | BY107: 0 | BZ107: 0 | CA107: 0 | CB107: 0 | CC107: 0 | CD107: 0 | CE107: 0 | CF107: 0 | CG107: 0 | CH107: 0 | CI107: 0 | CJ107: 0 | CK107: 0 | CL107: 0 | CM107: 0 | CN107: 0 | CO107: 0 | CP107: 0 | CQ107: 0 | CR107: 0 | CS107: 0 | CT107: 0 | CU107: 0 | CV107: 0 | CW107: 0 | CX107: 0 | CY107: 0 | CZ107: 0 | DA107: 0 | DB107: 0 | DC107: 0 | DD107: 0 | DE107: 0 | DF107: 0 | DG107: 0 | DH107: 0 | DI107: =IF('Asset data'!$F108=0,0,AY107/'Asset data'!$F108) -> 0 | DJ107: =IF('Asset data'!$F108=0,0,AZ107/'Asset data'!$F108) -> 0 | DK107: =IF('Asset data'!$F108=0,0,BA107/'Asset data'!$F108) -> 0 | DL107: =IF('Asset data'!$F108=0,0,BB107/'Asset data'!$F108) -> 0 | DM107: =IF('Asset data'!$F108=0,0,BC107/'Asset data'!$F108) -> 0 | DN107: =IF('Asset data'!$F108=0,0,BD107/'Asset data'!$F108) -> 0 | DO107: =IF('Asset data'!$F108=0,0,BE107/'Asset data'!$F108) -> 0 | DP107: =IF('Asset data'!$F108=0,0,BF107/'Asset data'!$F108) -> 0 | DQ107: =IF('Asset data'!$F108=0,0,BG107/'Asset data'!$F108) -> 0 | DR107: =IF('Asset data'!$F108=0,0,BH107/'Asset data'!$F108) -> 0 | DS107: =IF('Asset data'!$F108=0,0,BI107/'Asset data'!$F108) -> 0 | DT107: =IF('Asset data'!$F108=0,0,BJ107/'Asset data'!$F108) -> 0 | DU107: =IF('Asset data'!$F108=0,0,BK107/'Asset data'!$F108) -> 0 | DV107: =IF('Asset data'!$F108=0,0,BL107/'Asset data'!$F108) -> 0 | DW107: =IF('Asset data'!$F108=0,0,BM107/'Asset data'!$F108) -> 0 | DX107: =IF('Asset data'!$F108=0,0,BN107/'Asset data'!$F108) -> 0 | DY107: =IF('Asset data'!$F108=0,0,BO107/'Asset data'!$F108) -> 0 | DZ107: =IF('Asset data'!$F108=0,0,BP107/'Asset data'!$F108) -> 0 | EA107: =IF('Asset data'!$F108=0,0,BQ107/'Asset data'!$F108) -> 0 | EB107: =IF('Asset data'!$F108=0,0,BR107/'Asset data'!$F108) -> 0
A108: ='Asset data'!A109 -> 0 | B108: ='Asset data'!B109 -> 0 | C108: ='Asset data'!C109 -> 0 | D108: ='Asset data'!E109 -> 0 | E108: 0 | F108: ='Asset data'!G109 -> 0 | G108: 0 | H108: ='Asset data'!H109 -> 0 | I108: S | J108: =IF(A108=0,0,IF('Asset data'!$D$1=1,1,IF('Asset data'!$D$1=2,2,'Asset data'!I109))) -> 0 | K108: 0 | AY108: =repcalc('Age profile (Inst)'!CT109:GF109,J108,K108,H108,20,$L$20,$M$20) -> 0 | AZ108: 0 | BA108: 0 | BB108: 0 | BC108: 0 | BD108: 0 | BE108: 0 | BF108: 0 | BG108: 0 | BH108: 0 | BI108: 0 | BJ108: 0 | BK108: 0 | BL108: 0 | BM108: 0 | BN108: 0 | BO108: 0 | BP108: 0 | BQ108: 0 | BR108: 0 | BS108: 0 | BT108: 0 | BU108: 0 | BV108: 0 | BW108: 0 | BX108: 0 | BY108: 0 | BZ108: 0 | CA108: 0 | CB108: 0 | CC108: 0 | CD108: 0 | CE108: 0 | CF108: 0 | CG108: 0 | CH108: 0 | CI108: 0 | CJ108: 0 | CK108: 0 | CL108: 0 | CM108: 0 | CN108: 0 | CO108: 0 | CP108: 0 | CQ108: 0 | CR108: 0 | CS108: 0 | CT108: 0 | CU108: 0 | CV108: 0 | CW108: 0 | CX108: 0 | CY108: 0 | CZ108: 0 | DA108: 0 | DB108: 0 | DC108: 0 | DD108: 0 | DE108: 0 | DF108: 0 | DG108: 0 | DH108: 0 | DI108: =IF('Asset data'!$F109=0,0,AY108/'Asset data'!$F109) -> 0 | DJ108: =IF('Asset data'!$F109=0,0,AZ108/'Asset data'!$F109) -> 0 | DK108: =IF('Asset data'!$F109=0,0,BA108/'Asset data'!$F109) -> 0 | DL108: =IF('Asset data'!$F109=0,0,BB108/'Asset data'!$F109) -> 0 | DM108: =IF('Asset data'!$F109=0,0,BC108/'Asset data'!$F109) -> 0 | DN108: =IF('Asset data'!$F109=0,0,BD108/'Asset data'!$F109) -> 0 | DO108: =IF('Asset data'!$F109=0,0,BE108/'Asset data'!$F109) -> 0 | DP108: =IF('Asset data'!$F109=0,0,BF108/'Asset data'!$F109) -> 0 | DQ108: =IF('Asset data'!$F109=0,0,BG108/'Asset data'!$F109) -> 0 | DR108: =IF('Asset data'!$F109=0,0,BH108/'Asset data'!$F109) -> 0 | DS108: =IF('Asset data'!$F109=0,0,BI108/'Asset data'!$F109) -> 0 | DT108: =IF('Asset data'!$F109=0,0,BJ108/'Asset data'!$F109) -> 0 | DU108: =IF('Asset data'!$F109=0,0,BK108/'Asset data'!$F109) -> 0 | DV108: =IF('Asset data'!$F109=0,0,BL108/'Asset data'!$F109) -> 0 | DW108: =IF('Asset data'!$F109=0,0,BM108/'Asset data'!$F109) -> 0 | DX108: =IF('Asset data'!$F109=0,0,BN108/'Asset data'!$F109) -> 0 | DY108: =IF('Asset data'!$F109=0,0,BO108/'Asset data'!$F109) -> 0 | DZ108: =IF('Asset data'!$F109=0,0,BP108/'Asset data'!$F109) -> 0 | EA108: =IF('Asset data'!$F109=0,0,BQ108/'Asset data'!$F109) -> 0 | EB108: =IF('Asset data'!$F109=0,0,BR108/'Asset data'!$F109) -> 0
A109: ='Asset data'!A110 -> 0 | B109: ='Asset data'!B110 -> 0 | C109: ='Asset data'!C110 -> 0 | D109: ='Asset data'!E110 -> 0 | E109: 0 | F109: ='Asset data'!G110 -> 0 | G109: 0 | H109: ='Asset data'!H110 -> 0 | I109: S | J109: =IF(A109=0,0,IF('Asset data'!$D$1=1,1,IF('Asset data'!$D$1=2,2,'Asset data'!I110))) -> 0 | K109: 0 | AY109: =repcalc('Age profile (Inst)'!CT110:GF110,J109,K109,H109,20,$L$20,$M$20) -> 0 | AZ109: 0 | BA109: 0 | BB109: 0 | BC109: 0 | BD109: 0 | BE109: 0 | BF109: 0 | BG109: 0 | BH109: 0 | BI109: 0 | BJ109: 0 | BK109: 0 | BL109: 0 | BM109: 0 | BN109: 0 | BO109: 0 | BP109: 0 | BQ109: 0 | BR109: 0 | BS109: 0 | BT109: 0 | BU109: 0 | BV109: 0 | BW109: 0 | BX109: 0 | BY109: 0 | BZ109: 0 | CA109: 0 | CB109: 0 | CC109: 0 | CD109: 0 | CE109: 0 | CF109: 0 | CG109: 0 | CH109: 0 | CI109: 0 | CJ109: 0 | CK109: 0 | CL109: 0 | CM109: 0 | CN109: 0 | CO109: 0 | CP109: 0 | CQ109: 0 | CR109: 0 | CS109: 0 | CT109: 0 | CU109: 0 | CV109: 0 | CW109: 0 | CX109: 0 | CY109: 0 | CZ109: 0 | DA109: 0 | DB109: 0 | DC109: 0 | DD109: 0 | DE109: 0 | DF109: 0 | DG109: 0 | DH109: 0 | DI109: =IF('Asset data'!$F110=0,0,AY109/'Asset data'!$F110) -> 0 | DJ109: =IF('Asset data'!$F110=0,0,AZ109/'Asset data'!$F110) -> 0 | DK109: =IF('Asset data'!$F110=0,0,BA109/'Asset data'!$F110) -> 0 | DL109: =IF('Asset data'!$F110=0,0,BB109/'Asset data'!$F110) -> 0 | DM109: =IF('Asset data'!$F110=0,0,BC109/'Asset data'!$F110) -> 0 | DN109: =IF('Asset data'!$F110=0,0,BD109/'Asset data'!$F110) -> 0 | DO109: =IF('Asset data'!$F110=0,0,BE109/'Asset data'!$F110) -> 0 | DP109: =IF('Asset data'!$F110=0,0,BF109/'Asset data'!$F110) -> 0 | DQ109: =IF('Asset data'!$F110=0,0,BG109/'Asset data'!$F110) -> 0 | DR109: =IF('Asset data'!$F110=0,0,BH109/'Asset data'!$F110) -> 0 | DS109: =IF('Asset data'!$F110=0,0,BI109/'Asset data'!$F110) -> 0 | DT109: =IF('Asset data'!$F110=0,0,BJ109/'Asset data'!$F110) -> 0 | DU109: =IF('Asset data'!$F110=0,0,BK109/'Asset data'!$F110) -> 0 | DV109: =IF('Asset data'!$F110=0,0,BL109/'Asset data'!$F110) -> 0 | DW109: =IF('Asset data'!$F110=0,0,BM109/'Asset data'!$F110) -> 0 | DX109: =IF('Asset data'!$F110=0,0,BN109/'Asset data'!$F110) -> 0 | DY109: =IF('Asset data'!$F110=0,0,BO109/'Asset data'!$F110) -> 0 | DZ109: =IF('Asset data'!$F110=0,0,BP109/'Asset data'!$F110) -> 0 | EA109: =IF('Asset data'!$F110=0,0,BQ109/'Asset data'!$F110) -> 0 | EB109: =IF('Asset data'!$F110=0,0,BR109/'Asset data'!$F110) -> 0
A110: ='Asset data'!A111 -> 0 | B110: ='Asset data'!B111 -> 0 | C110: ='Asset data'!C111 -> 0 | D110: ='Asset data'!E111 -> 0 | E110: 0 | F110: ='Asset data'!G111 -> 0 | G110: 0 | H110: ='Asset data'!H111 -> 0 | I110: S | J110: =IF(A110=0,0,IF('Asset data'!$D$1=1,1,IF('Asset data'!$D$1=2,2,'Asset data'!I111))) -> 0 | K110: 0 | AY110: =repcalc('Age profile (Inst)'!CT111:GF111,J110,K110,H110,20,$L$20,$M$20) -> 0 | AZ110: 0 | BA110: 0 | BB110: 0 | BC110: 0 | BD110: 0 | BE110: 0 | BF110: 0 | BG110: 0 | BH110: 0 | BI110: 0 | BJ110: 0 | BK110: 0 | BL110: 0 | BM110: 0 | BN110: 0 | BO110: 0 | BP110: 0 | BQ110: 0 | BR110: 0 | BS110: 0 | BT110: 0 | BU110: 0 | BV110: 0 | BW110: 0 | BX110: 0 | BY110: 0 | BZ110: 0 | CA110: 0 | CB110: 0 | CC110: 0 | CD110: 0 | CE110: 0 | CF110: 0 | CG110: 0 | CH110: 0 | CI110: 0 | CJ110: 0 | CK110: 0 | CL110: 0 | CM110: 0 | CN110: 0 | CO110: 0 | CP110: 0 | CQ110: 0 | CR110: 0 | CS110: 0 | CT110: 0 | CU110: 0 | CV110: 0 | CW110: 0 | CX110: 0 | CY110: 0 | CZ110: 0 | DA110: 0 | DB110: 0 | DC110: 0 | DD110: 0 | DE110: 0 | DF110: 0 | DG110: 0 | DH110: 0 | DI110: =IF('Asset data'!$F111=0,0,AY110/'Asset data'!$F111) -> 0 | DJ110: =IF('Asset data'!$F111=0,0,AZ110/'Asset data'!$F111) -> 0 | DK110: =IF('Asset data'!$F111=0,0,BA110/'Asset data'!$F111) -> 0 | DL110: =IF('Asset data'!$F111=0,0,BB110/'Asset data'!$F111) -> 0 | DM110: =IF('Asset data'!$F111=0,0,BC110/'Asset data'!$F111) -> 0 | DN110: =IF('Asset data'!$F111=0,0,BD110/'Asset data'!$F111) -> 0 | DO110: =IF('Asset data'!$F111=0,0,BE110/'Asset data'!$F111) -> 0 | DP110: =IF('Asset data'!$F111=0,0,BF110/'Asset data'!$F111) -> 0 | DQ110: =IF('Asset data'!$F111=0,0,BG110/'Asset data'!$F111) -> 0 | DR110: =IF('Asset data'!$F111=0,0,BH110/'Asset data'!$F111) -> 0 | DS110: =IF('Asset data'!$F111=0,0,BI110/'Asset data'!$F111) -> 0 | DT110: =IF('Asset data'!$F111=0,0,BJ110/'Asset data'!$F111) -> 0 | DU110: =IF('Asset data'!$F111=0,0,BK110/'Asset data'!$F111) -> 0 | DV110: =IF('Asset data'!$F111=0,0,BL110/'Asset data'!$F111) -> 0 | DW110: =IF('Asset data'!$F111=0,0,BM110/'Asset data'!$F111) -> 0 | DX110: =IF('Asset data'!$F111=0,0,BN110/'Asset data'!$F111) -> 0 | DY110: =IF('Asset data'!$F111=0,0,BO110/'Asset data'!$F111) -> 0 | DZ110: =IF('Asset data'!$F111=0,0,BP110/'Asset data'!$F111) -> 0 | EA110: =IF('Asset data'!$F111=0,0,BQ110/'Asset data'!$F111) -> 0 | EB110: =IF('Asset data'!$F111=0,0,BR110/'Asset data'!$F111) -> 0
A111: ='Asset data'!A112 -> 0 | B111: ='Asset data'!B112 -> 0 | C111: ='Asset data'!C112 -> 0 | D111: ='Asset data'!E112 -> 0 | E111: =IF(A111>0,VLOOKUP(A111,IDtable,2),0) -> 0 | F111: ='Asset data'!G112 -> 0 | G111: =F111 -> 0 | H111: ='Asset data'!H112 -> 0 | I111: S | J111: =IF(A111=0,0,IF('Asset data'!$D$1=1,1,IF('Asset data'!$D$1=2,2,'Asset data'!I112))) -> 0 | K111: =IF(A111>0,IF(I111="S",F111,IF(I111="R",G111,9999)),0) -> 0 | AY111: =repcalc('Age profile (Inst)'!CT112:GF112,J111,K111,H111,20,$L$20,$M$20) -> 0 | AZ111: 0 | BA111: 0 | BB111: 0 | BC111: 0 | BD111: 0 | BE111: 0 | BF111: 0 | BG111: 0 | BH111: 0 | BI111: 0 | BJ111: 0 | BK111: 0 | BL111: 0 | BM111: 0 | BN111: 0 | BO111: 0 | BP111: 0 | BQ111: 0 | BR111: 0 | BS111: 0 | BT111: 0 | BU111: 0 | BV111: 0 | BW111: 0 | BX111: 0 | BY111: 0 | BZ111: 0 | CA111: 0 | CB111: 0 | CC111: 0 | CD111: 0 | CE111: 0 | CF111: 0 | CG111: 0 | CH111: 0 | CI111: 0 | CJ111: 0 | CK111: 0 | CL111: 0 | CM111: 0 | CN111: 0 | CO111: 0 | CP111: 0 | CQ111: 0 | CR111: 0 | CS111: 0 | CT111: 0 | CU111: 0 | CV111: 0 | CW111: 0 | CX111: 0 | CY111: 0 | CZ111: 0 | DA111: 0 | DB111: 0 | DC111: 0 | DD111: 0 | DE111: 0 | DF111: 0 | DG111: 0 | DH111: =CM111*$AX111 -> 0 | DI111: =IF('Asset data'!$F112=0,0,AY111/'Asset data'!$F112) -> 0 | DJ111: =IF('Asset data'!$F112=0,0,AZ111/'Asset data'!$F112) -> 0 | DK111: =IF('Asset data'!$F112=0,0,BA111/'Asset data'!$F112) -> 0 | DL111: =IF('Asset data'!$F112=0,0,BB111/'Asset data'!$F112) -> 0 | DM111: =IF('Asset data'!$F112=0,0,BC111/'Asset data'!$F112) -> 0 | DN111: =IF('Asset data'!$F112=0,0,BD111/'Asset data'!$F112) -> 0 | DO111: =IF('Asset data'!$F112=0,0,BE111/'Asset data'!$F112) -> 0 | DP111: =IF('Asset data'!$F112=0,0,BF111/'Asset data'!$F112) -> 0 | DQ111: =IF('Asset data'!$F112=0,0,BG111/'Asset data'!$F112) -> 0 | DR111: =IF('Asset data'!$F112=0,0,BH111/'Asset data'!$F112) -> 0 | DS111: =IF('Asset data'!$F112=0,0,BI111/'Asset data'!$F112) -> 0 | DT111: =IF('Asset data'!$F112=0,0,BJ111/'Asset data'!$F112) -> 0 | DU111: =IF('Asset data'!$F112=0,0,BK111/'Asset data'!$F112) -> 0 | DV111: =IF('Asset data'!$F112=0,0,BL111/'Asset data'!$F112) -> 0 | DW111: =IF('Asset data'!$F112=0,0,BM111/'Asset data'!$F112) -> 0 | DX111: =IF('Asset data'!$F112=0,0,BN111/'Asset data'!$F112) -> 0 | DY111: =IF('Asset data'!$F112=0,0,BO111/'Asset data'!$F112) -> 0 | DZ111: =IF('Asset data'!$F112=0,0,BP111/'Asset data'!$F112) -> 0 | EA111: =IF('Asset data'!$F112=0,0,BQ111/'Asset data'!$F112) -> 0 | EB111: =IF('Asset data'!$F112=0,0,BR111/'Asset data'!$F112) -> 0
A112: ='Asset data'!A113 -> 0 | B112: ='Asset data'!B113 -> 0 | C112: ='Asset data'!C113 -> 0 | D112: ='Asset data'!E113 -> 0 | E112: 0 | F112: ='Asset data'!G113 -> 0 | G112: 0 | H112: ='Asset data'!H113 -> 0 | I112: S | J112: =IF(A112=0,0,IF('Asset data'!$D$1=1,1,IF('Asset data'!$D$1=2,2,'Asset data'!I113))) -> 0 | K112: 0 | AY112: =repcalc('Age profile (Inst)'!CT113:GF113,J112,K112,H112,20,$L$20,$M$20) -> 0 | AZ112: 0 | BA112: 0 | BB112: 0 | BC112: 0 | BD112: 0 | BE112: 0 | BF112: 0 | BG112: 0 | BH112: 0 | BI112: 0 | BJ112: 0 | BK112: 0 | BL112: 0 | BM112: 0 | BN112: 0 | BO112: 0 | BP112: 0 | BQ112: 0 | BR112: 0 | BS112: 0 | BT112: 0 | BU112: 0 | BV112: 0 | BW112: 0 | BX112: 0 | BY112: 0 | BZ112: 0 | CA112: 0 | CB112: 0 | CC112: 0 | CD112: 0 | CE112: 0 | CF112: 0 | CG112: 0 | CH112: 0 | CI112: 0 | CJ112: 0 | CK112: 0 | CL112: 0 | CM112: 0 | CN112: =BS112*$AX112 -> 0 | CO112: =BT112*$AX112 -> 0 | CP112: =BU112*$AX112 -> 0 | CQ112: =BV112*$AX112 -> 0 | CR112: =BW112*$AX112 -> 0 | CS112: =BX112*$AX112 -> 0 | CT112: =BY112*$AX112 -> 0 | CU112: =BZ112*$AX112 -> 0 | CV112: =CA112*$AX112 -> 0 | CW112: =CB112*$AX112 -> 0 | CX112: =CC112*$AX112 -> 0 | CY112: =CD112*$AX112 -> 0 | CZ112: =CE112*$AX112 -> 0 | DA112: =CF112*$AX112 -> 0 | DB112: =CG112*$AX112 -> 0 | DC112: =CH112*$AX112 -> 0 | DD112: =CI112*$AX112 -> 0 | DE112: =CJ112*$AX112 -> 0 | DF112: =CK112*$AX112 -> 0 | DG112: =CL112*$AX112 -> 0 | DH112: 0 | DI112: =IF('Asset data'!$F113=0,0,AY112/'Asset data'!$F113) -> 0 | DJ112: =IF('Asset data'!$F113=0,0,AZ112/'Asset data'!$F113) -> 0 | DK112: =IF('Asset data'!$F113=0,0,BA112/'Asset data'!$F113) -> 0 | DL112: =IF('Asset data'!$F113=0,0,BB112/'Asset data'!$F113) -> 0 | DM112: =IF('Asset data'!$F113=0,0,BC112/'Asset data'!$F113) -> 0 | DN112: =IF('Asset data'!$F113=0,0,BD112/'Asset data'!$F113) -> 0 | DO112: =IF('Asset data'!$F113=0,0,BE112/'Asset data'!$F113) -> 0 | DP112: =IF('Asset data'!$F113=0,0,BF112/'Asset data'!$F113) -> 0 | DQ112: =IF('Asset data'!$F113=0,0,BG112/'Asset data'!$F113) -> 0 | DR112: =IF('Asset data'!$F113=0,0,BH112/'Asset data'!$F113) -> 0 | DS112: =IF('Asset data'!$F113=0,0,BI112/'Asset data'!$F113) -> 0 | DT112: =IF('Asset data'!$F113=0,0,BJ112/'Asset data'!$F113) -> 0 | DU112: =IF('Asset data'!$F113=0,0,BK112/'Asset data'!$F113) -> 0 | DV112: =IF('Asset data'!$F113=0,0,BL112/'Asset data'!$F113) -> 0 | DW112: =IF('Asset data'!$F113=0,0,BM112/'Asset data'!$F113) -> 0 | DX112: =IF('Asset data'!$F113=0,0,BN112/'Asset data'!$F113) -> 0 | DY112: =IF('Asset data'!$F113=0,0,BO112/'Asset data'!$F113) -> 0 | DZ112: =IF('Asset data'!$F113=0,0,BP112/'Asset data'!$F113) -> 0 | EA112: =IF('Asset data'!$F113=0,0,BQ112/'Asset data'!$F113) -> 0 | EB112: =IF('Asset data'!$F113=0,0,BR112/'Asset data'!$F113) -> 0
A113: ='Asset data'!A114 -> 0 | B113: ='Asset data'!B114 -> 0 | C113: ='Asset data'!C114 -> 0 | D113: ='Asset data'!E114 -> 0 | E113: 0 | F113: ='Asset data'!G114 -> 0 | G113: 0 | H113: ='Asset data'!H114 -> 0 | I113: S | J113: =IF(A113=0,0,IF('Asset data'!$D$1=1,1,IF('Asset data'!$D$1=2,2,'Asset data'!I114))) -> 0 | K113: 0 | AY113: =repcalc('Age profile (Inst)'!CT114:GF114,J113,K113,H113,20,$L$20,$M$20) -> 0 | AZ113: 0 | BA113: 0 | BB113: 0 | BC113: 0 | BD113: 0 | BE113: 0 | BF113: 0 | BG113: 0 | BH113: 0 | BI113: 0 | BJ113: 0 | BK113: 0 | BL113: 0 | BM113: 0 | BN113: 0 | BO113: 0 | BP113: 0 | BQ113: 0 | BR113: 0 | BS113: 0 | BT113: 0 | BU113: 0 | BV113: 0 | BW113: 0 | BX113: 0 | BY113: 0 | BZ113: 0 | CA113: 0 | CB113: 0 | CC113: 0 | CD113: 0 | CE113: 0 | CF113: 0 | CG113: 0 | CH113: 0 | CI113: 0 | CJ113: 0 | CK113: 0 | CL113: 0 | CM113: 0 | CN113: 0 | CO113: 0 | CP113: 0 | CQ113: 0 | CR113: 0 | CS113: 0 | CT113: 0 | CU113: 0 | CV113: 0 | CW113: 0 | CX113: 0 | CY113: 0 | CZ113: 0 | DA113: 0 | DB113: 0 | DC113: 0 | DD113: 0 | DE113: 0 | DF113: 0 | DG113: 0 | DH113: 0 | DI113: =IF('Asset data'!$F114=0,0,AY113/'Asset data'!$F114) -> 0 | DJ113: =IF('Asset data'!$F114=0,0,AZ113/'Asset data'!$F114) -> 0 | DK113: =IF('Asset data'!$F114=0,0,BA113/'Asset data'!$F114) -> 0 | DL113: =IF('Asset data'!$F114=0,0,BB113/'Asset data'!$F114) -> 0 | DM113: =IF('Asset data'!$F114=0,0,BC113/'Asset data'!$F114) -> 0 | DN113: =IF('Asset data'!$F114=0,0,BD113/'Asset data'!$F114) -> 0 | DO113: =IF('Asset data'!$F114=0,0,BE113/'Asset data'!$F114) -> 0 | DP113: =IF('Asset data'!$F114=0,0,BF113/'Asset data'!$F114) -> 0 | DQ113: =IF('Asset data'!$F114=0,0,BG113/'Asset data'!$F114) -> 0 | DR113: =IF('Asset data'!$F114=0,0,BH113/'Asset data'!$F114) -> 0 | DS113: =IF('Asset data'!$F114=0,0,BI113/'Asset data'!$F114) -> 0 | DT113: =IF('Asset data'!$F114=0,0,BJ113/'Asset data'!$F114) -> 0 | DU113: =IF('Asset data'!$F114=0,0,BK113/'Asset data'!$F114) -> 0 | DV113: =IF('Asset data'!$F114=0,0,BL113/'Asset data'!$F114) -> 0 | DW113: =IF('Asset data'!$F114=0,0,BM113/'Asset data'!$F114) -> 0 | DX113: =IF('Asset data'!$F114=0,0,BN113/'Asset data'!$F114) -> 0 | DY113: =IF('Asset data'!$F114=0,0,BO113/'Asset data'!$F114) -> 0 | DZ113: =IF('Asset data'!$F114=0,0,BP113/'Asset data'!$F114) -> 0 | EA113: =IF('Asset data'!$F114=0,0,BQ113/'Asset data'!$F114) -> 0 | EB113: =IF('Asset data'!$F114=0,0,BR113/'Asset data'!$F114) -> 0
A114: ='Asset data'!A115 -> 0 | B114: ='Asset data'!B115 -> 0 | C114: ='Asset data'!C115 -> 0 | D114: ='Asset data'!E115 -> 0 | E114: 0 | F114: ='Asset data'!G115 -> 0 | G114: 0 | H114: ='Asset data'!H115 -> 0 | I114: S | J114: =IF(A114=0,0,IF('Asset data'!$D$1=1,1,IF('Asset data'!$D$1=2,2,'Asset data'!I115))) -> 0 | K114: 0 | AY114: =repcalc('Age profile (Inst)'!CT115:GF115,J114,K114,H114,20,$L$20,$M$20) -> 0 | AZ114: 0 | BA114: 0 | BB114: 0 | BC114: 0 | BD114: 0 | BE114: 0 | BF114: 0 | BG114: 0 | BH114: 0 | BI114: 0 | BJ114: 0 | BK114: 0 | BL114: 0 | BM114: 0 | BN114: 0 | BO114: 0 | BP114: 0 | BQ114: 0 | BR114: 0 | BS114: 0 | BT114: 0 | BU114: 0 | BV114: 0 | BW114: 0 | BX114: 0 | BY114: 0 | BZ114: 0 | CA114: 0 | CB114: 0 | CC114: 0 | CD114: 0 | CE114: 0 | CF114: 0 | CG114: 0 | CH114: 0 | CI114: 0 | CJ114: 0 | CK114: 0 | CL114: 0 | CM114: 0 | CN114: 0 | CO114: 0 | CP114: 0 | CQ114: 0 | CR114: 0 | CS114: 0 | CT114: 0 | CU114: 0 | CV114: 0 | CW114: 0 | CX114: 0 | CY114: 0 | CZ114: 0 | DA114: 0 | DB114: 0 | DC114: 0 | DD114: 0 | DE114: 0 | DF114: 0 | DG114: 0 | DH114: 0 | DI114: =IF('Asset data'!$F115=0,0,AY114/'Asset data'!$F115) -> 0 | DJ114: =IF('Asset data'!$F115=0,0,AZ114/'Asset data'!$F115) -> 0 | DK114: =IF('Asset data'!$F115=0,0,BA114/'Asset data'!$F115) -> 0 | DL114: =IF('Asset data'!$F115=0,0,BB114/'Asset data'!$F115) -> 0 | DM114: =IF('Asset data'!$F115=0,0,BC114/'Asset data'!$F115) -> 0 | DN114: =IF('Asset data'!$F115=0,0,BD114/'Asset data'!$F115) -> 0 | DO114: =IF('Asset data'!$F115=0,0,BE114/'Asset data'!$F115) -> 0 | DP114: =IF('Asset data'!$F115=0,0,BF114/'Asset data'!$F115) -> 0 | DQ114: =IF('Asset data'!$F115=0,0,BG114/'Asset data'!$F115) -> 0 | DR114: =IF('Asset data'!$F115=0,0,BH114/'Asset data'!$F115) -> 0 | DS114: =IF('Asset data'!$F115=0,0,BI114/'Asset data'!$F115) -> 0 | DT114: =IF('Asset data'!$F115=0,0,BJ114/'Asset data'!$F115) -> 0 | DU114: =IF('Asset data'!$F115=0,0,BK114/'Asset data'!$F115) -> 0 | DV114: =IF('Asset data'!$F115=0,0,BL114/'Asset data'!$F115) -> 0 | DW114: =IF('Asset data'!$F115=0,0,BM114/'Asset data'!$F115) -> 0 | DX114: =IF('Asset data'!$F115=0,0,BN114/'Asset data'!$F115) -> 0 | DY114: =IF('Asset data'!$F115=0,0,BO114/'Asset data'!$F115) -> 0 | DZ114: =IF('Asset data'!$F115=0,0,BP114/'Asset data'!$F115) -> 0 | EA114: =IF('Asset data'!$F115=0,0,BQ114/'Asset data'!$F115) -> 0 | EB114: =IF('Asset data'!$F115=0,0,BR114/'Asset data'!$F115) -> 0
A115: ='Asset data'!A116 -> 0 | B115: ='Asset data'!B116 -> 0 | C115: ='Asset data'!C116 -> 0 | D115: ='Asset data'!E116 -> 0 | E115: 0 | F115: ='Asset data'!G116 -> 0 | G115: 0 | H115: ='Asset data'!H116 -> 0 | I115: S | J115: =IF(A115=0,0,IF('Asset data'!$D$1=1,1,IF('Asset data'!$D$1=2,2,'Asset data'!I116))) -> 0 | K115: 0 | AY115: =repcalc('Age profile (Inst)'!CT116:GF116,J115,K115,H115,20,$L$20,$M$20) -> 0 | AZ115: 0 | BA115: 0 | BB115: 0 | BC115: 0 | BD115: 0 | BE115: 0 | BF115: 0 | BG115: 0 | BH115: 0 | BI115: 0 | BJ115: 0 | BK115: 0 | BL115: 0 | BM115: 0 | BN115: 0 | BO115: 0 | BP115: 0 | BQ115: 0 | BR115: 0 | BS115: 0 | BT115: 0 | BU115: 0 | BV115: 0 | BW115: 0 | BX115: 0 | BY115: 0 | BZ115: 0 | CA115: 0 | CB115: 0 | CC115: 0 | CD115: 0 | CE115: 0 | CF115: 0 | CG115: 0 | CH115: 0 | CI115: 0 | CJ115: 0 | CK115: 0 | CL115: 0 | CM115: 0 | CN115: 0 | CO115: 0 | CP115: 0 | CQ115: 0 | CR115: 0 | CS115: 0 | CT115: 0 | CU115: 0 | CV115: 0 | CW115: 0 | CX115: 0 | CY115: 0 | CZ115: 0 | DA115: 0 | DB115: 0 | DC115: 0 | DD115: 0 | DE115: 0 | DF115: 0 | DG115: 0 | DH115: 0 | DI115: =IF('Asset data'!$F116=0,0,AY115/'Asset data'!$F116) -> 0 | DJ115: =IF('Asset data'!$F116=0,0,AZ115/'Asset data'!$F116) -> 0 | DK115: =IF('Asset data'!$F116=0,0,BA115/'Asset data'!$F116) -> 0 | DL115: =IF('Asset data'!$F116=0,0,BB115/'Asset data'!$F116) -> 0 | DM115: =IF('Asset data'!$F116=0,0,BC115/'Asset data'!$F116) -> 0 | DN115: =IF('Asset data'!$F116=0,0,BD115/'Asset data'!$F116) -> 0 | DO115: =IF('Asset data'!$F116=0,0,BE115/'Asset data'!$F116) -> 0 | DP115: =IF('Asset data'!$F116=0,0,BF115/'Asset data'!$F116) -> 0 | DQ115: =IF('Asset data'!$F116=0,0,BG115/'Asset data'!$F116) -> 0 | DR115: =IF('Asset data'!$F116=0,0,BH115/'Asset data'!$F116) -> 0 | DS115: =IF('Asset data'!$F116=0,0,BI115/'Asset data'!$F116) -> 0 | DT115: =IF('Asset data'!$F116=0,0,BJ115/'Asset data'!$F116) -> 0 | DU115: =IF('Asset data'!$F116=0,0,BK115/'Asset data'!$F116) -> 0 | DV115: =IF('Asset data'!$F116=0,0,BL115/'Asset data'!$F116) -> 0 | DW115: =IF('Asset data'!$F116=0,0,BM115/'Asset data'!$F116) -> 0 | DX115: =IF('Asset data'!$F116=0,0,BN115/'Asset data'!$F116) -> 0 | DY115: =IF('Asset data'!$F116=0,0,BO115/'Asset data'!$F116) -> 0 | DZ115: =IF('Asset data'!$F116=0,0,BP115/'Asset data'!$F116) -> 0 | EA115: =IF('Asset data'!$F116=0,0,BQ115/'Asset data'!$F116) -> 0 | EB115: =IF('Asset data'!$F116=0,0,BR115/'Asset data'!$F116) -> 0
A116: ='Asset data'!A117 -> 0 | B116: ='Asset data'!B117 -> 0 | C116: ='Asset data'!C117 -> 0 | D116: ='Asset data'!E117 -> 0 | E116: 0 | F116: ='Asset data'!G117 -> 0 | G116: 0 | H116: ='Asset data'!H117 -> 0 | I116: S | J116: =IF(A116=0,0,IF('Asset data'!$D$1=1,1,IF('Asset data'!$D$1=2,2,'Asset data'!I117))) -> 0 | K116: 0 | AY116: =repcalc('Age profile (Inst)'!CT117:GF117,J116,K116,H116,20,$L$20,$M$20) -> 0 | AZ116: 0 | BA116: 0 | BB116: 0 | BC116: 0 | BD116: 0 | BE116: 0 | BF116: 0 | BG116: 0 | BH116: 0 | BI116: 0 | BJ116: 0 | BK116: 0 | BL116: 0 | BM116: 0 | BN116: 0 | BO116: 0 | BP116: 0 | BQ116: 0 | BR116: 0 | BS116: 0 | BT116: 0 | BU116: 0 | BV116: 0 | BW116: 0 | BX116: 0 | BY116: 0 | BZ116: 0 | CA116: 0 | CB116: 0 | CC116: 0 | CD116: 0 | CE116: 0 | CF116: 0 | CG116: 0 | CH116: 0 | CI116: 0 | CJ116: 0 | CK116: 0 | CL116: 0 | CM116: 0 | CN116: 0 | CO116: 0 | CP116: 0 | CQ116: 0 | CR116: 0 | CS116: 0 | CT116: 0 | CU116: 0 | CV116: 0 | CW116: 0 | CX116: 0 | CY116: 0 | CZ116: 0 | DA116: 0 | DB116: 0 | DC116: 0 | DD116: 0 | DE116: 0 | DF116: 0 | DG116: 0 | DH116: 0 | DI116: =IF('Asset data'!$F117=0,0,AY116/'Asset data'!$F117) -> 0 | DJ116: =IF('Asset data'!$F117=0,0,AZ116/'Asset data'!$F117) -> 0 | DK116: =IF('Asset data'!$F117=0,0,BA116/'Asset data'!$F117) -> 0 | DL116: =IF('Asset data'!$F117=0,0,BB116/'Asset data'!$F117) -> 0 | DM116: =IF('Asset data'!$F117=0,0,BC116/'Asset data'!$F117) -> 0 | DN116: =IF('Asset data'!$F117=0,0,BD116/'Asset data'!$F117) -> 0 | DO116: =IF('Asset data'!$F117=0,0,BE116/'Asset data'!$F117) -> 0 | DP116: =IF('Asset data'!$F117=0,0,BF116/'Asset data'!$F117) -> 0 | DQ116: =IF('Asset data'!$F117=0,0,BG116/'Asset data'!$F117) -> 0 | DR116: =IF('Asset data'!$F117=0,0,BH116/'Asset data'!$F117) -> 0 | DS116: =IF('Asset data'!$F117=0,0,BI116/'Asset data'!$F117) -> 0 | DT116: =IF('Asset data'!$F117=0,0,BJ116/'Asset data'!$F117) -> 0 | DU116: =IF('Asset data'!$F117=0,0,BK116/'Asset data'!$F117) -> 0 | DV116: =IF('Asset data'!$F117=0,0,BL116/'Asset data'!$F117) -> 0 | DW116: =IF('Asset data'!$F117=0,0,BM116/'Asset data'!$F117) -> 0 | DX116: =IF('Asset data'!$F117=0,0,BN116/'Asset data'!$F117) -> 0 | DY116: =IF('Asset data'!$F117=0,0,BO116/'Asset data'!$F117) -> 0 | DZ116: =IF('Asset data'!$F117=0,0,BP116/'Asset data'!$F117) -> 0 | EA116: =IF('Asset data'!$F117=0,0,BQ116/'Asset data'!$F117) -> 0 | EB116: =IF('Asset data'!$F117=0,0,BR116/'Asset data'!$F117) -> 0
A117: ='Asset data'!A118 -> 0 | B117: ='Asset data'!B118 -> 0 | C117: ='Asset data'!C118 -> 0 | D117: ='Asset data'!E118 -> 0 | E117: 0 | F117: ='Asset data'!G118 -> 0 | G117: 0 | H117: ='Asset data'!H118 -> 0 | I117: S | J117: =IF(A117=0,0,IF('Asset data'!$D$1=1,1,IF('Asset data'!$D$1=2,2,'Asset data'!I118))) -> 0 | K117: 0 | AY117: =repcalc('Age profile (Inst)'!CT118:GF118,J117,K117,H117,20,$L$20,$M$20) -> 0 | AZ117: 0 | BA117: 0 | BB117: 0 | BC117: 0 | BD117: 0 | BE117: 0 | BF117: 0 | BG117: 0 | BH117: 0 | BI117: 0 | BJ117: 0 | BK117: 0 | BL117: 0 | BM117: 0 | BN117: 0 | BO117: 0 | BP117: 0 | BQ117: 0 | BR117: 0 | BS117: 0 | BT117: 0 | BU117: 0 | BV117: 0 | BW117: 0 | BX117: 0 | BY117: 0 | BZ117: 0 | CA117: 0 | CB117: 0 | CC117: 0 | CD117: 0 | CE117: 0 | CF117: 0 | CG117: 0 | CH117: 0 | CI117: 0 | CJ117: 0 | CK117: 0 | CL117: 0 | CM117: 0 | CN117: 0 | CO117: 0 | CP117: 0 | CQ117: 0 | CR117: 0 | CS117: 0 | CT117: 0 | CU117: 0 | CV117: 0 | CW117: 0 | CX117: 0 | CY117: 0 | CZ117: 0 | DA117: 0 | DB117: 0 | DC117: 0 | DD117: 0 | DE117: 0 | DF117: 0 | DG117: 0 | DH117: 0 | DI117: =IF('Asset data'!$F118=0,0,AY117/'Asset data'!$F118) -> 0 | DJ117: =IF('Asset data'!$F118=0,0,AZ117/'Asset data'!$F118) -> 0 | DK117: =IF('Asset data'!$F118=0,0,BA117/'Asset data'!$F118) -> 0 | DL117: =IF('Asset data'!$F118=0,0,BB117/'Asset data'!$F118) -> 0 | DM117: =IF('Asset data'!$F118=0,0,BC117/'Asset data'!$F118) -> 0 | DN117: =IF('Asset data'!$F118=0,0,BD117/'Asset data'!$F118) -> 0 | DO117: =IF('Asset data'!$F118=0,0,BE117/'Asset data'!$F118) -> 0 | DP117: =IF('Asset data'!$F118=0,0,BF117/'Asset data'!$F118) -> 0 | DQ117: =IF('Asset data'!$F118=0,0,BG117/'Asset data'!$F118) -> 0 | DR117: =IF('Asset data'!$F118=0,0,BH117/'Asset data'!$F118) -> 0 | DS117: =IF('Asset data'!$F118=0,0,BI117/'Asset data'!$F118) -> 0 | DT117: =IF('Asset data'!$F118=0,0,BJ117/'Asset data'!$F118) -> 0 | DU117: =IF('Asset data'!$F118=0,0,BK117/'Asset data'!$F118) -> 0 | DV117: =IF('Asset data'!$F118=0,0,BL117/'Asset data'!$F118) -> 0 | DW117: =IF('Asset data'!$F118=0,0,BM117/'Asset data'!$F118) -> 0 | DX117: =IF('Asset data'!$F118=0,0,BN117/'Asset data'!$F118) -> 0 | DY117: =IF('Asset data'!$F118=0,0,BO117/'Asset data'!$F118) -> 0 | DZ117: =IF('Asset data'!$F118=0,0,BP117/'Asset data'!$F118) -> 0 | EA117: =IF('Asset data'!$F118=0,0,BQ117/'Asset data'!$F118) -> 0 | EB117: =IF('Asset data'!$F118=0,0,BR117/'Asset data'!$F118) -> 0
A118: ='Asset data'!A119 -> 0 | B118: ='Asset data'!B119 -> 0 | C118: ='Asset data'!C119 -> 0 | D118: ='Asset data'!E119 -> 0 | E118: 0 | F118: ='Asset data'!G119 -> 0 | G118: 0 | H118: ='Asset data'!H119 -> 0 | I118: S | J118: =IF(A118=0,0,IF('Asset data'!$D$1=1,1,IF('Asset data'!$D$1=2,2,'Asset data'!I119))) -> 0 | K118: 0 | AY118: =repcalc('Age profile (Inst)'!CT119:GF119,J118,K118,H118,20,$L$20,$M$20) -> 0 | AZ118: 0 | BA118: 0 | BB118: 0 | BC118: 0 | BD118: 0 | BE118: 0 | BF118: 0 | BG118: 0 | BH118: 0 | BI118: 0 | BJ118: 0 | BK118: 0 | BL118: 0 | BM118: 0 | BN118: 0 | BO118: 0 | BP118: 0 | BQ118: 0 | BR118: 0 | BS118: 0 | BT118: 0 | BU118: 0 | BV118: 0 | BW118: 0 | BX118: 0 | BY118: 0 | BZ118: 0 | CA118: 0 | CB118: 0 | CC118: 0 | CD118: 0 | CE118: 0 | CF118: 0 | CG118: 0 | CH118: 0 | CI118: 0 | CJ118: 0 | CK118: 0 | CL118: 0 | CM118: 0 | CN118: 0 | CO118: 0 | CP118: 0 | CQ118: 0 | CR118: 0 | CS118: 0 | CT118: 0 | CU118: 0 | CV118: 0 | CW118: 0 | CX118: 0 | CY118: 0 | CZ118: 0 | DA118: 0 | DB118: 0 | DC118: 0 | DD118: 0 | DE118: 0 | DF118: 0 | DG118: 0 | DH118: 0 | DI118: =IF('Asset data'!$F119=0,0,AY118/'Asset data'!$F119) -> 0 | DJ118: =IF('Asset data'!$F119=0,0,AZ118/'Asset data'!$F119) -> 0 | DK118: =IF('Asset data'!$F119=0,0,BA118/'Asset data'!$F119) -> 0 | DL118: =IF('Asset data'!$F119=0,0,BB118/'Asset data'!$F119) -> 0 | DM118: =IF('Asset data'!$F119=0,0,BC118/'Asset data'!$F119) -> 0 | DN118: =IF('Asset data'!$F119=0,0,BD118/'Asset data'!$F119) -> 0 | DO118: =IF('Asset data'!$F119=0,0,BE118/'Asset data'!$F119) -> 0 | DP118: =IF('Asset data'!$F119=0,0,BF118/'Asset data'!$F119) -> 0 | DQ118: =IF('Asset data'!$F119=0,0,BG118/'Asset data'!$F119) -> 0 | DR118: =IF('Asset data'!$F119=0,0,BH118/'Asset data'!$F119) -> 0 | DS118: =IF('Asset data'!$F119=0,0,BI118/'Asset data'!$F119) -> 0 | DT118: =IF('Asset data'!$F119=0,0,BJ118/'Asset data'!$F119) -> 0 | DU118: =IF('Asset data'!$F119=0,0,BK118/'Asset data'!$F119) -> 0 | DV118: =IF('Asset data'!$F119=0,0,BL118/'Asset data'!$F119) -> 0 | DW118: =IF('Asset data'!$F119=0,0,BM118/'Asset data'!$F119) -> 0 | DX118: =IF('Asset data'!$F119=0,0,BN118/'Asset data'!$F119) -> 0 | DY118: =IF('Asset data'!$F119=0,0,BO118/'Asset data'!$F119) -> 0 | DZ118: =IF('Asset data'!$F119=0,0,BP118/'Asset data'!$F119) -> 0 | EA118: =IF('Asset data'!$F119=0,0,BQ118/'Asset data'!$F119) -> 0 | EB118: =IF('Asset data'!$F119=0,0,BR118/'Asset data'!$F119) -> 0
A119: ='Asset data'!A120 -> 0 | B119: ='Asset data'!B120 -> 0 | C119: ='Asset data'!C120 -> 0 | D119: ='Asset data'!E120 -> 0 | E119: 0 | F119: ='Asset data'!G120 -> 0 | G119: 0 | H119: ='Asset data'!H120 -> 0 | I119: S | J119: =IF(A119=0,0,IF('Asset data'!$D$1=1,1,IF('Asset data'!$D$1=2,2,'Asset data'!I120))) -> 0 | K119: 0 | AY119: =repcalc('Age profile (Inst)'!CT120:GF120,J119,K119,H119,20,$L$20,$M$20) -> 0 | AZ119: 0 | BA119: 0 | BB119: 0 | BC119: 0 | BD119: 0 | BE119: 0 | BF119: 0 | BG119: 0 | BH119: 0 | BI119: 0 | BJ119: 0 | BK119: 0 | BL119: 0 | BM119: 0 | BN119: 0 | BO119: 0 | BP119: 0 | BQ119: 0 | BR119: 0 | BS119: 0 | BT119: 0 | BU119: 0 | BV119: 0 | BW119: 0 | BX119: 0 | BY119: 0 | BZ119: 0 | CA119: 0 | CB119: 0 | CC119: 0 | CD119: 0 | CE119: 0 | CF119: 0 | CG119: 0 | CH119: 0 | CI119: 0 | CJ119: 0 | CK119: 0 | CL119: 0 | CM119: 0 | CN119: 0 | CO119: 0 | CP119: 0 | CQ119: 0 | CR119: 0 | CS119: 0 | CT119: 0 | CU119: 0 | CV119: 0 | CW119: 0 | CX119: 0 | CY119: 0 | CZ119: 0 | DA119: 0 | DB119: 0 | DC119: 0 | DD119: 0 | DE119: 0 | DF119: 0 | DG119: 0 | DH119: 0 | DI119: =IF('Asset data'!$F120=0,0,AY119/'Asset data'!$F120) -> 0 | DJ119: =IF('Asset data'!$F120=0,0,AZ119/'Asset data'!$F120) -> 0 | DK119: =IF('Asset data'!$F120=0,0,BA119/'Asset data'!$F120) -> 0 | DL119: =IF('Asset data'!$F120=0,0,BB119/'Asset data'!$F120) -> 0 | DM119: =IF('Asset data'!$F120=0,0,BC119/'Asset data'!$F120) -> 0 | DN119: =IF('Asset data'!$F120=0,0,BD119/'Asset data'!$F120) -> 0 | DO119: =IF('Asset data'!$F120=0,0,BE119/'Asset data'!$F120) -> 0 | DP119: =IF('Asset data'!$F120=0,0,BF119/'Asset data'!$F120) -> 0 | DQ119: =IF('Asset data'!$F120=0,0,BG119/'Asset data'!$F120) -> 0 | DR119: =IF('Asset data'!$F120=0,0,BH119/'Asset data'!$F120) -> 0 | DS119: =IF('Asset data'!$F120=0,0,BI119/'Asset data'!$F120) -> 0 | DT119: =IF('Asset data'!$F120=0,0,BJ119/'Asset data'!$F120) -> 0 | DU119: =IF('Asset data'!$F120=0,0,BK119/'Asset data'!$F120) -> 0 | DV119: =IF('Asset data'!$F120=0,0,BL119/'Asset data'!$F120) -> 0 | DW119: =IF('Asset data'!$F120=0,0,BM119/'Asset data'!$F120) -> 0 | DX119: =IF('Asset data'!$F120=0,0,BN119/'Asset data'!$F120) -> 0 | DY119: =IF('Asset data'!$F120=0,0,BO119/'Asset data'!$F120) -> 0 | DZ119: =IF('Asset data'!$F120=0,0,BP119/'Asset data'!$F120) -> 0 | EA119: =IF('Asset data'!$F120=0,0,BQ119/'Asset data'!$F120) -> 0 | EB119: =IF('Asset data'!$F120=0,0,BR119/'Asset data'!$F120) -> 0
A120: ='Asset data'!A121 -> 0 | B120: ='Asset data'!B121 -> 0 | C120: ='Asset data'!C121 -> 0 | D120: ='Asset data'!E121 -> 0 | E120: 0 | F120: ='Asset data'!G121 -> 0 | G120: 0 | H120: ='Asset data'!H121 -> 0 | I120: S | J120: =IF(A120=0,0,IF('Asset data'!$D$1=1,1,IF('Asset data'!$D$1=2,2,'Asset data'!I121))) -> 0 | K120: 0 | AY120: =repcalc('Age profile (Inst)'!CT121:GF121,J120,K120,H120,20,$L$20,$M$20) -> 0 | AZ120: 0 | BA120: 0 | BB120: 0 | BC120: 0 | BD120: 0 | BE120: 0 | BF120: 0 | BG120: 0 | BH120: 0 | BI120: 0 | BJ120: 0 | BK120: 0 | BL120: 0 | BM120: 0 | BN120: 0 | BO120: 0 | BP120: 0 | BQ120: 0 | BR120: 0 | BS120: 0 | BT120: 0 | BU120: 0 | BV120: 0 | BW120: 0 | BX120: 0 | BY120: 0 | BZ120: 0 | CA120: 0 | CB120: 0 | CC120: 0 | CD120: 0 | CE120: 0 | CF120: 0 | CG120: 0 | CH120: 0 | CI120: 0 | CJ120: 0 | CK120: 0 | CL120: 0 | CM120: 0 | CN120: 0 | CO120: 0 | CP120: 0 | CQ120: 0 | CR120: 0 | CS120: 0 | CT120: 0 | CU120: 0 | CV120: 0 | CW120: 0 | CX120: 0 | CY120: 0 | CZ120: 0 | DA120: 0 | DB120: 0 | DC120: 0 | DD120: 0 | DE120: 0 | DF120: 0 | DG120: 0 | DH120: 0 | DI120: =IF('Asset data'!$F121=0,0,AY120/'Asset data'!$F121) -> 0 | DJ120: =IF('Asset data'!$F121=0,0,AZ120/'Asset data'!$F121) -> 0 | DK120: =IF('Asset data'!$F121=0,0,BA120/'Asset data'!$F121) -> 0 | DL120: =IF('Asset data'!$F121=0,0,BB120/'Asset data'!$F121) -> 0 | DM120: =IF('Asset data'!$F121=0,0,BC120/'Asset data'!$F121) -> 0 | DN120: =IF('Asset data'!$F121=0,0,BD120/'Asset data'!$F121) -> 0 | DO120: =IF('Asset data'!$F121=0,0,BE120/'Asset data'!$F121) -> 0 | DP120: =IF('Asset data'!$F121=0,0,BF120/'Asset data'!$F121) -> 0 | DQ120: =IF('Asset data'!$F121=0,0,BG120/'Asset data'!$F121) -> 0 | DR120: =IF('Asset data'!$F121=0,0,BH120/'Asset data'!$F121) -> 0 | DS120: =IF('Asset data'!$F121=0,0,BI120/'Asset data'!$F121) -> 0 | DT120: =IF('Asset data'!$F121=0,0,BJ120/'Asset data'!$F121) -> 0 | DU120: =IF('Asset data'!$F121=0,0,BK120/'Asset data'!$F121) -> 0 | DV120: =IF('Asset data'!$F121=0,0,BL120/'Asset data'!$F121) -> 0 | DW120: =IF('Asset data'!$F121=0,0,BM120/'Asset data'!$F121) -> 0 | DX120: =IF('Asset data'!$F121=0,0,BN120/'Asset data'!$F121) -> 0 | DY120: =IF('Asset data'!$F121=0,0,BO120/'Asset data'!$F121) -> 0 | DZ120: =IF('Asset data'!$F121=0,0,BP120/'Asset data'!$F121) -> 0 | EA120: =IF('Asset data'!$F121=0,0,BQ120/'Asset data'!$F121) -> 0 | EB120: =IF('Asset data'!$F121=0,0,BR120/'Asset data'!$F121) -> 0
A121: ='Asset data'!A122 -> 0 | B121: ='Asset data'!B122 -> 0 | C121: ='Asset data'!C122 -> 0 | D121: ='Asset data'!E122 -> 0 | E121: 0 | F121: ='Asset data'!G122 -> 0 | G121: 0 | H121: ='Asset data'!H122 -> 0 | I121: S | J121: =IF(A121=0,0,IF('Asset data'!$D$1=1,1,IF('Asset data'!$D$1=2,2,'Asset data'!I122))) -> 0 | K121: 0 | AY121: =repcalc('Age profile (Inst)'!CT122:GF122,J121,K121,H121,20,$L$20,$M$20) -> 0 | AZ121: 0 | BA121: 0 | BB121: 0 | BC121: 0 | BD121: 0 | BE121: 0 | BF121: 0 | BG121: 0 | BH121: 0 | BI121: 0 | BJ121: 0 | BK121: 0 | BL121: 0 | BM121: 0 | BN121: 0 | BO121: 0 | BP121: 0 | BQ121: 0 | BR121: 0 | BS121: 0 | BT121: 0 | BU121: 0 | BV121: 0 | BW121: 0 | BX121: 0 | BY121: 0 | BZ121: 0 | CA121: 0 | CB121: 0 | CC121: 0 | CD121: 0 | CE121: 0 | CF121: 0 | CG121: 0 | CH121: 0 | CI121: 0 | CJ121: 0 | CK121: 0 | CL121: 0 | CM121: 0 | CN121: 0 | CO121: 0 | CP121: 0 | CQ121: 0 | CR121: 0 | CS121: 0 | CT121: 0 | CU121: 0 | CV121: 0 | CW121: 0 | CX121: 0 | CY121: 0 | CZ121: 0 | DA121: 0 | DB121: 0 | DC121: 0 | DD121: 0 | DE121: 0 | DF121: 0 | DG121: 0 | DH121: 0 | DI121: =IF('Asset data'!$F122=0,0,AY121/'Asset data'!$F122) -> 0 | DJ121: =IF('Asset data'!$F122=0,0,AZ121/'Asset data'!$F122) -> 0 | DK121: =IF('Asset data'!$F122=0,0,BA121/'Asset data'!$F122) -> 0 | DL121: =IF('Asset data'!$F122=0,0,BB121/'Asset data'!$F122) -> 0 | DM121: =IF('Asset data'!$F122=0,0,BC121/'Asset data'!$F122) -> 0 | DN121: =IF('Asset data'!$F122=0,0,BD121/'Asset data'!$F122) -> 0 | DO121: =IF('Asset data'!$F122=0,0,BE121/'Asset data'!$F122) -> 0 | DP121: =IF('Asset data'!$F122=0,0,BF121/'Asset data'!$F122) -> 0 | DQ121: =IF('Asset data'!$F122=0,0,BG121/'Asset data'!$F122) -> 0 | DR121: =IF('Asset data'!$F122=0,0,BH121/'Asset data'!$F122) -> 0 | DS121: =IF('Asset data'!$F122=0,0,BI121/'Asset data'!$F122) -> 0 | DT121: =IF('Asset data'!$F122=0,0,BJ121/'Asset data'!$F122) -> 0 | DU121: =IF('Asset data'!$F122=0,0,BK121/'Asset data'!$F122) -> 0 | DV121: =IF('Asset data'!$F122=0,0,BL121/'Asset data'!$F122) -> 0 | DW121: =IF('Asset data'!$F122=0,0,BM121/'Asset data'!$F122) -> 0 | DX121: =IF('Asset data'!$F122=0,0,BN121/'Asset data'!$F122) -> 0 | DY121: =IF('Asset data'!$F122=0,0,BO121/'Asset data'!$F122) -> 0 | DZ121: =IF('Asset data'!$F122=0,0,BP121/'Asset data'!$F122) -> 0 | EA121: =IF('Asset data'!$F122=0,0,BQ121/'Asset data'!$F122) -> 0 | EB121: =IF('Asset data'!$F122=0,0,BR121/'Asset data'!$F122) -> 0
A122: ='Asset data'!A123 -> 0 | B122: ='Asset data'!B123 -> 0 | C122: ='Asset data'!C123 -> 0 | D122: ='Asset data'!E123 -> 0 | E122: 0 | F122: ='Asset data'!G123 -> 0 | G122: 0 | H122: ='Asset data'!H123 -> 0 | I122: S | J122: =IF(A122=0,0,IF('Asset data'!$D$1=1,1,IF('Asset data'!$D$1=2,2,'Asset data'!I123))) -> 0 | K122: 0 | AY122: =repcalc('Age profile (Inst)'!CT123:GF123,J122,K122,H122,20,$L$20,$M$20) -> 0 | AZ122: 0 | BA122: 0 | BB122: 0 | BC122: 0 | BD122: 0 | BE122: 0 | BF122: 0 | BG122: 0 | BH122: 0 | BI122: 0 | BJ122: 0 | BK122: 0 | BL122: 0 | BM122: 0 | BN122: 0 | BO122: 0 | BP122: 0 | BQ122: 0 | BR122: 0 | BS122: 0 | BT122: 0 | BU122: 0 | BV122: 0 | BW122: 0 | BX122: 0 | BY122: 0 | BZ122: 0 | CA122: 0 | CB122: 0 | CC122: 0 | CD122: 0 | CE122: 0 | CF122: 0 | CG122: 0 | CH122: 0 | CI122: 0 | CJ122: 0 | CK122: 0 | CL122: 0 | CM122: 0 | CN122: 0 | CO122: 0 | CP122: 0 | CQ122: 0 | CR122: 0 | CS122: 0 | CT122: 0 | CU122: 0 | CV122: 0 | CW122: 0 | CX122: 0 | CY122: 0 | CZ122: 0 | DA122: 0 | DB122: 0 | DC122: 0 | DD122: 0 | DE122: 0 | DF122: 0 | DG122: 0 | DH122: 0 | DI122: =IF('Asset data'!$F123=0,0,AY122/'Asset data'!$F123) -> 0 | DJ122: =IF('Asset data'!$F123=0,0,AZ122/'Asset data'!$F123) -> 0 | DK122: =IF('Asset data'!$F123=0,0,BA122/'Asset data'!$F123) -> 0 | DL122: =IF('Asset data'!$F123=0,0,BB122/'Asset data'!$F123) -> 0 | DM122: =IF('Asset data'!$F123=0,0,BC122/'Asset data'!$F123) -> 0 | DN122: =IF('Asset data'!$F123=0,0,BD122/'Asset data'!$F123) -> 0 | DO122: =IF('Asset data'!$F123=0,0,BE122/'Asset data'!$F123) -> 0 | DP122: =IF('Asset data'!$F123=0,0,BF122/'Asset data'!$F123) -> 0 | DQ122: =IF('Asset data'!$F123=0,0,BG122/'Asset data'!$F123) -> 0 | DR122: =IF('Asset data'!$F123=0,0,BH122/'Asset data'!$F123) -> 0 | DS122: =IF('Asset data'!$F123=0,0,BI122/'Asset data'!$F123) -> 0 | DT122: =IF('Asset data'!$F123=0,0,BJ122/'Asset data'!$F123) -> 0 | DU122: =IF('Asset data'!$F123=0,0,BK122/'Asset data'!$F123) -> 0 | DV122: =IF('Asset data'!$F123=0,0,BL122/'Asset data'!$F123) -> 0 | DW122: =IF('Asset data'!$F123=0,0,BM122/'Asset data'!$F123) -> 0 | DX122: =IF('Asset data'!$F123=0,0,BN122/'Asset data'!$F123) -> 0 | DY122: =IF('Asset data'!$F123=0,0,BO122/'Asset data'!$F123) -> 0 | DZ122: =IF('Asset data'!$F123=0,0,BP122/'Asset data'!$F123) -> 0 | EA122: =IF('Asset data'!$F123=0,0,BQ122/'Asset data'!$F123) -> 0 | EB122: =IF('Asset data'!$F123=0,0,BR122/'Asset data'!$F123) -> 0
